{"text_format":"1","workbook":"xlsx","n_sheets":9,"sheets":["Лицевая","Оборотная","RUS","ENG","Регистратор","MatchReport","Команды","Dictionary","Версии"],"not_rendered":{"charts":0,"images":8,"macros":1,"external_links":0,"defined_names":8,"comments":0,"pivot_tables":0},"unopened":[],"bounds":{"document_bytes":16777216,"sheet_cells":100000,"rows_first":2000,"rows_last":500,"rows_between":2000,"halvings":0,"cell_chars":16384,"cell_head_chars":4096},"cells_cut":0,"cells_raw":0,"read":"whole","date_system":"1900"}

{"sheet":"Лицевая","index":0,"n_rows":101,"n_cols":132,"rows_kept":101,"cut":false,"hidden":false,"merged":[[49,0,50,21],[48,22,50,24],[28,20,28,25],[29,20,29,25],[32,0,32,6],[32,19,32,25],[30,20,30,25],[28,1,28,6],[17,20,17,25],[24,20,24,25],[25,20,25,25],[26,20,26,25],[27,20,27,25],[20,20,20,25],[21,20,21,25],[22,20,22,25],[48,25,48,29],[48,0,48,21],[17,1,17,6],[27,1,27,6],[20,1,20,6],[21,1,21,6],[22,1,22,6],[23,1,23,6],[33,27,33,28],[34,27,34,28],[34,2,34,3],[24,1,24,6],[25,1,25,6],[19,1,19,6],[12,1,12,6],[13,1,13,6],[12,20,12,25],[13,20,13,25],[14,1,14,6],[15,1,15,6],[14,20,14,25],[15,20,15,25],[16,1,16,6],[16,20,16,25],[4,15,4,21],[5,20,5,29],[4,25,4,26],[38,27,38,28],[36,27,36,28],[37,27,37,28],[35,27,35,28],[29,1,29,6],[30,1,30,6],[31,1,31,6],[18,20,18,25],[19,20,19,25],[26,1,26,6],[23,20,23,25],[31,20,31,25],[33,9,33,10],[36,22,36,23],[36,20,36,21],[33,25,33,26],[35,25,35,26],[35,22,35,23],[34,4,34,5],[33,4,33,5],[18,1,18,6],[9,0,10,2],[9,22,9,29],[9,12,9,17],[0,0,0,29],[2,0,2,29],[3,0,3,2],[3,4,3,6],[7,0,7,4],[4,0,4,2],[4,4,4,6],[4,7,4,8],[5,0,5,4],[6,0,6,4],[5,15,5,19],[4,9,4,14],[6,15,6,19],[6,20,6,29],[3,27,3,29],[3,7,3,8],[3,9,3,14],[4,27,4,29],[3,22,3,24],[3,25,3,26],[3,15,3,21],[36,4,36,5],[38,9,38,10],[37,2,37,3],[37,7,37,8],[4,22,4,24],[34,7,34,8],[34,25,34,26],[35,20,35,21],[35,7,35,8],[34,9,34,10],[33,22,33,23],[34,22,34,23],[34,20,34,21],[33,7,33,8],[33,20,33,21],[8,15,8,19],[8,20,8,29],[10,16,11,16],[10,3,10,10],[10,12,11,12],[11,1,11,6],[11,20,11,25],[10,15,11,15],[10,22,10,29],[35,4,35,5],[35,9,35,10],[36,25,36,26],[37,25,37,26],[35,2,35,3],[39,20,39,21],[39,22,39,23],[40,27,40,28],[39,7,39,8],[39,9,39,10],[39,25,39,26],[39,27,39,28],[40,13,42,13],[41,27,41,28],[41,19,41,26],[38,25,38,26],[36,9,36,10],[37,20,37,21],[37,22,37,23],[37,9,37,10],[38,20,38,21],[38,22,38,23],[36,7,36,8],[36,2,36,3],[11,69,11,87],[11,88,11,106],[11,50,11,68],[11,107,11,125],[42,0,42,10],[33,0,41,0],[33,2,33,3],[40,17,42,17],[41,1,41,8],[41,9,41,10],[40,2,40,3],[37,4,37,5],[40,9,40,10],[39,4,39,5],[38,2,38,3],[40,7,40,8],[38,4,38,5],[38,7,38,8],[40,22,40,23],[40,25,40,26],[40,4,40,5],[40,15,42,15],[40,16,42,16],[39,2,39,3],[10,47,10,48],[5,5,5,14],[6,5,6,14],[7,5,7,14],[9,19,10,21],[7,15,7,19],[7,20,7,29],[10,35,10,37],[10,38,10,40],[9,3,9,10],[10,17,11,17],[10,33,10,34],[10,31,10,32],[10,13,11,13],[10,14,11,14],[54,0,54,29],[55,0,55,2],[55,4,55,6],[55,7,55,8],[55,9,55,14],[55,15,55,21],[55,22,55,24],[55,25,55,26],[55,27,55,29],[58,0,58,4],[58,5,58,14],[58,15,58,19],[58,20,58,29],[59,0,59,4],[59,5,59,14],[59,15,59,19],[59,20,59,29],[56,25,56,26],[56,27,56,29],[57,0,57,4],[57,5,57,14],[57,15,57,19],[57,20,57,29],[56,0,56,2],[56,4,56,6],[56,7,56,8],[56,9,56,14],[56,15,56,21],[56,22,56,24],[60,0,60,4],[60,5,60,14],[60,15,60,19],[60,20,60,29],[61,19,62,21],[61,22,61,29],[62,3,62,10],[62,12,63,12],[62,13,63,13],[62,14,63,14],[64,1,64,6],[64,20,64,25],[61,0,62,2],[61,3,61,10],[61,12,61,17],[65,1,65,6],[65,20,65,25],[62,15,63,15],[62,16,63,16],[62,17,63,17],[62,22,62,29],[63,1,63,6],[63,20,63,25],[69,1,69,6],[69,20,69,25],[70,1,70,6],[70,20,70,25],[71,1,71,6],[71,20,71,25],[66,1,66,6],[66,20,66,25],[67,1,67,6],[67,20,67,25],[68,1,68,6],[68,20,68,25],[75,1,75,6],[75,20,75,25],[76,1,76,6],[76,20,76,25],[77,1,77,6],[77,20,77,25],[72,1,72,6],[72,20,72,25],[73,1,73,6],[73,20,73,25],[74,1,74,6],[74,20,74,25],[81,1,81,6],[81,20,81,25],[82,1,82,6],[82,20,82,25],[83,1,83,6],[83,20,83,25],[78,1,78,6],[78,20,78,25],[79,1,79,6],[79,20,79,25],[80,1,80,6],[80,20,80,25],[84,0,84,6],[84,19,84,25],[85,0,93,0],[85,2,85,3],[85,4,85,5],[85,7,85,8],[85,9,85,10],[85,20,85,21],[85,22,85,23],[85,25,85,26],[87,20,87,21],[87,22,87,23],[89,25,89,26],[91,22,91,23],[91,25,91,26],[85,27,85,28],[85,29,93,29],[86,2,86,3],[86,4,86,5],[86,7,86,8],[86,9,86,10],[86,20,86,21],[86,22,86,23],[86,25,86,26],[86,27,86,28],[87,25,87,26],[87,27,87,28],[88,2,88,3],[88,4,88,5],[88,7,88,8],[88,9,88,10],[88,20,88,21],[88,22,88,23],[88,25,88,26],[88,27,88,28],[87,2,87,3],[87,4,87,5],[87,7,87,8],[87,9,87,10],[89,27,89,28],[90,2,90,3],[90,4,90,5],[90,7,90,8],[90,9,90,10],[90,20,90,21],[90,22,90,23],[90,25,90,26],[90,27,90,28],[89,2,89,3],[89,4,89,5],[89,7,89,8],[89,9,89,10],[89,20,89,21],[89,22,89,23],[91,27,91,28],[92,2,92,3],[92,4,92,5],[92,7,92,8],[92,9,92,10],[92,12,94,12],[92,13,94,13],[92,14,94,14],[91,2,91,3],[91,4,91,5],[91,7,91,8],[91,9,91,10],[91,12,91,17],[91,20,91,21],[92,17,94,17],[92,20,92,21],[92,22,92,23],[92,25,92,26],[92,15,94,15],[92,16,94,16],[92,27,92,28],[93,1,93,8],[93,9,93,10],[93,19,93,26],[93,27,93,28],[94,0,94,10],[94,19,94,29],[98,0,99,10],[98,12,99,17],[98,19,99,29],[100,0,100,21],[100,22,102,24],[100,25,100,29],[101,0,102,21],[101,25,102,29],[95,0,96,10],[95,19,96,29],[97,0,97,10],[97,12,97,17],[97,19,97,29],[49,25,50,29],[1,25,1,29],[1,0,1,4],[1,5,1,24],[53,0,53,4],[53,5,53,24],[53,25,53,29],[52,0,52,29],[8,0,8,4],[8,5,8,14],[46,0,47,10],[46,12,47,17],[46,19,47,29],[45,12,45,17],[45,0,45,10],[45,19,45,29],[43,0,44,10],[43,19,44,29],[39,12,39,17],[40,12,42,12],[42,19,42,29],[40,20,40,21],[40,14,42,14],[33,29,41,29]]}
["Федерация хоккея с мячом Свердловской области"]
[null,null,null,null,null,"ПРОТОКОЛ № 4",null,null,null,null,null,null,null,null,null,null,null,null,null,null,null,null,null,null,null,{"$f":"IF(AG8,\"Лист 1/2\",\"\")","v":""}]
["Первенство Свердловской области по хоккею с мячом КФК сезон 2018-2019 г.г."]
["Лига",null,null,"Пол","Дата игры",null,null,"Время",null,"Город",null,null,null,null,null,"Стадион",null,null,null,null,null,null,"Кол-во зрит.",null,null,"Темп.",null,"Погодные условия"]
["ЛЮБИТЕЛИ",null,null,"М","01.12.2018",null,null,"13:02:00",null,"БОГДАНОВИЧ",null,null,null,null,null,"\"ХК ФАКЕЛ\"",null,null,null,null,null,null,200,null,null,-6,null,"ЯСНО",null,null,null,"27 голов",{"$f":"COUNTIF(M13:M39,\"=А\")+COUNTIF(M13:M39,\"=Б\")=27","v":false}]
["Судья в поле",null,null,null,null,"ЗЕЛЕЧЕНКО Андрей, 3К, Богданович",null,null,null,null,null,null,null,null,null,"Инспектор матча",null,null,null,null,null,null,null,null,null,null,null,null,null,null,null,"Удаления А",{"$f":"COUNTIF(E35:F41,\">0\")+COUNTIF(J35:K41,\">0\")+COUNTIF(B87:F93,\">0\")=14","v":false}]
["Судья в поле",null,null,null,null,"БЕЗБОРОДОВ Владимир, 3К, Богданович",null,null,null,null,null,null,null,null,null,"Судья-секретарь ЭП",null,null,null,null,"ЛУНЕГОВ Виталий, 2К, Богданович",null,null,null,null,null,null,null,null,null,null,"Удаления Б",{"$f":"COUNTIF(W35:X41,\">0\")+COUNTIF(AB35:AC41,\">0\")+COUNTIF(T87:X93,\">0\")>14","v":false}]
["Судья у ворот",null,null,null,null,null,null,null,null,null,null,null,null,null,null,"Судья-секретарь",null,null,null,null,"ЛУНЕГОВ Виталий, 2К, Богданович",null,null,null,null,null,null,null,null,null,null,"2-й лист ",{"$f":"OR(AG5,AG6,AG7)","v":false}]
["Судья у ворот",null,null,null,null,null,null,null,null,null,null,null,null,null,null,"Судья-информатор",null,null,null,null,"ДЁМИН Валерий, 2К, Богданович"]
["Команда А",null,null,"\"ФАКЕЛ\"",null,null,null,null,null,null,null,null,"Забитые мячи",null,null,null,null,null,null,"Команда Б",null,null,"\"МЕТАЛЛУРГ\"",null,null,null,null,null,null,null,null,null,null,null,null,null,null,null,null,null,null,null,null,null,null,null,null,null,null,null,null,null,null,null,null,null,null,null,null,null,null,null,null,null,null,null,null,null,null,null,null,null,null,null,null,null,null,null,null,null,null,null,null,null,null,null,null,null,null,null,null,null,null,null,null,null,null,null,null,null,null,null,null,null,null,null,null,null,null,null,null,null,null,null,null,null,null,null,null,null,null,null,null,null,null,null,null,0,{"$f":"DX11","v":45},{"$f":"DY11","v":90},{"$f":"IF(Регистратор!BF2=1,Лицевая!DX11+1,IF(Регистратор!BF2=2,Лицевая!DY11,Лицевая!DZ11))","v":90}]
[null,null,null,"Богданович",null,null,null,null,null,null,null,null,"А/Б","№","Асс.","Счёт","Время","Форм.",null,null,null,null,"Нижний Тагил",null,null,null,null,null,null,null,null,"Счет",null,"Счет текущий",null,"Подсчет по авторам голов",null,null,"Штрафы",null,null,null,null,null,null,null,null,"Автоголы",null,null,null,null,null,null,null,null,null,null,null,null,null,null,null,null,null,null,null,null,null,null,null,null,null,null,null,null,null,null,null,null,null,null,null,null,null,null,null,null,null,null,null,null,null,null,null,null,null,null,null,null,null,null,null,null,null,null,null,null,null,null,null,null,null,null,null,null,null,null,null,null,null,null,null,null,null,null,null,{"$f":"MINUTE(Регистратор!BG2)","v":45},{"$f":"MINUTE(Регистратор!BG2)+MINUTE(Регистратор!BH2)","v":90},{"$f":"MINUTE(Регистратор!BG2)+MINUTE(Регистратор!BH2)+MINUTE(Регистратор!BI2)","v":90},{"$f":"MINUTE(Регистратор!BG2)+MINUTE(Регистратор!BH2)+MINUTE(Регистратор!BI2)+MINUTE(Регистратор!BK2)+MINUTE(Регистратор!BL2)","v":110},"Подсчёт по ассистентам"]
["№","ФАМИЛИЯ, Имя",null,null,null,null,null,"М","П","Ш","О",null,null,null,null,null,null,null,null,"№","ФАМИЛИЯ, Имя",null,null,null,null,null,"М","П","Ш","О",null,"А","Б","А","Б","Кто","А","Б","Кто","Сколько","За что","КК","КА","КБ","США","СШБ","КШ А/Б","АГА","АГБ",null,"Контроль номеров в команде А",null,null,null,null,null,null,null,null,null,null,null,null,null,null,null,null,null,null,"Контроль номеров в команде Б",null,null,null,null,null,null,null,null,null,null,null,null,null,null,null,null,null,null,"Контроль фамилий в команде А",null,null,null,null,null,null,null,null,null,null,null,null,null,null,null,null,null,null,"Контроль фамилий в команде Б",null,null,null,null,null,null,null,null,null,null,null,null,null,null,null,null,null,null,null,"1 тайм","2 тайм","3 тайм","OT","Кто"]
[90,{"$f":"IF(A13=\"\",\"\",VLOOKUP(CONCATENATE(D$10,A13),Команды!A:E,4,FALSE))","v":"ГОЛОВКИН Сергей (вр)"},null,null,null,null,null,{"$f":"COUNTIF($AJ$13:$AJ$91,AK13)+COUNTIF(Оборотная!$AH$17:$AH$62,AK13)","v":0},{"$f":"COUNTIF($EB$13:$EB$91,AK13)","v":0},{"$f":"CONCATENATE(IF(SUMIF($AM$13:$AM$92,AK13,$AN$13:$AN$92)=0,\"\",TEXT(SUMIF($AM$13:$AM$92,AK13,$AN$13:$AN$92),\"0\")),IF(AQ13=1,\"к\",\"\"))","v":""},5,null,"А",13,4,{"$f":"IF(ISBLANK(M13),\"\",CONCATENATE(TEXT(AH13,\"0\"),\":\",TEXT(AI13,\"0\")))","v":"1:0"},1,1,null,1,{"$f":"IF(T13=\"\",\"\",VLOOKUP(CONCATENATE($W$10,T13),Команды!A:E,4,FALSE))","v":"ПАБАТ Никита (вр)"},null,null,null,null,null,{"$f":"COUNTIF($AJ$13:$AJ$91,AL13)+COUNTIF(Оборотная!$AH$17:$AH$62,AL13)","v":0},{"$f":"COUNTIF($EB$13:$EB$91,AL13)","v":0},{"$f":"CONCATENATE(IF(SUMIF($AM$13:$AM$92,AL13,$AN$13:$AN$92)=0,\"\",TEXT(SUMIF($AM$13:$AM$92,AL13,$AN$13:$AN$92),\"0\")),IF(AR13=1,\"к\",\"\"))","v":""},4,null,{"$f":"IF(OR(AND(M13=\"А\",R13<5),AND(M13=\"Б\",R13=5)),MAX(DX13,DY13,DZ13,EA13),\"\")","v":1},{"$f":"IF(OR(AND(M13=\"Б\",R13<5),AND(M13=\"А\",R13=5)),MAX(DX13,DY13,DZ13),\"\")","v":""},{"$f":"COUNT(AF13)","v":1},{"$f":"COUNT(AG13)","v":0},{"$f":"IF(R13<5,CONCATENATE(M13,TEXT(N13,\"0\")),\"\")","v":"А13"},{"$f":"CONCATENATE(\"А\",IF(ISBLANK(A13),\"\",TEXT(A13,\"0\")))","v":"А90"},{"$f":"CONCATENATE(\"Б\",IF(ISBLANK(T13),\"\",TEXT(T13,\"0\")))","v":"Б1"},{"$f":"CONCATENATE(\"А\",TEXT(B35,\"0\"))","v":"А12"},{"$f":"IF(AND(AO13<=7,AO13>0),Регистратор!BN$3,IF(OR(AND(AO13>=8,AO13<=17),AND(AO13>17,AM13=\"АКШ\")),Регистратор!BM$3,0))","v":10},{"$f":"E35","v":10},{"$f":"IF(AND($AO13>=18,$AO13<=30),1,0)","v":0},{"$f":"IF(OR(AND($B$35=A13,$E$35>=18),AND($B$36=A13,$E$36>=18),AND($B$37=A13,$E$37>=18),AND($B$38=A13,$E$38>=18),AND($B$39=A13,$E$39>=18),AND($B$40=A13,$E$40>=18),AND($B$41=A13,$E$41>=18),AND($G$35=A13,$J$35>=18),AND($G$36=A13,$J$36>=18),AND($G$37=A13,$J$37>=18),AND($G$38=A13,$J$38>=18),AND($G$39=A13,$J$39>=18),AND($G$40=A13,$J$40>=18),AND($G$41=A13,$J$41>=18)),1,0)+AQ65","v":0},{"$f":"IF(OR(AND($T$35=T13,$W$35>=18),AND($T$36=T13,$W$36>=18),AND($T$37=T13,$W$37>=18),AND($T$38=T13,$W$38>=18),AND($T$39=T13,$W$39>=18),AND($T$40=T13,$W$40>=18),AND($T$41=T13,$W$41>=18),AND($Y$35=T13,$AB$35>=18),AND($Y$36=T13,$AB$36>=18),AND($Y$37=T13,$AB$37>=18),AND($Y$38=T13,$AB$38>=18),AND($Y$39=T13,$AB$39>=18),AND($Y$40=T13,$AB$40>=18),AND($Y$41=T13,$AB$41>=18)),1,0)+AR65","v":0},{"$f":"SUMIF($AM$13:$AM$92,AK13,$AN$13:$AN$92)","v":0},{"$f":"SUMIF($AM$13:$AM$92,AL13,$AN$13:$AN$92)","v":0},{"$f":"IF(AM13=\"АКШ\",AN13,0)","v":0},{"$f":"IF(AND(AG13=\"\",AJ13=\"\"),1,0)","v":0},{"$f":"IF(AND(AF13=\"\",AJ13=\"\"),1,0)","v":0},null,{"$f":"AND($A$13=A14,NOT(ISBLANK(A14)))","v":false},null,null,null,null,null,null,null,null,null,null,null,null,null,null,null,null,null,null,{"$f":"AND($T$13=T14,NOT(ISBLANK(T14)))","v":false},null,null,null,null,null,null,null,null,null,null,null,null,null,null,null,null,null,null,{"$f":"AND($B$13=B14,NOT(ISBLANK(B14)))","v":false},null,null,null,null,null,null,null,null,null,null,null,null,null,null,null,null,null,null,{"$f":"AND($U$13=U14,NOT(ISBLANK(U14)))","v":false},null,null,null,null,null,null,null,null,null,null,null,null,null,null,null,null,null,null,null,{"$f":"IF(AND(Q13>$DX$10,Q13<=$DX$11),1,0)","v":1},{"$f":"IF(AND(Q13>$DY$10,Q13<=$DY$11),2,0)","v":0},{"$f":"IF(AND(Регистратор!$BF$2=3,Q13>$DZ$10,Q13<=$DZ$11),3,0)","v":0},{"$f":"IF(AND(Регистратор!$BJ$2,Q13>$EA$10,Q13<=$EA$11),5,0)","v":0},{"$f":"IF(R13<5,CONCATENATE(M13,TEXT(O13,\"0\")),\"\")","v":"А4"}]
[8,{"$f":"IF(A14=\"\",\"\",VLOOKUP(CONCATENATE(D$10,A14),Команды!A:E,4,FALSE))","v":"ВОРОБЬЁВ Михаил (к)"},null,null,null,null,null,{"$f":"COUNTIF($AJ$13:$AJ$91,AK14)+COUNTIF(Оборотная!$AH$17:$AH$62,AK14)","v":1},{"$f":"COUNTIF($EB$13:$EB$91,AK14)","v":0},{"$f":"CONCATENATE(IF(SUMIF($AM$13:$AM$92,AK14,$AN$13:$AN$92)=0,\"\",TEXT(SUMIF($AM$13:$AM$92,AK14,$AN$13:$AN$92),\"0\")),IF(AQ14=1,\"к\",\"\"))","v":""},5,null,"А",5,"-",{"$f":"IF(ISBLANK(M14),\"\",CONCATENATE(TEXT(AH14,\"0\"),\":\",TEXT(AI14,\"0\")))","v":"2:0"},4,1,null,15,{"$f":"IF(T14=\"\",\"\",VLOOKUP(CONCATENATE($W$10,T14),Команды!A:E,4,FALSE))","v":"КАНДАКОВ Андрей (к)"},null,null,null,null,null,{"$f":"COUNTIF($AJ$13:$AJ$91,AL14)+COUNTIF(Оборотная!$AH$17:$AH$62,AL14)","v":0},{"$f":"COUNTIF($EB$13:$EB$91,AL14)","v":0},{"$f":"CONCATENATE(IF(SUMIF($AM$13:$AM$92,AL14,$AN$13:$AN$92)=0,\"\",TEXT(SUMIF($AM$13:$AM$92,AL14,$AN$13:$AN$92),\"0\")),IF(AR14=1,\"к\",\"\"))","v":""},4,null,{"$f":"IF(OR(AND(M14=\"А\",R14<5),AND(M14=\"Б\",R14=5)),MAX(DX14,DY14,DZ14,EA14),\"\")","v":1},{"$f":"IF(OR(AND(M14=\"Б\",R14<5),AND(M14=\"А\",R14=5)),MAX(DX14,DY14,DZ14),\"\")","v":""},{"$f":"COUNT(AF$13:AF14)","v":2},{"$f":"COUNT(AG$13:AG14)","v":0},{"$f":"IF(R14<5,CONCATENATE(M14,TEXT(N14,\"0\")),\"\")","v":"А5"},{"$f":"CONCATENATE(\"А\",IF(ISBLANK(A14),\"\",TEXT(A14,\"0\")))","v":"А8"},{"$f":"CONCATENATE(\"Б\",IF(ISBLANK(T14),\"\",TEXT(T14,\"0\")))","v":"Б15"},"А6",{"$f":"IF(AND(AO14<=7,AO14>0),Регистратор!BN$3,IF(OR(AND(AO14>=8,AO14<=17),AND(AO14>17,AM14=\"АКШ\")),Регистратор!BM$3,0))","v":10},9,{"$f":"IF(AND($AO14>=18,$AO14<=30),1,0)","v":0},{"$f":"IF(OR(AND($B$35=A14,$E$35>=18),AND($B$36=A14,$E$36>=18),AND($B$37=A14,$E$37>=18),AND($B$38=A14,$E$38>=18),AND($B$39=A14,$E$39>=18),AND($B$40=A14,$E$40>=18),AND($B$41=A14,$E$41>=18),AND($G$35=A14,$J$35>=18),AND($G$36=A14,$J$36>=18),AND($G$37=A14,$J$37>=18),AND($G$38=A14,$J$38>=18),AND($G$39=A14,$J$39>=18),AND($G$40=A14,$J$40>=18),AND($G$41=A14,$J$41>=18)),1,0)+AQ66","v":0},{"$f":"IF(OR(AND($T$35=T14,$W$35>=18),AND($T$36=T14,$W$36>=18),AND($T$37=T14,$W$37>=18),AND($T$38=T14,$W$38>=18),AND($T$39=T14,$W$39>=18),AND($T$40=T14,$W$40>=18),AND($T$41=T14,$W$41>=18),AND($Y$35=T14,$AB$35>=18),AND($Y$36=T14,$AB$36>=18),AND($Y$37=T14,$AB$37>=18),AND($Y$38=T14,$AB$38>=18),AND($Y$39=T14,$AB$39>=18),AND($Y$40=T14,$AB$40>=18),AND($Y$41=T14,$AB$41>=18)),1,0)+AR66","v":0},{"$f":"SUMIF($AM$13:$AM$92,AK14,$AN$13:$AN$92)","v":0},{"$f":"SUMIF($AM$13:$AM$92,AL14,$AN$13:$AN$92)","v":0},{"$f":"IF(AM14=\"АКШ\",AN14,0)","v":0},{"$f":"IF(AND(AG14=\"\",AJ14=\"\"),1,0)","v":0},{"$f":"IF(AND(AF14=\"\",AJ14=\"\"),1,0)","v":0},null,{"$f":"AND($A$13=A15,NOT(ISBLANK(A15)))","v":false},{"$f":"AND($A$14=A15,NOT(ISBLANK(A15)))","v":false},null,null,null,null,null,null,null,null,null,null,null,null,null,null,null,null,null,false,{"$f":"AND($T$14=T15,NOT(ISBLANK(T15)))","v":false},null,null,null,null,null,null,null,null,null,null,null,null,null,null,null,null,null,false,{"$f":"AND($B$14=B15,NOT(ISBLANK(B15)))","v":false},null,null,null,null,null,null,null,null,null,null,null,null,null,null,null,null,null,false,{"$f":"AND($U$14=U15,NOT(ISBLANK(U15)))","v":false},null,null,null,null,null,null,null,null,null,null,null,null,null,null,null,null,null,null,{"$f":"IF(AND(Q14>$DX$10,Q14<=$DX$11),1,0)","v":1},{"$f":"IF(AND(Q14>$DY$10,Q14<=$DY$11),2,0)","v":0},{"$f":"IF(AND(Регистратор!$BF$2=3,Q14>$DZ$10,Q14<=$DZ$11),3,0)","v":0},{"$f":"IF(AND(Регистратор!$BJ$2,Q14>$EA$10,Q14<=$EA$11),5,0)","v":0},{"$f":"IF(R14<5,CONCATENATE(M14,TEXT(O14,\"0\")),\"\")","v":"А-"}]
[20,{"$f":"IF(A15=\"\",\"\",VLOOKUP(CONCATENATE(D$10,A15),Команды!A:E,4,FALSE))","v":"РУКОЛЕЕВ Геннадий"},null,null,null,null,null,{"$f":"COUNTIF($AJ$13:$AJ$91,AK15)+COUNTIF(Оборотная!$AH$17:$AH$62,AK15)","v":0},0,"10",5,null,"А",6,"-","3:0",33,1,null,11,{"$f":"IF(T15=\"\",\"\",VLOOKUP(CONCATENATE($W$10,T15),Команды!A:E,4,FALSE))","v":"ГАЁВ Максим"},null,null,null,null,null,{"$f":"COUNTIF($AJ$13:$AJ$91,AL15)+COUNTIF(Оборотная!$AH$17:$AH$62,AL15)","v":0},0,{"$f":"CONCATENATE(IF(SUMIF($AM$13:$AM$92,AL15,$AN$13:$AN$92)=0,\"\",TEXT(SUMIF($AM$13:$AM$92,AL15,$AN$13:$AN$92),\"0\")),IF(AR15=1,\"к\",\"\"))","v":"20"},4,null,1,{"$f":"IF(OR(AND(M15=\"Б\",R15<5),AND(M15=\"А\",R15=5)),MAX(DX15,DY15,DZ15),\"\")","v":""},{"$f":"COUNT(AF$13:AF15)","v":3},{"$f":"COUNT(AG$13:AG15)","v":0},"А6","А20","Б11","А20",{"$f":"IF(AND(AO15<=7,AO15>0),Регистратор!BN$3,IF(OR(AND(AO15>=8,AO15<=17),AND(AO15>17,AM15=\"АКШ\")),Регистратор!BM$3,0))","v":10},9,0,0,0,10,20,0,0,0,null,false,{"$f":"AND($A$14=A16,NOT(ISBLANK(A16)))","v":false},{"$f":"AND($A$15=A16,NOT(ISBLANK(A16)))","v":false},null,null,null,null,null,null,null,null,null,null,null,null,null,null,null,null,false,false,{"$f":"AND($T$15=T16,NOT(ISBLANK(T16)))","v":false},null,null,null,null,null,null,null,null,null,null,null,null,null,null,null,null,false,false,{"$f":"AND($B$15=B16,NOT(ISBLANK(B16)))","v":false},null,null,null,null,null,null,null,null,null,null,null,null,null,null,null,null,false,false,{"$f":"AND($U$15=U16,NOT(ISBLANK(U16)))","v":false},null,null,null,null,null,null,null,null,null,null,null,null,null,null,null,null,null,1,0,{"$f":"IF(AND(Регистратор!$BF$2=3,Q15>$DZ$10,Q15<=$DZ$11),3,0)","v":0},{"$f":"IF(AND(Регистратор!$BJ$2,Q15>$EA$10,Q15<=$EA$11),5,0)","v":0},"А-"]
[12,{"$f":"IF(A16=\"\",\"\",VLOOKUP(CONCATENATE(D$10,A16),Команды!A:E,4,FALSE))","v":"МИТРОФАНОВ Александр"},null,null,null,null,null,{"$f":"COUNTIF($AJ$13:$AJ$91,AK16)+COUNTIF(Оборотная!$AH$17:$AH$62,AK16)","v":0},1,"10",5,null,"А",4,"-","4:0",41,1,null,21,{"$f":"IF(T16=\"\",\"\",VLOOKUP(CONCATENATE($W$10,T16),Команды!A:E,4,FALSE))","v":"ШАВКУНОВ Антон"},null,null,null,null,null,{"$f":"COUNTIF($AJ$13:$AJ$91,AL16)+COUNTIF(Оборотная!$AH$17:$AH$62,AL16)","v":0},0,"",4,null,1,{"$f":"IF(OR(AND(M16=\"Б\",R16<5),AND(M16=\"А\",R16=5)),MAX(DX16,DY16,DZ16),\"\")","v":""},{"$f":"COUNT(AF$13:AF16)","v":4},{"$f":"COUNT(AG$13:AG16)","v":0},"А4","А12","Б21","А0",{"$f":"IF(AND(AO16<=7,AO16>0),Регистратор!BN$3,IF(OR(AND(AO16>=8,AO16<=17),AND(AO16>17,AM16=\"АКШ\")),Регистратор!BM$3,0))","v":0},0,0,0,0,10,0,0,0,0,null,false,false,false,{"$f":"AND($A$16=A17,NOT(ISBLANK(A17)))","v":false},null,null,null,null,null,null,null,null,null,null,null,null,null,null,null,false,false,false,{"$f":"AND($T$16=T17,NOT(ISBLANK(T17)))","v":false},null,null,null,null,null,null,null,null,null,null,null,null,null,null,null,false,false,false,{"$f":"AND($B$16=B17,NOT(ISBLANK(B17)))","v":false},null,null,null,null,null,null,null,null,null,null,null,null,null,null,null,false,false,false,{"$f":"AND($U$16=U17,NOT(ISBLANK(U17)))","v":false},null,null,null,null,null,null,null,null,null,null,null,null,null,null,null,null,1,0,{"$f":"IF(AND(Регистратор!$BF$2=3,Q16>$DZ$10,Q16<=$DZ$11),3,0)","v":0},{"$f":"IF(AND(Регистратор!$BJ$2,Q16>$EA$10,Q16<=$EA$11),5,0)","v":0},"А-"]
[18,{"$f":"IF(A17=\"\",\"\",VLOOKUP(CONCATENATE(D$10,A17),Команды!A:E,4,FALSE))","v":"ШЕПЕЛЕВ Александр"},null,null,null,null,null,{"$f":"COUNTIF($AJ$13:$AJ$91,AK17)+COUNTIF(Оборотная!$AH$17:$AH$62,AK17)","v":0},0,"",5,null,"А",8,"-","5:0",55,2,null,17,{"$f":"IF(T17=\"\",\"\",VLOOKUP(CONCATENATE($W$10,T17),Команды!A:E,4,FALSE))","v":"МЯКИШЕВ Фёдор"},null,null,null,null,null,{"$f":"COUNTIF($AJ$13:$AJ$91,AL17)+COUNTIF(Оборотная!$AH$17:$AH$62,AL17)","v":0},0,"5",4,null,2,"",{"$f":"COUNT(AF$13:AF17)","v":5},{"$f":"COUNT(AG$13:AG17)","v":0},"А8","А18","Б17","А0",{"$f":"IF(AND(AO17<=7,AO17>0),Регистратор!BN$3,IF(OR(AND(AO17>=8,AO17<=17),AND(AO17>17,AM17=\"АКШ\")),Регистратор!BM$3,0))","v":0},0,0,0,0,0,5,0,0,0,null,false,false,false,false,{"$f":"AND($A$17=A18,NOT(ISBLANK(A18)))","v":false},null,null,null,null,null,null,null,null,null,null,null,null,null,null,false,false,false,false,{"$f":"AND($T$17=T18,NOT(ISBLANK(T18)))","v":false},null,null,null,null,null,null,null,null,null,null,null,null,null,null,false,false,false,false,{"$f":"AND($B$17=B18,NOT(ISBLANK(B18)))","v":false},null,null,null,null,null,null,null,null,null,null,null,null,null,null,false,false,false,false,{"$f":"AND($U$17=U18,NOT(ISBLANK(U18)))","v":false},null,null,null,null,null,null,null,null,null,null,null,null,null,null,null,0,2,{"$f":"IF(AND(Регистратор!$BF$2=3,Q17>$DZ$10,Q17<=$DZ$11),3,0)","v":0},{"$f":"IF(AND(Регистратор!$BJ$2,Q17>$EA$10,Q17<=$EA$11),5,0)","v":0},"А-"]
[17,{"$f":"IF(A18=\"\",\"\",VLOOKUP(CONCATENATE(D$10,A18),Команды!A:E,4,FALSE))","v":"ПОПОВ Максим"},null,null,null,null,null,{"$f":"COUNTIF($AJ$13:$AJ$91,AK18)+COUNTIF(Оборотная!$AH$17:$AH$62,AK18)","v":2},0,"",5,null,"А",5,13,"6:0",56,1,null,12,{"$f":"IF(T18=\"\",\"\",VLOOKUP(CONCATENATE($W$10,T18),Команды!A:E,4,FALSE))","v":"ЗАХАРОВ Владислав"},null,null,null,null,null,{"$f":"COUNTIF($AJ$13:$AJ$91,AL18)+COUNTIF(Оборотная!$AH$17:$AH$62,AL18)","v":0},0,"10",4,null,2,"",{"$f":"COUNT(AF$13:AF18)","v":6},{"$f":"COUNT(AG$13:AG18)","v":0},"А5","А17","Б12","А0",{"$f":"IF(AND(AO18<=7,AO18>0),Регистратор!BN$3,IF(OR(AND(AO18>=8,AO18<=17),AND(AO18>17,AM18=\"АКШ\")),Регистратор!BM$3,0))","v":0},0,0,0,0,0,10,0,0,0,null,false,false,false,false,false,{"$f":"AND($A$18=A19,NOT(ISBLANK(A19)))","v":false},null,null,null,null,null,null,null,null,null,null,null,null,null,false,false,false,false,false,{"$f":"AND($T$18=T19,NOT(ISBLANK(T19)))","v":false},null,null,null,null,null,null,null,null,null,null,null,null,null,false,false,false,false,false,{"$f":"AND($B$18=B19,NOT(ISBLANK(B19)))","v":false},null,null,null,null,null,null,null,null,null,null,null,null,null,false,false,false,false,false,{"$f":"AND($U$18=U19,NOT(ISBLANK(U19)))","v":false},null,null,null,null,null,null,null,null,null,null,null,null,null,null,0,2,{"$f":"IF(AND(Регистратор!$BF$2=3,Q18>$DZ$10,Q18<=$DZ$11),3,0)","v":0},{"$f":"IF(AND(Регистратор!$BJ$2,Q18>$EA$10,Q18<=$EA$11),5,0)","v":0},"А13"]
[4,{"$f":"IF(A19=\"\",\"\",VLOOKUP(CONCATENATE(D$10,A19),Команды!A:E,4,FALSE))","v":"БЕЗБОРОДОВ Сергей"},null,null,null,null,null,{"$f":"COUNTIF($AJ$13:$AJ$91,AK19)+COUNTIF(Оборотная!$AH$17:$AH$62,AK19)","v":1},1,"",5,null,"А",16,"-","7:0",61,1,null,7,{"$f":"IF(T19=\"\",\"\",VLOOKUP(CONCATENATE($W$10,T19),Команды!A:E,4,FALSE))","v":"БЕЛЫХ Олег"},null,null,null,null,null,{"$f":"COUNTIF($AJ$13:$AJ$91,AL19)+COUNTIF(Оборотная!$AH$17:$AH$62,AL19)","v":0},0,"",4,null,2,"",{"$f":"COUNT(AF$13:AF19)","v":7},{"$f":"COUNT(AG$13:AG19)","v":0},"А16","А4","Б7","А0",{"$f":"IF(AND(AO19<=7,AO19>0),Регистратор!BN$3,IF(OR(AND(AO19>=8,AO19<=17),AND(AO19>17,AM19=\"АКШ\")),Регистратор!BM$3,0))","v":0},0,0,0,0,0,0,0,0,0,null,false,false,false,false,false,false,{"$f":"AND($A$19=A20,NOT(ISBLANK(A20)))","v":false},null,null,null,null,null,null,null,null,null,null,null,null,false,false,false,false,false,false,{"$f":"AND($T$19=T20,NOT(ISBLANK(T20)))","v":false},null,null,null,null,null,null,null,null,null,null,null,null,false,false,false,false,false,false,{"$f":"AND($B$19=B20,NOT(ISBLANK(B20)))","v":false},null,null,null,null,null,null,null,null,null,null,null,null,false,false,false,false,false,false,{"$f":"AND($U$19=U20,NOT(ISBLANK(U20)))","v":false},null,null,null,null,null,null,null,null,null,null,null,null,null,0,2,{"$f":"IF(AND(Регистратор!$BF$2=3,Q19>$DZ$10,Q19<=$DZ$11),3,0)","v":0},{"$f":"IF(AND(Регистратор!$BJ$2,Q19>$EA$10,Q19<=$EA$11),5,0)","v":0},"А-"]
[6,{"$f":"IF(A20=\"\",\"\",VLOOKUP(CONCATENATE(D$10,A20),Команды!A:E,4,FALSE))","v":"МЕДВЕДЕВ Александр"},null,null,null,null,null,{"$f":"COUNTIF($AJ$13:$AJ$91,AK20)+COUNTIF(Оборотная!$AH$17:$AH$62,AK20)","v":1},0,"10",5,null,"А",5,13,"8:0",72,1,null,13,{"$f":"IF(T20=\"\",\"\",VLOOKUP(CONCATENATE($W$10,T20),Команды!A:E,4,FALSE))","v":"ПУДОВ Денис"},null,null,null,null,null,{"$f":"COUNTIF($AJ$13:$AJ$91,AL20)+COUNTIF(Оборотная!$AH$17:$AH$62,AL20)","v":0},0,"",4,null,2,"",{"$f":"COUNT(AF$13:AF20)","v":8},{"$f":"COUNT(AG$13:AG20)","v":0},"А5","А6","Б13",{"$f":"CONCATENATE(\"А\",TEXT(G35,\"0\"))","v":"А0"},{"$f":"IF(AND(AO20<=7,AO20>0),Регистратор!BN$3,IF(OR(AND(AO20>=8,AO20<=17),AND(AO20>17,AM20=\"АКШ\")),Регистратор!BM$3,0))","v":0},{"$f":"J35","v":0},0,0,0,10,0,0,0,0,null,false,false,false,false,false,false,false,{"$f":"AND($A$20=A21,NOT(ISBLANK(A21)))","v":false},null,null,null,null,null,null,null,null,null,null,null,false,false,false,false,false,false,false,{"$f":"AND($T$20=T21,NOT(ISBLANK(T21)))","v":false},null,null,null,null,null,null,null,null,null,null,null,false,false,false,false,false,false,false,{"$f":"AND($B$20=B21,NOT(ISBLANK(B21)))","v":false},null,null,null,null,null,null,null,null,null,null,null,false,false,false,false,false,false,false,{"$f":"AND($U$20=U21,NOT(ISBLANK(U21)))","v":false},null,null,null,null,null,null,null,null,null,null,null,null,0,2,{"$f":"IF(AND(Регистратор!$BF$2=3,Q20>$DZ$10,Q20<=$DZ$11),3,0)","v":0},{"$f":"IF(AND(Регистратор!$BJ$2,Q20>$EA$10,Q20<=$EA$11),5,0)","v":0},"А13"]
[10,{"$f":"IF(A21=\"\",\"\",VLOOKUP(CONCATENATE(D$10,A21),Команды!A:E,4,FALSE))","v":"ЕРМОЛИН Андрей"},null,null,null,null,null,{"$f":"COUNTIF($AJ$13:$AJ$91,AK21)+COUNTIF(Оборотная!$AH$17:$AH$62,AK21)","v":0},0,"",5,null,"А",17,12,"9:0",74,4,null,5,{"$f":"IF(T21=\"\",\"\",VLOOKUP(CONCATENATE($W$10,T21),Команды!A:E,4,FALSE))","v":"ВАНИЧКИН Вадим"},null,null,null,null,null,{"$f":"COUNTIF($AJ$13:$AJ$91,AL21)+COUNTIF(Оборотная!$AH$17:$AH$62,AL21)","v":0},0,"",4,null,2,"",{"$f":"COUNT(AF$13:AF21)","v":9},{"$f":"COUNT(AG$13:AG21)","v":0},"А17","А10","Б5","А0",{"$f":"IF(AND(AO21<=7,AO21>0),Регистратор!BN$3,IF(OR(AND(AO21>=8,AO21<=17),AND(AO21>17,AM21=\"АКШ\")),Регистратор!BM$3,0))","v":0},0,0,0,0,0,0,0,0,0,null,false,false,false,false,false,false,false,false,{"$f":"AND($A$21=A22,NOT(ISBLANK(A22)))","v":false},null,null,null,null,null,null,null,null,null,null,false,false,false,false,false,false,false,false,{"$f":"AND($T$21=T22,NOT(ISBLANK(T22)))","v":false},null,null,null,null,null,null,null,null,null,null,false,false,false,false,false,false,false,false,{"$f":"AND($B$21=B22,NOT(ISBLANK(B22)))","v":false},null,null,null,null,null,null,null,null,null,null,false,false,false,false,false,false,false,false,{"$f":"AND($U$21=U22,NOT(ISBLANK(U22)))","v":false},null,null,null,null,null,null,null,null,null,null,null,0,2,{"$f":"IF(AND(Регистратор!$BF$2=3,Q21>$DZ$10,Q21<=$DZ$11),3,0)","v":0},{"$f":"IF(AND(Регистратор!$BJ$2,Q21>$EA$10,Q21<=$EA$11),5,0)","v":0},"А12"]
[13,{"$f":"IF(A22=\"\",\"\",VLOOKUP(CONCATENATE(D$10,A22),Команды!A:E,4,FALSE))","v":"БРУСЕНКОВ Денис"},null,null,null,null,null,{"$f":"COUNTIF($AJ$13:$AJ$91,AK22)+COUNTIF(Оборотная!$AH$17:$AH$62,AK22)","v":1},2,"",5,null,"А",17,"-","10:0",90,1,null,10,{"$f":"IF(T22=\"\",\"\",VLOOKUP(CONCATENATE($W$10,T22),Команды!A:E,4,FALSE))","v":"СПИРИДОНОВ Евгений"},null,null,null,null,null,{"$f":"COUNTIF($AJ$13:$AJ$91,AL22)+COUNTIF(Оборотная!$AH$17:$AH$62,AL22)","v":0},0,"",4,null,2,"",{"$f":"COUNT(AF$13:AF22)","v":10},{"$f":"COUNT(AG$13:AG22)","v":0},"А17","А13","Б10","А0",{"$f":"IF(AND(AO22<=7,AO22>0),Регистратор!BN$3,IF(OR(AND(AO22>=8,AO22<=17),AND(AO22>17,AM22=\"АКШ\")),Регистратор!BM$3,0))","v":0},0,0,0,0,0,0,0,0,0,null,false,false,false,false,false,false,false,false,false,{"$f":"AND($A$22=A23,NOT(ISBLANK(A23)))","v":false},null,null,null,null,null,null,null,null,null,false,false,false,false,false,false,false,false,false,{"$f":"AND($T$22=T23,NOT(ISBLANK(T23)))","v":false},null,null,null,null,null,null,null,null,null,false,false,false,false,false,false,false,false,false,{"$f":"AND($B$22=B23,NOT(ISBLANK(B23)))","v":false},null,null,null,null,null,null,null,null,null,false,false,false,false,false,false,false,false,false,{"$f":"AND($U$22=U23,NOT(ISBLANK(U23)))","v":false},null,null,null,null,null,null,null,null,null,null,0,2,{"$f":"IF(AND(Регистратор!$BF$2=3,Q22>$DZ$10,Q22<=$DZ$11),3,0)","v":0},{"$f":"IF(AND(Регистратор!$BJ$2,Q22>$EA$10,Q22<=$EA$11),5,0)","v":0},"А-"]
[5,{"$f":"IF(A23=\"\",\"\",VLOOKUP(CONCATENATE(D$10,A23),Команды!A:E,4,FALSE))","v":"ДЕНИСОВ Сергей"},null,null,null,null,null,{"$f":"COUNTIF($AJ$13:$AJ$91,AK23)+COUNTIF(Оборотная!$AH$17:$AH$62,AK23)","v":3},0,"",5,null,null,null,null,"",null,null,null,19,{"$f":"IF(T23=\"\",\"\",VLOOKUP(CONCATENATE($W$10,T23),Команды!A:E,4,FALSE))","v":"ШЕСТАКОВ Никита"},null,null,null,null,null,{"$f":"COUNTIF($AJ$13:$AJ$91,AL23)+COUNTIF(Оборотная!$AH$17:$AH$62,AL23)","v":0},0,"",4,null,"","",{"$f":"COUNT(AF$13:AF23)","v":10},{"$f":"COUNT(AG$13:AG23)","v":0},"0","А5","Б19","А0",{"$f":"IF(AND(AO23<=7,AO23>0),Регистратор!BN$3,IF(OR(AND(AO23>=8,AO23<=17),AND(AO23>17,AM23=\"АКШ\")),Регистратор!BM$3,0))","v":0},0,0,0,0,0,0,0,0,0,null,false,false,false,false,false,false,false,false,false,false,{"$f":"AND($A$23=A24,NOT(ISBLANK(A24)))","v":false},null,null,null,null,null,null,null,null,false,false,false,false,false,false,false,false,false,false,{"$f":"AND($T$23=T24,NOT(ISBLANK(T24)))","v":false},null,null,null,null,null,null,null,null,false,false,false,false,false,false,false,false,false,false,{"$f":"AND($B$23=B24,NOT(ISBLANK(B24)))","v":false},null,null,null,null,null,null,null,null,false,false,false,false,false,false,false,false,false,false,{"$f":"AND($U$23=U24,NOT(ISBLANK(U24)))","v":false},null,null,null,null,null,null,null,null,null,0,0,{"$f":"IF(AND(Регистратор!$BF$2=3,Q23>$DZ$10,Q23<=$DZ$11),3,0)","v":0},{"$f":"IF(AND(Регистратор!$BJ$2,Q23>$EA$10,Q23<=$EA$11),5,0)","v":0},"0"]
[21,{"$f":"IF(A24=\"\",\"\",VLOOKUP(CONCATENATE(D$10,A24),Команды!A:E,4,FALSE))","v":"БЫКОВ Павел (в)"},null,null,null,null,null,{"$f":"COUNTIF($AJ$13:$AJ$91,AK24)+COUNTIF(Оборотная!$AH$17:$AH$62,AK24)","v":0},0,"",null,null,null,null,null,"",null,null,null,30,{"$f":"IF(T24=\"\",\"\",VLOOKUP(CONCATENATE($W$10,T24),Команды!A:E,4,FALSE))","v":"СОКОЛОВСКИЙ Андрей (вр)"},null,null,null,null,null,{"$f":"COUNTIF($AJ$13:$AJ$91,AL24)+COUNTIF(Оборотная!$AH$17:$AH$62,AL24)","v":0},0,"",null,null,"","",{"$f":"COUNT(AF$13:AF24)","v":10},{"$f":"COUNT(AG$13:AG24)","v":0},"0","А21","Б30","А0",{"$f":"IF(AND(AO24<=7,AO24>0),Регистратор!BN$3,IF(OR(AND(AO24>=8,AO24<=17),AND(AO24>17,AM24=\"АКШ\")),Регистратор!BM$3,0))","v":0},0,0,0,0,0,0,0,0,0,null,false,false,false,false,false,false,false,false,false,false,false,{"$f":"AND($A$24=A25,NOT(ISBLANK(A25)))","v":false},null,null,null,null,null,null,null,false,false,false,false,false,false,false,false,false,false,false,{"$f":"AND($T$24=T25,NOT(ISBLANK(T25)))","v":false},null,null,null,null,null,null,null,false,false,false,false,false,false,false,false,false,false,false,{"$f":"AND($B$24=B25,NOT(ISBLANK(B25)))","v":false},null,null,null,null,null,null,null,false,false,false,false,false,false,false,false,false,false,false,{"$f":"AND($U$24=U25,NOT(ISBLANK(U25)))","v":false},null,null,null,null,null,null,null,null,0,0,{"$f":"IF(AND(Регистратор!$BF$2=3,Q24>$DZ$10,Q24<=$DZ$11),3,0)","v":0},{"$f":"IF(AND(Регистратор!$BJ$2,Q24>$EA$10,Q24<=$EA$11),5,0)","v":0},"0"]
[3,{"$f":"IF(A25=\"\",\"\",VLOOKUP(CONCATENATE(D$10,A25),Команды!A:E,4,FALSE))","v":"ЧЕРЕПКОВ АРТЁМ"},null,null,null,null,null,{"$f":"COUNTIF($AJ$13:$AJ$91,AK25)+COUNTIF(Оборотная!$AH$17:$AH$62,AK25)","v":0},0,"",5,null,null,null,null,"",null,null,null,8,{"$f":"IF(T25=\"\",\"\",VLOOKUP(CONCATENATE($W$10,T25),Команды!A:E,4,FALSE))","v":"ЧЕРЕПАНОВ вЛАДИСЛАВ"},null,null,null,null,null,{"$f":"COUNTIF($AJ$13:$AJ$91,AL25)+COUNTIF(Оборотная!$AH$17:$AH$62,AL25)","v":0},0,"",4,null,"","",{"$f":"COUNT(AF$13:AF25)","v":10},{"$f":"COUNT(AG$13:AG25)","v":0},"0","А3","Б8","А0",{"$f":"IF(AND(AO25<=7,AO25>0),Регистратор!BN$3,IF(OR(AND(AO25>=8,AO25<=17),AND(AO25>17,AM25=\"АКШ\")),Регистратор!BM$3,0))","v":0},0,0,0,0,0,0,0,0,0,null,false,false,false,false,false,false,false,false,false,false,false,false,{"$f":"AND($A$25=A26,NOT(ISBLANK(A26)))","v":false},null,null,null,null,null,null,false,false,false,false,false,false,false,false,false,false,false,false,{"$f":"AND($T$25=T26,NOT(ISBLANK(T26)))","v":false},null,null,null,null,null,null,false,false,false,false,false,false,false,false,false,false,false,false,{"$f":"AND($B$25=B26,NOT(ISBLANK(B26)))","v":false},null,null,null,null,null,null,false,false,false,false,false,false,false,false,false,false,false,false,{"$f":"AND($U$25=U26,NOT(ISBLANK(U26)))","v":false},null,null,null,null,null,null,null,0,0,{"$f":"IF(AND(Регистратор!$BF$2=3,Q25>$DZ$10,Q25<=$DZ$11),3,0)","v":0},{"$f":"IF(AND(Регистратор!$BJ$2,Q25>$EA$10,Q25<=$EA$11),5,0)","v":0},"0"]
[15,{"$f":"IF(A26=\"\",\"\",VLOOKUP(CONCATENATE(D$10,A26),Команды!A:E,4,FALSE))","v":"ФЕКЛУШИН Григорий"},null,null,null,null,null,{"$f":"COUNTIF($AJ$13:$AJ$91,AK26)+COUNTIF(Оборотная!$AH$17:$AH$62,AK26)","v":0},0,"",5,null,null,null,null,"",null,null,null,9,{"$f":"IF(T26=\"\",\"\",VLOOKUP(CONCATENATE($W$10,T26),Команды!A:E,4,FALSE))","v":"НЕФЁДОВ Максим"},null,null,null,null,null,{"$f":"COUNTIF($AJ$13:$AJ$91,AL26)+COUNTIF(Оборотная!$AH$17:$AH$62,AL26)","v":0},0,"",4,null,"","",{"$f":"COUNT(AF$13:AF26)","v":10},{"$f":"COUNT(AG$13:AG26)","v":0},"0","А15","Б9","А0",{"$f":"IF(AND(AO26<=7,AO26>0),Регистратор!BN$3,IF(OR(AND(AO26>=8,AO26<=17),AND(AO26>17,AM26=\"АКШ\")),Регистратор!BM$3,0))","v":0},0,0,0,0,0,0,0,0,0,null,false,false,false,false,false,false,false,false,false,false,false,false,false,{"$f":"AND($A$26=A27,NOT(ISBLANK(A27)))","v":false},null,null,null,null,null,false,false,false,false,false,false,false,false,false,false,false,false,false,{"$f":"AND($T$26=T27,NOT(ISBLANK(T27)))","v":false},null,null,null,null,null,false,false,false,false,false,false,false,false,false,false,false,false,false,{"$f":"AND($B$26=B27,NOT(ISBLANK(B27)))","v":false},null,null,null,null,null,false,false,false,false,false,false,false,false,false,false,false,false,false,{"$f":"AND($U$26=U27,NOT(ISBLANK(U27)))","v":false},null,null,null,null,null,null,0,0,{"$f":"IF(AND(Регистратор!$BF$2=3,Q26>$DZ$10,Q26<=$DZ$11),3,0)","v":0},{"$f":"IF(AND(Регистратор!$BJ$2,Q26>$EA$10,Q26<=$EA$11),5,0)","v":0},"0"]
[19,{"$f":"IF(A27=\"\",\"\",VLOOKUP(CONCATENATE(D$10,A27),Команды!A:E,4,FALSE))","v":"ВОРОПАЕВ Аркадий"},null,null,null,null,null,{"$f":"COUNTIF($AJ$13:$AJ$91,AK27)+COUNTIF(Оборотная!$AH$17:$AH$62,AK27)","v":0},0,"",5,null,null,null,null,"",null,null,null,16,{"$f":"IF(T27=\"\",\"\",VLOOKUP(CONCATENATE($W$10,T27),Команды!A:E,4,FALSE))","v":"КУЗНЕЦОВ Марк"},null,null,null,null,null,{"$f":"COUNTIF($AJ$13:$AJ$91,AL27)+COUNTIF(Оборотная!$AH$17:$AH$62,AL27)","v":0},0,"",4,null,"","",{"$f":"COUNT(AF$13:AF27)","v":10},{"$f":"COUNT(AG$13:AG27)","v":0},"0","А19","Б16",{"$f":"CONCATENATE(\"Б\",TEXT(T35,\"0\"))","v":"Б12"},{"$f":"IF(AND(AO27<=7,AO27>0),Регистратор!BN$3,IF(OR(AND(AO27>=8,AO27<=17),AND(AO27>17,AM27=\"БКШ\")),Регистратор!BM$3,0))","v":10},{"$f":"W35","v":9},0,0,0,0,0,{"$f":"IF(AM27=\"БКШ\",AN27,0)","v":0},0,0,null,false,false,false,false,false,false,false,false,false,false,false,false,false,false,{"$f":"AND($A$27=A28,NOT(ISBLANK(A28)))","v":false},null,null,null,null,false,false,false,false,false,false,false,false,false,false,false,false,false,false,{"$f":"AND($T$27=T28,NOT(ISBLANK(T28)))","v":false},null,null,null,null,false,false,false,false,false,false,false,false,false,false,false,false,false,false,{"$f":"AND($B$27=B28,NOT(ISBLANK(B28)))","v":false},null,null,null,null,false,false,false,false,false,false,false,false,false,false,false,false,false,false,{"$f":"AND($U$27=U28,NOT(ISBLANK(U28)))","v":false},null,null,null,null,null,0,0,{"$f":"IF(AND(Регистратор!$BF$2=3,Q27>$DZ$10,Q27<=$DZ$11),3,0)","v":0},{"$f":"IF(AND(Регистратор!$BJ$2,Q27>$EA$10,Q27<=$EA$11),5,0)","v":0},"0"]
[14,{"$f":"IF(A28=\"\",\"\",VLOOKUP(CONCATENATE(D$10,A28),Команды!A:E,4,FALSE))","v":"ХАЙБУЛЛИН Алексей"},null,null,null,null,null,{"$f":"COUNTIF($AJ$13:$AJ$91,AK28)+COUNTIF(Оборотная!$AH$17:$AH$62,AK28)","v":0},0,"",5,null,null,null,null,"",null,null,null,3,{"$f":"IF(T28=\"\",\"\",VLOOKUP(CONCATENATE($W$10,T28),Команды!A:E,4,FALSE))","v":"МАРТЫНОВ Алексей"},null,null,null,null,null,{"$f":"COUNTIF($AJ$13:$AJ$91,AL28)+COUNTIF(Оборотная!$AH$17:$AH$62,AL28)","v":0},0,"",4,null,"","",{"$f":"COUNT(AF$13:AF28)","v":10},{"$f":"COUNT(AG$13:AG28)","v":0},"0","А14","Б3","Б17",{"$f":"IF(AND(AO28<=7,AO28>0),Регистратор!BN$3,IF(OR(AND(AO28>=8,AO28<=17),AND(AO28>17,AM28=\"БКШ\")),Регистратор!BM$3,0))","v":5},2,0,0,0,0,0,{"$f":"IF(AM28=\"БКШ\",AN28,0)","v":0},0,0,null,false,false,false,false,false,false,false,false,false,false,false,false,false,false,{"$f":"AND($A$27=A29,NOT(ISBLANK(A29)))","v":false},{"$f":"AND($A$28=A29,NOT(ISBLANK(A29)))","v":false},null,null,null,false,false,false,false,false,false,false,false,false,false,false,false,false,false,{"$f":"AND($T$27=T29,NOT(ISBLANK(T29)))","v":false},{"$f":"AND($T$28=T29,NOT(ISBLANK(T29)))","v":false},null,null,null,false,false,false,false,false,false,false,false,false,false,false,false,false,false,{"$f":"AND($B$27=B29,NOT(ISBLANK(B29)))","v":false},{"$f":"AND($B$28=B29,NOT(ISBLANK(B29)))","v":false},null,null,null,false,false,false,false,false,false,false,false,false,false,false,false,false,false,{"$f":"AND($U$27=U29,NOT(ISBLANK(U29)))","v":false},{"$f":"AND($U$28=U29,NOT(ISBLANK(U29)))","v":false},null,null,null,null,0,0,{"$f":"IF(AND(Регистратор!$BF$2=3,Q28>$DZ$10,Q28<=$DZ$11),3,0)","v":0},{"$f":"IF(AND(Регистратор!$BJ$2,Q28>$EA$10,Q28<=$EA$11),5,0)","v":0},"0"]
[16,{"$f":"IF(A29=\"\",\"\",VLOOKUP(CONCATENATE(D$10,A29),Команды!A:E,4,FALSE))","v":"КОЛТЫШЕВ Дмитрий"},null,null,null,null,null,{"$f":"COUNTIF($AJ$13:$AJ$91,AK29)+COUNTIF(Оборотная!$AH$17:$AH$62,AK29)","v":1},0,"",5,null,null,null,null,"",null,null,null,14,{"$f":"IF(T29=\"\",\"\",VLOOKUP(CONCATENATE($W$10,T29),Команды!A:E,4,FALSE))","v":"СТРУИН Андрей"},null,null,null,null,null,{"$f":"COUNTIF($AJ$13:$AJ$91,AL29)+COUNTIF(Оборотная!$AH$17:$AH$62,AL29)","v":0},0,"",4,null,"","",{"$f":"COUNT(AF$13:AF29)","v":10},{"$f":"COUNT(AG$13:AG29)","v":0},"0","А16","Б14","Б11",{"$f":"IF(AND(AO29<=7,AO29>0),Регистратор!BN$3,IF(OR(AND(AO29>=8,AO29<=17),AND(AO29>17,AM29=\"БКШ\")),Регистратор!BM$3,0))","v":10},9,0,0,0,0,0,0,0,0,null,false,false,false,false,false,false,false,false,false,false,false,false,false,false,{"$f":"AND($A$27=A30,NOT(ISBLANK(A30)))","v":false},{"$f":"AND($A$28=A30,NOT(ISBLANK(A30)))","v":false},{"$f":"AND($A$29=A30,NOT(ISBLANK(A30)))","v":false},null,null,false,false,false,false,false,false,false,false,false,false,false,false,false,false,{"$f":"AND($T$27=T30,NOT(ISBLANK(T30)))","v":false},{"$f":"AND($T$28=T30,NOT(ISBLANK(T30)))","v":false},{"$f":"AND($T$29=T30,NOT(ISBLANK(T30)))","v":false},null,null,false,false,false,false,false,false,false,false,false,false,false,false,false,false,{"$f":"AND($B$27=B30,NOT(ISBLANK(B30)))","v":false},{"$f":"AND($B$28=B30,NOT(ISBLANK(B30)))","v":false},{"$f":"AND($B$29=B30,NOT(ISBLANK(B30)))","v":false},null,null,false,false,false,false,false,false,false,false,false,false,false,false,false,false,{"$f":"AND($U$27=U30,NOT(ISBLANK(U30)))","v":false},{"$f":"AND($U$28=U30,NOT(ISBLANK(U30)))","v":false},{"$f":"AND($U$29=U30,NOT(ISBLANK(U30)))","v":false},null,null,null,0,0,{"$f":"IF(AND(Регистратор!$BF$2=3,Q29>$DZ$10,Q29<=$DZ$11),3,0)","v":0},{"$f":"IF(AND(Регистратор!$BJ$2,Q29>$EA$10,Q29<=$EA$11),5,0)","v":0},"0"]
[7,{"$f":"IF(A30=\"\",\"\",VLOOKUP(CONCATENATE(D$10,A30),Команды!A:E,4,FALSE))","v":"ТИХОНОВ Вадим "},null,null,null,null,null,{"$f":"COUNTIF($AJ$13:$AJ$91,AK30)+COUNTIF(Оборотная!$AH$17:$AH$62,AK30)","v":0},0,"",5,4,null,null,null,"",null,null,null,18,{"$f":"IF(T30=\"\",\"\",VLOOKUP(CONCATENATE(W$10,T30),Команды!A:E,4,FALSE))","v":"СИБГАТУЛИН Дмитрий"},null,null,null,null,null,{"$f":"COUNTIF($AJ$13:$AJ$91,AL30)+COUNTIF(Оборотная!$AH$17:$AH$62,AL30)","v":0},0,"",4,null,"","",{"$f":"COUNT(AF$13:AF30)","v":10},{"$f":"COUNT(AG$13:AG30)","v":0},{"$f":"IF(R30<5,CONCATENATE(M30,TEXT(N30,\"0\")),\"\")","v":"0"},{"$f":"CONCATENATE(\"А\",IF(ISBLANK(A30),\"\",TEXT(A30,\"0\")))","v":"А7"},"Б18","Б11",{"$f":"IF(AND(AO30<=7,AO30>0),Регистратор!BN$3,IF(OR(AND(AO30>=8,AO30<=17),AND(AO30>17,AM30=\"БКШ\")),Регистратор!BM$3,0))","v":10},{"$f":"W38","v":9},0,0,0,0,0,0,0,0,null,false,false,false,false,false,false,false,false,false,false,false,false,false,false,{"$f":"AND($A$27=A31,NOT(ISBLANK(A31)))","v":false},{"$f":"AND($A$28=A31,NOT(ISBLANK(A31)))","v":false},{"$f":"AND($A$29=A31,NOT(ISBLANK(A31)))","v":false},{"$f":"AND($A$30=A31,NOT(ISBLANK(A31)))","v":false},null,false,false,false,false,false,false,false,false,false,false,false,false,false,false,{"$f":"AND($T$27=T31,NOT(ISBLANK(T31)))","v":false},{"$f":"AND($T$28=T31,NOT(ISBLANK(T31)))","v":false},{"$f":"AND($T$29=T31,NOT(ISBLANK(T31)))","v":false},{"$f":"AND($T$30=T31,NOT(ISBLANK(T31)))","v":false},null,false,false,false,false,false,false,false,false,false,false,false,false,false,false,{"$f":"AND($B$27=B31,NOT(ISBLANK(B31)))","v":false},{"$f":"AND($B$28=B31,NOT(ISBLANK(B31)))","v":false},{"$f":"AND($B$29=B31,NOT(ISBLANK(B31)))","v":false},{"$f":"AND($B$30=B31,NOT(ISBLANK(B31)))","v":false},null,false,false,false,false,false,false,false,false,false,false,false,false,false,false,{"$f":"AND($U$27=U31,NOT(ISBLANK(U31)))","v":false},{"$f":"AND($U$28=U31,NOT(ISBLANK(U31)))","v":false},{"$f":"AND($U$29=U31,NOT(ISBLANK(U31)))","v":false},{"$f":"AND($U$30=U31,NOT(ISBLANK(U31)))","v":false},null,null,0,0,{"$f":"IF(AND(Регистратор!$BF$2=3,Q30>$DZ$10,Q30<=$DZ$11),3,0)","v":0},{"$f":"IF(AND(Регистратор!$BJ$2,Q30>$EA$10,Q30<=$EA$11),5,0)","v":0},"0"]
[11,{"$f":"IF(A31=\"\",\"\",VLOOKUP(CONCATENATE(D$10,A31),Команды!A:E,4,FALSE))","v":"ДЁМИН Евгений"},null,null,null,null,null,{"$f":"COUNTIF($AJ$13:$AJ$91,AK31)+COUNTIF(Оборотная!$AH$17:$AH$62,AK31)","v":0},0,"",5,null,null,null,null,"",null,null,null,2,{"$f":"IF(T31=\"\",\"\",VLOOKUP(CONCATENATE(W$10,T31),Команды!A:E,4,FALSE))","v":"КОСТОУСОВ Илья"},null,null,null,null,null,{"$f":"COUNTIF($AJ$13:$AJ$91,AL31)+COUNTIF(Оборотная!$AH$17:$AH$62,AL31)","v":0},0,"",4,null,"","",{"$f":"COUNT(AF$13:AF31)","v":10},{"$f":"COUNT(AG$13:AG31)","v":0},{"$f":"IF(R31<5,CONCATENATE(M31,TEXT(N31,\"0\")),\"\")","v":"0"},{"$f":"CONCATENATE(\"А\",IF(ISBLANK(A31),\"\",TEXT(A31,\"0\")))","v":"А11"},"Б2","Б0",{"$f":"IF(AND(AO31<=7,AO31>0),Регистратор!BN$3,IF(OR(AND(AO31>=8,AO31<=17),AND(AO31>17,AM31=\"БКШ\")),Регистратор!BM$3,0))","v":0},0,0,0,0,0,0,0,0,0,null,{"$f":"AND($A$13=A32,NOT(ISBLANK(A32)))","v":false},false,false,false,false,false,false,false,false,false,false,false,false,false,{"$f":"AND($A$27=A32,NOT(ISBLANK(A32)))","v":false},{"$f":"AND($A$28=A32,NOT(ISBLANK(A32)))","v":false},{"$f":"AND($A$29=A32,NOT(ISBLANK(A32)))","v":false},{"$f":"AND($A$30=A32,NOT(ISBLANK(A32)))","v":false},{"$f":"AND($A$31=A32,NOT(ISBLANK(A32)))","v":false},false,false,false,false,false,false,false,false,false,false,false,false,false,false,{"$f":"AND($T$27=T32,NOT(ISBLANK(T32)))","v":false},{"$f":"AND($T$28=T32,NOT(ISBLANK(T32)))","v":false},{"$f":"AND($T$29=T32,NOT(ISBLANK(T32)))","v":false},{"$f":"AND($T$30=T32,NOT(ISBLANK(T32)))","v":false},{"$f":"AND($T$31=T32,NOT(ISBLANK(T32)))","v":false},false,false,false,false,false,false,false,false,false,false,false,false,false,false,{"$f":"AND($B$27=B32,NOT(ISBLANK(B32)))","v":false},{"$f":"AND($B$28=B32,NOT(ISBLANK(B32)))","v":false},{"$f":"AND($B$29=B32,NOT(ISBLANK(B32)))","v":false},{"$f":"AND($B$30=B32,NOT(ISBLANK(B32)))","v":false},{"$f":"AND($B$31=B32,NOT(ISBLANK(B32)))","v":false},false,false,false,false,false,false,false,false,false,false,false,false,false,false,{"$f":"AND($U$27=U32,NOT(ISBLANK(U32)))","v":false},{"$f":"AND($U$28=U32,NOT(ISBLANK(U32)))","v":false},{"$f":"AND($U$29=U32,NOT(ISBLANK(U32)))","v":false},{"$f":"AND($U$30=U32,NOT(ISBLANK(U32)))","v":false},{"$f":"AND($U$31=U32,NOT(ISBLANK(U32)))","v":false},null,0,0,{"$f":"IF(AND(Регистратор!$BF$2=3,Q31>$DZ$10,Q31<=$DZ$11),3,0)","v":0},{"$f":"IF(AND(Регистратор!$BJ$2,Q31>$EA$10,Q31<=$EA$11),5,0)","v":0},"0"]
[2,{"$f":"IF(A32=\"\",\"\",VLOOKUP(CONCATENATE(D$10,A32),Команды!A:E,4,FALSE))","v":"АКСЕНТЬЕВ Станислав"},null,null,null,null,null,{"$f":"COUNTIF($AJ$13:$AJ$91,AK32)+COUNTIF(Оборотная!$AH$17:$AH$62,AK32)","v":0},0,"",5,null,null,null,null,"",null,null,null,null,{"$f":"IF(T32=\"\",\"\",VLOOKUP(CONCATENATE(W$10,T32),Команды!A:E,4,FALSE))","v":""},null,null,null,null,null,{"$f":"COUNTIF($AJ$13:$AJ$91,AL32)+COUNTIF(Оборотная!$AH$17:$AH$62,AL32)","v":0},0,"",null,null,"","",{"$f":"COUNT(AF$13:AF32)","v":10},{"$f":"COUNT(AG$13:AG32)","v":0},{"$f":"IF(R32<5,CONCATENATE(M32,TEXT(N32,\"0\")),\"\")","v":"0"},{"$f":"CONCATENATE(\"А\",IF(ISBLANK(A32),\"\",TEXT(A32,\"0\")))","v":"А2"},"Б","Б0",{"$f":"IF(AND(AO32<=7,AO32>0),Регистратор!BN$3,IF(OR(AND(AO32>=8,AO32<=17),AND(AO32>17,AM32=\"БКШ\")),Регистратор!BM$3,0))","v":0},0,0,0,0,0,0,0,0,0,null,{"$f":"OR(AY13,AY14,AY15,AY16,AY17,AY18,AY19,AY20,AY21,AY22,AY23,AY24,AY25,AY26,AY27,AY28,AY29,AY30,AY31)","v":false},{"$f":"OR(AZ13,AZ14,AZ15,AZ16,AZ17,AZ18,AZ19,AZ20,AZ21,AZ22,AZ23,AZ24,AZ25,AZ26,AZ27,AZ28,AZ29,AZ30,AZ31)","v":false},false,false,false,false,false,false,false,false,false,false,false,false,false,false,false,false,false,{"$f":"OR(BR13,BR14,BR15,BR16,BR17,BR18,BR19,BR20,BR21,BR22,BR23,BR24,BR25,BR26,BR27,BR28,BR29,BR30,BR31)","v":false},false,false,false,false,false,false,false,false,false,false,false,false,false,false,false,false,false,false,false,false,false,false,false,false,false,false,false,false,false,false,false,{"$f":"OR(CX13,CX14,CX15,CX16,CX17,CX18,CX19,CX20,CX21,CX22,CX23,CX24,CX25,CX26,CX27,CX28,CX29,CX30,CX31)","v":false},false,false,false,false,false,false,false,false,false,false,false,false,false,false,false,false,false,false,false,false,false,false,false,false,null,0,0,{"$f":"IF(AND(Регистратор!$BF$2=3,Q32>$DZ$10,Q32<=$DZ$11),3,0)","v":0},{"$f":"IF(AND(Регистратор!$BJ$2,Q32>$EA$10,Q32<=$EA$11),5,0)","v":0},"0"]
["  Автоголы соперника /\nКом. предупр. (ЖК) / Ком. штраф",null,null,null,null,null,null,{"$f":"IF(AV92>0,AV92,\"\")","v":""},"-",{"$f":"IF(SUM(AU13:AU26)>0,SUM(AU13:AU26),\"\")","v":""},null,null,null,null,null,"",null,null,null,"  Автоголы соперника /\nКом. предупр. (ЖК) / Ком. штраф",null,null,null,null,null,null,{"$f":"IF(AW92>0,AW92,\"\")","v":""},"-",{"$f":"IF(SUM(AU27:AU40)>0,SUM(AU27:AU40),\"\")","v":""},null,null,"","",{"$f":"COUNT(AF$13:AF33)","v":10},{"$f":"COUNT(AG$13:AG33)","v":0},{"$f":"IF(R33<5,CONCATENATE(M33,TEXT(N33,\"0\")),\"\")","v":"0"},null,null,"Б0",{"$f":"IF(AND(AO33<=7,AO33>0),Регистратор!BN$3,IF(OR(AND(AO33>=8,AO33<=17),AND(AO33>17,AM33=\"БКШ\")),Регистратор!BM$3,0))","v":0},0,0,null,null,{"$f":"SUMIF($AM$13:$AM$92,AK33,$AN$13:$AN$92)","v":0},{"$f":"SUMIF($AM$13:$AM$92,AL33,$AN$13:$AN$92)","v":0},0,0,0,null,null,null,null,null,null,null,null,null,null,null,null,null,null,null,null,null,null,null,{"$f":"OR(AY32,AZ32,BA32,BB32,BC32,BD32,BE32,BF32,BG32,BH32,BI32,BJ32,BK32,BL32,BM32,BN32,BO32,BP32,BQ32)","v":false},null,null,null,null,null,null,null,null,null,null,null,null,null,null,null,null,null,null,{"$f":"OR(BR32,BS32,BT32,BU32,BV32,BW32,BX32,BY32,BZ32,CA32,CB32,CC32,CD32,CE32,CF32,CG32,CH32,CI32,CJ32)","v":false},null,null,null,null,null,null,null,null,null,null,null,null,null,null,null,null,null,null,{"$f":"OR(CK32,CL32,CM32,CN32,CO32,CP32,CQ32,CR32,CS32,CT32,CU32,CV32,CW32,CX32,CY32,CZ32,DA32,DB32,DC32)","v":false},null,null,null,null,null,null,null,null,null,null,null,null,null,null,null,null,null,null,{"$f":"OR(DD32,DE32,DF32,DG32,DH32,DI32,DJ32,DK32,DL32,DM32,DN32,DO32,DP32,DQ32,DR32,DS32,DT32,DU32,DV32)","v":false},null,0,0,{"$f":"IF(AND(Регистратор!$BF$2=3,Q33>$DZ$10,Q33<=$DZ$11),3,0)","v":0},{"$f":"IF(AND(Регистратор!$BJ$2,Q33>$EA$10,Q33<=$EA$11),5,0)","v":0},"0"]
["Удаления игроков команды А","№","Время игры",null,"Номер удаления",null,"№","Время игры",null,"Номер удаления",null,null,null,null,null,"",null,null,null,"№","Время игры",null,"Номер удаления",null,"№","Время игры",null,"Номер удаления",null,"Удаления игроков команды Б",null,"","",{"$f":"COUNT(AF$13:AF34)","v":10},{"$f":"COUNT(AG$13:AG34)","v":0},{"$f":"IF(R34<5,CONCATENATE(M34,TEXT(N34,\"0\")),\"\")","v":"0"},null,null,{"$f":"CONCATENATE(\"Б\",TEXT(Y35,\"0\"))","v":"Б0"},{"$f":"IF(AND(AO34<=7,AO34>0),Регистратор!BN$3,IF(OR(AND(AO34>=8,AO34<=17),AND(AO34>17,AM34=\"БКШ\")),Регистратор!BM$3,0))","v":0},{"$f":"AB35","v":0},0,null,null,0,0,0,0,0,null,null,null,null,null,null,null,null,null,null,null,null,null,null,null,null,null,null,null,null,null,null,null,null,null,null,null,null,null,null,null,null,null,null,null,null,null,null,null,null,null,null,null,null,null,null,null,null,null,null,null,null,null,null,null,null,null,null,null,null,null,null,null,null,null,null,null,null,null,null,null,null,null,null,null,null,null,null,0,0,{"$f":"IF(AND(Регистратор!$BF$2=3,Q34>$DZ$10,Q34<=$DZ$11),3,0)","v":0},{"$f":"IF(AND(Регистратор!$BJ$2,Q34>$EA$10,Q34<=$EA$11),5,0)","v":0},"0"]
[null,12,16,null,10,null,null,null,null,null,null,null,null,null,null,"",null,null,null,12,25,null,9,null,null,null,null,null,null,null,null,"","",{"$f":"COUNT(AF$13:AF35)","v":10},{"$f":"COUNT(AG$13:AG35)","v":0},"0",null,null,"Б0",{"$f":"IF(AND(AO35<=7,AO35>0),Регистратор!BN$3,IF(OR(AND(AO35>=8,AO35<=17),AND(AO35>17,AM35=\"БКШ\")),Регистратор!BM$3,0))","v":0},0,0,null,null,0,0,0,0,0,null,null,null,null,null,null,null,null,null,null,null,null,null,null,null,null,null,null,null,null,null,null,null,null,null,null,null,null,null,null,null,null,null,null,null,null,null,null,null,null,null,null,null,null,null,null,null,null,null,null,null,null,null,null,null,null,null,{"$f":"TRIM(B32)","v":"АКСЕНТЬЕВ Станислав"},null,null,null,null,null,null,null,null,null,null,null,null,null,null,null,null,null,null,null,null,0,0,{"$f":"IF(AND(Регистратор!$BF$2=3,Q35>$DZ$10,Q35<=$DZ$11),3,0)","v":0},{"$f":"IF(AND(Регистратор!$BJ$2,Q35>$EA$10,Q35<=$EA$11),5,0)","v":0},"0"]
[null,6,60,null,9,null,null,null,null,null,null,null,null,null,null,"",null,null,null,17,37,null,2,null,null,null,null,null,null,null,null,"","",{"$f":"COUNT(AF$13:AF36)","v":10},{"$f":"COUNT(AG$13:AG36)","v":0},"0",null,null,"Б0",{"$f":"IF(AND(AO36<=7,AO36>0),Регистратор!BN$3,IF(OR(AND(AO36>=8,AO36<=17),AND(AO36>17,AM36=\"БКШ\")),Регистратор!BM$3,0))","v":0},0,0,null,null,0,0,0,0,0,null,null,null,null,null,null,null,null,null,null,null,null,null,null,null,null,null,null,null,null,null,null,null,null,null,null,null,null,null,null,null,null,null,null,null,null,null,null,null,null,null,null,null,null,null,null,null,null,null,null,null,null,null,null,null,null,null,{"$f":"ISBLANK(DC35)","v":false},null,null,null,null,null,null,null,null,null,null,null,null,null,null,null,null,null,null,null,null,0,0,{"$f":"IF(AND(Регистратор!$BF$2=3,Q36>$DZ$10,Q36<=$DZ$11),3,0)","v":0},{"$f":"IF(AND(Регистратор!$BJ$2,Q36>$EA$10,Q36<=$EA$11),5,0)","v":0},"0"]
[null,20,74,null,9,null,null,null,null,null,null,null,null,null,null,"",null,null,null,11,39,null,9,null,null,null,null,null,null,null,null,"","",{"$f":"COUNT(AF$13:AF37)","v":10},{"$f":"COUNT(AG$13:AG37)","v":0},"0",null,null,"Б0",{"$f":"IF(AND(AO37<=7,AO37>0),Регистратор!BN$3,IF(OR(AND(AO37>=8,AO37<=17),AND(AO37>17,AM37=\"БКШ\")),Регистратор!BM$3,0))","v":0},0,0,null,null,0,0,0,0,0,null,null,null,null,null,null,null,null,null,null,null,null,null,null,null,null,null,null,null,null,null,null,null,null,null,null,null,null,null,null,null,null,null,null,null,null,null,null,null,null,null,null,null,null,null,null,null,null,null,null,null,null,null,null,null,null,null,{"$f":"B32","v":"АКСЕНТЬЕВ Станислав"},null,null,null,null,null,null,null,null,null,null,null,null,null,null,null,null,null,null,null,null,0,0,{"$f":"IF(AND(Регистратор!$BF$2=3,Q37>$DZ$10,Q37<=$DZ$11),3,0)","v":0},{"$f":"IF(AND(Регистратор!$BJ$2,Q37>$EA$10,Q37<=$EA$11),5,0)","v":0},"0"]
[null,null,null,null,null,null,null,null,null,null,null,null,null,null,null,"",null,null,null,11,54,null,9,null,null,null,null,null,null,null,null,"","",{"$f":"COUNT(AF$13:AF38)","v":10},{"$f":"COUNT(AG$13:AG38)","v":0},{"$f":"IF(R38<5,CONCATENATE(M38,TEXT(N38,\"0\")),\"\")","v":"0"},null,null,"Б0",{"$f":"IF(AND(AO38<=7,AO38>0),Регистратор!BN$3,IF(OR(AND(AO38>=8,AO38<=17),AND(AO38>17,AM38=\"БКШ\")),Регистратор!BM$3,0))","v":0},0,0,null,null,0,0,0,0,0,null,null,null,null,null,null,null,null,null,null,null,null,null,null,null,null,null,null,null,null,null,null,null,null,null,null,null,null,null,null,null,null,null,null,null,null,null,null,null,null,null,null,null,null,null,null,null,null,null,null,null,null,null,null,null,null,null,{"$f":"ISBLANK(DC37)","v":false},null,null,null,null,null,null,null,null,null,null,null,null,null,null,null,null,null,null,null,null,0,0,{"$f":"IF(AND(Регистратор!$BF$2=3,Q38>$DZ$10,Q38<=$DZ$11),3,0)","v":0},{"$f":"IF(AND(Регистратор!$BJ$2,Q38>$EA$10,Q38<=$EA$11),5,0)","v":0},"0"]
[null,null,null,null,null,null,null,null,null,null,null,null,null,null,null,"",null,null,null,null,null,null,null,null,null,null,null,null,null,null,null,"","",{"$f":"COUNT(AF$13:AF39)","v":10},{"$f":"COUNT(AG$13:AG39)","v":0},{"$f":"IF(R39<5,CONCATENATE(M39,TEXT(N39,\"0\")),\"\")","v":"0"},null,null,"Б0",{"$f":"IF(AND(AO39<=7,AO39>0),Регистратор!BN$3,IF(OR(AND(AO39>=8,AO39<=17),AND(AO39>17,AM39=\"БКШ\")),Регистратор!BM$3,0))","v":0},0,0,null,null,0,0,0,0,0,null,null,null,null,null,null,null,null,null,null,null,null,null,null,null,null,null,null,null,null,null,null,null,null,null,null,null,null,null,null,null,null,null,null,null,null,null,null,null,null,null,null,null,null,null,null,null,null,null,null,null,null,null,null,null,null,null,null,null,null,null,null,null,null,null,null,null,null,null,null,null,null,null,null,null,null,null,null,0,0,{"$f":"IF(AND(Регистратор!$BF$2=3,Q39>$DZ$10,Q39<=$DZ$11),3,0)","v":0},{"$f":"IF(AND(Регистратор!$BJ$2,Q39>$EA$10,Q39<=$EA$11),5,0)","v":0},"0"]
[null,null,null,null,null,null,null,null,null,null,null,null,"Результат игры",null,null,null,null,null,null,null,null,null,null,null,null,null,null,null,null,null,null,null,null,null,null,null,null,null,"Б0",{"$f":"IF(AND(AO40<=7,AO40>0),Регистратор!BN$3,IF(OR(AND(AO40>=8,AO40<=17),AND(AO40>17,AM40=\"БКШ\")),Регистратор!BM$3,0))","v":0},0,0,null,null,0,0,0]
[null,null,null,null,null,null,null,null,null,null,null,null,"Команда","I тайм","II тайм",{"$f":"IF(Регистратор!BF2=3,\"III тайм\",\"Доп.время\")","v":"Доп.время"},"12-метровые ","Общий результат",null,null,null,null,null,null,null,null,null,null,null,null,null,null,null,null,null,null,null,null,null,null,null,null,{"$f":"SUM(AQ13:AQ32)","v":0},{"$f":"SUM(AR13:AR32)","v":0},{"$f":"SUM(AS13:AS40)","v":30},{"$f":"SUM(AT13:AT40)","v":35}]
[null,"Штрафное время команды А (за матч):",null,null,null,null,null,null,null,{"$f":"CONCATENATE(TEXT(AS42,\"0\"),IF(AQ41>0,CONCATENATE(\"+\",TEXT(AQ41,\"0\"),\"к\"),\"\"))","v":"30"},null,null,null,null,null,null,null,null,null,"Штрафное время команды Б (за матч):",null,null,null,null,null,null,null,{"$f":"CONCATENATE(TEXT(AT42,\"0\"),IF(AR41>0,CONCATENATE(\"+\",TEXT(AR41,\"0\"),\"к\"),\"\"))","v":"35"},null,null,null,null,null,null,null,null,null,null,null,null,null,null,null,null,{"$f":"SUM(AU13:AU26)+AS41","v":30},{"$f":"SUM(AU27:AU40)+AT41","v":35}]
["Незабитые 12-метровые удары (№ игрока, минута, форм.)",null,null,null,null,null,null,null,null,null,null,null,null,null,null,null,null,null,null,"Незабитые 12-метровые удары (№ игрока, минута, форм.)"]
["НЕТ",null,null,null,null,null,null,null,null,null,null,null,"А",{"$f":"COUNTIF($AF$13:$AF$100,\"=1\")","v":4},{"$f":"IF(Регистратор!BF2>=2,COUNTIF($AF$13:$AF$100,\"=2\"),\"-\")","v":6},{"$f":"IF(Регистратор!BF2=3,COUNTIF($AF$13:$AF$100,\"=3\"),IF(Регистратор!BJ2,COUNTIF($AF$13:$AF$100,\"=5\"),\"-\"))","v":0},{"$f":"Оборотная!Z14","v":"-"},{"$f":"SUM(N44:Q44)","v":10},null,"НЕТ"]
[null,null,null,null,null,null,null,null,null,null,null,null,"Б",{"$f":"COUNTIF($AG$13:$AG$100,\"=1\")","v":0},{"$f":"IF(Регистратор!BF2>=2,COUNTIF($AG$13:$AG$100,\"=2\"),\"-\")","v":0},{"$f":"IF(Регистратор!BF2=3,COUNTIF($AG$13:$AG$100,\"=3\"),IF(Регистратор!BJ2,COUNTIF($AG$13:$AG$100,\"=5\"),\"-\"))","v":0},{"$f":"Оборотная!Z15","v":"-"},{"$f":"SUM(N45:Q45)","v":0}]
["Главный тренер команды А (подпись, ФАМИЛИЯ, И.О.)",null,null,null,null,null,null,null,null,null,null,null,"Подписи судей",null,null,null,null,null,null,"Главный тренер команды Б (подпись, ФАМИЛИЯ, И.О.)"]
[{"$f":"VLOOKUP(CONCATENATE(D$10,\"901\"),Команды!A:E,4,FALSE)","v":"БРЮХАНОВ А.Н."},null,null,null,null,null,null,null,null,null,null,null,null,null,null,null,null,null,null,{"$f":"VLOOKUP(CONCATENATE(W10,\"901\"),Команды!A:E,4,FALSE)","v":"ШАПОВАЛОВ А.П."}]
[]
["Замечания, сведения о травмах, тайм-аутах, компенсированном времени, заявления о подаче протеста и т.д.",null,null,null,null,null,null,null,null,null,null,null,null,null,null,null,null,null,null,null,null,null,"М.П.",null,null,"Подпись инспектора"]
["Тайм-аут: команда Б (74:51). Компенсированное время - 01:00 (75:19). "]
[]
[]
[{"$f":"A1","v":"Федерация хоккея с мячом Свердловской области"}]
[null,null,null,null,null,{"$f":"F2","v":"ПРОТОКОЛ № 4"},null,null,null,null,null,null,null,null,null,null,null,null,null,null,null,null,null,null,null,"Лист 2/2"]
[{"$f":"A3","v":"Первенство Свердловской области по хоккею с мячом КФК сезон 2018-2019 г.г."}]
["Лига",null,null,"Пол","Дата игры",null,null,"Время",null,"Город",null,null,null,null,null,"Стадион",null,null,null,null,null,null,"Кол-во зрит.",null,null,"Темп.",null,"Погодные условия"]
[{"$f":"A5","v":"ЛЮБИТЕЛИ"},null,null,{"$f":"D5","v":"М"},{"$f":"E5","v":"01.12.2018"},null,null,{"$f":"H5","v":"13:02:00"},null,{"$f":"J5","v":"БОГДАНОВИЧ"},null,null,null,null,null,{"$f":"P5","v":"\"ХК ФАКЕЛ\""},null,null,null,null,null,null,{"$f":"W5","v":200},null,null,{"$f":"IF(ISBLANK(Z5),\"\",Z5)","v":-6},null,{"$f":"AB5","v":"ЯСНО"}]
["Главный судья",null,null,null,null,{"$f":"IF(ISBLANK(F6),\"\",F6)","v":"ЗЕЛЕЧЕНКО Андрей, 3К, Богданович"},null,null,null,null,null,null,null,null,null,"Инспектор матча",null,null,null,null,{"$f":"IF(ISBLANK(U6),\"\",U6)","v":""}]
["Помощник судьи",null,null,null,null,{"$f":"IF(ISBLANK(F7),\"\",F7)","v":"БЕЗБОРОДОВ Владимир, 3К, Богданович"},null,null,null,null,null,null,null,null,null,"Судья-секретарь ЭП",null,null,null,null,{"$f":"IF(ISBLANK(U7),\"\",U7)","v":"ЛУНЕГОВ Виталий, 2К, Богданович"}]
["Помощник судьи",null,null,null,null,{"$f":"IF(ISBLANK(F8),\"\",F8)","v":""},null,null,null,null,null,null,null,null,null,"Судья-секретарь",null,null,null,null,{"$f":"IF(ISBLANK(U8),\"\",U8)","v":"ЛУНЕГОВ Виталий, 2К, Богданович"}]
["Резервный судья",null,null,null,null,{"$f":"IF(ISBLANK(F9),\"\",F9)","v":""},null,null,null,null,null,null,null,null,null,"Судья-информатор",null,null,null,null,{"$f":"IF(ISBLANK(U9),\"\",U9)","v":"ДЁМИН Валерий, 2К, Богданович"}]
["Команда А",null,null,{"$f":"IF(ISBLANK(D10),\"\",D10)","v":"\"ФАКЕЛ\""},null,null,null,null,null,null,null,null,"Забитые мячи",null,null,null,null,null,null,"Команда Б",null,null,{"$f":"IF(ISBLANK(W10),\"\",W10)","v":"\"МЕТАЛЛУРГ\""}]
[null,null,null,{"$f":"IF(ISBLANK(D11),\"\",D11)","v":"Богданович"},null,null,null,null,null,null,null,null,"А/Б","№","Асс.","Счёт","Время","Форм.",null,null,null,null,{"$f":"IF(ISBLANK(W11),\"\",W11)","v":"Нижний Тагил"}]
["№","ФАМИЛИЯ, Имя",null,null,null,null,null,"М","П","Ш","О",null,null,null,null,null,null,null,null,"№","ФАМИЛИЯ, Имя",null,null,null,null,null,"М","П","Ш","О"]
[{"$f":"IF(ISBLANK(A13),\"\",A13)","v":90},{"$f":"IF(ISBLANK(B13),\"\",B13)","v":"ГОЛОВКИН Сергей (вр)"},null,null,null,null,null,null,null,null,null,null,null,null,null,{"$f":"IF(ISBLANK(M65),\"\",CONCATENATE(TEXT(AH65,\"0\"),\":\",TEXT(AI65,\"0\")))","v":""},null,null,null,{"$f":"IF(ISBLANK(T13),\"\",T13)","v":1},{"$f":"IF(ISBLANK(U13),\"\",U13)","v":"ПАБАТ Никита (вр)"},null,null,null,null,null,null,null,null,null,null,{"$f":"IF(OR(AND(M65=\"А\",R65<5),AND(M65=\"Б\",R65=5)),MAX(DX65,DY65,DZ65,EA65),\"\")","v":""},{"$f":"IF(OR(AND(M65=\"Б\",R65<5),AND(M65=\"А\",R65=5)),MAX(DX65,DY65,DZ65),\"\")","v":""},{"$f":"COUNT(AF$13:AF65)","v":10},{"$f":"COUNT(AG$13:AG65)","v":0},{"$f":"IF(R65<5,CONCATENATE(M65,TEXT(N65,\"0\")),\"\")","v":"0"},null,null,{"$f":"CONCATENATE(\"А\",TEXT(B87,\"0\"))","v":"А0"},{"$f":"IF(AND(AO65<=7,AO65>0),Регистратор!BN$3,IF(OR(AND(AO65>=8,AO65<=17),AND(AO65>17,AM65=\"АКШ\")),Регистратор!BM$3,0))","v":0},{"$f":"E87","v":0},{"$f":"IF(AND($AO65>=18,$AO65<=30),1,0)","v":0},{"$f":"IF(OR(AND($B$87=A65,$E$87>=18),AND($B$88=A65,$E$88>=18),AND($B$89=A65,$E$89>=18),AND($B$90=A65,$E$90>=18),AND($B$91=A65,$E$91>=18),AND($B$92=A65,$E$92>=18),AND($B$93=A65,$E$93>=18),AND($G$87=A65,$J$87>=18),AND($G$88=A65,$J$88>=18),AND($G$89=A65,$J$89>=18),AND($G$90=A65,$J$90>=18),AND($G$91=A65,$J$91>=18),AND($G$92=A65,$J$92>=18),AND($G$93=A65,$J$93>=18)),1,0)","v":0},{"$f":"IF(OR(AND($T$87=T65,$W$87>=18),AND($T$88=T65,$W$88>=18),AND($T$89=T65,$W$89>=18),AND($T$90=T65,$W$90>=18),AND($T$91=T65,$W$91>=18),AND($T$92=T65,$W$92>=18),AND($T$93=T65,$W$93>=18),AND($Y$87=T65,$AB$87>=18),AND($Y$88=T65,$AB$88>=18),AND($Y$89=T65,$AB$89>=18),AND($Y$90=T65,$AB$90>=18),AND($Y$91=T65,$AB$91>=18),AND($Y$92=T65,$AB$92>=18),AND($Y$93=T65,$AB$93>=18)),1,0)","v":0},null,null,{"$f":"IF(AM65=\"БКШ\",AN65,0)","v":0},{"$f":"IF(AND(AG65=\"\",AJ65=\"\"),1,0)","v":0},{"$f":"IF(AND(AF65=\"\",AJ65=\"\"),1,0)","v":0},null,null,null,null,null,null,null,null,null,null,null,null,null,null,null,null,null,null,null,null,null,null,null,null,null,null,null,null,null,null,null,null,null,null,null,null,null,null,null,null,null,null,null,null,null,null,null,null,null,null,null,null,null,null,null,null,null,null,null,null,null,null,null,null,null,null,null,null,null,null,null,null,null,null,null,null,null,null,{"$f":"IF(AND(Q65>$DX$10,Q65<=$DX$11),1,0)","v":0},{"$f":"IF(AND(Q65>$DY$10,Q65<=$DY$11),2,0)","v":0},{"$f":"IF(AND(Регистратор!$BF$2=3,Q65>$DZ$10,Q65<=$DZ$11),3,0)","v":0},{"$f":"IF(AND(Регистратор!$BJ$2,Q65>$EA$10,Q65<=$EA$11),5,0)","v":0},{"$f":"IF(R65<5,CONCATENATE(M65,TEXT(O65,\"0\")),\"\")","v":"0"}]
[{"$f":"IF(ISBLANK(A14),\"\",A14)","v":8},"ВОРОБЬЁВ Михаил (к)",null,null,null,null,null,null,null,null,null,null,null,null,null,{"$f":"IF(ISBLANK(M66),\"\",CONCATENATE(TEXT(AH66,\"0\"),\":\",TEXT(AI66,\"0\")))","v":""},null,null,null,{"$f":"IF(ISBLANK(T14),\"\",T14)","v":15},"КАНДАКОВ Андрей (к)",null,null,null,null,null,null,null,null,null,null,{"$f":"IF(OR(AND(M66=\"А\",R66<5),AND(M66=\"Б\",R66=5)),MAX(DX66,DY66,DZ66,EA66),\"\")","v":""},{"$f":"IF(OR(AND(M66=\"Б\",R66<5),AND(M66=\"А\",R66=5)),MAX(DX66,DY66,DZ66),\"\")","v":""},{"$f":"COUNT(AF$13:AF66)","v":10},{"$f":"COUNT(AG$13:AG66)","v":0},"0",null,null,"А0",{"$f":"IF(AND(AO66<=7,AO66>0),Регистратор!BN$3,IF(OR(AND(AO66>=8,AO66<=17),AND(AO66>17,AM66=\"АКШ\")),Регистратор!BM$3,0))","v":0},0,{"$f":"IF(AND($AO66>=18,$AO66<=30),1,0)","v":0},{"$f":"IF(OR(AND($B$87=A66,$E$87>=18),AND($B$88=A66,$E$88>=18),AND($B$89=A66,$E$89>=18),AND($B$90=A66,$E$90>=18),AND($B$91=A66,$E$91>=18),AND($B$92=A66,$E$92>=18),AND($B$93=A66,$E$93>=18),AND($G$87=A66,$J$87>=18),AND($G$88=A66,$J$88>=18),AND($G$89=A66,$J$89>=18),AND($G$90=A66,$J$90>=18),AND($G$91=A66,$J$91>=18),AND($G$92=A66,$J$92>=18),AND($G$93=A66,$J$93>=18)),1,0)","v":0},{"$f":"IF(OR(AND($T$87=T66,$W$87>=18),AND($T$88=T66,$W$88>=18),AND($T$89=T66,$W$89>=18),AND($T$90=T66,$W$90>=18),AND($T$91=T66,$W$91>=18),AND($T$92=T66,$W$92>=18),AND($T$93=T66,$W$93>=18),AND($Y$87=T66,$AB$87>=18),AND($Y$88=T66,$AB$88>=18),AND($Y$89=T66,$AB$89>=18),AND($Y$90=T66,$AB$90>=18),AND($Y$91=T66,$AB$91>=18),AND($Y$92=T66,$AB$92>=18),AND($Y$93=T66,$AB$93>=18)),1,0)","v":0},null,null,0,0,0,null,null,null,null,null,null,null,null,null,null,null,null,null,null,null,null,null,null,null,null,null,null,null,null,null,null,null,null,null,null,null,null,null,null,null,null,null,null,null,null,null,null,null,null,null,null,null,null,null,null,null,null,null,null,null,null,null,null,null,null,null,null,null,null,null,null,null,null,null,null,null,null,null,null,null,null,null,null,0,0,{"$f":"IF(AND(Регистратор!$BF$2=3,Q66>$DZ$10,Q66<=$DZ$11),3,0)","v":0},{"$f":"IF(AND(Регистратор!$BJ$2,Q66>$EA$10,Q66<=$EA$11),5,0)","v":0},"0"]
[20,"РУКОЛЕЕВ Геннадий",null,null,null,null,null,null,null,null,null,null,null,null,null,"",null,null,null,11,"ГАЁВ Максим",null,null,null,null,null,null,null,null,null,null,"",{"$f":"IF(OR(AND(M67=\"Б\",R67<5),AND(M67=\"А\",R67=5)),MAX(DX67,DY67,DZ67),\"\")","v":""},{"$f":"COUNT(AF$13:AF67)","v":10},{"$f":"COUNT(AG$13:AG67)","v":0},"0",null,null,"А0",{"$f":"IF(AND(AO67<=7,AO67>0),Регистратор!BN$3,IF(OR(AND(AO67>=8,AO67<=17),AND(AO67>17,AM67=\"АКШ\")),Регистратор!BM$3,0))","v":0},0,0,0,0,null,null,0,0,0,null,null,null,null,null,null,null,null,null,null,null,null,null,null,null,null,null,null,null,null,null,null,null,null,null,null,null,null,null,null,null,null,null,null,null,null,null,null,null,null,null,null,null,null,null,null,null,null,null,null,null,null,null,null,null,null,null,null,null,null,null,null,null,null,null,null,null,null,null,null,null,null,null,null,null,null,null,null,0,0,{"$f":"IF(AND(Регистратор!$BF$2=3,Q67>$DZ$10,Q67<=$DZ$11),3,0)","v":0},{"$f":"IF(AND(Регистратор!$BJ$2,Q67>$EA$10,Q67<=$EA$11),5,0)","v":0},"0"]
[12,"МИТРОФАНОВ Александр",null,null,null,null,null,null,null,null,null,null,null,null,null,"",null,null,null,21,"ШАВКУНОВ Антон",null,null,null,null,null,null,null,null,null,null,"","",{"$f":"COUNT(AF$13:AF68)","v":10},{"$f":"COUNT(AG$13:AG68)","v":0},"0",null,null,"А0",{"$f":"IF(AND(AO68<=7,AO68>0),Регистратор!BN$3,IF(OR(AND(AO68>=8,AO68<=17),AND(AO68>17,AM68=\"АКШ\")),Регистратор!BM$3,0))","v":0},0,0,0,0,null,null,0,0,0,null,null,null,null,null,null,null,null,null,null,null,null,null,null,null,null,null,null,null,null,null,null,null,null,null,null,null,null,null,null,null,null,null,null,null,null,null,null,null,null,null,null,null,null,null,null,null,null,null,null,null,null,null,null,null,null,null,null,null,null,null,null,null,null,null,null,null,null,null,null,null,null,null,null,null,null,null,null,0,0,{"$f":"IF(AND(Регистратор!$BF$2=3,Q68>$DZ$10,Q68<=$DZ$11),3,0)","v":0},{"$f":"IF(AND(Регистратор!$BJ$2,Q68>$EA$10,Q68<=$EA$11),5,0)","v":0},"0"]
[18,"ШЕПЕЛЕВ Александр",null,null,null,null,null,null,null,null,null,null,null,null,null,"",null,null,null,17,"МЯКИШЕВ Фёдор",null,null,null,null,null,null,null,null,null,null,"","",{"$f":"COUNT(AF$13:AF69)","v":10},{"$f":"COUNT(AG$13:AG69)","v":0},"0",null,null,"А0",{"$f":"IF(AND(AO69<=7,AO69>0),Регистратор!BN$3,IF(OR(AND(AO69>=8,AO69<=17),AND(AO69>17,AM69=\"АКШ\")),Регистратор!BM$3,0))","v":0},0,0,0,0,null,null,0,0,0,null,null,null,null,null,null,null,null,null,null,null,null,null,null,null,null,null,null,null,null,null,null,null,null,null,null,null,null,null,null,null,null,null,null,null,null,null,null,null,null,null,null,null,null,null,null,null,null,null,null,null,null,null,null,null,null,null,null,null,null,null,null,null,null,null,null,null,null,null,null,null,null,null,null,null,null,null,null,0,0,{"$f":"IF(AND(Регистратор!$BF$2=3,Q69>$DZ$10,Q69<=$DZ$11),3,0)","v":0},{"$f":"IF(AND(Регистратор!$BJ$2,Q69>$EA$10,Q69<=$EA$11),5,0)","v":0},"0"]
[17,"ПОПОВ Максим",null,null,null,null,null,null,null,null,null,null,null,null,null,"",null,null,null,12,"ЗАХАРОВ Владислав",null,null,null,null,null,null,null,null,null,null,"","",{"$f":"COUNT(AF$13:AF70)","v":10},{"$f":"COUNT(AG$13:AG70)","v":0},"0",null,null,"А0",{"$f":"IF(AND(AO70<=7,AO70>0),Регистратор!BN$3,IF(OR(AND(AO70>=8,AO70<=17),AND(AO70>17,AM70=\"АКШ\")),Регистратор!BM$3,0))","v":0},0,0,0,0,null,null,0,0,0,null,null,null,null,null,null,null,null,null,null,null,null,null,null,null,null,null,null,null,null,null,null,null,null,null,null,null,null,null,null,null,null,null,null,null,null,null,null,null,null,null,null,null,null,null,null,null,null,null,null,null,null,null,null,null,null,null,null,null,null,null,null,null,null,null,null,null,null,null,null,null,null,null,null,null,null,null,null,0,0,{"$f":"IF(AND(Регистратор!$BF$2=3,Q70>$DZ$10,Q70<=$DZ$11),3,0)","v":0},{"$f":"IF(AND(Регистратор!$BJ$2,Q70>$EA$10,Q70<=$EA$11),5,0)","v":0},"0"]
[4,"БЕЗБОРОДОВ Сергей",null,null,null,null,null,null,null,null,null,null,null,null,null,"",null,null,null,7,"БЕЛЫХ Олег",null,null,null,null,null,null,null,null,null,null,"","",{"$f":"COUNT(AF$13:AF71)","v":10},{"$f":"COUNT(AG$13:AG71)","v":0},"0",null,null,"А0",{"$f":"IF(AND(AO71<=7,AO71>0),Регистратор!BN$3,IF(OR(AND(AO71>=8,AO71<=17),AND(AO71>17,AM71=\"АКШ\")),Регистратор!BM$3,0))","v":0},0,0,0,0,null,null,0,0,0,null,null,null,null,null,null,null,null,null,null,null,null,null,null,null,null,null,null,null,null,null,null,null,null,null,null,null,null,null,null,null,null,null,null,null,null,null,null,null,null,null,null,null,null,null,null,null,null,null,null,null,null,null,null,null,null,null,null,null,null,null,null,null,null,null,null,null,null,null,null,null,null,null,null,null,null,null,null,0,0,{"$f":"IF(AND(Регистратор!$BF$2=3,Q71>$DZ$10,Q71<=$DZ$11),3,0)","v":0},{"$f":"IF(AND(Регистратор!$BJ$2,Q71>$EA$10,Q71<=$EA$11),5,0)","v":0},"0"]
[6,"МЕДВЕДЕВ Александр",null,null,null,null,null,null,null,null,null,null,null,null,null,"",null,null,null,13,"ПУДОВ Денис",null,null,null,null,null,null,null,null,null,null,"","",{"$f":"COUNT(AF$13:AF72)","v":10},{"$f":"COUNT(AG$13:AG72)","v":0},"0",null,null,{"$f":"CONCATENATE(\"А\",TEXT(G87,\"0\"))","v":"А0"},{"$f":"IF(AND(AO72<=7,AO72>0),Регистратор!BN$3,IF(OR(AND(AO72>=8,AO72<=17),AND(AO72>17,AM72=\"АКШ\")),Регистратор!BM$3,0))","v":0},{"$f":"J87","v":0},0,0,0,null,null,0,0,0,null,null,null,null,null,null,null,null,null,null,null,null,null,null,null,null,null,null,null,null,null,null,null,null,null,null,null,null,null,null,null,null,null,null,null,null,null,null,null,null,null,null,null,null,null,null,null,null,null,null,null,null,null,null,null,null,null,null,null,null,null,null,null,null,null,null,null,null,null,null,null,null,null,null,null,null,null,null,0,0,{"$f":"IF(AND(Регистратор!$BF$2=3,Q72>$DZ$10,Q72<=$DZ$11),3,0)","v":0},{"$f":"IF(AND(Регистратор!$BJ$2,Q72>$EA$10,Q72<=$EA$11),5,0)","v":0},"0"]
[10,"ЕРМОЛИН Андрей",null,null,null,null,null,null,null,null,null,null,null,null,null,"",null,null,null,5,"ВАНИЧКИН Вадим",null,null,null,null,null,null,null,null,null,null,"","",{"$f":"COUNT(AF$13:AF73)","v":10},{"$f":"COUNT(AG$13:AG73)","v":0},"0",null,null,"А0",{"$f":"IF(AND(AO73<=7,AO73>0),Регистратор!BN$3,IF(OR(AND(AO73>=8,AO73<=17),AND(AO73>17,AM73=\"АКШ\")),Регистратор!BM$3,0))","v":0},0,0,0,0,null,null,0,0,0,null,null,null,null,null,null,null,null,null,null,null,null,null,null,null,null,null,null,null,null,null,null,null,null,null,null,null,null,null,null,null,null,null,null,null,null,null,null,null,null,null,null,null,null,null,null,null,null,null,null,null,null,null,null,null,null,null,null,null,null,null,null,null,null,null,null,null,null,null,null,null,null,null,null,null,null,null,null,0,0,{"$f":"IF(AND(Регистратор!$BF$2=3,Q73>$DZ$10,Q73<=$DZ$11),3,0)","v":0},{"$f":"IF(AND(Регистратор!$BJ$2,Q73>$EA$10,Q73<=$EA$11),5,0)","v":0},"0"]
[13,"БРУСЕНКОВ Денис",null,null,null,null,null,null,null,null,null,null,null,null,null,"",null,null,null,10,"СПИРИДОНОВ Евгений",null,null,null,null,null,null,null,null,null,null,"","",{"$f":"COUNT(AF$13:AF74)","v":10},{"$f":"COUNT(AG$13:AG74)","v":0},"0",null,null,"А0",{"$f":"IF(AND(AO74<=7,AO74>0),Регистратор!BN$3,IF(OR(AND(AO74>=8,AO74<=17),AND(AO74>17,AM74=\"АКШ\")),Регистратор!BM$3,0))","v":0},0,0,0,0,null,null,0,0,0,null,null,null,null,null,null,null,null,null,null,null,null,null,null,null,null,null,null,null,null,null,null,null,null,null,null,null,null,null,null,null,null,null,null,null,null,null,null,null,null,null,null,null,null,null,null,null,null,null,null,null,null,null,null,null,null,null,null,null,null,null,null,null,null,null,null,null,null,null,null,null,null,null,null,null,null,null,null,0,0,{"$f":"IF(AND(Регистратор!$BF$2=3,Q74>$DZ$10,Q74<=$DZ$11),3,0)","v":0},{"$f":"IF(AND(Регистратор!$BJ$2,Q74>$EA$10,Q74<=$EA$11),5,0)","v":0},"0"]
[5,"ДЕНИСОВ Сергей",null,null,null,null,null,null,null,null,null,null,null,null,null,"",null,null,null,19,"ШЕСТАКОВ Никита",null,null,null,null,null,null,null,null,null,null,"","",{"$f":"COUNT(AF$13:AF75)","v":10},{"$f":"COUNT(AG$13:AG75)","v":0},"0",null,null,"А0",{"$f":"IF(AND(AO75<=7,AO75>0),Регистратор!BN$3,IF(OR(AND(AO75>=8,AO75<=17),AND(AO75>17,AM75=\"АКШ\")),Регистратор!BM$3,0))","v":0},0,0,0,0,null,null,0,0,0,null,null,null,null,null,null,null,null,null,null,null,null,null,null,null,null,null,null,null,null,null,null,null,null,null,null,null,null,null,null,null,null,null,null,null,null,null,null,null,null,null,null,null,null,null,null,null,null,null,null,null,null,null,null,null,null,null,null,null,null,null,null,null,null,null,null,null,null,null,null,null,null,null,null,null,null,null,null,0,0,{"$f":"IF(AND(Регистратор!$BF$2=3,Q75>$DZ$10,Q75<=$DZ$11),3,0)","v":0},{"$f":"IF(AND(Регистратор!$BJ$2,Q75>$EA$10,Q75<=$EA$11),5,0)","v":0},"0"]
[21,"БЫКОВ Павел (в)",null,null,null,null,null,null,null,null,null,null,null,null,null,"",null,null,null,30,"СОКОЛОВСКИЙ Андрей (вр)",null,null,null,null,null,null,null,null,null,null,"","",{"$f":"COUNT(AF$13:AF76)","v":10},{"$f":"COUNT(AG$13:AG76)","v":0},"0",null,null,"А0",{"$f":"IF(AND(AO76<=7,AO76>0),Регистратор!BN$3,IF(OR(AND(AO76>=8,AO76<=17),AND(AO76>17,AM76=\"АКШ\")),Регистратор!BM$3,0))","v":0},0,0,0,0,null,null,0,0,0,null,null,null,null,null,null,null,null,null,null,null,null,null,null,null,null,null,null,null,null,null,null,null,null,null,null,null,null,null,null,null,null,null,null,null,null,null,null,null,null,null,null,null,null,null,null,null,null,null,null,null,null,null,null,null,null,null,null,null,null,null,null,null,null,null,null,null,null,null,null,null,null,null,null,null,null,null,null,0,0,{"$f":"IF(AND(Регистратор!$BF$2=3,Q76>$DZ$10,Q76<=$DZ$11),3,0)","v":0},{"$f":"IF(AND(Регистратор!$BJ$2,Q76>$EA$10,Q76<=$EA$11),5,0)","v":0},"0"]
[3,"ЧЕРЕПКОВ АРТЁМ",null,null,null,null,null,null,null,null,null,null,null,null,null,"",null,null,null,8,"ЧЕРЕПАНОВ вЛАДИСЛАВ",null,null,null,null,null,null,null,null,null,null,"","",{"$f":"COUNT(AF$13:AF77)","v":10},{"$f":"COUNT(AG$13:AG77)","v":0},"0",null,null,"А0",{"$f":"IF(AND(AO77<=7,AO77>0),Регистратор!BN$3,IF(OR(AND(AO77>=8,AO77<=17),AND(AO77>17,AM77=\"АКШ\")),Регистратор!BM$3,0))","v":0},0,0,0,0,null,null,0,0,0,null,null,null,null,null,null,null,null,null,null,null,null,null,null,null,null,null,null,null,null,null,null,null,null,null,null,null,null,null,null,null,null,null,null,null,null,null,null,null,null,null,null,null,null,null,null,null,null,null,null,null,null,null,null,null,null,null,null,null,null,null,null,null,null,null,null,null,null,null,null,null,null,null,null,null,null,null,null,0,0,{"$f":"IF(AND(Регистратор!$BF$2=3,Q77>$DZ$10,Q77<=$DZ$11),3,0)","v":0},{"$f":"IF(AND(Регистратор!$BJ$2,Q77>$EA$10,Q77<=$EA$11),5,0)","v":0},"0"]
[15,"ФЕКЛУШИН Григорий",null,null,null,null,null,null,null,null,null,null,null,null,null,"",null,null,null,9,"НЕФЁДОВ Максим",null,null,null,null,null,null,null,null,null,null,"","",{"$f":"COUNT(AF$13:AF78)","v":10},{"$f":"COUNT(AG$13:AG78)","v":0},"0",null,null,"А0",{"$f":"IF(AND(AO78<=7,AO78>0),Регистратор!BN$3,IF(OR(AND(AO78>=8,AO78<=17),AND(AO78>17,AM78=\"АКШ\")),Регистратор!BM$3,0))","v":0},0,0,0,0,null,null,0,0,0,null,null,null,null,null,null,null,null,null,null,null,null,null,null,null,null,null,null,null,null,null,null,null,null,null,null,null,null,null,null,null,null,null,null,null,null,null,null,null,null,null,null,null,null,null,null,null,null,null,null,null,null,null,null,null,null,null,null,null,null,null,null,null,null,null,null,null,null,null,null,null,null,null,null,null,null,null,null,0,0,{"$f":"IF(AND(Регистратор!$BF$2=3,Q78>$DZ$10,Q78<=$DZ$11),3,0)","v":0},{"$f":"IF(AND(Регистратор!$BJ$2,Q78>$EA$10,Q78<=$EA$11),5,0)","v":0},"0"]
[19,"ВОРОПАЕВ Аркадий",null,null,null,null,null,null,null,null,null,null,null,null,null,"",null,null,null,16,"КУЗНЕЦОВ Марк",null,null,null,null,null,null,null,null,null,null,"","",{"$f":"COUNT(AF$13:AF79)","v":10},{"$f":"COUNT(AG$13:AG79)","v":0},"0",null,null,{"$f":"CONCATENATE(\"Б\",TEXT(T87,\"0\"))","v":"Б0"},{"$f":"IF(AND(AO79<=7,AO79>0),Регистратор!BN$3,IF(OR(AND(AO79>=8,AO79<=17),AND(AO79>17,AM79=\"БКШ\")),Регистратор!BM$3,0))","v":0},{"$f":"W87","v":0},0,0,0,null,null,0,0,0,null,null,null,null,null,null,null,null,null,null,null,null,null,null,null,null,null,null,null,null,null,null,null,null,null,null,null,null,null,null,null,null,null,null,null,null,null,null,null,null,null,null,null,null,null,null,null,null,null,null,null,null,null,null,null,null,null,null,null,null,null,null,null,null,null,null,null,null,null,null,null,null,null,null,null,null,null,null,0,0,{"$f":"IF(AND(Регистратор!$BF$2=3,Q79>$DZ$10,Q79<=$DZ$11),3,0)","v":0},{"$f":"IF(AND(Регистратор!$BJ$2,Q79>$EA$10,Q79<=$EA$11),5,0)","v":0},"0"]
[14,"ХАЙБУЛЛИН Алексей",null,null,null,null,null,null,null,null,null,null,null,null,null,"",null,null,null,3,"МАРТЫНОВ Алексей",null,null,null,null,null,null,null,null,null,null,"","",{"$f":"COUNT(AF$13:AF80)","v":10},{"$f":"COUNT(AG$13:AG80)","v":0},"0",null,null,"Б0",{"$f":"IF(AND(AO80<=7,AO80>0),Регистратор!BN$3,IF(OR(AND(AO80>=8,AO80<=17),AND(AO80>17,AM80=\"БКШ\")),Регистратор!BM$3,0))","v":0},0,0,0,0,null,null,0,0,0,null,null,null,null,null,null,null,null,null,null,null,null,null,null,null,null,null,null,null,null,null,null,null,null,null,null,null,null,null,null,null,null,null,null,null,null,null,null,null,null,null,null,null,null,null,null,null,null,null,null,null,null,null,null,null,null,null,null,null,null,null,null,null,null,null,null,null,null,null,null,null,null,null,null,null,null,null,null,0,0,{"$f":"IF(AND(Регистратор!$BF$2=3,Q80>$DZ$10,Q80<=$DZ$11),3,0)","v":0},{"$f":"IF(AND(Регистратор!$BJ$2,Q80>$EA$10,Q80<=$EA$11),5,0)","v":0},"0"]
[16,"КОЛТЫШЕВ Дмитрий",null,null,null,null,null,null,null,null,null,null,null,null,null,"",null,null,null,14,"СТРУИН Андрей",null,null,null,null,null,null,null,null,null,null,"","",{"$f":"COUNT(AF$13:AF81)","v":10},{"$f":"COUNT(AG$13:AG81)","v":0},"0",null,null,"Б0",{"$f":"IF(AND(AO81<=7,AO81>0),Регистратор!BN$3,IF(OR(AND(AO81>=8,AO81<=17),AND(AO81>17,AM81=\"БКШ\")),Регистратор!BM$3,0))","v":0},0,0,0,0,null,null,0,0,0,null,null,null,null,null,null,null,null,null,null,null,null,null,null,null,null,null,null,null,null,null,null,null,null,null,null,null,null,null,null,null,null,null,null,null,null,null,null,null,null,null,null,null,null,null,null,null,null,null,null,null,null,null,null,null,null,null,null,null,null,null,null,null,null,null,null,null,null,null,null,null,null,null,null,null,null,null,null,0,0,{"$f":"IF(AND(Регистратор!$BF$2=3,Q81>$DZ$10,Q81<=$DZ$11),3,0)","v":0},{"$f":"IF(AND(Регистратор!$BJ$2,Q81>$EA$10,Q81<=$EA$11),5,0)","v":0},"0"]
[7,"ТИХОНОВ Вадим ",null,null,null,null,null,null,null,null,null,null,null,null,null,"",null,null,null,18,"СИБГАТУЛИН Дмитрий",null,null,null,null,null,null,null,null,null,null,"","",{"$f":"COUNT(AF$13:AF82)","v":10},{"$f":"COUNT(AG$13:AG82)","v":0},"0",null,null,"Б0",{"$f":"IF(AND(AO82<=7,AO82>0),Регистратор!BN$3,IF(OR(AND(AO82>=8,AO82<=17),AND(AO82>17,AM82=\"БКШ\")),Регистратор!BM$3,0))","v":0},0,0,0,0,null,null,0,0,0,null,null,null,null,null,null,null,null,null,null,null,null,null,null,null,null,null,null,null,null,null,null,null,null,null,null,null,null,null,null,null,null,null,null,null,null,null,null,null,null,null,null,null,null,null,null,null,null,null,null,null,null,null,null,null,null,null,null,null,null,null,null,null,null,null,null,null,null,null,null,null,null,null,null,null,null,null,null,0,0,{"$f":"IF(AND(Регистратор!$BF$2=3,Q82>$DZ$10,Q82<=$DZ$11),3,0)","v":0},{"$f":"IF(AND(Регистратор!$BJ$2,Q82>$EA$10,Q82<=$EA$11),5,0)","v":0},"0"]
[11,"ДЁМИН Евгений",null,null,null,null,null,null,null,null,null,null,null,null,null,"",null,null,null,2,"КОСТОУСОВ Илья",null,null,null,null,null,null,null,null,null,null,"","",{"$f":"COUNT(AF$13:AF83)","v":10},{"$f":"COUNT(AG$13:AG83)","v":0},"0",null,null,"Б0",{"$f":"IF(AND(AO83<=7,AO83>0),Регистратор!BN$3,IF(OR(AND(AO83>=8,AO83<=17),AND(AO83>17,AM83=\"БКШ\")),Регистратор!BM$3,0))","v":0},0,0,0,0,null,null,0,0,0,null,null,null,null,null,null,null,null,null,null,null,null,null,null,null,null,null,null,null,null,null,null,null,null,null,null,null,null,null,null,null,null,null,null,null,null,null,null,null,null,null,null,null,null,null,null,null,null,null,null,null,null,null,null,null,null,null,null,null,null,null,null,null,null,null,null,null,null,null,null,null,null,null,null,null,null,null,null,0,0,{"$f":"IF(AND(Регистратор!$BF$2=3,Q83>$DZ$10,Q83<=$DZ$11),3,0)","v":0},{"$f":"IF(AND(Регистратор!$BJ$2,Q83>$EA$10,Q83<=$EA$11),5,0)","v":0},"0"]
[2,"АКСЕНТЬЕВ Станислав",null,null,null,null,null,null,null,null,null,null,null,null,null,"",null,null,null,"","",null,null,null,null,null,null,null,null,null,null,"","",{"$f":"COUNT(AF$13:AF84)","v":10},{"$f":"COUNT(AG$13:AG84)","v":0},"0",null,null,"Б0",{"$f":"IF(AND(AO84<=7,AO84>0),Регистратор!BN$3,IF(OR(AND(AO84>=8,AO84<=17),AND(AO84>17,AM84=\"БКШ\")),Регистратор!BM$3,0))","v":0},0,0,0,0,null,null,0,0,0,null,null,null,null,null,null,null,null,null,null,null,null,null,null,null,null,null,null,null,null,null,null,null,null,null,null,null,null,null,null,null,null,null,null,null,null,null,null,null,null,null,null,null,null,null,null,null,null,null,null,null,null,null,null,null,null,null,null,null,null,null,null,null,null,null,null,null,null,null,null,null,null,null,null,null,null,null,null,0,0,{"$f":"IF(AND(Регистратор!$BF$2=3,Q84>$DZ$10,Q84<=$DZ$11),3,0)","v":0},{"$f":"IF(AND(Регистратор!$BJ$2,Q84>$EA$10,Q84<=$EA$11),5,0)","v":0},"0"]
["  Автоголы соперника /\nКом. предупр. (ЖК) / Ком. штраф",null,null,null,null,null,null,{"$f":"IF(AV92>0,AV92,\"\")","v":""},"-",{"$f":"IF(SUM(AU65:AU78)>0,SUM(AU65:AU78),\"\")","v":""},null,null,null,null,null,"",null,null,null,"  Автоголы соперника /\nКом. предупр. (ЖК) / Ком. штраф",null,null,null,null,null,null,{"$f":"IF(AW92>0,AW92,\"\")","v":""},"-",{"$f":"IF(SUM(AU79:AU92)>0,SUM(AU79:AU92),\"\")","v":""},null,null,"","",{"$f":"COUNT(AF$13:AF85)","v":10},{"$f":"COUNT(AG$13:AG85)","v":0},"0",null,null,"Б0",{"$f":"IF(AND(AO85<=7,AO85>0),Регистратор!BN$3,IF(OR(AND(AO85>=8,AO85<=17),AND(AO85>17,AM85=\"БКШ\")),Регистратор!BM$3,0))","v":0},0,0,null,null,null,null,0,0,0,null,null,null,null,null,null,null,null,null,null,null,null,null,null,null,null,null,null,null,null,null,null,null,null,null,null,null,null,null,null,null,null,null,null,null,null,null,null,null,null,null,null,null,null,null,null,null,null,null,null,null,null,null,null,null,null,null,null,null,null,null,null,null,null,null,null,null,null,null,null,null,null,null,null,null,null,null,null,0,0,{"$f":"IF(AND(Регистратор!$BF$2=3,Q85>$DZ$10,Q85<=$DZ$11),3,0)","v":0},{"$f":"IF(AND(Регистратор!$BJ$2,Q85>$EA$10,Q85<=$EA$11),5,0)","v":0},"0"]
["Удаления игроков команды А","№","Время игры",null,"Номер удаления",null,"№","Время игры",null,"Номер удаления",null,null,null,null,null,"",null,null,null,"№","Время игры",null,"Номер удаления",null,"№","Время игры",null,"Номер удаления",null,"Удаления игроков команды Б",null,"","",{"$f":"COUNT(AF$13:AF86)","v":10},{"$f":"COUNT(AG$13:AG86)","v":0},"0",null,null,{"$f":"CONCATENATE(\"Б\",TEXT(Y87,\"0\"))","v":"Б0"},{"$f":"IF(AND(AO86<=7,AO86>0),Регистратор!BN$3,IF(OR(AND(AO86>=8,AO86<=17),AND(AO86>17,AM86=\"БКШ\")),Регистратор!BM$3,0))","v":0},{"$f":"AB87","v":0},0,null,null,null,null,0,0,0,null,null,null,null,null,null,null,null,null,null,null,null,null,null,null,null,null,null,null,null,null,null,null,null,null,null,null,null,null,null,null,null,null,null,null,null,null,null,null,null,null,null,null,null,null,null,null,null,null,null,null,null,null,null,null,null,null,null,null,null,null,null,null,null,null,null,null,null,null,null,null,null,null,null,null,null,null,null,0,0,{"$f":"IF(AND(Регистратор!$BF$2=3,Q86>$DZ$10,Q86<=$DZ$11),3,0)","v":0},{"$f":"IF(AND(Регистратор!$BJ$2,Q86>$EA$10,Q86<=$EA$11),5,0)","v":0},"0"]
[null,null,null,null,null,null,null,null,null,null,null,null,null,null,null,"",null,null,null,null,null,null,null,null,null,null,null,null,null,null,null,"","",{"$f":"COUNT(AF$13:AF87)","v":10},{"$f":"COUNT(AG$13:AG87)","v":0},"0",null,null,"Б0",{"$f":"IF(AND(AO87<=7,AO87>0),Регистратор!BN$3,IF(OR(AND(AO87>=8,AO87<=17),AND(AO87>17,AM87=\"БКШ\")),Регистратор!BM$3,0))","v":0},0,0,null,null,null,null,0,0,0,null,null,null,null,null,null,null,null,null,null,null,null,null,null,null,null,null,null,null,null,null,null,null,null,null,null,null,null,null,null,null,null,null,null,null,null,null,null,null,null,null,null,null,null,null,null,null,null,null,null,null,null,null,null,null,null,null,null,null,null,null,null,null,null,null,null,null,null,null,null,null,null,null,null,null,null,null,null,0,0,{"$f":"IF(AND(Регистратор!$BF$2=3,Q87>$DZ$10,Q87<=$DZ$11),3,0)","v":0},{"$f":"IF(AND(Регистратор!$BJ$2,Q87>$EA$10,Q87<=$EA$11),5,0)","v":0},"0"]
[null,null,null,null,null,null,null,null,null,null,null,null,null,null,null,"",null,null,null,null,null,null,null,null,null,null,null,null,null,null,null,"","",{"$f":"COUNT(AF$13:AF88)","v":10},{"$f":"COUNT(AG$13:AG88)","v":0},"0",null,null,"Б0",{"$f":"IF(AND(AO88<=7,AO88>0),Регистратор!BN$3,IF(OR(AND(AO88>=8,AO88<=17),AND(AO88>17,AM88=\"БКШ\")),Регистратор!BM$3,0))","v":0},0,0,null,null,null,null,0,0,0,null,null,null,null,null,null,null,null,null,null,null,null,null,null,null,null,null,null,null,null,null,null,null,null,null,null,null,null,null,null,null,null,null,null,null,null,null,null,null,null,null,null,null,null,null,null,null,null,null,null,null,null,null,null,null,null,null,null,null,null,null,null,null,null,null,null,null,null,null,null,null,null,null,null,null,null,null,null,0,0,{"$f":"IF(AND(Регистратор!$BF$2=3,Q88>$DZ$10,Q88<=$DZ$11),3,0)","v":0},{"$f":"IF(AND(Регистратор!$BJ$2,Q88>$EA$10,Q88<=$EA$11),5,0)","v":0},"0"]
[null,null,null,null,null,null,null,null,null,null,null,null,null,null,null,"",null,null,null,null,null,null,null,null,null,null,null,null,null,null,null,"","",{"$f":"COUNT(AF$13:AF89)","v":10},{"$f":"COUNT(AG$13:AG89)","v":0},"0",null,null,"Б0",{"$f":"IF(AND(AO89<=7,AO89>0),Регистратор!BN$3,IF(OR(AND(AO89>=8,AO89<=17),AND(AO89>17,AM89=\"БКШ\")),Регистратор!BM$3,0))","v":0},0,0,null,null,null,null,0,0,0,null,null,null,null,null,null,null,null,null,null,null,null,null,null,null,null,null,null,null,null,null,null,null,null,null,null,null,null,null,null,null,null,null,null,null,null,null,null,null,null,null,null,null,null,null,null,null,null,null,null,null,null,null,null,null,null,null,null,null,null,null,null,null,null,null,null,null,null,null,null,null,null,null,null,null,null,null,null,0,0,{"$f":"IF(AND(Регистратор!$BF$2=3,Q89>$DZ$10,Q89<=$DZ$11),3,0)","v":0},{"$f":"IF(AND(Регистратор!$BJ$2,Q89>$EA$10,Q89<=$EA$11),5,0)","v":0},"0"]
[null,null,null,null,null,null,null,null,null,null,null,null,null,null,null,"",null,null,null,null,null,null,null,null,null,null,null,null,null,null,null,"","",{"$f":"COUNT(AF$13:AF90)","v":10},{"$f":"COUNT(AG$13:AG90)","v":0},"0",null,null,"Б0",{"$f":"IF(AND(AO90<=7,AO90>0),Регистратор!BN$3,IF(OR(AND(AO90>=8,AO90<=17),AND(AO90>17,AM90=\"БКШ\")),Регистратор!BM$3,0))","v":0},0,0,null,null,null,null,0,0,0,null,null,null,null,null,null,null,null,null,null,null,null,null,null,null,null,null,null,null,null,null,null,null,null,null,null,null,null,null,null,null,null,null,null,null,null,null,null,null,null,null,null,null,null,null,null,null,null,null,null,null,null,null,null,null,null,null,null,null,null,null,null,null,null,null,null,null,null,null,null,null,null,null,null,null,null,null,null,0,0,{"$f":"IF(AND(Регистратор!$BF$2=3,Q90>$DZ$10,Q90<=$DZ$11),3,0)","v":0},{"$f":"IF(AND(Регистратор!$BJ$2,Q90>$EA$10,Q90<=$EA$11),5,0)","v":0},"0"]
[null,null,null,null,null,null,null,null,null,null,null,null,null,null,null,"",null,null,null,null,null,null,null,null,null,null,null,null,null,null,null,"","",{"$f":"COUNT(AF$13:AF91)","v":10},{"$f":"COUNT(AG$13:AG91)","v":0},"0",null,null,"Б0",{"$f":"IF(AND(AO91<=7,AO91>0),Регистратор!BN$3,IF(OR(AND(AO91>=8,AO91<=17),AND(AO91>17,AM91=\"БКШ\")),Регистратор!BM$3,0))","v":0},0,0,null,null,null,null,0,0,0,null,null,null,null,null,null,null,null,null,null,null,null,null,null,null,null,null,null,null,null,null,null,null,null,null,null,null,null,null,null,null,null,null,null,null,null,null,null,null,null,null,null,null,null,null,null,null,null,null,null,null,null,null,null,null,null,null,null,null,null,null,null,null,null,null,null,null,null,null,null,null,null,null,null,null,null,null,null,0,0,{"$f":"IF(AND(Регистратор!$BF$2=3,Q91>$DZ$10,Q91<=$DZ$11),3,0)","v":0},{"$f":"IF(AND(Регистратор!$BJ$2,Q91>$EA$10,Q91<=$EA$11),5,0)","v":0},"0"]
[null,null,null,null,null,null,null,null,null,null,null,null,"Результат игры",null,null,null,null,null,null,null,null,null,null,null,null,null,null,null,null,null,null,null,null,null,null,null,null,null,"Б0",{"$f":"IF(AND(AO92<=7,AO92>0),Регистратор!BN$3,IF(OR(AND(AO92>=8,AO92<=17),AND(AO92>17,AM92=\"БКШ\")),Регистратор!BM$3,0))","v":0},0,0,null,null,null,null,null,{"$f":"SUM(AV13:AV91)","v":0},{"$f":"SUM(AW13:AW91)","v":0}]
[null,null,null,null,null,null,null,null,null,null,null,null,"Команда","I тайм","II тайм",{"$f":"IF(Регистратор!BF54=3,\"III тайм\",\"Доп.время\")","v":"Доп.время"},"12-метровые ","Общий результат"]
[null,"Штрафное время команды А (за матч):",null,null,null,null,null,null,null,{"$f":"J42","v":"30"},null,null,null,null,null,null,null,null,null,"Штрафное время команды Б (за матч):",null,null,null,null,null,null,null,{"$f":"AB42","v":"35"}]
["Незабитые 12-метровые удары (№ игрока, минута, форм.)",null,null,null,null,null,null,null,null,null,null,null,null,null,null,null,null,null,null,"Незабитые 12-метровые удары (№ игрока, минута, форм.)"]
[null,null,null,null,null,null,null,null,null,null,null,null,"А",{"$f":"N44","v":4},6,0,"-",10]
[null,null,null,null,null,null,null,null,null,null,null,null,"Б",0,0,0,"-",0]
["Главный тренер команды А (подпись, ФАМИЛИЯ, И.О.)",null,null,null,null,null,null,null,null,null,null,null,"Подпись главного судьи",null,null,null,null,null,null,"Главный тренер команды Б (подпись, ФАМИЛИЯ, И.О.)"]
[{"$f":"A47","v":"БРЮХАНОВ А.Н."},null,null,null,null,null,null,null,null,null,null,null,null,null,null,null,null,null,null,{"$f":"T47","v":"ШАПОВАЛОВ А.П."}]
[]
["Замечания, сведения о травмах, тайм-аутах, компенсированном времени, заявления о подаче протеста и т.д.",null,null,null,null,null,null,null,null,null,null,null,null,null,null,null,null,null,null,null,null,null,"М.П.",null,null,"Подпись инспектора"]

{"sheet":"Оборотная","index":1,"n_rows":70,"n_cols":34,"rows_kept":70,"cut":false,"hidden":false,"merged":[[0,21,0,23],[11,20,12,25],[15,22,15,23],[11,0,11,18],[19,0,19,18],[20,0,20,18],[28,0,28,18],[41,0,41,18],[58,0,58,18],[7,0,7,2],[8,0,8,2],[9,0,9,2],[7,20,7,22],[8,20,8,22],[9,20,9,22],[7,23,7,25],[8,23,8,25],[9,23,9,25],[7,10,7,12],[8,10,8,12],[9,10,9,12],[7,13,7,15],[8,13,8,15],[9,13,9,15],[1,16,1,17],[1,22,1,23],[1,9,1,10],[18,22,18,23],[19,22,19,23],[16,22,16,23],[3,21,3,25],[3,9,3,16],[59,0,61,18],[13,20,14,23],[17,22,17,23],[24,22,24,23],[25,22,25,23],[21,22,21,23],[22,22,22,23],[23,22,23,23],[20,22,20,23],[34,22,34,23],[35,22,35,23],[32,22,32,23],[33,22,33,23],[30,22,30,23],[31,22,31,23],[28,22,28,23],[47,22,47,23],[44,22,44,23],[4,0,6,2],[4,13,6,15],[4,10,6,12],[4,23,6,25],[4,16,5,22],[4,3,5,9],[6,3,6,6],[6,16,6,19],[6,7,6,9],[6,20,6,22],[45,22,45,23],[42,22,42,23],[43,22,43,23],[40,22,40,23],[41,22,41,23],[38,22,38,23],[39,22,39,23],[36,22,36,23],[46,22,46,23],[7,3,7,6],[7,7,7,9],[8,3,8,6],[8,7,8,9],[9,3,9,6],[9,7,9,9],[29,22,29,23],[26,22,26,23],[27,22,27,23],[7,16,7,19],[8,16,8,19],[9,16,9,19],[37,22,37,23],[69,20,69,25],[60,22,60,23],[61,22,61,23],[58,22,58,23],[59,22,59,23],[56,22,56,23],[57,22,57,23],[54,22,54,23],[55,22,55,23],[63,0,63,25],[64,0,64,12],[64,13,64,25],[65,0,65,12],[65,13,65,25],[66,0,66,25],[67,0,67,25],[68,0,68,25],[52,22,52,23],[53,22,53,23],[50,22,50,23],[51,22,51,23],[48,22,48,23],[49,22,49,23]]}
["Предварительная проверка протокола:",null,null,null,null,null,null,null,null,"«     18-30    »","13-00",null,null,null,null,null,null,null,null,null,null,"ЗЕЛИЧЕНКО А."]
[null,null,null,null,null,null,null,null,null,"   время",null,null,null,null,null,null,"подпись",null,null,null,null,null,"фамилия"]
[]
[" Команда А",null,null,null,null,null,null,null,null," ПОКАЗАТЕЛИ ИГРЫ ВРАТАРЕЙ",null,null,null,null,null,null,null,null,null,null,null,"Команда Б"]
["Игр. №\nвратаря",null,null,"Игровое время",null,null,null,null,null,null,"Послематчевые \n12-метровые пробивали / пропустил",null,null,"Игр. №\nвратаря",null,null,"Игровое время",null,null,null,null,null,null,"Послематчевые \n12-метровые пробивали / пропустил"]
[]
[null,null,null,"играл с ___ по ___ мин.",null,null,null,"пропустил мячей",null,null,null,null,null,null,null,null,"играл с ___ по ___ мин.",null,null,null,"пропустил мячей"]
[90,null,null,"1-0",null,null,null,0,null,null,null,null,null,1,null,null,"1-0",null,null,null,10]
[]
[]
[]
[" ФОРМУЛИРОВКИ",null,null,null,null,null,null,null,null,null,null,null,null,null,null,null,null,null,null,null,"Послематчевая серия \n12-метровых ударов"]
["ЗАБИТОГО МЯЧА:",null,null,null,null,null,null,null,null,"НЕРЕАЛИЗОВАННОГО 12-метрового УДАРА:"]
["1. Гол с ИГРЫ",null,null,null,null,null,null,null,null,"6. Мяч отразил ВРАТАРЬ",null,null,null,null,null,null,null,null,null,null," Счёт серии",null,null,null,"А",{"$f":"IF(ISBLANK(U17),\"-\",AD62)","v":"-"}]
["2. Гол с 12-МЕТРОВОГО УДАРА",null,null,null,null,null,null,null,null,"7. Мяч пробит МИМО",null,null,null,null,null,null,null,null,null,null,null,null,null,null,"Б",{"$f":"IF(ISBLANK(U17),\"-\",AE62)","v":"-"}]
["3. Гол с УГЛОВОГО УДАРА",null,null,null,null,null,null,null,null,"8. Мяч пробит в ШТАНГУ/ПЕРЕКЛАДИНУ",null,null,null,null,null,null,null,null,null,null,"А/Б","№","Счёт",null,"Форм.","Врат.",null,"А","Б",null,null,"Вратари - удары","Вратари-голы","Игроки-голы"]
["4. Гол со СВОБОДНОГО УДАРА",null,null,null,null,null,null,null,null,null,null,null,null,null,null,"(нужное указать)",null,null,null,null,null,null,{"$f":"IF(ISBLANK(U17),\"\",CONCATENATE(AD17,\":\",AE17))","v":""},null,null,null,null,{"$f":"IF(AND(U17=\"А\",Y17=2),1,0)","v":0},{"$f":"IF(AND(U17=\"Б\",Y17=2),1,0)","v":0},{"$f":"AB17","v":0},{"$f":"AC17","v":0},{"$f":"CONCATENATE(IF(U17=\"А\",\"Б\",\"А\"),Z17)","v":"А"},{"$f":"IF(Y17=2,AF17,\"\")","v":""},{"$f":"IF(Y17=2,CONCATENATE(U17,V17),\"\")","v":""}]
["5. Гол в свои ворота (АВТОГОЛ)",null,null,null,null,null,null,null,null,"9. Пенальти РАЗЫГРАН ",null,null,null,null,null,null,null,null,null,null,null,null,{"$f":"IF(ISBLANK(U18),\"\",CONCATENATE(AD18,\":\",AE18))","v":""},null,null,null,null,{"$f":"IF(AND(U18=\"А\",Y18=2),1,0)","v":0},{"$f":"IF(AND(U18=\"Б\",Y18=2),1,0)","v":0},{"$f":"SUM(AB$17:AB18)","v":0},{"$f":"SUM(AC$17:AC18)","v":0},{"$f":"CONCATENATE(IF(U18=\"А\",\"Б\",\"А\"),Z18)","v":"А"},{"$f":"IF(Y18=2,AF18,\"\")","v":""},{"$f":"IF(Y18=2,CONCATENATE(U18,V18),\"\")","v":""}]
[null,null,null,null,null,null,null,null,null,null,null,null,null,null,null,null,null,null,null,null,null,null,"",null,null,null,null,0,0,{"$f":"SUM(AB$17:AB19)","v":0},{"$f":"SUM(AC$17:AC19)","v":0},"А","",""]
["КРАТКАЯ ФОРМУЛИРОВКА ХАРАКТЕРА НАРУШЕНИЙ ПРАВИЛ ИГРЫ",null,null,null,null,null,null,null,null,null,null,null,null,null,null,null,null,null,null,null,null,null,"",null,null,null,null,0,0,{"$f":"SUM(AB$17:AB20)","v":0},{"$f":"SUM(AC$17:AC20)","v":0},"А","",""]
[{"$f":"CONCATENATE(\"УДАЛЕНИЯ НА \",Регистратор!BN3,\" МИНУТ\",IF(Регистратор!BN3=1,\"У\",IF(OR(Регистратор!BN3=2,Регистратор!BN3=3,Регистратор!BN3=4),\"Ы\",\"\")))","v":"УДАЛЕНИЯ НА 5 МИНУТ"},null,null,null,null,null,null,null,null,null,null,null,null,null,null,null,null,null,null,null,null,null,"",null,null,null,null,0,0,{"$f":"SUM(AB$17:AB21)","v":0},{"$f":"SUM(AC$17:AC21)","v":0},"А","",""]
[" 1. Опоздание команды на второй тайм (КШ-5 мин.)",null,null,null,null,null,null,null,null,null,null,null,null,null,null,null,null,null,null,null,null,null,"",null,null,null,null,0,0,{"$f":"SUM(AB$17:AB22)","v":0},{"$f":"SUM(AC$17:AC22)","v":0},"А","",""]
[" 2. Несоблюдение игрового расстояния",null,null,null,null,null,null,null,null,null,null,null,null,null,null,null,null,null,null,null,null,null,"",null,null,null,null,0,0,{"$f":"SUM(AB$17:AB23)","v":0},{"$f":"SUM(AC$17:AC23)","v":0},"А","",""]
[" 3. Умышленная задержка игры",null,null,null,null,null,null,null,null,null,null,null,null,null,null,null,null,null,null,null,null,null,"",null,null,null,null,0,0,{"$f":"SUM(AB$17:AB24)","v":0},{"$f":"SUM(AC$17:AC24)","v":0},"А","",""]
[" 4. Умышленная откидка мяча",null,null,null,null,null,null,null,null,null,null,null,null,null,null,null,null,null,null,null,null,null,"",null,null,null,null,0,0,{"$f":"SUM(AB$17:AB25)","v":0},{"$f":"SUM(AC$17:AC25)","v":0},"А","",""]
[" 5. Игра сломанной клюшкой, игра без клюшки",null,null,null,null,null,null,null,null,null,null,null,null,null,null,null,null,null,null,null,null,null,"",null,null,null,null,0,0,{"$f":"SUM(AB$17:AB26)","v":0},{"$f":"SUM(AC$17:AC26)","v":0},"А","",""]
[" 6. (Исключён)",null,null,null,null,null,null,null,null,null,null,null,null,null,null,null,null,null,null,null,null,null,"",null,null,null,null,0,0,{"$f":"SUM(AB$17:AB27)","v":0},{"$f":"SUM(AC$17:AC27)","v":0},"А","",""]
[" 7. Нарушение правил экипировки",null,null,null,null,null,null,null,null,null,null,null,null,null,null,null,null,null,null,null,null,null,"",null,null,null,null,0,0,{"$f":"SUM(AB$17:AB28)","v":0},{"$f":"SUM(AC$17:AC28)","v":0},"А","",""]
[{"$f":"CONCATENATE(\"УДАЛЕНИЯ НА \",Регистратор!BM3,\" МИНУТ\",IF(Регистратор!BM3=1,\"У\",IF(OR(Регистратор!BM3=2,Регистратор!BM3=3,Регистратор!BM3=4),\"Ы\",\"\")))","v":"УДАЛЕНИЯ НА 10 МИНУТ"},null,null,null,null,null,null,null,null,null,null,null,null,null,null,null,null,null,null,null,null,null,"",null,null,null,null,0,0,{"$f":"SUM(AB$17:AB29)","v":0},{"$f":"SUM(AC$17:AC29)","v":0},"А","",""]
[" 8. Нарушение численного состава, неправильная замена игроков (без права выхода на поле после",null,null,null,null,null,null,null,null,null,null,null,null,null,null,null,null,null,null,null,null,null,"",null,null,null,null,0,0,{"$f":"SUM(AB$17:AB30)","v":0},{"$f":"SUM(AC$17:AC30)","v":0},"А","",""]
[null,"пропущенных мячей)",null,null,null,null,null,null,null,null,null,null,null,null,null,null,null,null,null,null,null,null,"",null,null,null,null,0,0,{"$f":"SUM(AB$17:AB31)","v":0},{"$f":"SUM(AC$17:AC31)","v":0},"А","",""]
[" 9. Подножка",null,null,null,null,null,null,null,null,null,null,null,null,null,null,null,null,null,null,null,null,null,"",null,null,null,null,0,0,{"$f":"SUM(AB$17:AB32)","v":0},{"$f":"SUM(AC$17:AC32)","v":0},"А","",""]
["10. Задержка, зацеп (клюшкой, рукой)",null,null,null,null,null,null,null,null,null,null,null,null,null,null,null,null,null,null,null,null,null,"",null,null,null,null,0,0,{"$f":"SUM(AB$17:AB33)","v":0},{"$f":"SUM(AC$17:AC33)","v":0},"А","",""]
["11. Неправильная игра туловищем (блокировка, опасное, грубое применение силового приёма)",null,null,null,null,null,null,null,null,null,null,null,null,null,null,null,null,null,null,null,null,null,"",null,null,null,null,0,0,{"$f":"SUM(AB$17:AB34)","v":0},{"$f":"SUM(AC$17:AC34)","v":0},"А","",""]
["12. Удар соперника",null,null,null,null,null,null,null,null,null,null,null,null,null,null,null,null,null,null,null,null,null,"",null,null,null,null,0,0,{"$f":"SUM(AB$17:AB35)","v":0},{"$f":"SUM(AC$17:AC35)","v":0},"А","",""]
["13. Толчок соперника",null,null,null,null,null,null,null,null,null,null,null,null,null,null,null,null,null,null,null,null,null,"",null,null,null,null,0,0,{"$f":"SUM(AB$17:AB36)","v":0},{"$f":"SUM(AC$17:AC36)","v":0},"А","",""]
["14. Бросок клюшки, перчатки в мяч",null,null,null,null,null,null,null,null,null,null,null,null,null,null,null,null,null,null,null,null,null,"",null,null,null,null,0,0,{"$f":"SUM(AB$17:AB37)","v":0},{"$f":"SUM(AC$17:AC37)","v":0},"А","",""]
["15. Умышленная остановка мяча неразрешённым способом (рукой, головой, лёжа, высоко поднятой",null,null,null,null,null,null,null,null,null,null,null,null,null,null,null,null,null,null,null,null,null,"",null,null,null,null,0,0,{"$f":"SUM(AB$17:AB38)","v":0},{"$f":"SUM(AC$17:AC38)","v":0},"А","",""]
[null,"клюшкой и т.д.)",null,null,null,null,null,null,null,null,null,null,null,null,null,null,null,null,null,null,null,null,"",null,null,null,null,0,0,{"$f":"SUM(AB$17:AB39)","v":0},{"$f":"SUM(AC$17:AC39)","v":0},"А","",""]
["16. Неспортивное поведение (апелляция, пререкания и т.д.) ",null,null,null,null,null,null,null,null,null,null,null,null,null,null,null,null,null,null,null,null,null,"",null,null,null,null,0,0,{"$f":"SUM(AB$17:AB40)","v":0},{"$f":"SUM(AC$17:AC40)","v":0},"А","",""]
["17. Вмешательство в действия судей, неспортивное поведение представителей команд или запасных игроков",null,null,null,null,null,null,null,null,null,null,null,null,null,null,null,null,null,null,null,null,null,"",null,null,null,null,0,0,{"$f":"SUM(AB$17:AB41)","v":0},{"$f":"SUM(AC$17:AC41)","v":0},"А","",""]
["УДАЛЕНИЯ ДО КОНЦА ИГРЫ",null,null,null,null,null,null,null,null,null,null,null,null,null,null,null,null,null,null,null,null,null,"",null,null,null,null,0,0,{"$f":"SUM(AB$17:AB42)","v":0},{"$f":"SUM(AC$17:AC42)","v":0},"А","",""]
["18. Третье удаление в ходе матча",null,null,null,null,null,null,null,null,null,null,null,null,null,null,null,null,null,null,null,null,null,"",null,null,null,null,0,0,{"$f":"SUM(AB$17:AB43)","v":0},{"$f":"SUM(AC$17:AC43)","v":0},"А","",""]
["19. Несогласие с решением арбитра после удаления на 5, 10 минут",null,null,null,null,null,null,null,null,null,null,null,null,null,null,null,null,null,null,null,null,null,"",null,null,null,null,0,0,{"$f":"SUM(AB$17:AB44)","v":0},{"$f":"SUM(AC$17:AC44)","v":0},"А","",""]
["20. Повторное нарушение правил экипировки",null,null,null,null,null,null,null,null,null,null,null,null,null,null,null,null,null,null,null,null,null,"",null,null,null,null,0,0,{"$f":"SUM(AB$17:AB45)","v":0},{"$f":"SUM(AC$17:AC45)","v":0},"А","",""]
["21. Вмешательство в действия судей, неспортивное поведение представителей команд (КШ-10 мин.) или ",null,null,null,null,null,null,null,null,null,null,null,null,null,null,null,null,null,null,null,null,null,"",null,null,null,null,0,0,{"$f":"SUM(AB$17:AB46)","v":0},{"$f":"SUM(AC$17:AC46)","v":0},"А","",""]
[null,"запасных игроков до, во время или по окончании матча; умышленный автогол",null,null,null,null,null,null,null,null,null,null,null,null,null,null,null,null,null,null,null,null,"",null,null,null,null,0,0,{"$f":"SUM(AB$17:AB47)","v":0},{"$f":"SUM(AC$17:AC47)","v":0},"А","",""]
["22. Умышленное нарушение правил против игрока в ситуации, связанной с явной возможностью взятия ворот",null,null,null,null,null,null,null,null,null,null,null,null,null,null,null,null,null,null,null,null,null,"",null,null,null,null,0,0,{"$f":"SUM(AB$17:AB48)","v":0},{"$f":"SUM(AC$17:AC48)","v":0},"А","",""]
["23. Умышленный удар клюшкой, рукой, ногой, головой",null,null,null,null,null,null,null,null,null,null,null,null,null,null,null,null,null,null,null,null,null,"",null,null,null,null,0,0,{"$f":"SUM(AB$17:AB49)","v":0},{"$f":"SUM(AC$17:AC49)","v":0},"А","",""]
["24. Бросок клюшки, перчатки в игрока, судью, зрителей",null,null,null,null,null,null,null,null,null,null,null,null,null,null,null,null,null,null,null,null,null,"",null,null,null,null,0,0,{"$f":"SUM(AB$17:AB50)","v":0},{"$f":"SUM(AC$17:AC50)","v":0},"А","",""]
["25. Умышленная грубая игра без нанесения травмы",null,null,null,null,null,null,null,null,null,null,null,null,null,null,null,null,null,null,null,null,null,"",null,null,null,null,0,0,{"$f":"SUM(AB$17:AB51)","v":0},{"$f":"SUM(AC$17:AC51)","v":0},"А","",""]
["26. Умышленная грубая игра с нанесением травмы",null,null,null,null,null,null,null,null,null,null,null,null,null,null,null,null,null,null,null,null,null,"",null,null,null,null,0,0,{"$f":"SUM(AB$17:AB52)","v":0},{"$f":"SUM(AC$17:AC52)","v":0},"А","",""]
["27. Выход на поле игрока, отбывающего 5, 10 мин. удаление, без разрешения судьи",null,null,null,null,null,null,null,null,null,null,null,null,null,null,null,null,null,null,null,null,null,"",null,null,null,null,0,0,{"$f":"SUM(AB$17:AB53)","v":0},{"$f":"SUM(AC$17:AC53)","v":0},"А","",""]
["28. Оскорбительные жесты, оскорбления, нецензурные выражения в адрес партнёра, соперника,",null,null,null,null,null,null,null,null,null,null,null,null,null,null,null,null,null,null,null,null,null,"",null,null,null,null,0,0,{"$f":"SUM(AB$17:AB54)","v":0},{"$f":"SUM(AC$17:AC54)","v":0},"А","",""]
[null,"судейской бригады, официальных лиц, зрителей",null,null,null,null,null,null,null,null,null,null,null,null,null,null,null,null,null,null,null,null,"",null,null,null,null,0,0,{"$f":"SUM(AB$17:AB55)","v":0},{"$f":"SUM(AC$17:AC55)","v":0},"А","",""]
["29. Обоюдная драка",null,null,null,null,null,null,null,null,null,null,null,null,null,null,null,null,null,null,null,null,null,"",null,null,null,null,0,0,{"$f":"SUM(AB$17:AB56)","v":0},{"$f":"SUM(AC$17:AC56)","v":0},"А","",""]
["30. Нападение на судейскую бригаду",null,null,null,null,null,null,null,null,null,null,null,null,null,null,null,null,null,null,null,null,null,"",null,null,null,null,0,0,{"$f":"SUM(AB$17:AB57)","v":0},{"$f":"SUM(AC$17:AC57)","v":0},"А","",""]
[null,null,null,null,null,null,null,null,null,null,null,null,null,null,null,null,null,null,null,null,null,null,"",null,null,null,null,0,0,{"$f":"SUM(AB$17:AB58)","v":0},{"$f":"SUM(AC$17:AC58)","v":0},"А","",""]
["ПРИМЕЧАНИЕ",null,null,null,null,null,null,null,null,null,null,null,null,null,null,null,null,null,null,null,null,null,"",null,null,null,null,0,0,{"$f":"SUM(AB$17:AB59)","v":0},{"$f":"SUM(AC$17:AC59)","v":0},"А","",""]
["Командный штраф (КШ) по указанию капитана команды отбывает игрок из числа находящихся на поле. Штраф фиксируется в графе «Удаления игроков команды А/Б» при этом вместо номера игрока, отбывающего наказание, ставится – КШ.",null,null,null,null,null,null,null,null,null,null,null,null,null,null,null,null,null,null,null,null,null,"",null,null,null,null,0,0,{"$f":"SUM(AB$17:AB60)","v":0},{"$f":"SUM(AC$17:AC60)","v":0},"А","",""]
[null,null,null,null,null,null,null,null,null,null,null,null,null,null,null,null,null,null,null,null,null,null,"",null,null,null,null,0,0,{"$f":"SUM(AB$17:AB61)","v":0},{"$f":"SUM(AC$17:AC61)","v":0},"А","",""]
[null,null,null,null,null,null,null,null,null,null,null,null,null,null,null,null,null,null,null,null,null,null,"",null,null,null,null,0,0,{"$f":"SUM(AB$17:AB62)","v":0},{"$f":"SUM(AC$17:AC62)","v":0},"А","",""]
[]
["УДАЛЕНИЯ ПРЕДСТАВИТЕЛЕЙ КОМАНД (фамилия, время игры, номер удаления)"]
["А",null,null,null,null,null,null,null,null,null,null,null,null,"Б"]
["НЕТ",null,null,null,null,null,null,null,null,null,null,null,null,"НЕТ"]
["ЗАМЕЧАНИЯ ПО ПРИЁМУ КОМАНДЫ Б"]
["НЕТ"]
["Примечание: Протокол необходимо в течение 24 часов выслать по адресу: \n105064, Москва, ул. Казакова, д. 27. Федерация хоккея с мячом России.\n"]
[null,null,null,null,null,null,null,null,null,null,null,null,null,null,null,null,null,null,null,null,"Электронный протокол. Версия 4.18b"]

{"sheet":"RUS","index":2,"n_rows":103,"n_cols":26,"rows_kept":103,"cut":false,"hidden":false,"merged":[[97,0,101,0],[97,1,101,16],[97,17,97,21],[98,17,98,21],[99,17,99,21],[100,17,100,21],[101,17,101,21],[96,1,96,2],[96,3,96,4],[96,5,96,6],[96,7,96,8],[96,9,96,10],[96,11,96,12],[88,0,96,0],[88,3,88,4],[88,7,88,8],[88,11,88,12],[88,15,88,16],[91,3,91,4],[91,7,91,8],[91,11,91,12],[91,15,91,16],[91,17,91,21],[92,11,92,12],[102,1,102,23],[96,13,96,14],[96,15,96,16],[96,17,96,21],[94,3,94,4],[94,7,94,8],[94,11,94,12],[94,15,94,16],[94,17,94,21],[94,22,94,23],[95,3,95,4],[95,7,95,8],[95,11,95,12],[95,15,95,16],[95,17,95,21],[95,22,95,23],[92,15,92,16],[92,17,92,21],[92,22,92,23],[93,3,93,4],[93,7,93,8],[93,11,93,12],[93,15,93,16],[93,17,93,21],[93,22,93,23],[88,22,88,23],[89,3,89,4],[89,7,89,8],[89,11,89,12],[89,15,89,16],[89,22,89,23],[90,3,90,4],[90,7,90,8],[90,11,90,12],[90,15,90,16],[90,17,90,23],[91,22,91,23],[92,3,92,4],[92,7,92,8],[80,1,80,6],[80,9,80,14],[80,22,80,23],[81,0,87,0],[81,1,81,16],[81,22,81,23],[82,1,82,8],[82,9,82,16],[82,22,82,23],[83,1,83,8],[83,9,83,16],[83,22,83,23],[84,1,84,8],[84,9,84,16],[84,22,84,23],[85,1,85,8],[85,9,85,16],[85,22,85,23],[86,1,86,8],[86,9,86,16],[86,22,86,23],[87,1,87,16],[87,22,87,23],[73,2,73,6],[73,10,73,14],[73,22,73,23],[74,2,74,6],[74,10,74,14],[74,22,74,23],[75,0,79,0],[75,2,75,6],[75,10,75,14],[75,22,75,23],[76,2,76,6],[76,10,76,14],[76,22,76,23],[77,2,77,6],[77,10,77,14],[77,22,77,23],[78,2,78,6],[78,10,78,14],[78,22,78,23],[79,2,79,6],[79,10,79,14],[79,22,79,23],[69,22,69,23],[70,2,70,6],[70,10,70,14],[70,22,70,23],[71,2,71,6],[71,10,71,14],[71,22,71,23],[72,2,72,6],[72,10,72,14],[72,22,72,23],[63,2,63,6],[63,10,63,14],[63,22,63,23],[61,1,61,8],[61,9,61,16],[61,17,62,17],[64,0,73,0],[64,2,64,6],[64,10,64,14],[64,22,64,23],[65,2,65,6],[65,10,65,14],[65,22,65,23],[66,2,66,6],[66,10,66,14],[66,22,66,23],[67,2,67,6],[67,10,67,14],[67,22,67,23],[68,2,68,6],[68,10,68,14],[68,22,68,23],[69,2,69,6],[69,10,69,14],[61,18,62,18],[61,19,62,19],[61,20,62,20],[59,1,59,4],[59,5,59,12],[59,13,59,16],[59,17,59,23],[60,1,60,8],[60,9,60,16],[60,17,60,23],[61,21,62,21],[61,22,62,23],[62,2,62,6],[62,10,62,14],[52,0,54,23],[55,0,62,0],[55,1,55,2],[55,3,55,5],[55,6,55,8],[55,9,55,12],[55,13,55,17],[55,18,55,20],[55,21,55,23],[56,1,56,2],[56,3,56,5],[56,6,56,8],[56,9,56,12],[56,13,56,17],[56,18,56,20],[56,21,56,23],[57,1,57,4],[57,5,57,12],[57,13,57,16],[57,17,57,23],[58,1,58,4],[58,5,58,12],[58,13,58,16],[58,17,58,23],[4,3,4,5],[4,6,4,8],[4,9,4,12],[4,13,4,17],[4,18,4,20],[4,21,4,23],[0,0,2,23],[3,0,10,0],[3,1,3,2],[3,3,3,5],[3,6,3,8],[3,9,3,12],[3,13,3,17],[3,18,3,20],[3,21,3,23],[4,1,4,2],[7,1,7,4],[7,5,7,12],[7,13,7,16],[7,17,7,23],[8,1,8,8],[8,9,8,16],[8,17,8,23],[5,1,5,4],[5,5,5,12],[5,13,5,16],[5,17,5,23],[6,1,6,4],[6,5,6,12],[6,13,6,16],[6,17,6,23],[9,21,10,21],[9,22,10,23],[11,2,11,6],[11,10,11,14],[11,22,11,23],[9,1,9,8],[9,9,9,16],[9,17,10,17],[9,18,10,18],[9,19,10,19],[9,20,10,20],[10,2,10,6],[10,10,10,14],[12,0,21,0],[12,2,12,6],[12,10,12,14],[12,22,12,23],[13,2,13,6],[13,10,13,14],[13,22,13,23],[14,2,14,6],[14,10,14,14],[14,22,14,23],[17,2,17,6],[17,10,17,14],[17,22,17,23],[18,2,18,6],[18,10,18,14],[18,22,18,23],[15,2,15,6],[15,10,15,14],[15,22,15,23],[16,2,16,6],[16,10,16,14],[16,22,16,23],[21,2,21,6],[21,10,21,14],[21,22,21,23],[22,2,22,6],[22,10,22,14],[22,22,22,23],[19,2,19,6],[19,10,19,14],[19,22,19,23],[20,2,20,6],[20,10,20,14],[20,22,20,23],[26,2,26,6],[26,10,26,14],[26,22,26,23],[27,2,27,6],[27,10,27,14],[27,22,27,23],[23,0,27,0],[23,2,23,6],[23,10,23,14],[23,22,23,23],[24,2,24,6],[24,10,24,14],[24,22,24,23],[25,2,25,6],[25,10,25,14],[25,22,25,23],[27,44,27,46],[27,47,27,49],[27,50,27,52],[27,53,27,55],[27,56,27,58],[27,59,27,61],[27,26,27,28],[27,29,27,31],[27,32,27,34],[27,35,27,37],[27,38,27,40],[27,41,27,43],[27,80,27,82],[27,83,27,85],[27,86,27,88],[27,89,27,91],[27,92,27,94],[27,95,27,97],[27,62,27,64],[27,65,27,67],[27,68,27,70],[27,71,27,73],[27,74,27,76],[27,77,27,79],[27,122,27,124],[27,125,27,127],[27,128,27,130],[27,131,27,133],[27,98,27,100],[27,101,27,103],[27,104,27,106],[27,107,27,109],[27,110,27,112],[27,113,27,115],[27,215,27,217],[27,218,27,220],[27,221,27,223],[27,224,27,226],[27,170,27,172],[27,173,27,175],[27,176,27,178],[27,206,27,208],[27,209,27,211],[27,212,27,214],[27,185,27,187],[27,188,27,190],[28,1,28,6],[28,9,28,14],[28,22,28,23],[27,197,27,199],[27,200,27,202],[27,203,27,205],[27,191,27,193],[27,194,27,196],[27,179,27,181],[27,182,27,184],[27,152,27,154],[27,155,27,157],[27,158,27,160],[27,161,27,163],[27,164,27,166],[27,167,27,169],[27,134,27,136],[27,137,27,139],[27,140,27,142],[27,143,27,145],[27,146,27,148],[27,149,27,151],[27,116,27,118],[27,119,27,121],[29,32,29,34],[29,35,29,37],[29,38,29,40],[29,41,29,43],[29,44,29,46],[29,47,29,49],[29,0,35,0],[29,1,29,16],[29,22,29,23],[29,26,29,28],[29,29,29,31],[31,1,31,8],[31,9,31,16],[31,22,31,23],[32,1,32,8],[32,9,32,16],[32,22,32,23],[33,1,33,8],[33,9,33,16],[33,22,33,23],[34,1,34,8],[34,9,34,16],[34,22,34,23],[35,1,35,16],[29,68,29,70],[29,71,29,73],[29,74,29,76],[29,77,29,79],[29,80,29,82],[29,83,29,85],[29,50,29,52],[29,53,29,55],[29,56,29,58],[29,59,29,61],[29,62,29,64],[29,65,29,67],[29,113,29,115],[29,116,29,118],[29,119,29,121],[29,86,29,88],[29,89,29,91],[29,92,29,94],[29,95,29,97],[29,98,29,100],[29,101,29,103],[29,104,29,106],[29,107,29,109],[29,110,29,112],[29,218,29,220],[29,221,29,223],[29,224,29,226],[30,1,30,8],[30,9,30,16],[30,22,30,23],[29,194,29,196],[29,197,29,199],[29,200,29,202],[29,203,29,205],[29,206,29,208],[29,209,29,211],[29,176,29,178],[29,179,29,181],[29,182,29,184],[29,185,29,187],[29,188,29,190],[29,191,29,193],[29,158,29,160],[29,161,29,163],[29,164,29,166],[29,167,29,169],[29,170,29,172],[29,173,29,175],[29,212,29,214],[29,215,29,217],[29,140,29,142],[29,143,29,145],[29,146,29,148],[29,149,29,151],[29,152,29,154],[29,155,29,157],[29,122,29,124],[29,125,29,127],[29,128,29,130],[29,131,29,133],[29,134,29,136],[29,137,29,139],[35,22,35,23],[36,0,44,0],[36,3,36,4],[36,7,36,8],[36,11,36,12],[36,15,36,16],[36,22,36,23],[37,3,37,4],[37,7,37,8],[39,3,39,4],[39,7,39,8],[39,11,39,12],[39,15,39,16],[39,17,39,21],[39,22,39,23],[37,11,37,12],[37,15,37,16],[37,22,37,23],[38,3,38,4],[38,7,38,8],[38,11,38,12],[38,15,38,16],[38,17,38,23],[41,3,41,4],[41,7,41,8],[41,11,41,12],[41,15,41,16],[41,17,41,21],[41,22,41,23],[40,3,40,4],[40,7,40,8],[40,11,40,12],[40,15,40,16],[40,17,40,21],[40,22,40,23],[43,3,43,4],[43,7,43,8],[43,11,43,12],[43,15,43,16],[43,17,43,21],[43,22,43,23],[42,3,42,4],[42,7,42,8],[42,11,42,12],[42,15,42,16],[42,17,42,21],[42,22,42,23],[50,1,50,23],[44,13,44,14],[44,15,44,16],[44,17,44,21],[45,0,49,0],[45,1,49,16],[45,17,45,21],[46,17,46,21],[47,17,47,21],[48,17,48,21],[49,17,49,21],[44,1,44,2],[44,3,44,4],[44,5,44,6],[44,7,44,8],[44,9,44,10],[44,11,44,12]]}
["Международная федерация хоккея с мячом\nXXXVI чемпионат мира\nУльяновск, Россия"]
[]
[]
["Информация","№ матча",null,"Дата",null,null,"Время",null,null,"Город",null,null,null,"Стадион",null,null,null,null,"Зрители",null,null,"Температура"]
[null,4,null,{"$f":"Лицевая!E5","v":"01.12.2018"},null,null,{"$f":"Лицевая!H5","v":"13:02:00"},null,null,{"$f":"Лицевая!J5","v":"БОГДАНОВИЧ"},null,null,null,{"$f":"Лицевая!P5","v":"\"ХК ФАКЕЛ\""},null,null,null,null,{"$f":"Лицевая!W5","v":200},null,null,{"$f":"Лицевая!Z5","v":-6}]
[null,"Главный судья",null,null,null,{"$f":"Лицевая!F6","v":"ЗЕЛЕЧЕНКО Андрей, 3К, Богданович"},null,null,null,null,null,null,null,"Комиссар FIB",null,null,null,{"$f":"Лицевая!U6","v":0}]
[null,"Помощник судьи",null,null,null,{"$f":"Лицевая!F7","v":"БЕЗБОРОДОВ Владимир, 3К, Богданович"},null,null,null,null,null,null,null,"Судья-секретарь",null,null,null,{"$f":"Лицевая!U7","v":"ЛУНЕГОВ Виталий, 2К, Богданович"}]
[null,"Помощник судьи",null,null,null,{"$f":"Лицевая!F8","v":0},null,null,null,null,null,null,null,"Судья-информатор",null,null,null,{"$f":"Лицевая!U9","v":"ДЁМИН Валерий, 2К, Богданович"}]
[null,"Хозяева (А)",null,null,null,null,null,null,null,"Гости (Б)",null,null,null,null,null,null,null,"Забитые мячи"]
[null,{"$f":"Лицевая!D10","v":"\"ФАКЕЛ\""},null,null,null,null,null,null,null,{"$f":"Лицевая!W10","v":"\"МЕТАЛЛУРГ\""},null,null,null,null,null,null,null,"А / Б","№","Асс.","Время","Форм.","Счёт"]
[null,"№","Игрок",null,null,null,null,"Г","Ш","№","Игрок",null,null,null,null,"Г","Ш",null,null,null,null,null,null,null,null,"Кто"]
["Вр",{"$f":"IF(ISBLANK(Лицевая!A13),\"\",Лицевая!A13)","v":90},{"$f":"IF(ISBLANK(Лицевая!B13),\"\",Лицевая!B13)","v":"ГОЛОВКИН Сергей (вр)"},null,null,null,null,{"$f":"Лицевая!H13","v":0},{"$f":"Лицевая!J13","v":""},{"$f":"IF(ISBLANK(Лицевая!T13),\"\",Лицевая!T13)","v":1},{"$f":"IF(ISBLANK(Лицевая!U13),\"\",Лицевая!U13)","v":"ПАБАТ Никита (вр)"},null,null,null,null,{"$f":"Лицевая!AA13","v":0},{"$f":"Лицевая!AC13","v":""},{"$f":"IF(ISBLANK(Лицевая!M13),\"\",Лицевая!M13)","v":"А"},{"$f":"IF(ISBLANK(Лицевая!N13),\"\",Лицевая!N13)","v":13},{"$f":"IF(ISBLANK(Лицевая!O13),\"\",Лицевая!O13)","v":4},{"$f":"IF(ISBLANK(Лицевая!Q13),\"\",Лицевая!Q13)","v":1},{"$f":"IF(ISBLANK(Лицевая!R13),\"\",Лицевая!R13)","v":1},{"$f":"Лицевая!P13","v":"1:0"},null,null,{"$f":"CONCATENATE(R12,TEXT(V12,\"0\"))","v":"А1"}]
["Стартовый состав",{"$f":"IF(ISBLANK(Лицевая!A14),\"\",Лицевая!A14)","v":8},{"$f":"IF(ISBLANK(Лицевая!B14),\"\",Лицевая!B14)","v":"ВОРОБЬЁВ Михаил (к)"},null,null,null,null,{"$f":"Лицевая!H14","v":1},{"$f":"Лицевая!J14","v":""},{"$f":"IF(ISBLANK(Лицевая!T14),\"\",Лицевая!T14)","v":15},{"$f":"IF(ISBLANK(Лицевая!U14),\"\",Лицевая!U14)","v":"КАНДАКОВ Андрей (к)"},null,null,null,null,{"$f":"Лицевая!AA14","v":0},{"$f":"Лицевая!AC14","v":""},{"$f":"IF(ISBLANK(Лицевая!M14),\"\",Лицевая!M14)","v":"А"},{"$f":"IF(ISBLANK(Лицевая!N14),\"\",Лицевая!N14)","v":5},{"$f":"IF(ISBLANK(Лицевая!O14),\"\",Лицевая!O14)","v":"-"},{"$f":"IF(ISBLANK(Лицевая!Q14),\"\",Лицевая!Q14)","v":4},{"$f":"IF(ISBLANK(Лицевая!R14),\"\",Лицевая!R14)","v":1},{"$f":"Лицевая!P14","v":"2:0"},null,null,{"$f":"CONCATENATE(R13,TEXT(V13,\"0\"))","v":"А1"}]
[null,{"$f":"IF(ISBLANK(Лицевая!A15),\"\",Лицевая!A15)","v":20},{"$f":"IF(ISBLANK(Лицевая!B15),\"\",Лицевая!B15)","v":"РУКОЛЕЕВ Геннадий"},null,null,null,null,{"$f":"Лицевая!H15","v":0},{"$f":"Лицевая!J15","v":"10"},{"$f":"IF(ISBLANK(Лицевая!T15),\"\",Лицевая!T15)","v":11},{"$f":"IF(ISBLANK(Лицевая!U15),\"\",Лицевая!U15)","v":"ГАЁВ Максим"},null,null,null,null,{"$f":"Лицевая!AA15","v":0},{"$f":"Лицевая!AC15","v":"20"},{"$f":"IF(ISBLANK(Лицевая!M15),\"\",Лицевая!M15)","v":"А"},{"$f":"IF(ISBLANK(Лицевая!N15),\"\",Лицевая!N15)","v":6},{"$f":"IF(ISBLANK(Лицевая!O15),\"\",Лицевая!O15)","v":"-"},{"$f":"IF(ISBLANK(Лицевая!Q15),\"\",Лицевая!Q15)","v":33},{"$f":"IF(ISBLANK(Лицевая!R15),\"\",Лицевая!R15)","v":1},{"$f":"Лицевая!P15","v":"3:0"},null,null,"А1"]
[null,{"$f":"IF(ISBLANK(Лицевая!A16),\"\",Лицевая!A16)","v":12},{"$f":"IF(ISBLANK(Лицевая!B16),\"\",Лицевая!B16)","v":"МИТРОФАНОВ Александр"},null,null,null,null,{"$f":"Лицевая!H16","v":0},{"$f":"Лицевая!J16","v":"10"},{"$f":"IF(ISBLANK(Лицевая!T16),\"\",Лицевая!T16)","v":21},{"$f":"IF(ISBLANK(Лицевая!U16),\"\",Лицевая!U16)","v":"ШАВКУНОВ Антон"},null,null,null,null,{"$f":"Лицевая!AA16","v":0},{"$f":"Лицевая!AC16","v":""},{"$f":"IF(ISBLANK(Лицевая!M16),\"\",Лицевая!M16)","v":"А"},{"$f":"IF(ISBLANK(Лицевая!N16),\"\",Лицевая!N16)","v":4},{"$f":"IF(ISBLANK(Лицевая!O16),\"\",Лицевая!O16)","v":"-"},{"$f":"IF(ISBLANK(Лицевая!Q16),\"\",Лицевая!Q16)","v":41},{"$f":"IF(ISBLANK(Лицевая!R16),\"\",Лицевая!R16)","v":1},{"$f":"Лицевая!P16","v":"4:0"},null,null,"А1"]
[null,{"$f":"IF(ISBLANK(Лицевая!A17),\"\",Лицевая!A17)","v":18},{"$f":"IF(ISBLANK(Лицевая!B17),\"\",Лицевая!B17)","v":"ШЕПЕЛЕВ Александр"},null,null,null,null,{"$f":"Лицевая!H17","v":0},{"$f":"Лицевая!J17","v":""},{"$f":"IF(ISBLANK(Лицевая!T17),\"\",Лицевая!T17)","v":17},{"$f":"IF(ISBLANK(Лицевая!U17),\"\",Лицевая!U17)","v":"МЯКИШЕВ Фёдор"},null,null,null,null,{"$f":"Лицевая!AA17","v":0},{"$f":"Лицевая!AC17","v":"5"},{"$f":"IF(ISBLANK(Лицевая!M17),\"\",Лицевая!M17)","v":"А"},{"$f":"IF(ISBLANK(Лицевая!N17),\"\",Лицевая!N17)","v":8},{"$f":"IF(ISBLANK(Лицевая!O17),\"\",Лицевая!O17)","v":"-"},{"$f":"IF(ISBLANK(Лицевая!Q17),\"\",Лицевая!Q17)","v":55},{"$f":"IF(ISBLANK(Лицевая!R17),\"\",Лицевая!R17)","v":2},{"$f":"Лицевая!P17","v":"5:0"},null,null,"А2"]
[null,{"$f":"IF(ISBLANK(Лицевая!A18),\"\",Лицевая!A18)","v":17},{"$f":"IF(ISBLANK(Лицевая!B18),\"\",Лицевая!B18)","v":"ПОПОВ Максим"},null,null,null,null,{"$f":"Лицевая!H18","v":2},{"$f":"Лицевая!J18","v":""},{"$f":"IF(ISBLANK(Лицевая!T18),\"\",Лицевая!T18)","v":12},{"$f":"IF(ISBLANK(Лицевая!U18),\"\",Лицевая!U18)","v":"ЗАХАРОВ Владислав"},null,null,null,null,{"$f":"Лицевая!AA18","v":0},{"$f":"Лицевая!AC18","v":"10"},{"$f":"IF(ISBLANK(Лицевая!M18),\"\",Лицевая!M18)","v":"А"},{"$f":"IF(ISBLANK(Лицевая!N18),\"\",Лицевая!N18)","v":5},{"$f":"IF(ISBLANK(Лицевая!O18),\"\",Лицевая!O18)","v":13},{"$f":"IF(ISBLANK(Лицевая!Q18),\"\",Лицевая!Q18)","v":56},{"$f":"IF(ISBLANK(Лицевая!R18),\"\",Лицевая!R18)","v":1},{"$f":"Лицевая!P18","v":"6:0"},null,null,"А1"]
[null,{"$f":"IF(ISBLANK(Лицевая!A19),\"\",Лицевая!A19)","v":4},{"$f":"IF(ISBLANK(Лицевая!B19),\"\",Лицевая!B19)","v":"БЕЗБОРОДОВ Сергей"},null,null,null,null,{"$f":"Лицевая!H19","v":1},{"$f":"Лицевая!J19","v":""},{"$f":"IF(ISBLANK(Лицевая!T19),\"\",Лицевая!T19)","v":7},{"$f":"IF(ISBLANK(Лицевая!U19),\"\",Лицевая!U19)","v":"БЕЛЫХ Олег"},null,null,null,null,{"$f":"Лицевая!AA19","v":0},{"$f":"Лицевая!AC19","v":""},{"$f":"IF(ISBLANK(Лицевая!M19),\"\",Лицевая!M19)","v":"А"},{"$f":"IF(ISBLANK(Лицевая!N19),\"\",Лицевая!N19)","v":16},{"$f":"IF(ISBLANK(Лицевая!O19),\"\",Лицевая!O19)","v":"-"},{"$f":"IF(ISBLANK(Лицевая!Q19),\"\",Лицевая!Q19)","v":61},{"$f":"IF(ISBLANK(Лицевая!R19),\"\",Лицевая!R19)","v":1},{"$f":"Лицевая!P19","v":"7:0"},null,null,"А1"]
[null,{"$f":"IF(ISBLANK(Лицевая!A20),\"\",Лицевая!A20)","v":6},{"$f":"IF(ISBLANK(Лицевая!B20),\"\",Лицевая!B20)","v":"МЕДВЕДЕВ Александр"},null,null,null,null,{"$f":"Лицевая!H20","v":1},{"$f":"Лицевая!J20","v":"10"},{"$f":"IF(ISBLANK(Лицевая!T20),\"\",Лицевая!T20)","v":13},{"$f":"IF(ISBLANK(Лицевая!U20),\"\",Лицевая!U20)","v":"ПУДОВ Денис"},null,null,null,null,{"$f":"Лицевая!AA20","v":0},{"$f":"Лицевая!AC20","v":""},{"$f":"IF(ISBLANK(Лицевая!M20),\"\",Лицевая!M20)","v":"А"},{"$f":"IF(ISBLANK(Лицевая!N20),\"\",Лицевая!N20)","v":5},{"$f":"IF(ISBLANK(Лицевая!O20),\"\",Лицевая!O20)","v":13},{"$f":"IF(ISBLANK(Лицевая!Q20),\"\",Лицевая!Q20)","v":72},{"$f":"IF(ISBLANK(Лицевая!R20),\"\",Лицевая!R20)","v":1},{"$f":"Лицевая!P20","v":"8:0"},null,null,"А1"]
[null,{"$f":"IF(ISBLANK(Лицевая!A21),\"\",Лицевая!A21)","v":10},{"$f":"IF(ISBLANK(Лицевая!B21),\"\",Лицевая!B21)","v":"ЕРМОЛИН Андрей"},null,null,null,null,{"$f":"Лицевая!H21","v":0},{"$f":"Лицевая!J21","v":""},{"$f":"IF(ISBLANK(Лицевая!T21),\"\",Лицевая!T21)","v":5},{"$f":"IF(ISBLANK(Лицевая!U21),\"\",Лицевая!U21)","v":"ВАНИЧКИН Вадим"},null,null,null,null,{"$f":"Лицевая!AA21","v":0},{"$f":"Лицевая!AC21","v":""},{"$f":"IF(ISBLANK(Лицевая!M21),\"\",Лицевая!M21)","v":"А"},{"$f":"IF(ISBLANK(Лицевая!N21),\"\",Лицевая!N21)","v":17},{"$f":"IF(ISBLANK(Лицевая!O21),\"\",Лицевая!O21)","v":12},{"$f":"IF(ISBLANK(Лицевая!Q21),\"\",Лицевая!Q21)","v":74},{"$f":"IF(ISBLANK(Лицевая!R21),\"\",Лицевая!R21)","v":4},{"$f":"Лицевая!P21","v":"9:0"},null,null,"А4"]
[null,{"$f":"IF(ISBLANK(Лицевая!A22),\"\",Лицевая!A22)","v":13},{"$f":"IF(ISBLANK(Лицевая!B22),\"\",Лицевая!B22)","v":"БРУСЕНКОВ Денис"},null,null,null,null,{"$f":"Лицевая!H22","v":1},{"$f":"Лицевая!J22","v":""},{"$f":"IF(ISBLANK(Лицевая!T22),\"\",Лицевая!T22)","v":10},{"$f":"IF(ISBLANK(Лицевая!U22),\"\",Лицевая!U22)","v":"СПИРИДОНОВ Евгений"},null,null,null,null,{"$f":"Лицевая!AA22","v":0},{"$f":"Лицевая!AC22","v":""},{"$f":"IF(ISBLANK(Лицевая!M22),\"\",Лицевая!M22)","v":"А"},{"$f":"IF(ISBLANK(Лицевая!N22),\"\",Лицевая!N22)","v":17},{"$f":"IF(ISBLANK(Лицевая!O22),\"\",Лицевая!O22)","v":"-"},{"$f":"IF(ISBLANK(Лицевая!Q22),\"\",Лицевая!Q22)","v":90},{"$f":"IF(ISBLANK(Лицевая!R22),\"\",Лицевая!R22)","v":1},{"$f":"Лицевая!P22","v":"10:0"},null,null,"А1"]
[null,{"$f":"IF(ISBLANK(Лицевая!A23),\"\",Лицевая!A23)","v":5},{"$f":"IF(ISBLANK(Лицевая!B23),\"\",Лицевая!B23)","v":"ДЕНИСОВ Сергей"},null,null,null,null,{"$f":"Лицевая!H23","v":3},{"$f":"Лицевая!J23","v":""},{"$f":"IF(ISBLANK(Лицевая!T23),\"\",Лицевая!T23)","v":19},{"$f":"IF(ISBLANK(Лицевая!U23),\"\",Лицевая!U23)","v":"ШЕСТАКОВ Никита"},null,null,null,null,{"$f":"Лицевая!AA23","v":0},{"$f":"Лицевая!AC23","v":""},{"$f":"IF(ISBLANK(Лицевая!M23),\"\",Лицевая!M23)","v":""},{"$f":"IF(ISBLANK(Лицевая!N23),\"\",Лицевая!N23)","v":""},{"$f":"IF(ISBLANK(Лицевая!O23),\"\",Лицевая!O23)","v":""},{"$f":"IF(ISBLANK(Лицевая!Q23),\"\",Лицевая!Q23)","v":""},{"$f":"IF(ISBLANK(Лицевая!R23),\"\",Лицевая!R23)","v":""},{"$f":"Лицевая!P23","v":""},null,null,""]
["Вр",{"$f":"IF(ISBLANK(Лицевая!A24),\"\",Лицевая!A24)","v":21},{"$f":"IF(ISBLANK(Лицевая!B24),\"\",Лицевая!B24)","v":"БЫКОВ Павел (в)"},null,null,null,null,{"$f":"Лицевая!H24","v":0},{"$f":"Лицевая!J24","v":""},{"$f":"IF(ISBLANK(Лицевая!T24),\"\",Лицевая!T24)","v":30},{"$f":"IF(ISBLANK(Лицевая!U24),\"\",Лицевая!U24)","v":"СОКОЛОВСКИЙ Андрей (вр)"},null,null,null,null,{"$f":"Лицевая!AA24","v":0},{"$f":"Лицевая!AC24","v":""},{"$f":"IF(ISBLANK(Лицевая!M24),\"\",Лицевая!M24)","v":""},{"$f":"IF(ISBLANK(Лицевая!N24),\"\",Лицевая!N24)","v":""},{"$f":"IF(ISBLANK(Лицевая!O24),\"\",Лицевая!O24)","v":""},{"$f":"IF(ISBLANK(Лицевая!Q24),\"\",Лицевая!Q24)","v":""},{"$f":"IF(ISBLANK(Лицевая!R24),\"\",Лицевая!R24)","v":""},{"$f":"Лицевая!P24","v":""},null,null,""]
["Резерв",{"$f":"IF(ISBLANK(Лицевая!A25),\"\",Лицевая!A25)","v":3},{"$f":"IF(ISBLANK(Лицевая!B25),\"\",Лицевая!B25)","v":"ЧЕРЕПКОВ АРТЁМ"},null,null,null,null,{"$f":"Лицевая!H25","v":0},{"$f":"Лицевая!J25","v":""},{"$f":"IF(ISBLANK(Лицевая!T25),\"\",Лицевая!T25)","v":8},{"$f":"IF(ISBLANK(Лицевая!U25),\"\",Лицевая!U25)","v":"ЧЕРЕПАНОВ вЛАДИСЛАВ"},null,null,null,null,{"$f":"Лицевая!AA25","v":0},{"$f":"Лицевая!AC25","v":""},{"$f":"IF(ISBLANK(Лицевая!M25),\"\",Лицевая!M25)","v":""},{"$f":"IF(ISBLANK(Лицевая!N25),\"\",Лицевая!N25)","v":""},{"$f":"IF(ISBLANK(Лицевая!O25),\"\",Лицевая!O25)","v":""},{"$f":"IF(ISBLANK(Лицевая!Q25),\"\",Лицевая!Q25)","v":""},{"$f":"IF(ISBLANK(Лицевая!R25),\"\",Лицевая!R25)","v":""},{"$f":"Лицевая!P25","v":""},null,null,""]
[null,{"$f":"IF(ISBLANK(Лицевая!A26),\"\",Лицевая!A26)","v":15},{"$f":"IF(ISBLANK(Лицевая!B26),\"\",Лицевая!B26)","v":"ФЕКЛУШИН Григорий"},null,null,null,null,{"$f":"Лицевая!H26","v":0},{"$f":"Лицевая!J26","v":""},{"$f":"IF(ISBLANK(Лицевая!T26),\"\",Лицевая!T26)","v":9},{"$f":"IF(ISBLANK(Лицевая!U26),\"\",Лицевая!U26)","v":"НЕФЁДОВ Максим"},null,null,null,null,{"$f":"Лицевая!AA26","v":0},{"$f":"Лицевая!AC26","v":""},{"$f":"IF(ISBLANK(Лицевая!M26),\"\",Лицевая!M26)","v":""},{"$f":"IF(ISBLANK(Лицевая!N26),\"\",Лицевая!N26)","v":""},{"$f":"IF(ISBLANK(Лицевая!O26),\"\",Лицевая!O26)","v":""},{"$f":"IF(ISBLANK(Лицевая!Q26),\"\",Лицевая!Q26)","v":""},{"$f":"IF(ISBLANK(Лицевая!R26),\"\",Лицевая!R26)","v":""},{"$f":"Лицевая!P26","v":""},null,null,""]
[null,{"$f":"IF(ISBLANK(Лицевая!A27),\"\",Лицевая!A27)","v":19},{"$f":"IF(ISBLANK(Лицевая!B27),\"\",Лицевая!B27)","v":"ВОРОПАЕВ Аркадий"},null,null,null,null,{"$f":"Лицевая!H27","v":0},{"$f":"Лицевая!J27","v":""},{"$f":"IF(ISBLANK(Лицевая!T27),\"\",Лицевая!T27)","v":16},{"$f":"IF(ISBLANK(Лицевая!U27),\"\",Лицевая!U27)","v":"КУЗНЕЦОВ Марк"},null,null,null,null,{"$f":"Лицевая!AA27","v":0},{"$f":"Лицевая!AC27","v":""},{"$f":"IF(ISBLANK(Лицевая!M27),\"\",Лицевая!M27)","v":""},{"$f":"IF(ISBLANK(Лицевая!N27),\"\",Лицевая!N27)","v":""},{"$f":"IF(ISBLANK(Лицевая!O27),\"\",Лицевая!O27)","v":""},{"$f":"IF(ISBLANK(Лицевая!Q27),\"\",Лицевая!Q27)","v":""},{"$f":"IF(ISBLANK(Лицевая!R27),\"\",Лицевая!R27)","v":""},{"$f":"Лицевая!P27","v":""},null,null,""]
[null,{"$f":"IF(ISBLANK(Лицевая!A28),\"\",Лицевая!A28)","v":14},{"$f":"IF(ISBLANK(Лицевая!B28),\"\",Лицевая!B28)","v":"ХАЙБУЛЛИН Алексей"},null,null,null,null,{"$f":"Лицевая!H28","v":0},{"$f":"Лицевая!J28","v":""},{"$f":"IF(ISBLANK(Лицевая!T28),\"\",Лицевая!T28)","v":3},{"$f":"IF(ISBLANK(Лицевая!U28),\"\",Лицевая!U28)","v":"МАРТЫНОВ Алексей"},null,null,null,null,{"$f":"Лицевая!AA28","v":0},{"$f":"Лицевая!AC28","v":""},{"$f":"IF(ISBLANK(Лицевая!M28),\"\",Лицевая!M28)","v":""},{"$f":"IF(ISBLANK(Лицевая!N28),\"\",Лицевая!N28)","v":""},{"$f":"IF(ISBLANK(Лицевая!O28),\"\",Лицевая!O28)","v":""},{"$f":"IF(ISBLANK(Лицевая!Q28),\"\",Лицевая!Q28)","v":""},{"$f":"IF(ISBLANK(Лицевая!R28),\"\",Лицевая!R28)","v":""},{"$f":"Лицевая!P28","v":""},null,null,""]
[null,{"$f":"IF(ISBLANK(Лицевая!A29),\"\",Лицевая!A29)","v":16},{"$f":"IF(ISBLANK(Лицевая!B29),\"\",Лицевая!B29)","v":"КОЛТЫШЕВ Дмитрий"},null,null,null,null,{"$f":"Лицевая!H29","v":1},{"$f":"Лицевая!J29","v":""},{"$f":"IF(ISBLANK(Лицевая!T29),\"\",Лицевая!T29)","v":14},{"$f":"IF(ISBLANK(Лицевая!U29),\"\",Лицевая!U29)","v":"СТРУИН Андрей"},null,null,null,null,{"$f":"Лицевая!AA29","v":0},{"$f":"Лицевая!AC29","v":""},{"$f":"IF(ISBLANK(Лицевая!M29),\"\",Лицевая!M29)","v":""},{"$f":"IF(ISBLANK(Лицевая!N29),\"\",Лицевая!N29)","v":""},{"$f":"IF(ISBLANK(Лицевая!O29),\"\",Лицевая!O29)","v":""},{"$f":"IF(ISBLANK(Лицевая!Q29),\"\",Лицевая!Q29)","v":""},{"$f":"IF(ISBLANK(Лицевая!R29),\"\",Лицевая!R29)","v":""},{"$f":"Лицевая!P29","v":""},null,null,""]
[null,"Автоголы соперников / ком.штраф",null,null,null,null,null,{"$f":"Лицевая!H33","v":""},{"$f":"Лицевая!J33","v":""},"Автоголы соперников / ком.штраф",null,null,null,null,null,{"$f":"X50","v":0},{"$f":"Лицевая!AC33","v":""},{"$f":"IF(ISBLANK(Лицевая!M30),\"\",Лицевая!M30)","v":""},{"$f":"IF(ISBLANK(Лицевая!N30),\"\",Лицевая!N30)","v":""},{"$f":"IF(ISBLANK(Лицевая!O30),\"\",Лицевая!O30)","v":""},{"$f":"IF(ISBLANK(Лицевая!Q30),\"\",Лицевая!Q30)","v":""},{"$f":"IF(ISBLANK(Лицевая!R30),\"\",Лицевая!R30)","v":""},{"$f":"Лицевая!P30","v":""},null,null,""]
["Официальные лица","Официальные лица",null,null,null,null,null,null,null,null,null,null,null,null,null,null,null,{"$f":"IF(ISBLANK(Лицевая!M31),\"\",Лицевая!M31)","v":""},{"$f":"IF(ISBLANK(Лицевая!N31),\"\",Лицевая!N31)","v":""},{"$f":"IF(ISBLANK(Лицевая!O31),\"\",Лицевая!O31)","v":""},{"$f":"IF(ISBLANK(Лицевая!Q31),\"\",Лицевая!Q31)","v":""},{"$f":"IF(ISBLANK(Лицевая!R31),\"\",Лицевая!R31)","v":""},{"$f":"Лицевая!P31","v":""},null,null,""]
[null,{"$f":"VLOOKUP(CONCATENATE(B$10,\"901\"),Команды!A:E,4,FALSE)","v":"БРЮХАНОВ А.Н."},null,null,null,null,null,null,null,{"$f":"VLOOKUP(CONCATENATE(J$10,\"901\"),Команды!A:E,4,FALSE)","v":"ШАПОВАЛОВ А.П."},null,null,null,null,null,null,null,{"$f":"IF(ISBLANK(Лицевая!M32),\"\",Лицевая!M32)","v":""},{"$f":"IF(ISBLANK(Лицевая!N32),\"\",Лицевая!N32)","v":""},{"$f":"IF(ISBLANK(Лицевая!O32),\"\",Лицевая!O32)","v":""},{"$f":"IF(ISBLANK(Лицевая!Q32),\"\",Лицевая!Q32)","v":""},{"$f":"IF(ISBLANK(Лицевая!R32),\"\",Лицевая!R32)","v":""},{"$f":"Лицевая!P32","v":""},null,null,""]
[null,{"$f":"VLOOKUP(CONCATENATE(B$10,\"902\"),Команды!A:E,4,FALSE)","v":{"$error":"#N/A"}},null,null,null,null,null,null,null,{"$f":"VLOOKUP(CONCATENATE(J$10,\"902\"),Команды!A:E,4,FALSE)","v":{"$error":"#N/A"}},null,null,null,null,null,null,null,{"$f":"IF(ISBLANK(Лицевая!M33),\"\",Лицевая!M33)","v":""},{"$f":"IF(ISBLANK(Лицевая!N33),\"\",Лицевая!N33)","v":""},{"$f":"IF(ISBLANK(Лицевая!O33),\"\",Лицевая!O33)","v":""},{"$f":"IF(ISBLANK(Лицевая!Q33),\"\",Лицевая!Q33)","v":""},{"$f":"IF(ISBLANK(Лицевая!R33),\"\",Лицевая!R33)","v":""},{"$f":"Лицевая!P33","v":""},null,null,""]
[null,{"$f":"VLOOKUP(CONCATENATE(B$10,\"903\"),Команды!A:E,4,FALSE)","v":{"$error":"#N/A"}},null,null,null,null,null,null,null,{"$f":"VLOOKUP(CONCATENATE(J$10,\"903\"),Команды!A:E,4,FALSE)","v":{"$error":"#N/A"}},null,null,null,null,null,null,null,{"$f":"IF(ISBLANK(Лицевая!M34),\"\",Лицевая!M34)","v":""},{"$f":"IF(ISBLANK(Лицевая!N34),\"\",Лицевая!N34)","v":""},{"$f":"IF(ISBLANK(Лицевая!O34),\"\",Лицевая!O34)","v":""},{"$f":"IF(ISBLANK(Лицевая!Q34),\"\",Лицевая!Q34)","v":""},{"$f":"IF(ISBLANK(Лицевая!R34),\"\",Лицевая!R34)","v":""},{"$f":"Лицевая!P34","v":""},null,null,""]
[null,{"$f":"VLOOKUP(CONCATENATE(B$10,\"904\"),Команды!A:E,4,FALSE)","v":{"$error":"#N/A"}},null,null,null,null,null,null,null,{"$f":"VLOOKUP(CONCATENATE(J$10,\"904\"),Команды!A:E,4,FALSE)","v":{"$error":"#N/A"}},null,null,null,null,null,null,null,{"$f":"IF(ISBLANK(Лицевая!M35),\"\",Лицевая!M35)","v":""},{"$f":"IF(ISBLANK(Лицевая!N35),\"\",Лицевая!N35)","v":""},{"$f":"IF(ISBLANK(Лицевая!O35),\"\",Лицевая!O35)","v":""},{"$f":"IF(ISBLANK(Лицевая!Q35),\"\",Лицевая!Q35)","v":""},{"$f":"IF(ISBLANK(Лицевая!R35),\"\",Лицевая!R35)","v":""},{"$f":"Лицевая!P35","v":""},null,null,""]
[null,{"$f":"VLOOKUP(CONCATENATE(B$10,\"905\"),Команды!A:E,4,FALSE)","v":{"$error":"#N/A"}},null,null,null,null,null,null,null,{"$f":"VLOOKUP(CONCATENATE(J$10,\"905\"),Команды!A:E,4,FALSE)","v":{"$error":"#N/A"}},null,null,null,null,null,null,null,{"$f":"IF(ISBLANK(Лицевая!M36),\"\",Лицевая!M36)","v":""},{"$f":"IF(ISBLANK(Лицевая!N36),\"\",Лицевая!N36)","v":""},{"$f":"IF(ISBLANK(Лицевая!O36),\"\",Лицевая!O36)","v":""},{"$f":"IF(ISBLANK(Лицевая!Q36),\"\",Лицевая!Q36)","v":""},{"$f":"IF(ISBLANK(Лицевая!R36),\"\",Лицевая!R36)","v":""},{"$f":"Лицевая!P36","v":""},null,null,""]
[null,"Штрафное время",null,null,null,null,null,null,null,null,null,null,null,null,null,null,null,{"$f":"IF(ISBLANK(Лицевая!M37),\"\",Лицевая!M37)","v":""},{"$f":"IF(ISBLANK(Лицевая!N37),\"\",Лицевая!N37)","v":""},{"$f":"IF(ISBLANK(Лицевая!O37),\"\",Лицевая!O37)","v":""},{"$f":"IF(ISBLANK(Лицевая!Q37),\"\",Лицевая!Q37)","v":""},{"$f":"IF(ISBLANK(Лицевая!R37),\"\",Лицевая!R37)","v":""},{"$f":"Лицевая!P37","v":""},null,null,""]
["Штрафное время","№","Мин.","Причина",null,"№","Мин.","Причина",null,"№","Мин.","Причина",null,"№","Мин.","Причина",null,{"$f":"IF(ISBLANK(Лицевая!M38),\"\",Лицевая!M38)","v":""},{"$f":"IF(ISBLANK(Лицевая!N38),\"\",Лицевая!N38)","v":""},{"$f":"IF(ISBLANK(Лицевая!O38),\"\",Лицевая!O38)","v":""},{"$f":"IF(ISBLANK(Лицевая!Q38),\"\",Лицевая!Q38)","v":""},{"$f":"IF(ISBLANK(Лицевая!R38),\"\",Лицевая!R38)","v":""},{"$f":"Лицевая!P38","v":""},null,null,""]
[null,{"$f":"IF(ISBLANK(Лицевая!B35),\"\",Лицевая!B35)","v":12},{"$f":"IF(ISBLANK(Лицевая!C35),\"\",Лицевая!C35)","v":16},{"$f":"IF(ISBLANK(Лицевая!E35),\"\",Лицевая!E35)","v":10},null,{"$f":"IF(ISBLANK(Лицевая!G35),\"\",Лицевая!G35)","v":""},{"$f":"IF(ISBLANK(Лицевая!H35),\"\",Лицевая!H35)","v":""},{"$f":"IF(ISBLANK(Лицевая!J35),\"\",Лицевая!J35)","v":""},null,{"$f":"IF(ISBLANK(Лицевая!T35),\"\",Лицевая!T35)","v":12},{"$f":"IF(ISBLANK(Лицевая!U35),\"\",Лицевая!U35)","v":25},{"$f":"IF(ISBLANK(Лицевая!W35),\"\",Лицевая!W35)","v":9},null,{"$f":"IF(ISBLANK(Лицевая!Y35),\"\",Лицевая!Y35)","v":""},{"$f":"IF(ISBLANK(Лицевая!Z35),\"\",Лицевая!Z35)","v":""},{"$f":"IF(ISBLANK(Лицевая!AB35),\"\",Лицевая!AB35)","v":""},null,{"$f":"IF(ISBLANK(Лицевая!M39),\"\",Лицевая!M39)","v":""},{"$f":"IF(ISBLANK(Лицевая!N39),\"\",Лицевая!N39)","v":""},{"$f":"IF(ISBLANK(Лицевая!O39),\"\",Лицевая!O39)","v":""},{"$f":"IF(ISBLANK(Лицевая!Q39),\"\",Лицевая!Q39)","v":""},{"$f":"IF(ISBLANK(Лицевая!R39),\"\",Лицевая!R39)","v":""},{"$f":"Лицевая!P39","v":""},null,null,""]
[null,{"$f":"IF(ISBLANK(Лицевая!B36),\"\",Лицевая!B36)","v":6},{"$f":"IF(ISBLANK(Лицевая!C36),\"\",Лицевая!C36)","v":60},{"$f":"IF(ISBLANK(Лицевая!E36),\"\",Лицевая!E36)","v":9},null,{"$f":"IF(ISBLANK(Лицевая!G36),\"\",Лицевая!G36)","v":""},{"$f":"IF(ISBLANK(Лицевая!H36),\"\",Лицевая!H36)","v":""},{"$f":"IF(ISBLANK(Лицевая!J36),\"\",Лицевая!J36)","v":""},null,{"$f":"IF(ISBLANK(Лицевая!T36),\"\",Лицевая!T36)","v":17},{"$f":"IF(ISBLANK(Лицевая!U36),\"\",Лицевая!U36)","v":37},{"$f":"IF(ISBLANK(Лицевая!W36),\"\",Лицевая!W36)","v":2},null,{"$f":"IF(ISBLANK(Лицевая!Y36),\"\",Лицевая!Y36)","v":""},{"$f":"IF(ISBLANK(Лицевая!Z36),\"\",Лицевая!Z36)","v":""},{"$f":"IF(ISBLANK(Лицевая!AB36),\"\",Лицевая!AB36)","v":""},null,"Результат матча"]
[null,{"$f":"IF(ISBLANK(Лицевая!B37),\"\",Лицевая!B37)","v":20},{"$f":"IF(ISBLANK(Лицевая!C37),\"\",Лицевая!C37)","v":74},{"$f":"IF(ISBLANK(Лицевая!E37),\"\",Лицевая!E37)","v":9},null,{"$f":"IF(ISBLANK(Лицевая!G37),\"\",Лицевая!G37)","v":""},{"$f":"IF(ISBLANK(Лицевая!H37),\"\",Лицевая!H37)","v":""},{"$f":"IF(ISBLANK(Лицевая!J37),\"\",Лицевая!J37)","v":""},null,{"$f":"IF(ISBLANK(Лицевая!T37),\"\",Лицевая!T37)","v":11},{"$f":"IF(ISBLANK(Лицевая!U37),\"\",Лицевая!U37)","v":39},{"$f":"IF(ISBLANK(Лицевая!W37),\"\",Лицевая!W37)","v":9},null,{"$f":"IF(ISBLANK(Лицевая!Y37),\"\",Лицевая!Y37)","v":""},{"$f":"IF(ISBLANK(Лицевая!Z37),\"\",Лицевая!Z37)","v":""},{"$f":"IF(ISBLANK(Лицевая!AB37),\"\",Лицевая!AB37)","v":""},null,"I тайм",null,null,null,null,{"$f":"CONCATENATE(Лицевая!N44,\":\",Лицевая!N45)","v":"4:0"}]
[null,{"$f":"IF(ISBLANK(Лицевая!B38),\"\",Лицевая!B38)","v":""},{"$f":"IF(ISBLANK(Лицевая!C38),\"\",Лицевая!C38)","v":""},{"$f":"IF(ISBLANK(Лицевая!E38),\"\",Лицевая!E38)","v":""},null,{"$f":"IF(ISBLANK(Лицевая!G38),\"\",Лицевая!G38)","v":""},{"$f":"IF(ISBLANK(Лицевая!H38),\"\",Лицевая!H38)","v":""},{"$f":"IF(ISBLANK(Лицевая!J38),\"\",Лицевая!J38)","v":""},null,{"$f":"IF(ISBLANK(Лицевая!T38),\"\",Лицевая!T38)","v":11},{"$f":"IF(ISBLANK(Лицевая!U38),\"\",Лицевая!U38)","v":54},{"$f":"IF(ISBLANK(Лицевая!W38),\"\",Лицевая!W38)","v":9},null,{"$f":"IF(ISBLANK(Лицевая!Y38),\"\",Лицевая!Y38)","v":""},{"$f":"IF(ISBLANK(Лицевая!Z38),\"\",Лицевая!Z38)","v":""},{"$f":"IF(ISBLANK(Лицевая!AB38),\"\",Лицевая!AB38)","v":""},null,"II тайм",null,null,null,null,{"$f":"CONCATENATE(Лицевая!O44,\":\",Лицевая!O45)","v":"6:0"}]
[null,{"$f":"IF(ISBLANK(Лицевая!B39),\"\",Лицевая!B39)","v":""},{"$f":"IF(ISBLANK(Лицевая!C39),\"\",Лицевая!C39)","v":""},{"$f":"IF(ISBLANK(Лицевая!E39),\"\",Лицевая!E39)","v":""},null,{"$f":"IF(ISBLANK(Лицевая!G39),\"\",Лицевая!G39)","v":""},{"$f":"IF(ISBLANK(Лицевая!H39),\"\",Лицевая!H39)","v":""},{"$f":"IF(ISBLANK(Лицевая!J39),\"\",Лицевая!J39)","v":""},null,{"$f":"IF(ISBLANK(Лицевая!T39),\"\",Лицевая!T39)","v":""},{"$f":"IF(ISBLANK(Лицевая!U39),\"\",Лицевая!U39)","v":""},{"$f":"IF(ISBLANK(Лицевая!W39),\"\",Лицевая!W39)","v":""},null,{"$f":"IF(ISBLANK(Лицевая!Y39),\"\",Лицевая!Y39)","v":""},{"$f":"IF(ISBLANK(Лицевая!Z39),\"\",Лицевая!Z39)","v":""},{"$f":"IF(ISBLANK(Лицевая!AB39),\"\",Лицевая!AB39)","v":""},null,"Дополнительное время",null,null,null,null,{"$f":"IF(Лицевая!P44=\"-\",\"-\",CONCATENATE(Лицевая!P44,\":\",Лицевая!P45))","v":"0:0"}]
[null,{"$f":"IF(ISBLANK(Лицевая!B40),\"\",Лицевая!B40)","v":""},{"$f":"IF(ISBLANK(Лицевая!C40),\"\",Лицевая!C40)","v":""},{"$f":"IF(ISBLANK(Лицевая!E40),\"\",Лицевая!E40)","v":""},null,{"$f":"IF(ISBLANK(Лицевая!G40),\"\",Лицевая!G40)","v":""},{"$f":"IF(ISBLANK(Лицевая!H40),\"\",Лицевая!H40)","v":""},{"$f":"IF(ISBLANK(Лицевая!J40),\"\",Лицевая!J40)","v":""},null,{"$f":"IF(ISBLANK(Лицевая!T40),\"\",Лицевая!T40)","v":""},{"$f":"IF(ISBLANK(Лицевая!U40),\"\",Лицевая!U40)","v":""},{"$f":"IF(ISBLANK(Лицевая!W40),\"\",Лицевая!W40)","v":""},null,{"$f":"IF(ISBLANK(Лицевая!Y40),\"\",Лицевая!Y40)","v":""},{"$f":"IF(ISBLANK(Лицевая!Z40),\"\",Лицевая!Z40)","v":""},{"$f":"IF(ISBLANK(Лицевая!AB40),\"\",Лицевая!AB40)","v":""},null,"Серия 12-метровых",null,null,null,null,{"$f":"IF(Лицевая!Q44=\"-\",\"-\",CONCATENATE(Лицевая!Q44,\":\",Лицевая!Q45))","v":"-"}]
[null,{"$f":"IF(ISBLANK(Лицевая!B41),\"\",Лицевая!B41)","v":""},{"$f":"IF(ISBLANK(Лицевая!C41),\"\",Лицевая!C41)","v":""},{"$f":"IF(ISBLANK(Лицевая!E41),\"\",Лицевая!E41)","v":""},null,{"$f":"IF(ISBLANK(Лицевая!G41),\"\",Лицевая!G41)","v":""},{"$f":"IF(ISBLANK(Лицевая!H41),\"\",Лицевая!H41)","v":""},{"$f":"IF(ISBLANK(Лицевая!J41),\"\",Лицевая!J41)","v":""},null,{"$f":"IF(ISBLANK(Лицевая!T41),\"\",Лицевая!T41)","v":""},{"$f":"IF(ISBLANK(Лицевая!U41),\"\",Лицевая!U41)","v":""},{"$f":"IF(ISBLANK(Лицевая!W41),\"\",Лицевая!W41)","v":""},null,{"$f":"IF(ISBLANK(Лицевая!Y41),\"\",Лицевая!Y41)","v":""},{"$f":"IF(ISBLANK(Лицевая!Z41),\"\",Лицевая!Z41)","v":""},{"$f":"IF(ISBLANK(Лицевая!AB41),\"\",Лицевая!AB41)","v":""},null,"Общий результат",null,null,null,null,{"$f":"CONCATENATE(Лицевая!R44,\":\",Лицевая!R45)","v":"10:0"}]
[null,"Ком.предупр.",null,{"$f":"Лицевая!I33","v":"-"},null,"Всего:",null,{"$f":"Лицевая!J42","v":"30"},null,"Ком.предупр.",null,{"$f":"Лицевая!AB33","v":"-"},null,"Всего:",null,{"$f":"Лицевая!AB42","v":"35"},null,"Командные показатели",null,null,null,null,"А","Б"]
["Примечания",null,null,null,null,null,null,null,null,null,null,null,null,null,null,null,null,"Голы с игры",null,null,null,null,{"$f":"COUNTIF($Z$12:$Z$38,\"А1\")+COUNTIF($Z$64:$Z$90,\"А1\")","v":8},{"$f":"COUNTIF($Z$12:$Z$38,\"Б1\")+COUNTIF($Z$64:$Z$90,\"Б1\")","v":0}]
[null,null,null,null,null,null,null,null,null,null,null,null,null,null,null,null,null,"Голы с 12-метровых",null,null,null,null,{"$f":"COUNTIF($Z$12:$Z$38,\"А2\")+COUNTIF($Z$64:$Z$90,\"А2\")","v":1},{"$f":"COUNTIF($Z$12:$Z$38,\"Б2\")+COUNTIF($Z$64:$Z$90,\"Б2\")","v":0}]
[null,null,null,null,null,null,null,null,null,null,null,null,null,null,null,null,null,"Голы с угловых",null,null,null,null,{"$f":"COUNTIF($Z$12:$Z$38,\"А3\")+COUNTIF($Z$64:$Z$90,\"А3\")","v":0},{"$f":"COUNTIF($Z$12:$Z$38,\"Б3\")+COUNTIF($Z$64:$Z$90,\"Б3\")","v":0}]
[null,null,null,null,null,null,null,null,null,null,null,null,null,null,null,null,null,"Голы со штрафных",null,null,null,null,{"$f":"COUNTIF($Z$12:$Z$38,\"А4\")+COUNTIF($Z$64:$Z$90,\"А4\")","v":1},{"$f":"COUNTIF($Z$12:$Z$38,\"Б4\")+COUNTIF($Z$64:$Z$90,\"Б4\")","v":0}]
[null,null,null,null,null,null,null,null,null,null,null,null,null,null,null,null,null,"Автоголы соперников",null,null,null,null,{"$f":"COUNTIF($Z$12:$Z$38,\"Б5\")+COUNTIF($Z$64:$Z$90,\"Б5\")","v":0},{"$f":"COUNTIF($Z$12:$Z$38,\"А5\")+COUNTIF($Z$64:$Z$90,\"А5\")","v":0}]
[null,"Подпись главного судьи:"]
[]
[{"$f":"A1","v":"Международная федерация хоккея с мячом\nXXXVI чемпионат мира\nУльяновск, Россия"}]
[]
[]
["Информация","№ матча",null,"Дата",null,null,"Время",null,null,"Город",null,null,null,"Стадион",null,null,null,null,"Зрители",null,null,"Температура"]
[null,{"$f":"B5","v":4},null,{"$f":"D5","v":"01.12.2018"},null,null,{"$f":"G5","v":"13:02:00"},null,null,{"$f":"J5","v":"БОГДАНОВИЧ"},null,null,null,{"$f":"N5","v":"\"ХК ФАКЕЛ\""},null,null,null,null,{"$f":"S5","v":200},null,null,{"$f":"V5","v":-6}]
[null,"Главный судья",null,null,null,{"$f":"Лицевая!F58","v":"ЗЕЛЕЧЕНКО Андрей, 3К, Богданович"},null,null,null,null,null,null,null,"Комиссар FIB",null,null,null,{"$f":"Лицевая!U58","v":""}]
[null,"Помощник судьи",null,null,null,{"$f":"Лицевая!F59","v":"БЕЗБОРОДОВ Владимир, 3К, Богданович"},null,null,null,null,null,null,null,"Судья-секретарь",null,null,null,{"$f":"Лицевая!U59","v":"ЛУНЕГОВ Виталий, 2К, Богданович"}]
[null,"Помощник судьи",null,null,null,{"$f":"Лицевая!F60","v":""},null,null,null,null,null,null,null,"Судья-информатор",null,null,null,{"$f":"Лицевая!U61","v":"ДЁМИН Валерий, 2К, Богданович"}]
[null,"Хозяева (А)",null,null,null,null,null,null,null,"Гости (Б)",null,null,null,null,null,null,null,"Забитые мячи"]
[null,{"$f":"Лицевая!D62","v":"\"ФАКЕЛ\""},null,null,null,null,null,null,null,{"$f":"Лицевая!W62","v":"\"МЕТАЛЛУРГ\""},null,null,null,null,null,null,null,"А / Б","№","Асс.","Время","Форм.","Счёт"]
[null,"№","Игрок",null,null,null,null,"Г","Ш","№","Игрок",null,null,null,null,"Г","Ш",null,null,null,null,null,null,null,null,"Кто"]
["Вр",{"$f":"IF(ISBLANK(Лицевая!A65),\"\",Лицевая!A65)","v":90},{"$f":"IF(ISBLANK(Лицевая!B65),\"\",Лицевая!B65)","v":"ГОЛОВКИН Сергей (вр)"},null,null,null,null,{"$f":"Лицевая!H65","v":0},{"$f":"Лицевая!J65","v":0},{"$f":"IF(ISBLANK(Лицевая!T65),\"\",Лицевая!T65)","v":1},{"$f":"IF(ISBLANK(Лицевая!U65),\"\",Лицевая!U65)","v":"ПАБАТ Никита (вр)"},null,null,null,null,{"$f":"Лицевая!AA65","v":0},{"$f":"Лицевая!AC65","v":0},{"$f":"IF(ISBLANK(Лицевая!M65),\"\",Лицевая!M65)","v":""},{"$f":"IF(ISBLANK(Лицевая!N65),\"\",Лицевая!N65)","v":""},{"$f":"IF(ISBLANK(Лицевая!O65),\"\",Лицевая!O65)","v":""},{"$f":"IF(ISBLANK(Лицевая!Q65),\"\",Лицевая!Q65)","v":""},{"$f":"IF(ISBLANK(Лицевая!R65),\"\",Лицевая!R65)","v":""},{"$f":"Лицевая!P65","v":""},null,null,{"$f":"CONCATENATE(R64,TEXT(V64,\"0\"))","v":""}]
["Стартовый состав",{"$f":"IF(ISBLANK(Лицевая!A66),\"\",Лицевая!A66)","v":8},{"$f":"IF(ISBLANK(Лицевая!B66),\"\",Лицевая!B66)","v":"ВОРОБЬЁВ Михаил (к)"},null,null,null,null,{"$f":"Лицевая!H66","v":0},{"$f":"Лицевая!J66","v":0},{"$f":"IF(ISBLANK(Лицевая!T66),\"\",Лицевая!T66)","v":15},{"$f":"IF(ISBLANK(Лицевая!U66),\"\",Лицевая!U66)","v":"КАНДАКОВ Андрей (к)"},null,null,null,null,{"$f":"Лицевая!AA66","v":0},{"$f":"Лицевая!AC66","v":0},{"$f":"IF(ISBLANK(Лицевая!M66),\"\",Лицевая!M66)","v":""},{"$f":"IF(ISBLANK(Лицевая!N66),\"\",Лицевая!N66)","v":""},{"$f":"IF(ISBLANK(Лицевая!O66),\"\",Лицевая!O66)","v":""},{"$f":"IF(ISBLANK(Лицевая!Q66),\"\",Лицевая!Q66)","v":""},{"$f":"IF(ISBLANK(Лицевая!R66),\"\",Лицевая!R66)","v":""},{"$f":"Лицевая!P66","v":""},null,null,{"$f":"CONCATENATE(R65,TEXT(V65,\"0\"))","v":""}]
[null,{"$f":"IF(ISBLANK(Лицевая!A67),\"\",Лицевая!A67)","v":20},{"$f":"IF(ISBLANK(Лицевая!B67),\"\",Лицевая!B67)","v":"РУКОЛЕЕВ Геннадий"},null,null,null,null,{"$f":"Лицевая!H67","v":0},{"$f":"Лицевая!J67","v":0},{"$f":"IF(ISBLANK(Лицевая!T67),\"\",Лицевая!T67)","v":11},{"$f":"IF(ISBLANK(Лицевая!U67),\"\",Лицевая!U67)","v":"ГАЁВ Максим"},null,null,null,null,{"$f":"Лицевая!AA67","v":0},{"$f":"Лицевая!AC67","v":0},{"$f":"IF(ISBLANK(Лицевая!M67),\"\",Лицевая!M67)","v":""},{"$f":"IF(ISBLANK(Лицевая!N67),\"\",Лицевая!N67)","v":""},{"$f":"IF(ISBLANK(Лицевая!O67),\"\",Лицевая!O67)","v":""},{"$f":"IF(ISBLANK(Лицевая!Q67),\"\",Лицевая!Q67)","v":""},{"$f":"IF(ISBLANK(Лицевая!R67),\"\",Лицевая!R67)","v":""},{"$f":"Лицевая!P67","v":""},null,null,""]
[null,{"$f":"IF(ISBLANK(Лицевая!A68),\"\",Лицевая!A68)","v":12},{"$f":"IF(ISBLANK(Лицевая!B68),\"\",Лицевая!B68)","v":"МИТРОФАНОВ Александр"},null,null,null,null,{"$f":"Лицевая!H68","v":0},{"$f":"Лицевая!J68","v":0},{"$f":"IF(ISBLANK(Лицевая!T68),\"\",Лицевая!T68)","v":21},{"$f":"IF(ISBLANK(Лицевая!U68),\"\",Лицевая!U68)","v":"ШАВКУНОВ Антон"},null,null,null,null,null,{"$f":"Лицевая!AC68","v":0},{"$f":"IF(ISBLANK(Лицевая!M68),\"\",Лицевая!M68)","v":""},{"$f":"IF(ISBLANK(Лицевая!N68),\"\",Лицевая!N68)","v":""},{"$f":"IF(ISBLANK(Лицевая!O68),\"\",Лицевая!O68)","v":""},{"$f":"IF(ISBLANK(Лицевая!Q68),\"\",Лицевая!Q68)","v":""},{"$f":"IF(ISBLANK(Лицевая!R68),\"\",Лицевая!R68)","v":""},{"$f":"Лицевая!P68","v":""},null,null,""]
[null,{"$f":"IF(ISBLANK(Лицевая!A69),\"\",Лицевая!A69)","v":18},{"$f":"IF(ISBLANK(Лицевая!B69),\"\",Лицевая!B69)","v":"ШЕПЕЛЕВ Александр"},null,null,null,null,{"$f":"Лицевая!H69","v":0},{"$f":"Лицевая!J69","v":0},{"$f":"IF(ISBLANK(Лицевая!T69),\"\",Лицевая!T69)","v":17},{"$f":"IF(ISBLANK(Лицевая!U69),\"\",Лицевая!U69)","v":"МЯКИШЕВ Фёдор"},null,null,null,null,{"$f":"Лицевая!AA69","v":0},{"$f":"Лицевая!AC69","v":0},{"$f":"IF(ISBLANK(Лицевая!M69),\"\",Лицевая!M69)","v":""},{"$f":"IF(ISBLANK(Лицевая!N69),\"\",Лицевая!N69)","v":""},{"$f":"IF(ISBLANK(Лицевая!O69),\"\",Лицевая!O69)","v":""},{"$f":"IF(ISBLANK(Лицевая!Q69),\"\",Лицевая!Q69)","v":""},{"$f":"IF(ISBLANK(Лицевая!R69),\"\",Лицевая!R69)","v":""},{"$f":"Лицевая!P69","v":""},null,null,""]
[null,{"$f":"IF(ISBLANK(Лицевая!A70),\"\",Лицевая!A70)","v":17},{"$f":"IF(ISBLANK(Лицевая!B70),\"\",Лицевая!B70)","v":"ПОПОВ Максим"},null,null,null,null,{"$f":"Лицевая!H70","v":0},{"$f":"Лицевая!J70","v":0},{"$f":"IF(ISBLANK(Лицевая!T70),\"\",Лицевая!T70)","v":12},{"$f":"IF(ISBLANK(Лицевая!U70),\"\",Лицевая!U70)","v":"ЗАХАРОВ Владислав"},null,null,null,null,{"$f":"Лицевая!AA70","v":0},{"$f":"Лицевая!AC70","v":0},{"$f":"IF(ISBLANK(Лицевая!M70),\"\",Лицевая!M70)","v":""},{"$f":"IF(ISBLANK(Лицевая!N70),\"\",Лицевая!N70)","v":""},{"$f":"IF(ISBLANK(Лицевая!O70),\"\",Лицевая!O70)","v":""},{"$f":"IF(ISBLANK(Лицевая!Q70),\"\",Лицевая!Q70)","v":""},{"$f":"IF(ISBLANK(Лицевая!R70),\"\",Лицевая!R70)","v":""},{"$f":"Лицевая!P70","v":""},null,null,""]
[null,{"$f":"IF(ISBLANK(Лицевая!A71),\"\",Лицевая!A71)","v":4},{"$f":"IF(ISBLANK(Лицевая!B71),\"\",Лицевая!B71)","v":"БЕЗБОРОДОВ Сергей"},null,null,null,null,{"$f":"Лицевая!H71","v":0},{"$f":"Лицевая!J71","v":0},{"$f":"IF(ISBLANK(Лицевая!T71),\"\",Лицевая!T71)","v":7},{"$f":"IF(ISBLANK(Лицевая!U71),\"\",Лицевая!U71)","v":"БЕЛЫХ Олег"},null,null,null,null,{"$f":"Лицевая!AA71","v":0},{"$f":"Лицевая!AC71","v":0},{"$f":"IF(ISBLANK(Лицевая!M71),\"\",Лицевая!M71)","v":""},{"$f":"IF(ISBLANK(Лицевая!N71),\"\",Лицевая!N71)","v":""},{"$f":"IF(ISBLANK(Лицевая!O71),\"\",Лицевая!O71)","v":""},{"$f":"IF(ISBLANK(Лицевая!Q71),\"\",Лицевая!Q71)","v":""},{"$f":"IF(ISBLANK(Лицевая!R71),\"\",Лицевая!R71)","v":""},{"$f":"Лицевая!P71","v":""},null,null,""]
[null,{"$f":"IF(ISBLANK(Лицевая!A72),\"\",Лицевая!A72)","v":6},{"$f":"IF(ISBLANK(Лицевая!B72),\"\",Лицевая!B72)","v":"МЕДВЕДЕВ Александр"},null,null,null,null,{"$f":"Лицевая!H72","v":0},{"$f":"Лицевая!J72","v":0},{"$f":"IF(ISBLANK(Лицевая!T72),\"\",Лицевая!T72)","v":13},{"$f":"IF(ISBLANK(Лицевая!U72),\"\",Лицевая!U72)","v":"ПУДОВ Денис"},null,null,null,null,{"$f":"Лицевая!AA72","v":0},{"$f":"Лицевая!AC72","v":0},{"$f":"IF(ISBLANK(Лицевая!M72),\"\",Лицевая!M72)","v":""},{"$f":"IF(ISBLANK(Лицевая!N72),\"\",Лицевая!N72)","v":""},{"$f":"IF(ISBLANK(Лицевая!O72),\"\",Лицевая!O72)","v":""},{"$f":"IF(ISBLANK(Лицевая!Q72),\"\",Лицевая!Q72)","v":""},{"$f":"IF(ISBLANK(Лицевая!R72),\"\",Лицевая!R72)","v":""},{"$f":"Лицевая!P72","v":""},null,null,""]
[null,{"$f":"IF(ISBLANK(Лицевая!A73),\"\",Лицевая!A73)","v":10},{"$f":"IF(ISBLANK(Лицевая!B73),\"\",Лицевая!B73)","v":"ЕРМОЛИН Андрей"},null,null,null,null,{"$f":"Лицевая!H73","v":0},{"$f":"Лицевая!J73","v":0},{"$f":"IF(ISBLANK(Лицевая!T73),\"\",Лицевая!T73)","v":5},{"$f":"IF(ISBLANK(Лицевая!U73),\"\",Лицевая!U73)","v":"ВАНИЧКИН Вадим"},null,null,null,null,{"$f":"Лицевая!AA73","v":0},{"$f":"Лицевая!AC73","v":0},{"$f":"IF(ISBLANK(Лицевая!M73),\"\",Лицевая!M73)","v":""},{"$f":"IF(ISBLANK(Лицевая!N73),\"\",Лицевая!N73)","v":""},{"$f":"IF(ISBLANK(Лицевая!O73),\"\",Лицевая!O73)","v":""},{"$f":"IF(ISBLANK(Лицевая!Q73),\"\",Лицевая!Q73)","v":""},{"$f":"IF(ISBLANK(Лицевая!R73),\"\",Лицевая!R73)","v":""},{"$f":"Лицевая!P73","v":""},null,null,""]
[null,{"$f":"IF(ISBLANK(Лицевая!A74),\"\",Лицевая!A74)","v":13},{"$f":"IF(ISBLANK(Лицевая!B74),\"\",Лицевая!B74)","v":"БРУСЕНКОВ Денис"},null,null,null,null,{"$f":"Лицевая!H74","v":0},{"$f":"Лицевая!J74","v":0},{"$f":"IF(ISBLANK(Лицевая!T74),\"\",Лицевая!T74)","v":10},{"$f":"IF(ISBLANK(Лицевая!U74),\"\",Лицевая!U74)","v":"СПИРИДОНОВ Евгений"},null,null,null,null,{"$f":"Лицевая!AA74","v":0},{"$f":"Лицевая!AC74","v":0},{"$f":"IF(ISBLANK(Лицевая!M74),\"\",Лицевая!M74)","v":""},{"$f":"IF(ISBLANK(Лицевая!N74),\"\",Лицевая!N74)","v":""},{"$f":"IF(ISBLANK(Лицевая!O74),\"\",Лицевая!O74)","v":""},{"$f":"IF(ISBLANK(Лицевая!Q74),\"\",Лицевая!Q74)","v":""},{"$f":"IF(ISBLANK(Лицевая!R74),\"\",Лицевая!R74)","v":""},{"$f":"Лицевая!P74","v":""},null,null,""]
[null,{"$f":"IF(ISBLANK(Лицевая!A75),\"\",Лицевая!A75)","v":5},{"$f":"IF(ISBLANK(Лицевая!B75),\"\",Лицевая!B75)","v":"ДЕНИСОВ Сергей"},null,null,null,null,{"$f":"Лицевая!H75","v":0},{"$f":"Лицевая!J75","v":0},{"$f":"IF(ISBLANK(Лицевая!T75),\"\",Лицевая!T75)","v":19},{"$f":"IF(ISBLANK(Лицевая!U75),\"\",Лицевая!U75)","v":"ШЕСТАКОВ Никита"},null,null,null,null,null,{"$f":"Лицевая!AC75","v":0},{"$f":"IF(ISBLANK(Лицевая!M75),\"\",Лицевая!M75)","v":""},{"$f":"IF(ISBLANK(Лицевая!N75),\"\",Лицевая!N75)","v":""},{"$f":"IF(ISBLANK(Лицевая!O75),\"\",Лицевая!O75)","v":""},{"$f":"IF(ISBLANK(Лицевая!Q75),\"\",Лицевая!Q75)","v":""},{"$f":"IF(ISBLANK(Лицевая!R75),\"\",Лицевая!R75)","v":""},{"$f":"Лицевая!P75","v":""},null,null,""]
["Вр",{"$f":"IF(ISBLANK(Лицевая!A76),\"\",Лицевая!A76)","v":21},{"$f":"IF(ISBLANK(Лицевая!B76),\"\",Лицевая!B76)","v":"БЫКОВ Павел (в)"},null,null,null,null,{"$f":"Лицевая!H76","v":0},{"$f":"Лицевая!J76","v":0},{"$f":"IF(ISBLANK(Лицевая!T76),\"\",Лицевая!T76)","v":30},{"$f":"IF(ISBLANK(Лицевая!U76),\"\",Лицевая!U76)","v":"СОКОЛОВСКИЙ Андрей (вр)"},null,null,null,null,{"$f":"Лицевая!AA76","v":0},{"$f":"Лицевая!AC76","v":0},{"$f":"IF(ISBLANK(Лицевая!M76),\"\",Лицевая!M76)","v":""},{"$f":"IF(ISBLANK(Лицевая!N76),\"\",Лицевая!N76)","v":""},{"$f":"IF(ISBLANK(Лицевая!O76),\"\",Лицевая!O76)","v":""},{"$f":"IF(ISBLANK(Лицевая!Q76),\"\",Лицевая!Q76)","v":""},{"$f":"IF(ISBLANK(Лицевая!R76),\"\",Лицевая!R76)","v":""},{"$f":"Лицевая!P76","v":""},null,null,""]
["Резерв",{"$f":"IF(ISBLANK(Лицевая!A77),\"\",Лицевая!A77)","v":3},{"$f":"IF(ISBLANK(Лицевая!B77),\"\",Лицевая!B77)","v":"ЧЕРЕПКОВ АРТЁМ"},null,null,null,null,{"$f":"Лицевая!H77","v":0},{"$f":"Лицевая!J77","v":0},{"$f":"IF(ISBLANK(Лицевая!T77),\"\",Лицевая!T77)","v":8},{"$f":"IF(ISBLANK(Лицевая!U77),\"\",Лицевая!U77)","v":"ЧЕРЕПАНОВ вЛАДИСЛАВ"},null,null,null,null,{"$f":"Лицевая!AA77","v":0},{"$f":"Лицевая!AC77","v":0},{"$f":"IF(ISBLANK(Лицевая!M77),\"\",Лицевая!M77)","v":""},{"$f":"IF(ISBLANK(Лицевая!N77),\"\",Лицевая!N77)","v":""},{"$f":"IF(ISBLANK(Лицевая!O77),\"\",Лицевая!O77)","v":""},{"$f":"IF(ISBLANK(Лицевая!Q77),\"\",Лицевая!Q77)","v":""},{"$f":"IF(ISBLANK(Лицевая!R77),\"\",Лицевая!R77)","v":""},{"$f":"Лицевая!P77","v":""},null,null,""]
[null,{"$f":"IF(ISBLANK(Лицевая!A78),\"\",Лицевая!A78)","v":15},{"$f":"IF(ISBLANK(Лицевая!B78),\"\",Лицевая!B78)","v":"ФЕКЛУШИН Григорий"},null,null,null,null,{"$f":"Лицевая!H78","v":0},{"$f":"Лицевая!J78","v":0},{"$f":"IF(ISBLANK(Лицевая!T78),\"\",Лицевая!T78)","v":9},{"$f":"IF(ISBLANK(Лицевая!U78),\"\",Лицевая!U78)","v":"НЕФЁДОВ Максим"},null,null,null,null,{"$f":"Лицевая!AA78","v":0},{"$f":"Лицевая!AC78","v":0},{"$f":"IF(ISBLANK(Лицевая!M78),\"\",Лицевая!M78)","v":""},{"$f":"IF(ISBLANK(Лицевая!N78),\"\",Лицевая!N78)","v":""},{"$f":"IF(ISBLANK(Лицевая!O78),\"\",Лицевая!O78)","v":""},{"$f":"IF(ISBLANK(Лицевая!Q78),\"\",Лицевая!Q78)","v":""},{"$f":"IF(ISBLANK(Лицевая!R78),\"\",Лицевая!R78)","v":""},{"$f":"Лицевая!P78","v":""},null,null,""]
[null,{"$f":"IF(ISBLANK(Лицевая!A79),\"\",Лицевая!A79)","v":19},{"$f":"IF(ISBLANK(Лицевая!B79),\"\",Лицевая!B79)","v":"ВОРОПАЕВ Аркадий"},null,null,null,null,{"$f":"Лицевая!H79","v":0},{"$f":"Лицевая!J79","v":0},{"$f":"IF(ISBLANK(Лицевая!T79),\"\",Лицевая!T79)","v":16},{"$f":"IF(ISBLANK(Лицевая!U79),\"\",Лицевая!U79)","v":"КУЗНЕЦОВ Марк"},null,null,null,null,{"$f":"Лицевая!AA79","v":0},{"$f":"Лицевая!AC79","v":0},{"$f":"IF(ISBLANK(Лицевая!M79),\"\",Лицевая!M79)","v":""},{"$f":"IF(ISBLANK(Лицевая!N79),\"\",Лицевая!N79)","v":""},{"$f":"IF(ISBLANK(Лицевая!O79),\"\",Лицевая!O79)","v":""},{"$f":"IF(ISBLANK(Лицевая!Q79),\"\",Лицевая!Q79)","v":""},{"$f":"IF(ISBLANK(Лицевая!R79),\"\",Лицевая!R79)","v":""},{"$f":"Лицевая!P79","v":""},null,null,""]
[null,{"$f":"IF(ISBLANK(Лицевая!A80),\"\",Лицевая!A80)","v":14},{"$f":"IF(ISBLANK(Лицевая!B80),\"\",Лицевая!B80)","v":"ХАЙБУЛЛИН Алексей"},null,null,null,null,{"$f":"Лицевая!H80","v":0},{"$f":"Лицевая!J80","v":0},{"$f":"IF(ISBLANK(Лицевая!T80),\"\",Лицевая!T80)","v":3},{"$f":"IF(ISBLANK(Лицевая!U80),\"\",Лицевая!U80)","v":"МАРТЫНОВ Алексей"},null,null,null,null,{"$f":"Лицевая!AA80","v":0},{"$f":"Лицевая!AC80","v":0},{"$f":"IF(ISBLANK(Лицевая!M80),\"\",Лицевая!M80)","v":""},{"$f":"IF(ISBLANK(Лицевая!N80),\"\",Лицевая!N80)","v":""},{"$f":"IF(ISBLANK(Лицевая!O80),\"\",Лицевая!O80)","v":""},{"$f":"IF(ISBLANK(Лицевая!Q80),\"\",Лицевая!Q80)","v":""},{"$f":"IF(ISBLANK(Лицевая!R80),\"\",Лицевая!R80)","v":""},{"$f":"Лицевая!P80","v":""},null,null,""]
[null,{"$f":"IF(ISBLANK(Лицевая!A81),\"\",Лицевая!A81)","v":16},{"$f":"IF(ISBLANK(Лицевая!B81),\"\",Лицевая!B81)","v":"КОЛТЫШЕВ Дмитрий"},null,null,null,null,{"$f":"Лицевая!H81","v":0},{"$f":"Лицевая!J81","v":0},{"$f":"IF(ISBLANK(Лицевая!T81),\"\",Лицевая!T81)","v":14},{"$f":"IF(ISBLANK(Лицевая!U81),\"\",Лицевая!U81)","v":"СТРУИН Андрей"},null,null,null,null,{"$f":"Лицевая!AA81","v":0},{"$f":"Лицевая!AC81","v":0},{"$f":"IF(ISBLANK(Лицевая!M81),\"\",Лицевая!M81)","v":""},{"$f":"IF(ISBLANK(Лицевая!N81),\"\",Лицевая!N81)","v":""},{"$f":"IF(ISBLANK(Лицевая!O81),\"\",Лицевая!O81)","v":""},{"$f":"IF(ISBLANK(Лицевая!Q81),\"\",Лицевая!Q81)","v":""},{"$f":"IF(ISBLANK(Лицевая!R81),\"\",Лицевая!R81)","v":""},{"$f":"Лицевая!P81","v":""},null,null,""]
[null,"Автоголы соперников / ком.штраф",null,null,null,null,null,{"$f":"Лицевая!H85","v":""},{"$f":"I29","v":""},"Автоголы соперников / ком.штраф",null,null,null,null,null,{"$f":"P29","v":0},{"$f":"Q29","v":""},{"$f":"IF(ISBLANK(Лицевая!M82),\"\",Лицевая!M82)","v":""},{"$f":"IF(ISBLANK(Лицевая!N82),\"\",Лицевая!N82)","v":""},{"$f":"IF(ISBLANK(Лицевая!O82),\"\",Лицевая!O82)","v":""},{"$f":"IF(ISBLANK(Лицевая!Q82),\"\",Лицевая!Q82)","v":""},{"$f":"IF(ISBLANK(Лицевая!R82),\"\",Лицевая!R82)","v":""},{"$f":"Лицевая!P82","v":""},null,null,""]
["Официальные лица","Официальные лица",null,null,null,null,null,null,null,null,null,null,null,null,null,null,null,{"$f":"IF(ISBLANK(Лицевая!M83),\"\",Лицевая!M83)","v":""},{"$f":"IF(ISBLANK(Лицевая!N83),\"\",Лицевая!N83)","v":""},{"$f":"IF(ISBLANK(Лицевая!O83),\"\",Лицевая!O83)","v":""},{"$f":"IF(ISBLANK(Лицевая!Q83),\"\",Лицевая!Q83)","v":""},{"$f":"IF(ISBLANK(Лицевая!R83),\"\",Лицевая!R83)","v":""},{"$f":"Лицевая!P83","v":""},null,null,""]
[null,{"$f":"B31","v":"БРЮХАНОВ А.Н."},null,null,null,null,null,null,null,{"$f":"J31","v":"ШАПОВАЛОВ А.П."},null,null,null,null,null,null,null,{"$f":"IF(ISBLANK(Лицевая!M84),\"\",Лицевая!M84)","v":""},{"$f":"IF(ISBLANK(Лицевая!N84),\"\",Лицевая!N84)","v":""},{"$f":"IF(ISBLANK(Лицевая!O84),\"\",Лицевая!O84)","v":""},{"$f":"IF(ISBLANK(Лицевая!Q84),\"\",Лицевая!Q84)","v":""},{"$f":"IF(ISBLANK(Лицевая!R84),\"\",Лицевая!R84)","v":""},{"$f":"Лицевая!P84","v":""},null,null,""]
[null,{"$f":"B32","v":{"$error":"#N/A"}},null,null,null,null,null,null,null,{"$f":"J32","v":{"$error":"#N/A"}},null,null,null,null,null,null,null,{"$f":"IF(ISBLANK(Лицевая!M85),\"\",Лицевая!M85)","v":""},{"$f":"IF(ISBLANK(Лицевая!N85),\"\",Лицевая!N85)","v":""},{"$f":"IF(ISBLANK(Лицевая!O85),\"\",Лицевая!O85)","v":""},{"$f":"IF(ISBLANK(Лицевая!Q85),\"\",Лицевая!Q85)","v":""},{"$f":"IF(ISBLANK(Лицевая!R85),\"\",Лицевая!R85)","v":""},{"$f":"Лицевая!P85","v":""},null,null,""]
[null,{"$f":"B33","v":{"$error":"#N/A"}},null,null,null,null,null,null,null,{"$f":"J33","v":{"$error":"#N/A"}},null,null,null,null,null,null,null,{"$f":"IF(ISBLANK(Лицевая!M86),\"\",Лицевая!M86)","v":""},{"$f":"IF(ISBLANK(Лицевая!N86),\"\",Лицевая!N86)","v":""},{"$f":"IF(ISBLANK(Лицевая!O86),\"\",Лицевая!O86)","v":""},{"$f":"IF(ISBLANK(Лицевая!Q86),\"\",Лицевая!Q86)","v":""},{"$f":"IF(ISBLANK(Лицевая!R86),\"\",Лицевая!R86)","v":""},{"$f":"Лицевая!P86","v":""},null,null,""]
[null,{"$f":"B34","v":{"$error":"#N/A"}},null,null,null,null,null,null,null,{"$f":"J34","v":{"$error":"#N/A"}},null,null,null,null,null,null,null,{"$f":"IF(ISBLANK(Лицевая!M87),\"\",Лицевая!M87)","v":""},{"$f":"IF(ISBLANK(Лицевая!N87),\"\",Лицевая!N87)","v":""},{"$f":"IF(ISBLANK(Лицевая!O87),\"\",Лицевая!O87)","v":""},{"$f":"IF(ISBLANK(Лицевая!Q87),\"\",Лицевая!Q87)","v":""},{"$f":"IF(ISBLANK(Лицевая!R87),\"\",Лицевая!R87)","v":""},{"$f":"Лицевая!P87","v":""},null,null,""]
[null,{"$f":"B35","v":{"$error":"#N/A"}},null,null,null,null,null,null,null,{"$f":"J35","v":{"$error":"#N/A"}},null,null,null,null,null,null,null,{"$f":"IF(ISBLANK(Лицевая!M88),\"\",Лицевая!M88)","v":""},{"$f":"IF(ISBLANK(Лицевая!N88),\"\",Лицевая!N88)","v":""},{"$f":"IF(ISBLANK(Лицевая!O88),\"\",Лицевая!O88)","v":""},{"$f":"IF(ISBLANK(Лицевая!Q88),\"\",Лицевая!Q88)","v":""},{"$f":"IF(ISBLANK(Лицевая!R88),\"\",Лицевая!R88)","v":""},{"$f":"Лицевая!P88","v":""},null,null,""]
[null,"Штрафное время",null,null,null,null,null,null,null,null,null,null,null,null,null,null,null,{"$f":"IF(ISBLANK(Лицевая!M89),\"\",Лицевая!M89)","v":""},{"$f":"IF(ISBLANK(Лицевая!N89),\"\",Лицевая!N89)","v":""},{"$f":"IF(ISBLANK(Лицевая!O89),\"\",Лицевая!O89)","v":""},{"$f":"IF(ISBLANK(Лицевая!Q89),\"\",Лицевая!Q89)","v":""},{"$f":"IF(ISBLANK(Лицевая!R89),\"\",Лицевая!R89)","v":""},{"$f":"Лицевая!P89","v":""},null,null,""]
["Штрафное время","№","Мин.","Причина",null,"№","Мин.","Причина",null,"№","Мин.","Причина",null,"№","Мин.","Причина",null,{"$f":"IF(ISBLANK(Лицевая!M90),\"\",Лицевая!M90)","v":""},{"$f":"IF(ISBLANK(Лицевая!N90),\"\",Лицевая!N90)","v":""},{"$f":"IF(ISBLANK(Лицевая!O90),\"\",Лицевая!O90)","v":""},{"$f":"IF(ISBLANK(Лицевая!Q90),\"\",Лицевая!Q90)","v":""},{"$f":"IF(ISBLANK(Лицевая!R90),\"\",Лицевая!R90)","v":""},{"$f":"Лицевая!P90","v":""},null,null,""]
[null,{"$f":"IF(ISBLANK(Лицевая!B87),\"\",Лицевая!B87)","v":""},{"$f":"IF(ISBLANK(Лицевая!C87),\"\",Лицевая!C87)","v":""},{"$f":"IF(ISBLANK(Лицевая!E87),\"\",Лицевая!E87)","v":""},null,{"$f":"IF(ISBLANK(Лицевая!G87),\"\",Лицевая!G87)","v":""},{"$f":"IF(ISBLANK(Лицевая!H87),\"\",Лицевая!H87)","v":""},{"$f":"IF(ISBLANK(Лицевая!J87),\"\",Лицевая!J87)","v":""},null,{"$f":"IF(ISBLANK(Лицевая!T87),\"\",Лицевая!T87)","v":""},{"$f":"IF(ISBLANK(Лицевая!U87),\"\",Лицевая!U87)","v":""},{"$f":"IF(ISBLANK(Лицевая!W87),\"\",Лицевая!W87)","v":""},null,{"$f":"IF(ISBLANK(Лицевая!Y87),\"\",Лицевая!Y87)","v":""},{"$f":"IF(ISBLANK(Лицевая!Z87),\"\",Лицевая!Z87)","v":""},{"$f":"IF(ISBLANK(Лицевая!AB87),\"\",Лицевая!AB87)","v":""},null,{"$f":"IF(ISBLANK(Лицевая!M91),\"\",Лицевая!M91)","v":""},{"$f":"IF(ISBLANK(Лицевая!N91),\"\",Лицевая!N91)","v":""},{"$f":"IF(ISBLANK(Лицевая!O91),\"\",Лицевая!O91)","v":""},{"$f":"IF(ISBLANK(Лицевая!Q91),\"\",Лицевая!Q91)","v":""},{"$f":"IF(ISBLANK(Лицевая!R91),\"\",Лицевая!R91)","v":""},{"$f":"Лицевая!P91","v":""},null,null,""]
[null,{"$f":"IF(ISBLANK(Лицевая!B88),\"\",Лицевая!B88)","v":""},{"$f":"IF(ISBLANK(Лицевая!C88),\"\",Лицевая!C88)","v":""},{"$f":"IF(ISBLANK(Лицевая!E88),\"\",Лицевая!E88)","v":""},null,{"$f":"IF(ISBLANK(Лицевая!G88),\"\",Лицевая!G88)","v":""},{"$f":"IF(ISBLANK(Лицевая!H88),\"\",Лицевая!H88)","v":""},{"$f":"IF(ISBLANK(Лицевая!J88),\"\",Лицевая!J88)","v":""},null,{"$f":"IF(ISBLANK(Лицевая!T88),\"\",Лицевая!T88)","v":""},{"$f":"IF(ISBLANK(Лицевая!U88),\"\",Лицевая!U88)","v":""},{"$f":"IF(ISBLANK(Лицевая!W88),\"\",Лицевая!W88)","v":""},null,{"$f":"IF(ISBLANK(Лицевая!Y88),\"\",Лицевая!Y88)","v":""},{"$f":"IF(ISBLANK(Лицевая!Z88),\"\",Лицевая!Z88)","v":""},{"$f":"IF(ISBLANK(Лицевая!AB88),\"\",Лицевая!AB88)","v":""},null,"Результат матча"]
[null,{"$f":"IF(ISBLANK(Лицевая!B89),\"\",Лицевая!B89)","v":""},{"$f":"IF(ISBLANK(Лицевая!C89),\"\",Лицевая!C89)","v":""},{"$f":"IF(ISBLANK(Лицевая!E89),\"\",Лицевая!E89)","v":""},null,{"$f":"IF(ISBLANK(Лицевая!G89),\"\",Лицевая!G89)","v":""},{"$f":"IF(ISBLANK(Лицевая!H89),\"\",Лицевая!H89)","v":""},{"$f":"IF(ISBLANK(Лицевая!J89),\"\",Лицевая!J89)","v":""},null,{"$f":"IF(ISBLANK(Лицевая!T89),\"\",Лицевая!T89)","v":""},{"$f":"IF(ISBLANK(Лицевая!U89),\"\",Лицевая!U89)","v":""},{"$f":"IF(ISBLANK(Лицевая!W89),\"\",Лицевая!W89)","v":""},null,{"$f":"IF(ISBLANK(Лицевая!Y89),\"\",Лицевая!Y89)","v":""},{"$f":"IF(ISBLANK(Лицевая!Z89),\"\",Лицевая!Z89)","v":""},{"$f":"IF(ISBLANK(Лицевая!AB89),\"\",Лицевая!AB89)","v":""},null,"I тайм",null,null,null,null,{"$f":"W40","v":"4:0"}]
[null,{"$f":"IF(ISBLANK(Лицевая!B90),\"\",Лицевая!B90)","v":""},{"$f":"IF(ISBLANK(Лицевая!C90),\"\",Лицевая!C90)","v":""},{"$f":"IF(ISBLANK(Лицевая!E90),\"\",Лицевая!E90)","v":""},null,{"$f":"IF(ISBLANK(Лицевая!G90),\"\",Лицевая!G90)","v":""},{"$f":"IF(ISBLANK(Лицевая!H90),\"\",Лицевая!H90)","v":""},{"$f":"IF(ISBLANK(Лицевая!J90),\"\",Лицевая!J90)","v":""},null,{"$f":"IF(ISBLANK(Лицевая!T90),\"\",Лицевая!T90)","v":""},{"$f":"IF(ISBLANK(Лицевая!U90),\"\",Лицевая!U90)","v":""},{"$f":"IF(ISBLANK(Лицевая!W90),\"\",Лицевая!W90)","v":""},null,{"$f":"IF(ISBLANK(Лицевая!Y90),\"\",Лицевая!Y90)","v":""},{"$f":"IF(ISBLANK(Лицевая!Z90),\"\",Лицевая!Z90)","v":""},{"$f":"IF(ISBLANK(Лицевая!AB90),\"\",Лицевая!AB90)","v":""},null,"II тайм",null,null,null,null,{"$f":"W41","v":"6:0"}]
[null,{"$f":"IF(ISBLANK(Лицевая!B91),\"\",Лицевая!B91)","v":""},{"$f":"IF(ISBLANK(Лицевая!C91),\"\",Лицевая!C91)","v":""},{"$f":"IF(ISBLANK(Лицевая!E91),\"\",Лицевая!E91)","v":""},null,{"$f":"IF(ISBLANK(Лицевая!G91),\"\",Лицевая!G91)","v":""},{"$f":"IF(ISBLANK(Лицевая!H91),\"\",Лицевая!H91)","v":""},{"$f":"IF(ISBLANK(Лицевая!J91),\"\",Лицевая!J91)","v":""},null,{"$f":"IF(ISBLANK(Лицевая!T91),\"\",Лицевая!T91)","v":""},{"$f":"IF(ISBLANK(Лицевая!U91),\"\",Лицевая!U91)","v":""},{"$f":"IF(ISBLANK(Лицевая!W91),\"\",Лицевая!W91)","v":""},null,{"$f":"IF(ISBLANK(Лицевая!Y91),\"\",Лицевая!Y91)","v":""},{"$f":"IF(ISBLANK(Лицевая!Z91),\"\",Лицевая!Z91)","v":""},{"$f":"IF(ISBLANK(Лицевая!AB91),\"\",Лицевая!AB91)","v":""},null,"Дополнительное время",null,null,null,null,{"$f":"W42","v":"0:0"}]
[null,{"$f":"IF(ISBLANK(Лицевая!B92),\"\",Лицевая!B92)","v":""},{"$f":"IF(ISBLANK(Лицевая!C92),\"\",Лицевая!C92)","v":""},{"$f":"IF(ISBLANK(Лицевая!E92),\"\",Лицевая!E92)","v":""},null,{"$f":"IF(ISBLANK(Лицевая!G92),\"\",Лицевая!G92)","v":""},{"$f":"IF(ISBLANK(Лицевая!H92),\"\",Лицевая!H92)","v":""},{"$f":"IF(ISBLANK(Лицевая!J92),\"\",Лицевая!J92)","v":""},null,{"$f":"IF(ISBLANK(Лицевая!T92),\"\",Лицевая!T92)","v":""},{"$f":"IF(ISBLANK(Лицевая!U92),\"\",Лицевая!U92)","v":""},{"$f":"IF(ISBLANK(Лицевая!W92),\"\",Лицевая!W92)","v":""},null,{"$f":"IF(ISBLANK(Лицевая!Y92),\"\",Лицевая!Y92)","v":""},{"$f":"IF(ISBLANK(Лицевая!Z92),\"\",Лицевая!Z92)","v":""},{"$f":"IF(ISBLANK(Лицевая!AB92),\"\",Лицевая!AB92)","v":""},null,"Серия 12-метровых",null,null,null,null,{"$f":"W43","v":"-"}]
[null,{"$f":"IF(ISBLANK(Лицевая!B93),\"\",Лицевая!B93)","v":""},{"$f":"IF(ISBLANK(Лицевая!C93),\"\",Лицевая!C93)","v":""},{"$f":"IF(ISBLANK(Лицевая!E93),\"\",Лицевая!E93)","v":""},null,{"$f":"IF(ISBLANK(Лицевая!G93),\"\",Лицевая!G93)","v":""},{"$f":"IF(ISBLANK(Лицевая!H93),\"\",Лицевая!H93)","v":""},{"$f":"IF(ISBLANK(Лицевая!J93),\"\",Лицевая!J93)","v":""},null,{"$f":"IF(ISBLANK(Лицевая!T93),\"\",Лицевая!T93)","v":""},{"$f":"IF(ISBLANK(Лицевая!U93),\"\",Лицевая!U93)","v":""},{"$f":"IF(ISBLANK(Лицевая!W93),\"\",Лицевая!W93)","v":""},null,{"$f":"IF(ISBLANK(Лицевая!Y93),\"\",Лицевая!Y93)","v":""},{"$f":"IF(ISBLANK(Лицевая!Z93),\"\",Лицевая!Z93)","v":""},{"$f":"IF(ISBLANK(Лицевая!AB93),\"\",Лицевая!AB93)","v":""},null,"Общий результат",null,null,null,null,{"$f":"W44","v":"10:0"}]
[null,"Ком.предупр.",null,{"$f":"Лицевая!I85","v":"-"},null,"Всего:",null,{"$f":"Лицевая!J94","v":"30"},null,"Ком.предупр.",null,{"$f":"Лицевая!AB85","v":"-"},null,"Всего:",null,{"$f":"Лицевая!AB94","v":"35"},null,"Командные показатели",null,null,null,null,"А","Б"]
["Примечания","Лист 2/2",null,null,null,null,null,null,null,null,null,null,null,null,null,null,null,"Голы с игры",null,null,null,null,{"$f":"W46","v":8},0]
[null,null,null,null,null,null,null,null,null,null,null,null,null,null,null,null,null,"Голы с 12-метровых",null,null,null,null,1,0]
[null,null,null,null,null,null,null,null,null,null,null,null,null,null,null,null,null,"Голы с угловых",null,null,null,null,0,0]
[null,null,null,null,null,null,null,null,null,null,null,null,null,null,null,null,null,"Голы со штрафных",null,null,null,null,1,0]
[null,null,null,null,null,null,null,null,null,null,null,null,null,null,null,null,null,"Автоголы соперников",null,null,null,null,0,0]
[null,"Подпись главного судьи:"]

{"sheet":"ENG","index":3,"n_rows":103,"n_cols":24,"rows_kept":103,"cut":false,"hidden":false,"merged":[[97,0,101,0],[97,1,101,16],[97,17,97,21],[98,17,98,21],[99,17,99,21],[100,17,100,21],[101,17,101,21],[96,1,96,2],[96,3,96,4],[96,5,96,6],[96,7,96,8],[96,9,96,10],[96,11,96,12],[88,0,96,0],[88,3,88,4],[88,7,88,8],[88,11,88,12],[88,15,88,16],[91,3,91,4],[91,7,91,8],[91,11,91,12],[91,15,91,16],[91,17,91,21],[92,11,92,12],[102,1,102,23],[96,13,96,14],[96,15,96,16],[96,17,96,21],[94,3,94,4],[94,7,94,8],[94,11,94,12],[94,15,94,16],[94,17,94,21],[94,22,94,23],[95,3,95,4],[95,7,95,8],[95,11,95,12],[95,15,95,16],[95,17,95,21],[95,22,95,23],[92,15,92,16],[92,17,92,21],[92,22,92,23],[93,3,93,4],[93,7,93,8],[93,11,93,12],[93,15,93,16],[93,17,93,21],[93,22,93,23],[88,22,88,23],[89,3,89,4],[89,7,89,8],[89,11,89,12],[89,15,89,16],[89,22,89,23],[90,3,90,4],[90,7,90,8],[90,11,90,12],[90,15,90,16],[90,17,90,23],[91,22,91,23],[92,3,92,4],[92,7,92,8],[80,1,80,6],[80,9,80,14],[80,22,80,23],[81,0,87,0],[81,1,81,16],[81,22,81,23],[82,1,82,8],[82,9,82,16],[82,22,82,23],[83,1,83,8],[83,9,83,16],[83,22,83,23],[84,1,84,8],[84,9,84,16],[84,22,84,23],[85,1,85,8],[85,9,85,16],[85,22,85,23],[86,1,86,8],[86,9,86,16],[86,22,86,23],[87,1,87,16],[87,22,87,23],[73,2,73,6],[73,10,73,14],[73,22,73,23],[74,2,74,6],[74,10,74,14],[74,22,74,23],[75,0,79,0],[75,2,75,6],[75,10,75,14],[75,22,75,23],[76,2,76,6],[76,10,76,14],[76,22,76,23],[77,2,77,6],[77,10,77,14],[77,22,77,23],[78,2,78,6],[78,10,78,14],[78,22,78,23],[79,2,79,6],[79,10,79,14],[79,22,79,23],[69,22,69,23],[70,2,70,6],[70,10,70,14],[70,22,70,23],[71,2,71,6],[71,10,71,14],[71,22,71,23],[72,2,72,6],[72,10,72,14],[72,22,72,23],[63,2,63,6],[63,10,63,14],[63,22,63,23],[61,1,61,8],[61,9,61,16],[61,17,62,17],[64,0,73,0],[64,2,64,6],[64,10,64,14],[64,22,64,23],[65,2,65,6],[65,10,65,14],[65,22,65,23],[66,2,66,6],[66,10,66,14],[66,22,66,23],[67,2,67,6],[67,10,67,14],[67,22,67,23],[68,2,68,6],[68,10,68,14],[68,22,68,23],[69,2,69,6],[69,10,69,14],[61,18,62,18],[61,19,62,19],[61,20,62,20],[59,1,59,4],[59,5,59,12],[59,13,59,16],[59,17,59,23],[60,1,60,8],[60,9,60,16],[60,17,60,23],[61,21,62,21],[61,22,62,23],[62,2,62,6],[62,10,62,14],[52,0,54,23],[55,0,62,0],[55,1,55,2],[55,3,55,5],[55,6,55,8],[55,9,55,12],[55,13,55,17],[55,18,55,20],[55,21,55,23],[56,1,56,2],[56,3,56,5],[56,6,56,8],[56,9,56,12],[56,13,56,17],[56,18,56,20],[56,21,56,23],[57,1,57,4],[57,5,57,12],[57,13,57,16],[57,17,57,23],[58,1,58,4],[58,5,58,12],[58,13,58,16],[58,17,58,23],[4,3,4,5],[4,6,4,8],[4,9,4,12],[4,13,4,17],[4,18,4,20],[4,21,4,23],[0,0,2,23],[3,0,10,0],[3,1,3,2],[3,3,3,5],[3,6,3,8],[3,9,3,12],[3,13,3,17],[3,18,3,20],[3,21,3,23],[4,1,4,2],[7,1,7,4],[7,5,7,12],[7,13,7,16],[7,17,7,23],[8,1,8,8],[8,9,8,16],[8,17,8,23],[5,1,5,4],[5,5,5,12],[5,13,5,16],[5,17,5,23],[6,1,6,4],[6,5,6,12],[6,13,6,16],[6,17,6,23],[9,21,10,21],[9,22,10,23],[10,2,10,6],[10,10,10,14],[11,2,11,6],[11,10,11,14],[11,22,11,23],[9,1,9,8],[9,9,9,16],[9,17,10,17],[9,18,10,18],[9,19,10,19],[9,20,10,20],[12,0,21,0],[12,2,12,6],[12,10,12,14],[12,22,12,23],[13,2,13,6],[13,10,13,14],[13,22,13,23],[14,2,14,6],[14,10,14,14],[14,22,14,23],[17,2,17,6],[17,10,17,14],[17,22,17,23],[18,2,18,6],[18,10,18,14],[18,22,18,23],[15,2,15,6],[15,10,15,14],[15,22,15,23],[16,2,16,6],[16,10,16,14],[16,22,16,23],[21,2,21,6],[21,10,21,14],[21,22,21,23],[22,2,22,6],[22,10,22,14],[22,22,22,23],[19,2,19,6],[19,10,19,14],[19,22,19,23],[20,2,20,6],[20,10,20,14],[20,22,20,23],[29,0,35,0],[29,1,29,16],[29,22,29,23],[30,1,30,8],[30,9,30,16],[30,22,30,23],[31,1,31,8],[26,2,26,6],[26,10,26,14],[26,22,26,23],[27,2,27,6],[27,10,27,14],[27,22,27,23],[23,0,27,0],[23,2,23,6],[23,10,23,14],[23,22,23,23],[24,2,24,6],[24,10,24,14],[24,22,24,23],[25,2,25,6],[25,10,25,14],[25,22,25,23],[31,9,31,16],[31,22,31,23],[32,1,32,8],[32,9,32,16],[32,22,32,23],[33,1,33,8],[33,9,33,16],[33,22,33,23],[28,1,28,6],[28,9,28,14],[28,22,28,23],[36,22,36,23],[37,3,37,4],[37,7,37,8],[37,11,37,12],[37,15,37,16],[37,22,37,23],[34,1,34,8],[34,9,34,16],[34,22,34,23],[35,1,35,16],[35,22,35,23],[36,3,36,4],[36,7,36,8],[36,11,36,12],[36,15,36,16],[39,22,39,23],[40,3,40,4],[40,7,40,8],[40,11,40,12],[40,15,40,16],[40,17,40,21],[40,22,40,23],[38,3,38,4],[38,7,38,8],[38,11,38,12],[38,15,38,16],[38,17,38,23],[39,3,39,4],[39,7,39,8],[39,11,39,12],[39,15,39,16],[39,17,39,21],[42,3,42,4],[42,7,42,8],[42,11,42,12],[42,15,42,16],[42,17,42,21],[42,22,42,23],[41,3,41,4],[41,7,41,8],[41,11,41,12],[41,15,41,16],[41,17,41,21],[41,22,41,23],[50,1,50,23],[44,13,44,14],[44,15,44,16],[44,17,44,21],[45,0,49,0],[45,1,49,16],[45,17,45,21],[46,17,46,21],[47,17,47,21],[48,17,48,21],[49,17,49,21],[44,1,44,2],[44,3,44,4],[44,5,44,6],[44,7,44,8],[44,9,44,10],[44,11,44,12],[36,0,44,0],[43,3,43,4],[43,7,43,8],[43,11,43,12],[43,15,43,16],[43,17,43,21],[43,22,43,23]]}
["Federation of International Bandy\nXXXVIth Bandy World Championship\nUlyanovsk, Russia"]
[]
[]
["Match Info","Match No.",null,"Date",null,null,"Time",null,null,"City",null,null,null,"Stadium",null,null,null,null,"Spectators",null,null,"Temperature"]
[null,{"$f":"RUS!B5","v":4},null,{"$f":"Лицевая!E5","v":"01.12.2018"},null,null,{"$f":"Лицевая!H5","v":"13:02:00"},null,null,{"$f":"VLOOKUP(RUS!J5,Dictionary!A:B,2,FALSE)","v":{"$error":"#N/A"}},null,null,null,{"$f":"VLOOKUP(RUS!N5,Dictionary!A:B,2,FALSE)","v":{"$error":"#N/A"}},null,null,null,null,{"$f":"Лицевая!W5","v":200},null,null,{"$f":"Лицевая!Z5","v":-6}]
[null,"Head Referee",null,null,null,{"$f":"VLOOKUP(Лицевая!F6,Команды!D:E,2,FALSE)","v":0},null,null,null,null,null,null,null,"FIB Commissar",null,null,null,{"$f":"VLOOKUP(RUS!R6,Команды!D:E,2,FALSE)","v":{"$error":"#N/A"}}]
[null,"Assist Referee",null,null,null,{"$f":"VLOOKUP(Лицевая!F7,Команды!D:E,2,FALSE)","v":0},null,null,null,null,null,null,null,"Match Secretary",null,null,null,{"$f":"VLOOKUP(RUS!R7,Команды!D:E,2,FALSE)","v":0}]
[null,"Assist Referee",null,null,null,{"$f":"VLOOKUP(Лицевая!F8,Команды!D:E,2,FALSE)","v":{"$error":"#N/A"}},null,null,null,null,null,null,null,"Match Informator",null,null,null,{"$f":"VLOOKUP(RUS!R8,Команды!D:E,2,FALSE)","v":0}]
[null,"Home Team (H)",null,null,null,null,null,null,null,"Guest Team (G)",null,null,null,null,null,null,null,"Scored Goals"]
[null,{"$f":"VLOOKUP(Лицевая!D10,Dictionary!A:B,2,FALSE)","v":{"$error":"#N/A"}},null,null,null,null,null,null,null,{"$f":"VLOOKUP(Лицевая!W10,Dictionary!A:B,2,FALSE)","v":{"$error":"#N/A"}},null,null,null,null,null,null,null,"Team\nH/G","#","Assist","Time","Form","Score"]
[null,"#","Player",null,null,null,null,"Goal","Pen","#","Player",null,null,null,null,"Goal","Pen"]
["Gk",{"$f":"IF(ISBLANK(Лицевая!A13),\"\",Лицевая!A13)","v":90},{"$f":"IF(B12=\"\",\"\",VLOOKUP(CONCATENATE(Лицевая!D$10,B12),Команды!A:E,5,FALSE))","v":0},null,null,null,null,{"$f":"Лицевая!H13","v":0},{"$f":"Лицевая!J13","v":""},{"$f":"IF(ISBLANK(Лицевая!T13),\"\",Лицевая!T13)","v":1},{"$f":"IF(J12=\"\",\"\",VLOOKUP(CONCATENATE(Лицевая!W$10,J12),Команды!A:E,5,FALSE))","v":0},null,null,null,null,{"$f":"Лицевая!AA13","v":0},{"$f":"Лицевая!AC13","v":""},{"$f":"IF(ISBLANK(Лицевая!M13),\"\",IF(Лицевая!M13=\"А\",\"H\",\"G\"))","v":"H"},{"$f":"IF(ISBLANK(Лицевая!N13),\"\",Лицевая!N13)","v":13},{"$f":"IF(ISBLANK(Лицевая!O13),\"\",Лицевая!O13)","v":4},{"$f":"IF(ISBLANK(Лицевая!Q13),\"\",Лицевая!Q13)","v":1},{"$f":"IF(ISBLANK(Лицевая!R13),\"\",Лицевая!R13)","v":1},{"$f":"Лицевая!P13","v":"1:0"}]
["Starting List",{"$f":"IF(ISBLANK(Лицевая!A14),\"\",Лицевая!A14)","v":8},{"$f":"IF(B13=\"\",\"\",VLOOKUP(CONCATENATE(Лицевая!D$10,B13),Команды!A:E,5,FALSE))","v":0},null,null,null,null,{"$f":"Лицевая!H14","v":1},{"$f":"Лицевая!J14","v":""},{"$f":"IF(ISBLANK(Лицевая!T14),\"\",Лицевая!T14)","v":15},{"$f":"IF(J13=\"\",\"\",VLOOKUP(CONCATENATE(Лицевая!W$10,J13),Команды!A:E,5,FALSE))","v":0},null,null,null,null,{"$f":"Лицевая!AA14","v":0},{"$f":"Лицевая!AC14","v":""},{"$f":"IF(ISBLANK(Лицевая!M14),\"\",IF(Лицевая!M14=\"А\",\"H\",\"G\"))","v":"H"},{"$f":"IF(ISBLANK(Лицевая!N14),\"\",Лицевая!N14)","v":5},{"$f":"IF(ISBLANK(Лицевая!O14),\"\",Лицевая!O14)","v":"-"},{"$f":"IF(ISBLANK(Лицевая!Q14),\"\",Лицевая!Q14)","v":4},{"$f":"IF(ISBLANK(Лицевая!R14),\"\",Лицевая!R14)","v":1},{"$f":"Лицевая!P14","v":"2:0"}]
[null,{"$f":"IF(ISBLANK(Лицевая!A15),\"\",Лицевая!A15)","v":20},{"$f":"IF(B14=\"\",\"\",VLOOKUP(CONCATENATE(Лицевая!D$10,B14),Команды!A:E,5,FALSE))","v":0},null,null,null,null,{"$f":"Лицевая!H15","v":0},{"$f":"Лицевая!J15","v":"10"},{"$f":"IF(ISBLANK(Лицевая!T15),\"\",Лицевая!T15)","v":11},{"$f":"IF(J14=\"\",\"\",VLOOKUP(CONCATENATE(Лицевая!W$10,J14),Команды!A:E,5,FALSE))","v":0},null,null,null,null,{"$f":"Лицевая!AA15","v":0},{"$f":"Лицевая!AC15","v":"20"},{"$f":"IF(ISBLANK(Лицевая!M15),\"\",IF(Лицевая!M15=\"А\",\"H\",\"G\"))","v":"H"},{"$f":"IF(ISBLANK(Лицевая!N15),\"\",Лицевая!N15)","v":6},{"$f":"IF(ISBLANK(Лицевая!O15),\"\",Лицевая!O15)","v":"-"},{"$f":"IF(ISBLANK(Лицевая!Q15),\"\",Лицевая!Q15)","v":33},{"$f":"IF(ISBLANK(Лицевая!R15),\"\",Лицевая!R15)","v":1},{"$f":"Лицевая!P15","v":"3:0"}]
[null,{"$f":"IF(ISBLANK(Лицевая!A16),\"\",Лицевая!A16)","v":12},{"$f":"IF(B15=\"\",\"\",VLOOKUP(CONCATENATE(Лицевая!D$10,B15),Команды!A:E,5,FALSE))","v":0},null,null,null,null,{"$f":"Лицевая!H16","v":0},{"$f":"Лицевая!J16","v":"10"},{"$f":"IF(ISBLANK(Лицевая!T16),\"\",Лицевая!T16)","v":21},{"$f":"IF(J15=\"\",\"\",VLOOKUP(CONCATENATE(Лицевая!W$10,J15),Команды!A:E,5,FALSE))","v":0},null,null,null,null,{"$f":"Лицевая!AA16","v":0},{"$f":"Лицевая!AC16","v":""},{"$f":"IF(ISBLANK(Лицевая!M16),\"\",IF(Лицевая!M16=\"А\",\"H\",\"G\"))","v":"H"},{"$f":"IF(ISBLANK(Лицевая!N16),\"\",Лицевая!N16)","v":4},{"$f":"IF(ISBLANK(Лицевая!O16),\"\",Лицевая!O16)","v":"-"},{"$f":"IF(ISBLANK(Лицевая!Q16),\"\",Лицевая!Q16)","v":41},{"$f":"IF(ISBLANK(Лицевая!R16),\"\",Лицевая!R16)","v":1},{"$f":"Лицевая!P16","v":"4:0"}]
[null,{"$f":"IF(ISBLANK(Лицевая!A17),\"\",Лицевая!A17)","v":18},{"$f":"IF(B16=\"\",\"\",VLOOKUP(CONCATENATE(Лицевая!D$10,B16),Команды!A:E,5,FALSE))","v":0},null,null,null,null,{"$f":"Лицевая!H17","v":0},{"$f":"Лицевая!J17","v":""},{"$f":"IF(ISBLANK(Лицевая!T17),\"\",Лицевая!T17)","v":17},{"$f":"IF(J16=\"\",\"\",VLOOKUP(CONCATENATE(Лицевая!W$10,J16),Команды!A:E,5,FALSE))","v":0},null,null,null,null,{"$f":"Лицевая!AA17","v":0},{"$f":"Лицевая!AC17","v":"5"},{"$f":"IF(ISBLANK(Лицевая!M17),\"\",IF(Лицевая!M17=\"А\",\"H\",\"G\"))","v":"H"},{"$f":"IF(ISBLANK(Лицевая!N17),\"\",Лицевая!N17)","v":8},{"$f":"IF(ISBLANK(Лицевая!O17),\"\",Лицевая!O17)","v":"-"},{"$f":"IF(ISBLANK(Лицевая!Q17),\"\",Лицевая!Q17)","v":55},{"$f":"IF(ISBLANK(Лицевая!R17),\"\",Лицевая!R17)","v":2},{"$f":"Лицевая!P17","v":"5:0"}]
[null,{"$f":"IF(ISBLANK(Лицевая!A18),\"\",Лицевая!A18)","v":17},{"$f":"IF(B17=\"\",\"\",VLOOKUP(CONCATENATE(Лицевая!D$10,B17),Команды!A:E,5,FALSE))","v":0},null,null,null,null,{"$f":"Лицевая!H18","v":2},{"$f":"Лицевая!J18","v":""},{"$f":"IF(ISBLANK(Лицевая!T18),\"\",Лицевая!T18)","v":12},{"$f":"IF(J17=\"\",\"\",VLOOKUP(CONCATENATE(Лицевая!W$10,J17),Команды!A:E,5,FALSE))","v":0},null,null,null,null,{"$f":"Лицевая!AA18","v":0},{"$f":"Лицевая!AC18","v":"10"},{"$f":"IF(ISBLANK(Лицевая!M18),\"\",IF(Лицевая!M18=\"А\",\"H\",\"G\"))","v":"H"},{"$f":"IF(ISBLANK(Лицевая!N18),\"\",Лицевая!N18)","v":5},{"$f":"IF(ISBLANK(Лицевая!O18),\"\",Лицевая!O18)","v":13},{"$f":"IF(ISBLANK(Лицевая!Q18),\"\",Лицевая!Q18)","v":56},{"$f":"IF(ISBLANK(Лицевая!R18),\"\",Лицевая!R18)","v":1},{"$f":"Лицевая!P18","v":"6:0"}]
[null,{"$f":"IF(ISBLANK(Лицевая!A19),\"\",Лицевая!A19)","v":4},{"$f":"IF(B18=\"\",\"\",VLOOKUP(CONCATENATE(Лицевая!D$10,B18),Команды!A:E,5,FALSE))","v":0},null,null,null,null,{"$f":"Лицевая!H19","v":1},{"$f":"Лицевая!J19","v":""},{"$f":"IF(ISBLANK(Лицевая!T19),\"\",Лицевая!T19)","v":7},{"$f":"IF(J18=\"\",\"\",VLOOKUP(CONCATENATE(Лицевая!W$10,J18),Команды!A:E,5,FALSE))","v":0},null,null,null,null,{"$f":"Лицевая!AA19","v":0},{"$f":"Лицевая!AC19","v":""},{"$f":"IF(ISBLANK(Лицевая!M19),\"\",IF(Лицевая!M19=\"А\",\"H\",\"G\"))","v":"H"},{"$f":"IF(ISBLANK(Лицевая!N19),\"\",Лицевая!N19)","v":16},{"$f":"IF(ISBLANK(Лицевая!O19),\"\",Лицевая!O19)","v":"-"},{"$f":"IF(ISBLANK(Лицевая!Q19),\"\",Лицевая!Q19)","v":61},{"$f":"IF(ISBLANK(Лицевая!R19),\"\",Лицевая!R19)","v":1},{"$f":"Лицевая!P19","v":"7:0"}]
[null,{"$f":"IF(ISBLANK(Лицевая!A20),\"\",Лицевая!A20)","v":6},{"$f":"IF(B19=\"\",\"\",VLOOKUP(CONCATENATE(Лицевая!D$10,B19),Команды!A:E,5,FALSE))","v":0},null,null,null,null,{"$f":"Лицевая!H20","v":1},{"$f":"Лицевая!J20","v":"10"},{"$f":"IF(ISBLANK(Лицевая!T20),\"\",Лицевая!T20)","v":13},{"$f":"IF(J19=\"\",\"\",VLOOKUP(CONCATENATE(Лицевая!W$10,J19),Команды!A:E,5,FALSE))","v":0},null,null,null,null,{"$f":"Лицевая!AA20","v":0},{"$f":"Лицевая!AC20","v":""},{"$f":"IF(ISBLANK(Лицевая!M20),\"\",IF(Лицевая!M20=\"А\",\"H\",\"G\"))","v":"H"},{"$f":"IF(ISBLANK(Лицевая!N20),\"\",Лицевая!N20)","v":5},{"$f":"IF(ISBLANK(Лицевая!O20),\"\",Лицевая!O20)","v":13},{"$f":"IF(ISBLANK(Лицевая!Q20),\"\",Лицевая!Q20)","v":72},{"$f":"IF(ISBLANK(Лицевая!R20),\"\",Лицевая!R20)","v":1},{"$f":"Лицевая!P20","v":"8:0"}]
[null,{"$f":"IF(ISBLANK(Лицевая!A21),\"\",Лицевая!A21)","v":10},{"$f":"IF(B20=\"\",\"\",VLOOKUP(CONCATENATE(Лицевая!D$10,B20),Команды!A:E,5,FALSE))","v":0},null,null,null,null,{"$f":"Лицевая!H21","v":0},{"$f":"Лицевая!J21","v":""},{"$f":"IF(ISBLANK(Лицевая!T21),\"\",Лицевая!T21)","v":5},{"$f":"IF(J20=\"\",\"\",VLOOKUP(CONCATENATE(Лицевая!W$10,J20),Команды!A:E,5,FALSE))","v":0},null,null,null,null,{"$f":"Лицевая!AA21","v":0},{"$f":"Лицевая!AC21","v":""},{"$f":"IF(ISBLANK(Лицевая!M21),\"\",IF(Лицевая!M21=\"А\",\"H\",\"G\"))","v":"H"},{"$f":"IF(ISBLANK(Лицевая!N21),\"\",Лицевая!N21)","v":17},{"$f":"IF(ISBLANK(Лицевая!O21),\"\",Лицевая!O21)","v":12},{"$f":"IF(ISBLANK(Лицевая!Q21),\"\",Лицевая!Q21)","v":74},{"$f":"IF(ISBLANK(Лицевая!R21),\"\",Лицевая!R21)","v":4},{"$f":"Лицевая!P21","v":"9:0"}]
[null,{"$f":"IF(ISBLANK(Лицевая!A22),\"\",Лицевая!A22)","v":13},{"$f":"IF(B21=\"\",\"\",VLOOKUP(CONCATENATE(Лицевая!D$10,B21),Команды!A:E,5,FALSE))","v":0},null,null,null,null,{"$f":"Лицевая!H22","v":1},{"$f":"Лицевая!J22","v":""},{"$f":"IF(ISBLANK(Лицевая!T22),\"\",Лицевая!T22)","v":10},{"$f":"IF(J21=\"\",\"\",VLOOKUP(CONCATENATE(Лицевая!W$10,J21),Команды!A:E,5,FALSE))","v":0},null,null,null,null,{"$f":"Лицевая!AA22","v":0},{"$f":"Лицевая!AC22","v":""},{"$f":"IF(ISBLANK(Лицевая!M22),\"\",IF(Лицевая!M22=\"А\",\"H\",\"G\"))","v":"H"},{"$f":"IF(ISBLANK(Лицевая!N22),\"\",Лицевая!N22)","v":17},{"$f":"IF(ISBLANK(Лицевая!O22),\"\",Лицевая!O22)","v":"-"},{"$f":"IF(ISBLANK(Лицевая!Q22),\"\",Лицевая!Q22)","v":90},{"$f":"IF(ISBLANK(Лицевая!R22),\"\",Лицевая!R22)","v":1},{"$f":"Лицевая!P22","v":"10:0"}]
[null,{"$f":"IF(ISBLANK(Лицевая!A23),\"\",Лицевая!A23)","v":5},{"$f":"IF(B22=\"\",\"\",VLOOKUP(CONCATENATE(Лицевая!D$10,B22),Команды!A:E,5,FALSE))","v":0},null,null,null,null,{"$f":"Лицевая!H23","v":3},{"$f":"Лицевая!J23","v":""},{"$f":"IF(ISBLANK(Лицевая!T23),\"\",Лицевая!T23)","v":19},{"$f":"IF(J22=\"\",\"\",VLOOKUP(CONCATENATE(Лицевая!W$10,J22),Команды!A:E,5,FALSE))","v":0},null,null,null,null,{"$f":"Лицевая!AA23","v":0},{"$f":"Лицевая!AC23","v":""},{"$f":"IF(ISBLANK(Лицевая!M23),\"\",IF(Лицевая!M23=\"А\",\"H\",\"G\"))","v":""},{"$f":"IF(ISBLANK(Лицевая!N23),\"\",Лицевая!N23)","v":""},{"$f":"IF(ISBLANK(Лицевая!O23),\"\",Лицевая!O23)","v":""},{"$f":"IF(ISBLANK(Лицевая!Q23),\"\",Лицевая!Q23)","v":""},{"$f":"IF(ISBLANK(Лицевая!R23),\"\",Лицевая!R23)","v":""},{"$f":"Лицевая!P23","v":""}]
["Gk",{"$f":"IF(ISBLANK(Лицевая!A24),\"\",Лицевая!A24)","v":21},{"$f":"IF(B23=\"\",\"\",VLOOKUP(CONCATENATE(Лицевая!D$10,B23),Команды!A:E,5,FALSE))","v":0},null,null,null,null,{"$f":"Лицевая!H24","v":0},{"$f":"Лицевая!J24","v":""},{"$f":"IF(ISBLANK(Лицевая!T24),\"\",Лицевая!T24)","v":30},{"$f":"IF(J23=\"\",\"\",VLOOKUP(CONCATENATE(Лицевая!W$10,J23),Команды!A:E,5,FALSE))","v":0},null,null,null,null,{"$f":"Лицевая!AA24","v":0},{"$f":"Лицевая!AC24","v":""},{"$f":"IF(ISBLANK(Лицевая!M24),\"\",IF(Лицевая!M24=\"А\",\"H\",\"G\"))","v":""},{"$f":"IF(ISBLANK(Лицевая!N24),\"\",Лицевая!N24)","v":""},{"$f":"IF(ISBLANK(Лицевая!O24),\"\",Лицевая!O24)","v":""},{"$f":"IF(ISBLANK(Лицевая!Q24),\"\",Лицевая!Q24)","v":""},{"$f":"IF(ISBLANK(Лицевая!R24),\"\",Лицевая!R24)","v":""},{"$f":"Лицевая!P24","v":""}]
["Reserve",{"$f":"IF(ISBLANK(Лицевая!A25),\"\",Лицевая!A25)","v":3},{"$f":"IF(B24=\"\",\"\",VLOOKUP(CONCATENATE(Лицевая!D$10,B24),Команды!A:E,5,FALSE))","v":0},null,null,null,null,{"$f":"Лицевая!H25","v":0},{"$f":"Лицевая!J25","v":""},{"$f":"IF(ISBLANK(Лицевая!T25),\"\",Лицевая!T25)","v":8},{"$f":"IF(J24=\"\",\"\",VLOOKUP(CONCATENATE(Лицевая!W$10,J24),Команды!A:E,5,FALSE))","v":0},null,null,null,null,{"$f":"Лицевая!AA25","v":0},{"$f":"Лицевая!AC25","v":""},{"$f":"IF(ISBLANK(Лицевая!M25),\"\",IF(Лицевая!M25=\"А\",\"H\",\"G\"))","v":""},{"$f":"IF(ISBLANK(Лицевая!N25),\"\",Лицевая!N25)","v":""},{"$f":"IF(ISBLANK(Лицевая!O25),\"\",Лицевая!O25)","v":""},{"$f":"IF(ISBLANK(Лицевая!Q25),\"\",Лицевая!Q25)","v":""},{"$f":"IF(ISBLANK(Лицевая!R25),\"\",Лицевая!R25)","v":""},{"$f":"Лицевая!P25","v":""}]
[null,{"$f":"IF(ISBLANK(Лицевая!A26),\"\",Лицевая!A26)","v":15},{"$f":"IF(B25=\"\",\"\",VLOOKUP(CONCATENATE(Лицевая!D$10,B25),Команды!A:E,5,FALSE))","v":0},null,null,null,null,{"$f":"Лицевая!H26","v":0},{"$f":"Лицевая!J26","v":""},{"$f":"IF(ISBLANK(Лицевая!T26),\"\",Лицевая!T26)","v":9},{"$f":"IF(J25=\"\",\"\",VLOOKUP(CONCATENATE(Лицевая!W$10,J25),Команды!A:E,5,FALSE))","v":0},null,null,null,null,{"$f":"Лицевая!AA26","v":0},{"$f":"Лицевая!AC26","v":""},{"$f":"IF(ISBLANK(Лицевая!M26),\"\",IF(Лицевая!M26=\"А\",\"H\",\"G\"))","v":""},{"$f":"IF(ISBLANK(Лицевая!N26),\"\",Лицевая!N26)","v":""},{"$f":"IF(ISBLANK(Лицевая!O26),\"\",Лицевая!O26)","v":""},{"$f":"IF(ISBLANK(Лицевая!Q26),\"\",Лицевая!Q26)","v":""},{"$f":"IF(ISBLANK(Лицевая!R26),\"\",Лицевая!R26)","v":""},{"$f":"Лицевая!P26","v":""}]
[null,{"$f":"IF(ISBLANK(Лицевая!A27),\"\",Лицевая!A27)","v":19},{"$f":"IF(B26=\"\",\"\",VLOOKUP(CONCATENATE(Лицевая!D$10,B26),Команды!A:E,5,FALSE))","v":0},null,null,null,null,{"$f":"Лицевая!H27","v":0},{"$f":"Лицевая!J27","v":""},{"$f":"IF(ISBLANK(Лицевая!T27),\"\",Лицевая!T27)","v":16},{"$f":"IF(J26=\"\",\"\",VLOOKUP(CONCATENATE(Лицевая!W$10,J26),Команды!A:E,5,FALSE))","v":0},null,null,null,null,{"$f":"Лицевая!AA27","v":0},{"$f":"Лицевая!AC27","v":""},{"$f":"IF(ISBLANK(Лицевая!M27),\"\",IF(Лицевая!M27=\"А\",\"H\",\"G\"))","v":""},{"$f":"IF(ISBLANK(Лицевая!N27),\"\",Лицевая!N27)","v":""},{"$f":"IF(ISBLANK(Лицевая!O27),\"\",Лицевая!O27)","v":""},{"$f":"IF(ISBLANK(Лицевая!Q27),\"\",Лицевая!Q27)","v":""},{"$f":"IF(ISBLANK(Лицевая!R27),\"\",Лицевая!R27)","v":""},{"$f":"Лицевая!P27","v":""}]
[null,{"$f":"IF(ISBLANK(Лицевая!A28),\"\",Лицевая!A28)","v":14},{"$f":"IF(B27=\"\",\"\",VLOOKUP(CONCATENATE(Лицевая!D$10,B27),Команды!A:E,5,FALSE))","v":0},null,null,null,null,{"$f":"Лицевая!H28","v":0},{"$f":"Лицевая!J28","v":""},{"$f":"IF(ISBLANK(Лицевая!T28),\"\",Лицевая!T28)","v":3},{"$f":"IF(J27=\"\",\"\",VLOOKUP(CONCATENATE(Лицевая!W$10,J27),Команды!A:E,5,FALSE))","v":0},null,null,null,null,{"$f":"Лицевая!AA28","v":0},{"$f":"Лицевая!AC28","v":""},{"$f":"IF(ISBLANK(Лицевая!M28),\"\",IF(Лицевая!M28=\"А\",\"H\",\"G\"))","v":""},{"$f":"IF(ISBLANK(Лицевая!N28),\"\",Лицевая!N28)","v":""},{"$f":"IF(ISBLANK(Лицевая!O28),\"\",Лицевая!O28)","v":""},{"$f":"IF(ISBLANK(Лицевая!Q28),\"\",Лицевая!Q28)","v":""},{"$f":"IF(ISBLANK(Лицевая!R28),\"\",Лицевая!R28)","v":""},{"$f":"Лицевая!P28","v":""}]
[null,{"$f":"IF(ISBLANK(Лицевая!A29),\"\",Лицевая!A29)","v":16},{"$f":"IF(B28=\"\",\"\",VLOOKUP(CONCATENATE(Лицевая!D$10,B28),Команды!A:E,5,FALSE))","v":0},null,null,null,null,{"$f":"Лицевая!H29","v":1},{"$f":"Лицевая!J29","v":""},{"$f":"IF(ISBLANK(Лицевая!T29),\"\",Лицевая!T29)","v":14},{"$f":"IF(J28=\"\",\"\",VLOOKUP(CONCATENATE(Лицевая!W$10,J28),Команды!A:E,5,FALSE))","v":0},null,null,null,null,{"$f":"Лицевая!AA29","v":0},{"$f":"Лицевая!AC29","v":""},{"$f":"IF(ISBLANK(Лицевая!M29),\"\",IF(Лицевая!M29=\"А\",\"H\",\"G\"))","v":""},{"$f":"IF(ISBLANK(Лицевая!N29),\"\",Лицевая!N29)","v":""},{"$f":"IF(ISBLANK(Лицевая!O29),\"\",Лицевая!O29)","v":""},{"$f":"IF(ISBLANK(Лицевая!Q29),\"\",Лицевая!Q29)","v":""},{"$f":"IF(ISBLANK(Лицевая!R29),\"\",Лицевая!R29)","v":""},{"$f":"Лицевая!P29","v":""}]
[null,"Own goals G-team / Team penalty",null,null,null,null,null,{"$f":"Лицевая!H33","v":""},{"$f":"Лицевая!J33","v":""},"Own goals H-team / Team penalty",null,null,null,null,null,{"$f":"Лицевая!AA33","v":""},{"$f":"Лицевая!AC33","v":""},{"$f":"IF(ISBLANK(Лицевая!M30),\"\",IF(Лицевая!M30=\"А\",\"H\",\"G\"))","v":""},{"$f":"IF(ISBLANK(Лицевая!N30),\"\",Лицевая!N30)","v":""},{"$f":"IF(ISBLANK(Лицевая!O30),\"\",Лицевая!O30)","v":""},{"$f":"IF(ISBLANK(Лицевая!Q30),\"\",Лицевая!Q30)","v":""},{"$f":"IF(ISBLANK(Лицевая!R30),\"\",Лицевая!R30)","v":""},{"$f":"Лицевая!P30","v":""}]
["Coaches / Trainers / Assist","Coaches / Trainers / Assist",null,null,null,null,null,null,null,null,null,null,null,null,null,null,null,{"$f":"IF(ISBLANK(Лицевая!M31),\"\",IF(Лицевая!M31=\"А\",\"H\",\"G\"))","v":""},{"$f":"IF(ISBLANK(Лицевая!N31),\"\",Лицевая!N31)","v":""},{"$f":"IF(ISBLANK(Лицевая!O31),\"\",Лицевая!O31)","v":""},{"$f":"IF(ISBLANK(Лицевая!Q31),\"\",Лицевая!Q31)","v":""},{"$f":"IF(ISBLANK(Лицевая!R31),\"\",Лицевая!R31)","v":""},{"$f":"Лицевая!P31","v":""}]
[null,{"$f":"VLOOKUP(CONCATENATE(Лицевая!D$10,\"901\"),Команды!A:E,5,FALSE)","v":0},null,null,null,null,null,null,null,{"$f":"VLOOKUP(CONCATENATE(Лицевая!W$10,\"901\"),Команды!A:E,5,FALSE)","v":0},null,null,null,null,null,null,null,{"$f":"IF(ISBLANK(Лицевая!M32),\"\",IF(Лицевая!M32=\"А\",\"H\",\"G\"))","v":""},{"$f":"IF(ISBLANK(Лицевая!N32),\"\",Лицевая!N32)","v":""},{"$f":"IF(ISBLANK(Лицевая!O32),\"\",Лицевая!O32)","v":""},{"$f":"IF(ISBLANK(Лицевая!Q32),\"\",Лицевая!Q32)","v":""},{"$f":"IF(ISBLANK(Лицевая!R32),\"\",Лицевая!R32)","v":""},{"$f":"Лицевая!P32","v":""}]
[null,{"$f":"VLOOKUP(CONCATENATE(Лицевая!D$10,\"902\"),Команды!A:E,5,FALSE)","v":{"$error":"#N/A"}},null,null,null,null,null,null,null,{"$f":"VLOOKUP(CONCATENATE(Лицевая!W$10,\"902\"),Команды!A:E,5,FALSE)","v":{"$error":"#N/A"}},null,null,null,null,null,null,null,{"$f":"IF(ISBLANK(Лицевая!M33),\"\",IF(Лицевая!M33=\"А\",\"H\",\"G\"))","v":""},{"$f":"IF(ISBLANK(Лицевая!N33),\"\",Лицевая!N33)","v":""},{"$f":"IF(ISBLANK(Лицевая!O33),\"\",Лицевая!O33)","v":""},{"$f":"IF(ISBLANK(Лицевая!Q33),\"\",Лицевая!Q33)","v":""},{"$f":"IF(ISBLANK(Лицевая!R33),\"\",Лицевая!R33)","v":""},{"$f":"Лицевая!P33","v":""}]
[null,{"$f":"VLOOKUP(CONCATENATE(Лицевая!D$10,\"903\"),Команды!A:E,5,FALSE)","v":{"$error":"#N/A"}},null,null,null,null,null,null,null,{"$f":"VLOOKUP(CONCATENATE(Лицевая!W$10,\"903\"),Команды!A:E,5,FALSE)","v":{"$error":"#N/A"}},null,null,null,null,null,null,null,{"$f":"IF(ISBLANK(Лицевая!M34),\"\",IF(Лицевая!M34=\"А\",\"H\",\"G\"))","v":""},{"$f":"IF(ISBLANK(Лицевая!N34),\"\",Лицевая!N34)","v":""},{"$f":"IF(ISBLANK(Лицевая!O34),\"\",Лицевая!O34)","v":""},{"$f":"IF(ISBLANK(Лицевая!Q34),\"\",Лицевая!Q34)","v":""},{"$f":"IF(ISBLANK(Лицевая!R34),\"\",Лицевая!R34)","v":""},{"$f":"Лицевая!P34","v":""}]
[null,{"$f":"VLOOKUP(CONCATENATE(Лицевая!D$10,\"904\"),Команды!A:E,5,FALSE)","v":{"$error":"#N/A"}},null,null,null,null,null,null,null,{"$f":"VLOOKUP(CONCATENATE(Лицевая!W$10,\"904\"),Команды!A:E,5,FALSE)","v":{"$error":"#N/A"}},null,null,null,null,null,null,null,{"$f":"IF(ISBLANK(Лицевая!M35),\"\",IF(Лицевая!M35=\"А\",\"H\",\"G\"))","v":""},{"$f":"IF(ISBLANK(Лицевая!N35),\"\",Лицевая!N35)","v":""},{"$f":"IF(ISBLANK(Лицевая!O35),\"\",Лицевая!O35)","v":""},{"$f":"IF(ISBLANK(Лицевая!Q35),\"\",Лицевая!Q35)","v":""},{"$f":"IF(ISBLANK(Лицевая!R35),\"\",Лицевая!R35)","v":""},{"$f":"Лицевая!P35","v":""}]
[null,{"$f":"VLOOKUP(CONCATENATE(Лицевая!D$10,\"905\"),Команды!A:E,5,FALSE)","v":{"$error":"#N/A"}},null,null,null,null,null,null,null,{"$f":"VLOOKUP(CONCATENATE(Лицевая!W$10,\"905\"),Команды!A:E,5,FALSE)","v":{"$error":"#N/A"}},null,null,null,null,null,null,null,{"$f":"IF(ISBLANK(Лицевая!M36),\"\",IF(Лицевая!M36=\"А\",\"H\",\"G\"))","v":""},{"$f":"IF(ISBLANK(Лицевая!N36),\"\",Лицевая!N36)","v":""},{"$f":"IF(ISBLANK(Лицевая!O36),\"\",Лицевая!O36)","v":""},{"$f":"IF(ISBLANK(Лицевая!Q36),\"\",Лицевая!Q36)","v":""},{"$f":"IF(ISBLANK(Лицевая!R36),\"\",Лицевая!R36)","v":""},{"$f":"Лицевая!P36","v":""}]
[null,"Penalties",null,null,null,null,null,null,null,null,null,null,null,null,null,null,null,{"$f":"IF(ISBLANK(Лицевая!M37),\"\",IF(Лицевая!M37=\"А\",\"H\",\"G\"))","v":""},{"$f":"IF(ISBLANK(Лицевая!N37),\"\",Лицевая!N37)","v":""},{"$f":"IF(ISBLANK(Лицевая!O37),\"\",Лицевая!O37)","v":""},{"$f":"IF(ISBLANK(Лицевая!Q37),\"\",Лицевая!Q37)","v":""},{"$f":"IF(ISBLANK(Лицевая!R37),\"\",Лицевая!R37)","v":""},{"$f":"Лицевая!P37","v":""}]
["Penalties","#","Min","Fault",null,"#","Min","Fault",null,"#","Min","Fault",null,"#","Min","Fault",null,{"$f":"IF(ISBLANK(Лицевая!M38),\"\",IF(Лицевая!M38=\"А\",\"H\",\"G\"))","v":""},{"$f":"IF(ISBLANK(Лицевая!N38),\"\",Лицевая!N38)","v":""},{"$f":"IF(ISBLANK(Лицевая!O38),\"\",Лицевая!O38)","v":""},{"$f":"IF(ISBLANK(Лицевая!Q38),\"\",Лицевая!Q38)","v":""},{"$f":"IF(ISBLANK(Лицевая!R38),\"\",Лицевая!R38)","v":""},{"$f":"Лицевая!P38","v":""}]
[null,{"$f":"IF(ISBLANK(Лицевая!B35),\"\",Лицевая!B35)","v":12},{"$f":"IF(ISBLANK(Лицевая!C35),\"\",Лицевая!C35)","v":16},{"$f":"IF(ISBLANK(Лицевая!E35),\"\",Лицевая!E35)","v":10},null,{"$f":"IF(ISBLANK(Лицевая!G35),\"\",Лицевая!G35)","v":""},{"$f":"IF(ISBLANK(Лицевая!H35),\"\",Лицевая!H35)","v":""},{"$f":"IF(ISBLANK(Лицевая!J35),\"\",Лицевая!J35)","v":""},null,{"$f":"IF(ISBLANK(Лицевая!T35),\"\",Лицевая!T35)","v":12},{"$f":"IF(ISBLANK(Лицевая!U35),\"\",Лицевая!U35)","v":25},{"$f":"IF(ISBLANK(Лицевая!W35),\"\",Лицевая!W35)","v":9},null,{"$f":"IF(ISBLANK(Лицевая!Y35),\"\",Лицевая!Y35)","v":""},{"$f":"IF(ISBLANK(Лицевая!Z35),\"\",Лицевая!Z35)","v":""},{"$f":"IF(ISBLANK(Лицевая!AB35),\"\",Лицевая!AB35)","v":""},null,{"$f":"IF(ISBLANK(Лицевая!M39),\"\",IF(Лицевая!M39=\"А\",\"H\",\"G\"))","v":""},{"$f":"IF(ISBLANK(Лицевая!N39),\"\",Лицевая!N39)","v":""},{"$f":"IF(ISBLANK(Лицевая!O39),\"\",Лицевая!O39)","v":""},{"$f":"IF(ISBLANK(Лицевая!Q39),\"\",Лицевая!Q39)","v":""},{"$f":"IF(ISBLANK(Лицевая!R39),\"\",Лицевая!R39)","v":""},{"$f":"Лицевая!P39","v":""}]
[null,{"$f":"IF(ISBLANK(Лицевая!B36),\"\",Лицевая!B36)","v":6},{"$f":"IF(ISBLANK(Лицевая!C36),\"\",Лицевая!C36)","v":60},{"$f":"IF(ISBLANK(Лицевая!E36),\"\",Лицевая!E36)","v":9},null,{"$f":"IF(ISBLANK(Лицевая!G36),\"\",Лицевая!G36)","v":""},{"$f":"IF(ISBLANK(Лицевая!H36),\"\",Лицевая!H36)","v":""},{"$f":"IF(ISBLANK(Лицевая!J36),\"\",Лицевая!J36)","v":""},null,{"$f":"IF(ISBLANK(Лицевая!T36),\"\",Лицевая!T36)","v":17},{"$f":"IF(ISBLANK(Лицевая!U36),\"\",Лицевая!U36)","v":37},{"$f":"IF(ISBLANK(Лицевая!W36),\"\",Лицевая!W36)","v":2},null,{"$f":"IF(ISBLANK(Лицевая!Y36),\"\",Лицевая!Y36)","v":""},{"$f":"IF(ISBLANK(Лицевая!Z36),\"\",Лицевая!Z36)","v":""},{"$f":"IF(ISBLANK(Лицевая!AB36),\"\",Лицевая!AB36)","v":""},null,"Game Result"]
[null,{"$f":"IF(ISBLANK(Лицевая!B37),\"\",Лицевая!B37)","v":20},{"$f":"IF(ISBLANK(Лицевая!C37),\"\",Лицевая!C37)","v":74},{"$f":"IF(ISBLANK(Лицевая!E37),\"\",Лицевая!E37)","v":9},null,{"$f":"IF(ISBLANK(Лицевая!G37),\"\",Лицевая!G37)","v":""},{"$f":"IF(ISBLANK(Лицевая!H37),\"\",Лицевая!H37)","v":""},{"$f":"IF(ISBLANK(Лицевая!J37),\"\",Лицевая!J37)","v":""},null,{"$f":"IF(ISBLANK(Лицевая!T37),\"\",Лицевая!T37)","v":11},{"$f":"IF(ISBLANK(Лицевая!U37),\"\",Лицевая!U37)","v":39},{"$f":"IF(ISBLANK(Лицевая!W37),\"\",Лицевая!W37)","v":9},null,{"$f":"IF(ISBLANK(Лицевая!Y37),\"\",Лицевая!Y37)","v":""},{"$f":"IF(ISBLANK(Лицевая!Z37),\"\",Лицевая!Z37)","v":""},{"$f":"IF(ISBLANK(Лицевая!AB37),\"\",Лицевая!AB37)","v":""},null,"I Time",null,null,null,null,{"$f":"RUS!W40","v":"4:0"}]
[null,{"$f":"IF(ISBLANK(Лицевая!B38),\"\",Лицевая!B38)","v":""},{"$f":"IF(ISBLANK(Лицевая!C38),\"\",Лицевая!C38)","v":""},{"$f":"IF(ISBLANK(Лицевая!E38),\"\",Лицевая!E38)","v":""},null,{"$f":"IF(ISBLANK(Лицевая!G38),\"\",Лицевая!G38)","v":""},{"$f":"IF(ISBLANK(Лицевая!H38),\"\",Лицевая!H38)","v":""},{"$f":"IF(ISBLANK(Лицевая!J38),\"\",Лицевая!J38)","v":""},null,{"$f":"IF(ISBLANK(Лицевая!T38),\"\",Лицевая!T38)","v":11},{"$f":"IF(ISBLANK(Лицевая!U38),\"\",Лицевая!U38)","v":54},{"$f":"IF(ISBLANK(Лицевая!W38),\"\",Лицевая!W38)","v":9},null,{"$f":"IF(ISBLANK(Лицевая!Y38),\"\",Лицевая!Y38)","v":""},{"$f":"IF(ISBLANK(Лицевая!Z38),\"\",Лицевая!Z38)","v":""},{"$f":"IF(ISBLANK(Лицевая!AB38),\"\",Лицевая!AB38)","v":""},null,"II Time",null,null,null,null,{"$f":"RUS!W41","v":"6:0"}]
[null,{"$f":"IF(ISBLANK(Лицевая!B39),\"\",Лицевая!B39)","v":""},{"$f":"IF(ISBLANK(Лицевая!C39),\"\",Лицевая!C39)","v":""},{"$f":"IF(ISBLANK(Лицевая!E39),\"\",Лицевая!E39)","v":""},null,{"$f":"IF(ISBLANK(Лицевая!G39),\"\",Лицевая!G39)","v":""},{"$f":"IF(ISBLANK(Лицевая!H39),\"\",Лицевая!H39)","v":""},{"$f":"IF(ISBLANK(Лицевая!J39),\"\",Лицевая!J39)","v":""},null,{"$f":"IF(ISBLANK(Лицевая!T39),\"\",Лицевая!T39)","v":""},{"$f":"IF(ISBLANK(Лицевая!U39),\"\",Лицевая!U39)","v":""},{"$f":"IF(ISBLANK(Лицевая!W39),\"\",Лицевая!W39)","v":""},null,{"$f":"IF(ISBLANK(Лицевая!Y39),\"\",Лицевая!Y39)","v":""},{"$f":"IF(ISBLANK(Лицевая!Z39),\"\",Лицевая!Z39)","v":""},{"$f":"IF(ISBLANK(Лицевая!AB39),\"\",Лицевая!AB39)","v":""},null,"Overtime",null,null,null,null,{"$f":"RUS!W42","v":"0:0"}]
[null,{"$f":"IF(ISBLANK(Лицевая!B40),\"\",Лицевая!B40)","v":""},{"$f":"IF(ISBLANK(Лицевая!C40),\"\",Лицевая!C40)","v":""},{"$f":"IF(ISBLANK(Лицевая!E40),\"\",Лицевая!E40)","v":""},null,{"$f":"IF(ISBLANK(Лицевая!G40),\"\",Лицевая!G40)","v":""},{"$f":"IF(ISBLANK(Лицевая!H40),\"\",Лицевая!H40)","v":""},{"$f":"IF(ISBLANK(Лицевая!J40),\"\",Лицевая!J40)","v":""},null,{"$f":"IF(ISBLANK(Лицевая!T40),\"\",Лицевая!T40)","v":""},{"$f":"IF(ISBLANK(Лицевая!U40),\"\",Лицевая!U40)","v":""},{"$f":"IF(ISBLANK(Лицевая!W40),\"\",Лицевая!W40)","v":""},null,{"$f":"IF(ISBLANK(Лицевая!Y40),\"\",Лицевая!Y40)","v":""},{"$f":"IF(ISBLANK(Лицевая!Z40),\"\",Лицевая!Z40)","v":""},{"$f":"IF(ISBLANK(Лицевая!AB40),\"\",Лицевая!AB40)","v":""},null,"Penalty Stroke",null,null,null,null,{"$f":"RUS!W43","v":"-"}]
[null,{"$f":"IF(ISBLANK(Лицевая!B41),\"\",Лицевая!B41)","v":""},{"$f":"IF(ISBLANK(Лицевая!C41),\"\",Лицевая!C41)","v":""},{"$f":"IF(ISBLANK(Лицевая!E41),\"\",Лицевая!E41)","v":""},null,{"$f":"IF(ISBLANK(Лицевая!G41),\"\",Лицевая!G41)","v":""},{"$f":"IF(ISBLANK(Лицевая!H41),\"\",Лицевая!H41)","v":""},{"$f":"IF(ISBLANK(Лицевая!J41),\"\",Лицевая!J41)","v":""},null,{"$f":"IF(ISBLANK(Лицевая!T41),\"\",Лицевая!T41)","v":""},{"$f":"IF(ISBLANK(Лицевая!U41),\"\",Лицевая!U41)","v":""},{"$f":"IF(ISBLANK(Лицевая!W41),\"\",Лицевая!W41)","v":""},null,{"$f":"IF(ISBLANK(Лицевая!Y41),\"\",Лицевая!Y41)","v":""},{"$f":"IF(ISBLANK(Лицевая!Z41),\"\",Лицевая!Z41)","v":""},{"$f":"IF(ISBLANK(Лицевая!AB41),\"\",Лицевая!AB41)","v":""},null,"Result",null,null,null,null,{"$f":"RUS!W44","v":"10:0"}]
[null,"Team Warning",null,{"$f":"Лицевая!I33","v":"-"},null,"Summary",null,{"$f":"Лицевая!J42","v":"30"},null,"Team Warning",null,{"$f":"Лицевая!AB33","v":"-"},null,"Summary",null,{"$f":"Лицевая!AB42","v":"35"},null,"Teams",null,null,null,null,"H","G"]
["Comments"," Team G, timeout (74:51). Extra time - 01:00 (75:19).",null,null,null,null,null,null,null,null,null,null,null,null,null,null,null,"Playing Goal",null,null,null,null,{"$f":"RUS!W46","v":8},{"$f":"RUS!X46","v":0}]
[null,null,null,null,null,null,null,null,null,null,null,null,null,null,null,null,null,"Penalty Stroke",null,null,null,null,{"$f":"RUS!W47","v":1},{"$f":"RUS!X47","v":0}]
[null,null,null,null,null,null,null,null,null,null,null,null,null,null,null,null,null,"Corner Stroke",null,null,null,null,{"$f":"RUS!W48","v":0},{"$f":"RUS!X48","v":0}]
[null,null,null,null,null,null,null,null,null,null,null,null,null,null,null,null,null,"Free Stroke",null,null,null,null,{"$f":"RUS!W49","v":1},{"$f":"RUS!X49","v":0}]
[null,null,null,null,null,null,null,null,null,null,null,null,null,null,null,null,null,"Own Goals",null,null,null,null,{"$f":"RUS!W50","v":0},{"$f":"RUS!X50","v":0}]
[null,"Head Referee Sign"]
[]
["Federation of International Bandy\nXXXVIth Bandy World Championship\nUlyanovsk, Russia"]
[]
[]
["Match Info","Match No.",null,"Date",null,null,"Time",null,null,"City",null,null,null,"Stadium",null,null,null,null,"Spectators",null,null,"Temperature"]
[null,{"$f":"RUS!B57","v":4},null,{"$f":"Лицевая!E57","v":"01.12.2018"},null,null,{"$f":"Лицевая!H57","v":"13:02:00"},null,null,"KHABAROVSK",null,null,null,"ARENA EROFEY",null,null,null,null,{"$f":"Лицевая!W57","v":200}]
[null,"Head Referee",null,null,null,{"$f":"F6","v":0},null,null,null,null,null,null,null,"FIB Commissar",null,null,null,{"$f":"R6","v":{"$error":"#N/A"}}]
[null,"Assist Referee",null,null,null,{"$f":"F7","v":0},null,null,null,null,null,null,null,"Match Secretary",null,null,null,{"$f":"R7","v":0}]
[null,"Assist Referee",null,null,null,{"$f":"F8","v":{"$error":"#N/A"}},null,null,null,null,null,null,null,"Match Informator",null,null,null,{"$f":"R8","v":0}]
[null,"Home Team (H)",null,null,null,null,null,null,null,"Guest Team (G)",null,null,null,null,null,null,null,"Scored Goals"]
[null,{"$f":"VLOOKUP(Лицевая!D62,Dictionary!A:B,2,FALSE)","v":{"$error":"#N/A"}},null,null,null,null,null,null,null,{"$f":"VLOOKUP(Лицевая!W62,Dictionary!A:B,2,FALSE)","v":{"$error":"#N/A"}},null,null,null,null,null,null,null,"Team\nH/G","#","Assist","Time","Form","Score"]
[null,"#","Player",null,null,null,null,"Goal","Pen","#","Player",null,null,null,null,"Goal","Pen"]
["Gk",{"$f":"IF(ISBLANK(Лицевая!A65),\"\",Лицевая!A65)","v":90},{"$f":"IF(B64=\"\",\"\",VLOOKUP(CONCATENATE(Лицевая!D$10,B64),Команды!A:E,5,FALSE))","v":0},null,null,null,null,{"$f":"Лицевая!H65","v":0},{"$f":"Лицевая!J65","v":0},{"$f":"IF(ISBLANK(Лицевая!T65),\"\",Лицевая!T65)","v":1},{"$f":"IF(J64=\"\",\"\",VLOOKUP(CONCATENATE(Лицевая!W$10,J64),Команды!A:E,5,FALSE))","v":0},null,null,null,null,{"$f":"Лицевая!AA65","v":0},{"$f":"Лицевая!AC65","v":0},{"$f":"IF(ISBLANK(Лицевая!M65),\"\",IF(Лицевая!M65=\"А\",\"H\",\"G\"))","v":""},{"$f":"IF(ISBLANK(Лицевая!N65),\"\",Лицевая!N65)","v":""},{"$f":"IF(ISBLANK(Лицевая!O65),\"\",Лицевая!O65)","v":""},{"$f":"IF(ISBLANK(Лицевая!Q65),\"\",Лицевая!Q65)","v":""},{"$f":"IF(ISBLANK(Лицевая!R65),\"\",Лицевая!R65)","v":""},{"$f":"Лицевая!P65","v":""}]
["Starting List",{"$f":"IF(ISBLANK(Лицевая!A66),\"\",Лицевая!A66)","v":8},{"$f":"IF(B65=\"\",\"\",VLOOKUP(CONCATENATE(Лицевая!D$10,B65),Команды!A:E,5,FALSE))","v":0},null,null,null,null,{"$f":"Лицевая!H66","v":0},{"$f":"Лицевая!J66","v":0},{"$f":"IF(ISBLANK(Лицевая!T66),\"\",Лицевая!T66)","v":15},{"$f":"IF(J65=\"\",\"\",VLOOKUP(CONCATENATE(Лицевая!W$10,J65),Команды!A:E,5,FALSE))","v":0},null,null,null,null,{"$f":"Лицевая!AA66","v":0},{"$f":"Лицевая!AC66","v":0},{"$f":"IF(ISBLANK(Лицевая!M66),\"\",IF(Лицевая!M66=\"А\",\"H\",\"G\"))","v":""},{"$f":"IF(ISBLANK(Лицевая!N66),\"\",Лицевая!N66)","v":""},{"$f":"IF(ISBLANK(Лицевая!O66),\"\",Лицевая!O66)","v":""},{"$f":"IF(ISBLANK(Лицевая!Q66),\"\",Лицевая!Q66)","v":""},{"$f":"IF(ISBLANK(Лицевая!R66),\"\",Лицевая!R66)","v":""},{"$f":"Лицевая!P66","v":""}]
[null,{"$f":"IF(ISBLANK(Лицевая!A67),\"\",Лицевая!A67)","v":20},{"$f":"IF(B66=\"\",\"\",VLOOKUP(CONCATENATE(Лицевая!D$10,B66),Команды!A:E,5,FALSE))","v":0},null,null,null,null,{"$f":"Лицевая!H67","v":0},{"$f":"Лицевая!J67","v":0},{"$f":"IF(ISBLANK(Лицевая!T67),\"\",Лицевая!T67)","v":11},{"$f":"IF(J66=\"\",\"\",VLOOKUP(CONCATENATE(Лицевая!W$10,J66),Команды!A:E,5,FALSE))","v":0},null,null,null,null,{"$f":"Лицевая!AA67","v":0},{"$f":"Лицевая!AC67","v":0},{"$f":"IF(ISBLANK(Лицевая!M67),\"\",IF(Лицевая!M67=\"А\",\"H\",\"G\"))","v":""},{"$f":"IF(ISBLANK(Лицевая!N67),\"\",Лицевая!N67)","v":""},{"$f":"IF(ISBLANK(Лицевая!O67),\"\",Лицевая!O67)","v":""},{"$f":"IF(ISBLANK(Лицевая!Q67),\"\",Лицевая!Q67)","v":""},{"$f":"IF(ISBLANK(Лицевая!R67),\"\",Лицевая!R67)","v":""},{"$f":"Лицевая!P67","v":""}]
[null,{"$f":"IF(ISBLANK(Лицевая!A68),\"\",Лицевая!A68)","v":12},{"$f":"IF(B67=\"\",\"\",VLOOKUP(CONCATENATE(Лицевая!D$10,B67),Команды!A:E,5,FALSE))","v":0},null,null,null,null,{"$f":"Лицевая!H68","v":0},{"$f":"Лицевая!J68","v":0},{"$f":"IF(ISBLANK(Лицевая!T68),\"\",Лицевая!T68)","v":21},{"$f":"IF(J67=\"\",\"\",VLOOKUP(CONCATENATE(Лицевая!W$10,J67),Команды!A:E,5,FALSE))","v":0},null,null,null,null,{"$f":"Лицевая!AA68","v":0},{"$f":"Лицевая!AC68","v":0},{"$f":"IF(ISBLANK(Лицевая!M68),\"\",IF(Лицевая!M68=\"А\",\"H\",\"G\"))","v":""},{"$f":"IF(ISBLANK(Лицевая!N68),\"\",Лицевая!N68)","v":""},{"$f":"IF(ISBLANK(Лицевая!O68),\"\",Лицевая!O68)","v":""},{"$f":"IF(ISBLANK(Лицевая!Q68),\"\",Лицевая!Q68)","v":""},{"$f":"IF(ISBLANK(Лицевая!R68),\"\",Лицевая!R68)","v":""},{"$f":"Лицевая!P68","v":""}]
[null,{"$f":"IF(ISBLANK(Лицевая!A69),\"\",Лицевая!A69)","v":18},{"$f":"IF(B68=\"\",\"\",VLOOKUP(CONCATENATE(Лицевая!D$10,B68),Команды!A:E,5,FALSE))","v":0},null,null,null,null,{"$f":"Лицевая!H69","v":0},{"$f":"Лицевая!J69","v":0},{"$f":"IF(ISBLANK(Лицевая!T69),\"\",Лицевая!T69)","v":17},{"$f":"IF(J68=\"\",\"\",VLOOKUP(CONCATENATE(Лицевая!W$10,J68),Команды!A:E,5,FALSE))","v":0},null,null,null,null,{"$f":"Лицевая!AA69","v":0},{"$f":"Лицевая!AC69","v":0},{"$f":"IF(ISBLANK(Лицевая!M69),\"\",IF(Лицевая!M69=\"А\",\"H\",\"G\"))","v":""},{"$f":"IF(ISBLANK(Лицевая!N69),\"\",Лицевая!N69)","v":""},{"$f":"IF(ISBLANK(Лицевая!O69),\"\",Лицевая!O69)","v":""},{"$f":"IF(ISBLANK(Лицевая!Q69),\"\",Лицевая!Q69)","v":""},{"$f":"IF(ISBLANK(Лицевая!R69),\"\",Лицевая!R69)","v":""},{"$f":"Лицевая!P69","v":""}]
[null,{"$f":"IF(ISBLANK(Лицевая!A70),\"\",Лицевая!A70)","v":17},{"$f":"IF(B69=\"\",\"\",VLOOKUP(CONCATENATE(Лицевая!D$10,B69),Команды!A:E,5,FALSE))","v":0},null,null,null,null,{"$f":"Лицевая!H70","v":0},{"$f":"Лицевая!J70","v":0},{"$f":"IF(ISBLANK(Лицевая!T70),\"\",Лицевая!T70)","v":12},{"$f":"IF(J69=\"\",\"\",VLOOKUP(CONCATENATE(Лицевая!W$10,J69),Команды!A:E,5,FALSE))","v":0},null,null,null,null,{"$f":"Лицевая!AA70","v":0},{"$f":"Лицевая!AC70","v":0},{"$f":"IF(ISBLANK(Лицевая!M70),\"\",IF(Лицевая!M70=\"А\",\"H\",\"G\"))","v":""},{"$f":"IF(ISBLANK(Лицевая!N70),\"\",Лицевая!N70)","v":""},{"$f":"IF(ISBLANK(Лицевая!O70),\"\",Лицевая!O70)","v":""},{"$f":"IF(ISBLANK(Лицевая!Q70),\"\",Лицевая!Q70)","v":""},{"$f":"IF(ISBLANK(Лицевая!R70),\"\",Лицевая!R70)","v":""},{"$f":"Лицевая!P70","v":""}]
[null,{"$f":"IF(ISBLANK(Лицевая!A71),\"\",Лицевая!A71)","v":4},{"$f":"IF(B70=\"\",\"\",VLOOKUP(CONCATENATE(Лицевая!D$10,B70),Команды!A:E,5,FALSE))","v":0},null,null,null,null,{"$f":"Лицевая!H71","v":0},{"$f":"Лицевая!J71","v":0},{"$f":"IF(ISBLANK(Лицевая!T71),\"\",Лицевая!T71)","v":7},{"$f":"IF(J70=\"\",\"\",VLOOKUP(CONCATENATE(Лицевая!W$10,J70),Команды!A:E,5,FALSE))","v":0},null,null,null,null,{"$f":"Лицевая!AA71","v":0},{"$f":"Лицевая!AC71","v":0},{"$f":"IF(ISBLANK(Лицевая!M71),\"\",IF(Лицевая!M71=\"А\",\"H\",\"G\"))","v":""},{"$f":"IF(ISBLANK(Лицевая!N71),\"\",Лицевая!N71)","v":""},{"$f":"IF(ISBLANK(Лицевая!O71),\"\",Лицевая!O71)","v":""},{"$f":"IF(ISBLANK(Лицевая!Q71),\"\",Лицевая!Q71)","v":""},{"$f":"IF(ISBLANK(Лицевая!R71),\"\",Лицевая!R71)","v":""},{"$f":"Лицевая!P71","v":""}]
[null,{"$f":"IF(ISBLANK(Лицевая!A72),\"\",Лицевая!A72)","v":6},{"$f":"IF(B71=\"\",\"\",VLOOKUP(CONCATENATE(Лицевая!D$10,B71),Команды!A:E,5,FALSE))","v":0},null,null,null,null,{"$f":"Лицевая!H72","v":0},{"$f":"Лицевая!J72","v":0},{"$f":"IF(ISBLANK(Лицевая!T72),\"\",Лицевая!T72)","v":13},{"$f":"IF(J71=\"\",\"\",VLOOKUP(CONCATENATE(Лицевая!W$10,J71),Команды!A:E,5,FALSE))","v":0},null,null,null,null,{"$f":"Лицевая!AA72","v":0},{"$f":"Лицевая!AC72","v":0},{"$f":"IF(ISBLANK(Лицевая!M72),\"\",IF(Лицевая!M72=\"А\",\"H\",\"G\"))","v":""},{"$f":"IF(ISBLANK(Лицевая!N72),\"\",Лицевая!N72)","v":""},{"$f":"IF(ISBLANK(Лицевая!O72),\"\",Лицевая!O72)","v":""},{"$f":"IF(ISBLANK(Лицевая!Q72),\"\",Лицевая!Q72)","v":""},{"$f":"IF(ISBLANK(Лицевая!R72),\"\",Лицевая!R72)","v":""},{"$f":"Лицевая!P72","v":""}]
[null,{"$f":"IF(ISBLANK(Лицевая!A73),\"\",Лицевая!A73)","v":10},{"$f":"IF(B72=\"\",\"\",VLOOKUP(CONCATENATE(Лицевая!D$10,B72),Команды!A:E,5,FALSE))","v":0},null,null,null,null,{"$f":"Лицевая!H73","v":0},{"$f":"Лицевая!J73","v":0},{"$f":"IF(ISBLANK(Лицевая!T73),\"\",Лицевая!T73)","v":5},{"$f":"IF(J72=\"\",\"\",VLOOKUP(CONCATENATE(Лицевая!W$10,J72),Команды!A:E,5,FALSE))","v":0},null,null,null,null,{"$f":"Лицевая!AA73","v":0},{"$f":"Лицевая!AC73","v":0},{"$f":"IF(ISBLANK(Лицевая!M73),\"\",IF(Лицевая!M73=\"А\",\"H\",\"G\"))","v":""},{"$f":"IF(ISBLANK(Лицевая!N73),\"\",Лицевая!N73)","v":""},{"$f":"IF(ISBLANK(Лицевая!O73),\"\",Лицевая!O73)","v":""},{"$f":"IF(ISBLANK(Лицевая!Q73),\"\",Лицевая!Q73)","v":""},{"$f":"IF(ISBLANK(Лицевая!R73),\"\",Лицевая!R73)","v":""},{"$f":"Лицевая!P73","v":""}]
[null,{"$f":"IF(ISBLANK(Лицевая!A74),\"\",Лицевая!A74)","v":13},{"$f":"IF(B73=\"\",\"\",VLOOKUP(CONCATENATE(Лицевая!D$10,B73),Команды!A:E,5,FALSE))","v":0},null,null,null,null,{"$f":"Лицевая!H74","v":0},{"$f":"Лицевая!J74","v":0},{"$f":"IF(ISBLANK(Лицевая!T74),\"\",Лицевая!T74)","v":10},{"$f":"IF(J73=\"\",\"\",VLOOKUP(CONCATENATE(Лицевая!W$10,J73),Команды!A:E,5,FALSE))","v":0},null,null,null,null,{"$f":"Лицевая!AA74","v":0},{"$f":"Лицевая!AC74","v":0},{"$f":"IF(ISBLANK(Лицевая!M74),\"\",IF(Лицевая!M74=\"А\",\"H\",\"G\"))","v":""},{"$f":"IF(ISBLANK(Лицевая!N74),\"\",Лицевая!N74)","v":""},{"$f":"IF(ISBLANK(Лицевая!O74),\"\",Лицевая!O74)","v":""},{"$f":"IF(ISBLANK(Лицевая!Q74),\"\",Лицевая!Q74)","v":""},{"$f":"IF(ISBLANK(Лицевая!R74),\"\",Лицевая!R74)","v":""},{"$f":"Лицевая!P74","v":""}]
[null,{"$f":"IF(ISBLANK(Лицевая!A75),\"\",Лицевая!A75)","v":5},{"$f":"IF(B74=\"\",\"\",VLOOKUP(CONCATENATE(Лицевая!D$10,B74),Команды!A:E,5,FALSE))","v":0},null,null,null,null,{"$f":"Лицевая!H75","v":0},{"$f":"Лицевая!J75","v":0},{"$f":"IF(ISBLANK(Лицевая!T75),\"\",Лицевая!T75)","v":19},{"$f":"IF(J74=\"\",\"\",VLOOKUP(CONCATENATE(Лицевая!W$10,J74),Команды!A:E,5,FALSE))","v":0},null,null,null,null,{"$f":"Лицевая!AA75","v":0},{"$f":"Лицевая!AC75","v":0},{"$f":"IF(ISBLANK(Лицевая!M75),\"\",IF(Лицевая!M75=\"А\",\"H\",\"G\"))","v":""},{"$f":"IF(ISBLANK(Лицевая!N75),\"\",Лицевая!N75)","v":""},{"$f":"IF(ISBLANK(Лицевая!O75),\"\",Лицевая!O75)","v":""},{"$f":"IF(ISBLANK(Лицевая!Q75),\"\",Лицевая!Q75)","v":""},{"$f":"IF(ISBLANK(Лицевая!R75),\"\",Лицевая!R75)","v":""},{"$f":"Лицевая!P75","v":""}]
["Gk",{"$f":"IF(ISBLANK(Лицевая!A76),\"\",Лицевая!A76)","v":21},{"$f":"IF(B75=\"\",\"\",VLOOKUP(CONCATENATE(Лицевая!D$10,B75),Команды!A:E,5,FALSE))","v":0},null,null,null,null,{"$f":"Лицевая!H76","v":0},{"$f":"Лицевая!J76","v":0},{"$f":"IF(ISBLANK(Лицевая!T76),\"\",Лицевая!T76)","v":30},{"$f":"IF(J75=\"\",\"\",VLOOKUP(CONCATENATE(Лицевая!W$10,J75),Команды!A:E,5,FALSE))","v":0},null,null,null,null,{"$f":"Лицевая!AA76","v":0},{"$f":"Лицевая!AC76","v":0},{"$f":"IF(ISBLANK(Лицевая!M76),\"\",IF(Лицевая!M76=\"А\",\"H\",\"G\"))","v":""},{"$f":"IF(ISBLANK(Лицевая!N76),\"\",Лицевая!N76)","v":""},{"$f":"IF(ISBLANK(Лицевая!O76),\"\",Лицевая!O76)","v":""},{"$f":"IF(ISBLANK(Лицевая!Q76),\"\",Лицевая!Q76)","v":""},{"$f":"IF(ISBLANK(Лицевая!R76),\"\",Лицевая!R76)","v":""},{"$f":"Лицевая!P76","v":""}]
["Reserve",{"$f":"IF(ISBLANK(Лицевая!A77),\"\",Лицевая!A77)","v":3},{"$f":"IF(B76=\"\",\"\",VLOOKUP(CONCATENATE(Лицевая!D$10,B76),Команды!A:E,5,FALSE))","v":0},null,null,null,null,{"$f":"Лицевая!H77","v":0},{"$f":"Лицевая!J77","v":0},{"$f":"IF(ISBLANK(Лицевая!T77),\"\",Лицевая!T77)","v":8},{"$f":"IF(J76=\"\",\"\",VLOOKUP(CONCATENATE(Лицевая!W$10,J76),Команды!A:E,5,FALSE))","v":0},null,null,null,null,{"$f":"Лицевая!AA77","v":0},{"$f":"Лицевая!AC77","v":0},{"$f":"IF(ISBLANK(Лицевая!M77),\"\",IF(Лицевая!M77=\"А\",\"H\",\"G\"))","v":""},{"$f":"IF(ISBLANK(Лицевая!N77),\"\",Лицевая!N77)","v":""},{"$f":"IF(ISBLANK(Лицевая!O77),\"\",Лицевая!O77)","v":""},{"$f":"IF(ISBLANK(Лицевая!Q77),\"\",Лицевая!Q77)","v":""},{"$f":"IF(ISBLANK(Лицевая!R77),\"\",Лицевая!R77)","v":""},{"$f":"Лицевая!P77","v":""}]
[null,{"$f":"IF(ISBLANK(Лицевая!A78),\"\",Лицевая!A78)","v":15},{"$f":"IF(B77=\"\",\"\",VLOOKUP(CONCATENATE(Лицевая!D$10,B77),Команды!A:E,5,FALSE))","v":0},null,null,null,null,{"$f":"Лицевая!H78","v":0},{"$f":"Лицевая!J78","v":0},{"$f":"IF(ISBLANK(Лицевая!T78),\"\",Лицевая!T78)","v":9},{"$f":"IF(J77=\"\",\"\",VLOOKUP(CONCATENATE(Лицевая!W$10,J77),Команды!A:E,5,FALSE))","v":0},null,null,null,null,{"$f":"Лицевая!AA78","v":0},{"$f":"Лицевая!AC78","v":0},{"$f":"IF(ISBLANK(Лицевая!M78),\"\",IF(Лицевая!M78=\"А\",\"H\",\"G\"))","v":""},{"$f":"IF(ISBLANK(Лицевая!N78),\"\",Лицевая!N78)","v":""},{"$f":"IF(ISBLANK(Лицевая!O78),\"\",Лицевая!O78)","v":""},{"$f":"IF(ISBLANK(Лицевая!Q78),\"\",Лицевая!Q78)","v":""},{"$f":"IF(ISBLANK(Лицевая!R78),\"\",Лицевая!R78)","v":""},{"$f":"Лицевая!P78","v":""}]
[null,{"$f":"IF(ISBLANK(Лицевая!A79),\"\",Лицевая!A79)","v":19},{"$f":"IF(B78=\"\",\"\",VLOOKUP(CONCATENATE(Лицевая!D$10,B78),Команды!A:E,5,FALSE))","v":0},null,null,null,null,{"$f":"Лицевая!H79","v":0},{"$f":"Лицевая!J79","v":0},{"$f":"IF(ISBLANK(Лицевая!T79),\"\",Лицевая!T79)","v":16},{"$f":"IF(J78=\"\",\"\",VLOOKUP(CONCATENATE(Лицевая!W$10,J78),Команды!A:E,5,FALSE))","v":0},null,null,null,null,{"$f":"Лицевая!AA79","v":0},{"$f":"Лицевая!AC79","v":0},{"$f":"IF(ISBLANK(Лицевая!M79),\"\",IF(Лицевая!M79=\"А\",\"H\",\"G\"))","v":""},{"$f":"IF(ISBLANK(Лицевая!N79),\"\",Лицевая!N79)","v":""},{"$f":"IF(ISBLANK(Лицевая!O79),\"\",Лицевая!O79)","v":""},{"$f":"IF(ISBLANK(Лицевая!Q79),\"\",Лицевая!Q79)","v":""},{"$f":"IF(ISBLANK(Лицевая!R79),\"\",Лицевая!R79)","v":""},{"$f":"Лицевая!P79","v":""}]
[null,{"$f":"IF(ISBLANK(Лицевая!A80),\"\",Лицевая!A80)","v":14},{"$f":"IF(B79=\"\",\"\",VLOOKUP(CONCATENATE(Лицевая!D$10,B79),Команды!A:E,5,FALSE))","v":0},null,null,null,null,{"$f":"Лицевая!H80","v":0},{"$f":"Лицевая!J80","v":0},{"$f":"IF(ISBLANK(Лицевая!T80),\"\",Лицевая!T80)","v":3},{"$f":"IF(J79=\"\",\"\",VLOOKUP(CONCATENATE(Лицевая!W$10,J79),Команды!A:E,5,FALSE))","v":0},null,null,null,null,{"$f":"Лицевая!AA80","v":0},{"$f":"Лицевая!AC80","v":0},{"$f":"IF(ISBLANK(Лицевая!M80),\"\",IF(Лицевая!M80=\"А\",\"H\",\"G\"))","v":""},{"$f":"IF(ISBLANK(Лицевая!N80),\"\",Лицевая!N80)","v":""},{"$f":"IF(ISBLANK(Лицевая!O80),\"\",Лицевая!O80)","v":""},{"$f":"IF(ISBLANK(Лицевая!Q80),\"\",Лицевая!Q80)","v":""},{"$f":"IF(ISBLANK(Лицевая!R80),\"\",Лицевая!R80)","v":""},{"$f":"Лицевая!P80","v":""}]
[null,{"$f":"IF(ISBLANK(Лицевая!A81),\"\",Лицевая!A81)","v":16},{"$f":"IF(B80=\"\",\"\",VLOOKUP(CONCATENATE(Лицевая!D$10,B80),Команды!A:E,5,FALSE))","v":0},null,null,null,null,{"$f":"Лицевая!H81","v":0},{"$f":"Лицевая!J81","v":0},{"$f":"IF(ISBLANK(Лицевая!T81),\"\",Лицевая!T81)","v":14},{"$f":"IF(J80=\"\",\"\",VLOOKUP(CONCATENATE(Лицевая!W$10,J80),Команды!A:E,5,FALSE))","v":0},null,null,null,null,{"$f":"Лицевая!AA81","v":0},{"$f":"Лицевая!AC81","v":0},{"$f":"IF(ISBLANK(Лицевая!M81),\"\",IF(Лицевая!M81=\"А\",\"H\",\"G\"))","v":""},{"$f":"IF(ISBLANK(Лицевая!N81),\"\",Лицевая!N81)","v":""},{"$f":"IF(ISBLANK(Лицевая!O81),\"\",Лицевая!O81)","v":""},{"$f":"IF(ISBLANK(Лицевая!Q81),\"\",Лицевая!Q81)","v":""},{"$f":"IF(ISBLANK(Лицевая!R81),\"\",Лицевая!R81)","v":""},{"$f":"Лицевая!P81","v":""}]
[null,"Own goals G-team / Team penalty",null,null,null,null,null,{"$f":"Лицевая!H85","v":""},{"$f":"Лицевая!J85","v":""},"Own goals H-team / Team penalty",null,null,null,null,null,{"$f":"Лицевая!AA85","v":""},{"$f":"Лицевая!AC85","v":""},{"$f":"IF(ISBLANK(Лицевая!M82),\"\",IF(Лицевая!M82=\"А\",\"H\",\"G\"))","v":""},{"$f":"IF(ISBLANK(Лицевая!N82),\"\",Лицевая!N82)","v":""},{"$f":"IF(ISBLANK(Лицевая!O82),\"\",Лицевая!O82)","v":""},{"$f":"IF(ISBLANK(Лицевая!Q82),\"\",Лицевая!Q82)","v":""},{"$f":"IF(ISBLANK(Лицевая!R82),\"\",Лицевая!R82)","v":""},{"$f":"Лицевая!P82","v":""}]
["Coaches / Trainers / Assist","Coaches / Trainers / Assist",null,null,null,null,null,null,null,null,null,null,null,null,null,null,null,{"$f":"IF(ISBLANK(Лицевая!M83),\"\",IF(Лицевая!M83=\"А\",\"H\",\"G\"))","v":""},{"$f":"IF(ISBLANK(Лицевая!N83),\"\",Лицевая!N83)","v":""},{"$f":"IF(ISBLANK(Лицевая!O83),\"\",Лицевая!O83)","v":""},{"$f":"IF(ISBLANK(Лицевая!Q83),\"\",Лицевая!Q83)","v":""},{"$f":"IF(ISBLANK(Лицевая!R83),\"\",Лицевая!R83)","v":""},{"$f":"Лицевая!P83","v":""}]
[null,{"$f":"VLOOKUP(CONCATENATE(Лицевая!D$10,\"901\"),Команды!A:E,5,FALSE)","v":0},null,null,null,null,null,null,null,{"$f":"VLOOKUP(CONCATENATE(Лицевая!W$10,\"901\"),Команды!A:E,5,FALSE)","v":0},null,null,null,null,null,null,null,{"$f":"IF(ISBLANK(Лицевая!M84),\"\",IF(Лицевая!M84=\"А\",\"H\",\"G\"))","v":""},{"$f":"IF(ISBLANK(Лицевая!N84),\"\",Лицевая!N84)","v":""},{"$f":"IF(ISBLANK(Лицевая!O84),\"\",Лицевая!O84)","v":""},{"$f":"IF(ISBLANK(Лицевая!Q84),\"\",Лицевая!Q84)","v":""},{"$f":"IF(ISBLANK(Лицевая!R84),\"\",Лицевая!R84)","v":""},{"$f":"Лицевая!P84","v":""}]
[null,{"$f":"VLOOKUP(CONCATENATE(Лицевая!D$10,\"902\"),Команды!A:E,5,FALSE)","v":{"$error":"#N/A"}},null,null,null,null,null,null,null,{"$f":"VLOOKUP(CONCATENATE(Лицевая!W$10,\"902\"),Команды!A:E,5,FALSE)","v":{"$error":"#N/A"}},null,null,null,null,null,null,null,{"$f":"IF(ISBLANK(Лицевая!M85),\"\",IF(Лицевая!M85=\"А\",\"H\",\"G\"))","v":""},{"$f":"IF(ISBLANK(Лицевая!N85),\"\",Лицевая!N85)","v":""},{"$f":"IF(ISBLANK(Лицевая!O85),\"\",Лицевая!O85)","v":""},{"$f":"IF(ISBLANK(Лицевая!Q85),\"\",Лицевая!Q85)","v":""},{"$f":"IF(ISBLANK(Лицевая!R85),\"\",Лицевая!R85)","v":""},{"$f":"Лицевая!P85","v":""}]
[null,{"$f":"VLOOKUP(CONCATENATE(Лицевая!D$10,\"903\"),Команды!A:E,5,FALSE)","v":{"$error":"#N/A"}},null,null,null,null,null,null,null,{"$f":"VLOOKUP(CONCATENATE(Лицевая!W$10,\"903\"),Команды!A:E,5,FALSE)","v":{"$error":"#N/A"}},null,null,null,null,null,null,null,{"$f":"IF(ISBLANK(Лицевая!M86),\"\",IF(Лицевая!M86=\"А\",\"H\",\"G\"))","v":""},{"$f":"IF(ISBLANK(Лицевая!N86),\"\",Лицевая!N86)","v":""},{"$f":"IF(ISBLANK(Лицевая!O86),\"\",Лицевая!O86)","v":""},{"$f":"IF(ISBLANK(Лицевая!Q86),\"\",Лицевая!Q86)","v":""},{"$f":"IF(ISBLANK(Лицевая!R86),\"\",Лицевая!R86)","v":""},{"$f":"Лицевая!P86","v":""}]
[null,{"$f":"VLOOKUP(CONCATENATE(Лицевая!D$10,\"904\"),Команды!A:E,5,FALSE)","v":{"$error":"#N/A"}},null,null,null,null,null,null,null,{"$f":"VLOOKUP(CONCATENATE(Лицевая!W$10,\"904\"),Команды!A:E,5,FALSE)","v":{"$error":"#N/A"}},null,null,null,null,null,null,null,{"$f":"IF(ISBLANK(Лицевая!M87),\"\",IF(Лицевая!M87=\"А\",\"H\",\"G\"))","v":""},{"$f":"IF(ISBLANK(Лицевая!N87),\"\",Лицевая!N87)","v":""},{"$f":"IF(ISBLANK(Лицевая!O87),\"\",Лицевая!O87)","v":""},{"$f":"IF(ISBLANK(Лицевая!Q87),\"\",Лицевая!Q87)","v":""},{"$f":"IF(ISBLANK(Лицевая!R87),\"\",Лицевая!R87)","v":""},{"$f":"Лицевая!P87","v":""}]
[null,{"$f":"VLOOKUP(CONCATENATE(Лицевая!D$10,\"905\"),Команды!A:E,5,FALSE)","v":{"$error":"#N/A"}},null,null,null,null,null,null,null,{"$f":"VLOOKUP(CONCATENATE(Лицевая!W$10,\"905\"),Команды!A:E,5,FALSE)","v":{"$error":"#N/A"}},null,null,null,null,null,null,null,{"$f":"IF(ISBLANK(Лицевая!M88),\"\",IF(Лицевая!M88=\"А\",\"H\",\"G\"))","v":""},{"$f":"IF(ISBLANK(Лицевая!N88),\"\",Лицевая!N88)","v":""},{"$f":"IF(ISBLANK(Лицевая!O88),\"\",Лицевая!O88)","v":""},{"$f":"IF(ISBLANK(Лицевая!Q88),\"\",Лицевая!Q88)","v":""},{"$f":"IF(ISBLANK(Лицевая!R88),\"\",Лицевая!R88)","v":""},{"$f":"Лицевая!P88","v":""}]
[null,"Penalties",null,null,null,null,null,null,null,null,null,null,null,null,null,null,null,{"$f":"IF(ISBLANK(Лицевая!M89),\"\",IF(Лицевая!M89=\"А\",\"H\",\"G\"))","v":""},{"$f":"IF(ISBLANK(Лицевая!N89),\"\",Лицевая!N89)","v":""},{"$f":"IF(ISBLANK(Лицевая!O89),\"\",Лицевая!O89)","v":""},{"$f":"IF(ISBLANK(Лицевая!Q89),\"\",Лицевая!Q89)","v":""},{"$f":"IF(ISBLANK(Лицевая!R89),\"\",Лицевая!R89)","v":""},{"$f":"Лицевая!P89","v":""}]
["Penalties","#","Min","Fault",null,"#","Min","Fault",null,"#","Min","Fault",null,"#","Min","Fault",null,{"$f":"IF(ISBLANK(Лицевая!M90),\"\",IF(Лицевая!M90=\"А\",\"H\",\"G\"))","v":""},{"$f":"IF(ISBLANK(Лицевая!N90),\"\",Лицевая!N90)","v":""},{"$f":"IF(ISBLANK(Лицевая!O90),\"\",Лицевая!O90)","v":""},{"$f":"IF(ISBLANK(Лицевая!Q90),\"\",Лицевая!Q90)","v":""},{"$f":"IF(ISBLANK(Лицевая!R90),\"\",Лицевая!R90)","v":""},{"$f":"Лицевая!P90","v":""}]
[null,{"$f":"IF(ISBLANK(Лицевая!B87),\"\",Лицевая!B87)","v":""},{"$f":"IF(ISBLANK(Лицевая!C87),\"\",Лицевая!C87)","v":""},{"$f":"IF(ISBLANK(Лицевая!E87),\"\",Лицевая!E87)","v":""},null,{"$f":"IF(ISBLANK(Лицевая!G87),\"\",Лицевая!G87)","v":""},{"$f":"IF(ISBLANK(Лицевая!H87),\"\",Лицевая!H87)","v":""},{"$f":"IF(ISBLANK(Лицевая!J87),\"\",Лицевая!J87)","v":""},null,{"$f":"IF(ISBLANK(Лицевая!T87),\"\",Лицевая!T87)","v":""},{"$f":"IF(ISBLANK(Лицевая!U87),\"\",Лицевая!U87)","v":""},{"$f":"IF(ISBLANK(Лицевая!W87),\"\",Лицевая!W87)","v":""},null,{"$f":"IF(ISBLANK(Лицевая!Y87),\"\",Лицевая!Y87)","v":""},{"$f":"IF(ISBLANK(Лицевая!Z87),\"\",Лицевая!Z87)","v":""},{"$f":"IF(ISBLANK(Лицевая!AB87),\"\",Лицевая!AB87)","v":""},null,{"$f":"IF(ISBLANK(Лицевая!M91),\"\",IF(Лицевая!M91=\"А\",\"H\",\"G\"))","v":""},{"$f":"IF(ISBLANK(Лицевая!N91),\"\",Лицевая!N91)","v":""},{"$f":"IF(ISBLANK(Лицевая!O91),\"\",Лицевая!O91)","v":""},{"$f":"IF(ISBLANK(Лицевая!Q91),\"\",Лицевая!Q91)","v":""},{"$f":"IF(ISBLANK(Лицевая!R91),\"\",Лицевая!R91)","v":""},{"$f":"Лицевая!P91","v":""}]
[null,{"$f":"IF(ISBLANK(Лицевая!B88),\"\",Лицевая!B88)","v":""},{"$f":"IF(ISBLANK(Лицевая!C88),\"\",Лицевая!C88)","v":""},{"$f":"IF(ISBLANK(Лицевая!E88),\"\",Лицевая!E88)","v":""},null,{"$f":"IF(ISBLANK(Лицевая!G88),\"\",Лицевая!G88)","v":""},{"$f":"IF(ISBLANK(Лицевая!H88),\"\",Лицевая!H88)","v":""},{"$f":"IF(ISBLANK(Лицевая!J88),\"\",Лицевая!J88)","v":""},null,{"$f":"IF(ISBLANK(Лицевая!T88),\"\",Лицевая!T88)","v":""},{"$f":"IF(ISBLANK(Лицевая!U88),\"\",Лицевая!U88)","v":""},{"$f":"IF(ISBLANK(Лицевая!W88),\"\",Лицевая!W88)","v":""},null,{"$f":"IF(ISBLANK(Лицевая!Y88),\"\",Лицевая!Y88)","v":""},{"$f":"IF(ISBLANK(Лицевая!Z88),\"\",Лицевая!Z88)","v":""},{"$f":"IF(ISBLANK(Лицевая!AB88),\"\",Лицевая!AB88)","v":""},null,"Game Result"]
[null,{"$f":"IF(ISBLANK(Лицевая!B89),\"\",Лицевая!B89)","v":""},{"$f":"IF(ISBLANK(Лицевая!C89),\"\",Лицевая!C89)","v":""},{"$f":"IF(ISBLANK(Лицевая!E89),\"\",Лицевая!E89)","v":""},null,{"$f":"IF(ISBLANK(Лицевая!G89),\"\",Лицевая!G89)","v":""},{"$f":"IF(ISBLANK(Лицевая!H89),\"\",Лицевая!H89)","v":""},{"$f":"IF(ISBLANK(Лицевая!J89),\"\",Лицевая!J89)","v":""},null,{"$f":"IF(ISBLANK(Лицевая!T89),\"\",Лицевая!T89)","v":""},{"$f":"IF(ISBLANK(Лицевая!U89),\"\",Лицевая!U89)","v":""},{"$f":"IF(ISBLANK(Лицевая!W89),\"\",Лицевая!W89)","v":""},null,{"$f":"IF(ISBLANK(Лицевая!Y89),\"\",Лицевая!Y89)","v":""},{"$f":"IF(ISBLANK(Лицевая!Z89),\"\",Лицевая!Z89)","v":""},{"$f":"IF(ISBLANK(Лицевая!AB89),\"\",Лицевая!AB89)","v":""},null,"I Time",null,null,null,null,{"$f":"RUS!W92","v":"4:0"}]
[null,{"$f":"IF(ISBLANK(Лицевая!B90),\"\",Лицевая!B90)","v":""},{"$f":"IF(ISBLANK(Лицевая!C90),\"\",Лицевая!C90)","v":""},{"$f":"IF(ISBLANK(Лицевая!E90),\"\",Лицевая!E90)","v":""},null,{"$f":"IF(ISBLANK(Лицевая!G90),\"\",Лицевая!G90)","v":""},{"$f":"IF(ISBLANK(Лицевая!H90),\"\",Лицевая!H90)","v":""},{"$f":"IF(ISBLANK(Лицевая!J90),\"\",Лицевая!J90)","v":""},null,{"$f":"IF(ISBLANK(Лицевая!T90),\"\",Лицевая!T90)","v":""},{"$f":"IF(ISBLANK(Лицевая!U90),\"\",Лицевая!U90)","v":""},{"$f":"IF(ISBLANK(Лицевая!W90),\"\",Лицевая!W90)","v":""},null,{"$f":"IF(ISBLANK(Лицевая!Y90),\"\",Лицевая!Y90)","v":""},{"$f":"IF(ISBLANK(Лицевая!Z90),\"\",Лицевая!Z90)","v":""},{"$f":"IF(ISBLANK(Лицевая!AB90),\"\",Лицевая!AB90)","v":""},null,"II Time",null,null,null,null,{"$f":"RUS!W93","v":"6:0"}]
[null,{"$f":"IF(ISBLANK(Лицевая!B91),\"\",Лицевая!B91)","v":""},{"$f":"IF(ISBLANK(Лицевая!C91),\"\",Лицевая!C91)","v":""},{"$f":"IF(ISBLANK(Лицевая!E91),\"\",Лицевая!E91)","v":""},null,{"$f":"IF(ISBLANK(Лицевая!G91),\"\",Лицевая!G91)","v":""},{"$f":"IF(ISBLANK(Лицевая!H91),\"\",Лицевая!H91)","v":""},{"$f":"IF(ISBLANK(Лицевая!J91),\"\",Лицевая!J91)","v":""},null,{"$f":"IF(ISBLANK(Лицевая!T91),\"\",Лицевая!T91)","v":""},{"$f":"IF(ISBLANK(Лицевая!U91),\"\",Лицевая!U91)","v":""},{"$f":"IF(ISBLANK(Лицевая!W91),\"\",Лицевая!W91)","v":""},null,{"$f":"IF(ISBLANK(Лицевая!Y91),\"\",Лицевая!Y91)","v":""},{"$f":"IF(ISBLANK(Лицевая!Z91),\"\",Лицевая!Z91)","v":""},{"$f":"IF(ISBLANK(Лицевая!AB91),\"\",Лицевая!AB91)","v":""},null,"Overtime",null,null,null,null,{"$f":"RUS!W94","v":"0:0"}]
[null,{"$f":"IF(ISBLANK(Лицевая!B92),\"\",Лицевая!B92)","v":""},{"$f":"IF(ISBLANK(Лицевая!C92),\"\",Лицевая!C92)","v":""},{"$f":"IF(ISBLANK(Лицевая!E92),\"\",Лицевая!E92)","v":""},null,{"$f":"IF(ISBLANK(Лицевая!G92),\"\",Лицевая!G92)","v":""},{"$f":"IF(ISBLANK(Лицевая!H92),\"\",Лицевая!H92)","v":""},{"$f":"IF(ISBLANK(Лицевая!J92),\"\",Лицевая!J92)","v":""},null,{"$f":"IF(ISBLANK(Лицевая!T92),\"\",Лицевая!T92)","v":""},{"$f":"IF(ISBLANK(Лицевая!U92),\"\",Лицевая!U92)","v":""},{"$f":"IF(ISBLANK(Лицевая!W92),\"\",Лицевая!W92)","v":""},null,{"$f":"IF(ISBLANK(Лицевая!Y92),\"\",Лицевая!Y92)","v":""},{"$f":"IF(ISBLANK(Лицевая!Z92),\"\",Лицевая!Z92)","v":""},{"$f":"IF(ISBLANK(Лицевая!AB92),\"\",Лицевая!AB92)","v":""},null,"Penalty Stroke",null,null,null,null,{"$f":"RUS!W95","v":"-"}]
[null,{"$f":"IF(ISBLANK(Лицевая!B93),\"\",Лицевая!B93)","v":""},{"$f":"IF(ISBLANK(Лицевая!C93),\"\",Лицевая!C93)","v":""},{"$f":"IF(ISBLANK(Лицевая!E93),\"\",Лицевая!E93)","v":""},null,{"$f":"IF(ISBLANK(Лицевая!G93),\"\",Лицевая!G93)","v":""},{"$f":"IF(ISBLANK(Лицевая!H93),\"\",Лицевая!H93)","v":""},{"$f":"IF(ISBLANK(Лицевая!J93),\"\",Лицевая!J93)","v":""},null,{"$f":"IF(ISBLANK(Лицевая!T93),\"\",Лицевая!T93)","v":""},{"$f":"IF(ISBLANK(Лицевая!U93),\"\",Лицевая!U93)","v":""},{"$f":"IF(ISBLANK(Лицевая!W93),\"\",Лицевая!W93)","v":""},null,{"$f":"IF(ISBLANK(Лицевая!Y93),\"\",Лицевая!Y93)","v":""},{"$f":"IF(ISBLANK(Лицевая!Z93),\"\",Лицевая!Z93)","v":""},{"$f":"IF(ISBLANK(Лицевая!AB93),\"\",Лицевая!AB93)","v":""},null,"Result",null,null,null,null,{"$f":"RUS!W96","v":"10:0"}]
[null,"Team Warning",null,{"$f":"Лицевая!I85","v":"-"},null,"Summary",null,{"$f":"Лицевая!J94","v":"30"},null,"Team Warning",null,{"$f":"Лицевая!AB85","v":"-"},null,"Summary",null,{"$f":"Лицевая!AB94","v":"35"},null,"Teams",null,null,null,null,"H","G"]
["Comments","List 2 of 2.",null,null,null,null,null,null,null,null,null,null,null,null,null,null,null,"Playing Goal",null,null,null,null,{"$f":"RUS!W98","v":8},{"$f":"RUS!X98","v":0}]
[null,null,null,null,null,null,null,null,null,null,null,null,null,null,null,null,null,"Penalty Stroke",null,null,null,null,{"$f":"RUS!W99","v":1},{"$f":"RUS!X99","v":0}]
[null,null,null,null,null,null,null,null,null,null,null,null,null,null,null,null,null,"Corner Stroke",null,null,null,null,{"$f":"RUS!W100","v":0},{"$f":"RUS!X100","v":0}]
[null,null,null,null,null,null,null,null,null,null,null,null,null,null,null,null,null,"Free Stroke",null,null,null,null,{"$f":"RUS!W101","v":1},{"$f":"RUS!X101","v":0}]
[null,null,null,null,null,null,null,null,null,null,null,null,null,null,null,null,null,"Own Goals",null,null,null,null,{"$f":"RUS!W102","v":0},{"$f":"RUS!X102","v":0}]
[null,"Head Referee Sign"]

{"sheet":"Регистратор","index":4,"n_rows":47,"n_cols":79,"rows_kept":47,"cut":false,"hidden":false,"merged":[[46,3,47,6],[28,15,28,17],[31,15,31,17],[34,15,34,17],[37,15,37,17],[40,15,40,17],[43,15,43,17],[33,7,33,8],[28,7,28,8],[29,7,29,8],[40,2,42,6],[40,0,42,1],[37,2,39,6],[21,2,23,6],[28,0,30,1],[41,7,41,8],[42,7,42,8],[39,7,39,8],[43,2,45,6],[27,0,27,6],[24,0,26,1],[31,7,31,8],[34,2,36,6],[31,2,33,6],[32,7,32,8],[43,7,43,8],[40,7,40,8],[43,0,45,1],[37,7,37,8],[38,7,38,8],[45,7,45,8],[44,7,44,8],[31,0,33,1],[24,2,26,6],[37,0,39,1],[34,0,36,1],[12,2,14,6],[15,2,17,6],[18,0,20,1],[36,7,36,8],[28,2,30,6],[34,7,34,8],[35,7,35,8],[21,0,23,1],[0,0,0,6],[8,0,8,6],[1,0,2,6],[3,5,3,6],[4,5,5,6],[3,0,3,4],[7,7,7,8],[30,7,30,8],[21,7,21,8],[25,7,25,8],[19,7,19,8],[26,7,26,8],[24,7,24,8],[22,7,22,8],[4,0,5,4],[6,0,7,6],[9,2,11,6],[18,2,20,6],[9,0,11,1],[12,0,14,1],[15,0,17,1],[34,30,35,33],[36,30,39,31],[36,32,39,33],[0,23,2,33],[18,32,21,33],[10,30,11,33],[28,30,29,33],[3,30,3,33],[3,7,3,8],[0,7,2,17],[13,7,13,8],[14,7,14,8],[16,7,16,8],[9,7,9,8],[15,7,15,8],[10,7,10,8],[11,7,11,8],[9,15,9,17],[0,21,2,22],[0,18,2,19],[0,20,2,20],[18,15,18,17],[21,15,21,17],[24,15,24,17],[22,30,23,33],[24,30,27,31],[24,32,27,33],[23,7,23,8],[18,30,21,31],[20,7,20,8],[17,7,17,8],[18,7,18,8],[30,30,33,31],[30,32,33,33],[6,30,9,31],[6,32,9,33],[4,30,5,33],[12,32,15,33],[12,30,15,31],[12,7,12,8],[12,15,12,17],[15,15,15,17],[16,30,17,33]]}
["Текущее время",null,null,null,null,null,null,{"$f":"IF(ISBLANK(Лицевая!D10),\"ХОЗЯЕВА\",Лицевая!D10)","v":"\"ФАКЕЛ\""},null,null,null,null,null,null,null,null,null,null,{"$f":"Лицевая!R44","v":10},null,":",{"$f":"Лицевая!R45","v":0},null,{"$f":"IF(ISBLANK(Лицевая!W10),\"ГОСТИ\",Лицевая!W10)","v":"\"МЕТАЛЛУРГ\""},null,null,null,null,null,null,null,null,null,null,null,null,null,"Стартовое время текущего отсчёта","14:50:57",null,"01:30:00","00:44:45",90,"ГОЛОВКИН Сергей (вр)",1,0,null,"","blue","yellow","Командное предупреждение","Командное предупреждение",null,null,"Игра?",null,null,"Таймы","1 тайм","2 тайм","3 тайм","OT","OT1","OT2","BlueCard","WhiteCard","TimeOut","TimeOutKompens","LastMin","LastMinSek","LastMinStraff","LastMinStraffSek","MaxTimeoutCount",12,true,true,"ThirdDeletionTime","DefaultExit","Тройное судейство"]
["14:59:51",null,null,null,null,null,null,null,null,null,null,null,null,null,null,null,null,null,null,null,null,null,null,null,null,null,null,null,null,null,null,null,null,null,null,null,null,"Игровое время",{"$f":"A2-AM1+IF(OR(F5=\"П\",F5=\"\"),\"0\",AM8-AN1-AN2-AN3-AN4-AN5)","v":"00:08:54"},null,null,null,1,"ПАБАТ Никита (вр)",1,10,null,3,null,"white"," 1. Опоздание команды на второй тайм. (КШ-5 мин.)","опоздание команды на 2-й тайм",null,null,false,null,null,2,"0:45:00","0:45:00","0:00:00",true,"0:10:00","0:10:00","0:10:00","0:05:00","0:01:00","0:01:30",true,"30",true,"20","1",false,0,"Матч не начат",false,false,false]
[null,null,null,null,null,null,null,null,null,null,null,null,null,null,null,null,null,null,null,null,null,null,null,null,null,null,null,null,null,null,null,null,null,null,null,null,null,null,"0:45:00",null,null,null,null,null,null,null,null,0,null,"white"," 2. Несоблюдение игрового расстояния (5 метров)","несоблюдение игрового расстояния",null,null,null,null,null,null,"00:01:00",null,null,null,null,null,{"$f":"MINUTE(BM2)","v":10},{"$f":"MINUTE(BN2)","v":5},null,null,null,{"$f":"TIME(0,0,BR2)","v":"00:00:30"},null,{"$f":"TIME(0,0,BT2)","v":"00:00:20"},null,"Autosave",1,"Матч начат, идёт 1 тайм"]
["Матч окончен в 14:50:57. ",null,null,null,null,"Тайм",null,85,null,null,null,null,null,null,null,null,null,null,null,null,null,null,null,null,null,null,null,null,null,null,"Статистика матча",null,null,null,null,null,null,null,null,null,null,null,"Номер","Время","ФИО","Флаг",null,null,null,"white"," 3. Умышленная задержка игры (5 секунд)","задержка игры","ЯСНО","СУПЕРЛИГА",null,null,null,null,{"$f":"BG2-BR3-BG3","v":"00:43:30"},{"$f":"BG2+BH2-BG3-BR3","v":"01:28:30"},{"$f":"BG2+BH2+BI2-BG3-BR3","v":"01:28:30"},null,{"$f":"BG2+BH2+BK2+IF(BF2=2,0,BI2)-BG3-BR3","v":"01:38:30"},{"$f":"BG2+BH2+BK2+IF(BF2=2,0,BI2)-BG3-BR3+BL2","v":"01:48:30"},"00:01:00",null,null,null,null,null,null,null,null,null,2,"Перерыв после первого тайма"]
[{"$f":"IF(OR(BV1=0,BV1=12),\"0:00\",CONCATENATE(TEXT(HOUR(AM2)*60+MINUTE(AM2),\"##0\"),\":\",TEXT(SECOND(AM2),\"00\")))","v":"0:00"},null,null,null,null,null,null,null,null,null,null,null,null,null,null,null,null,null,null,null,null,null,null,null,null,null,null,null,null,null,"Штрафное время",null,null,null,null,null,null,null,null,null,null,10,null,"",null,false,null,null,null,"white"," 4. Умышленная откидка мяча","откидка мяча","ПАСМУРНО","ВЫСШАЯ",null,null,null,null,null,{"$f":"BG2+BH2","v":"01:30:00"},{"$f":"BH5+BI2","v":"01:30:00"},null,{"$f":"IF(BF2=2,BH5+BK2,BI5+BK2)","v":"01:40:00"},{"$f":"BK5+BL2","v":"01:50:00"},null,null,null,null,null,null,null,null,null,null,3,"2 тайм идёт"]
[null,null,null,null,null,null,null,null,null,null,null,null,null,null,null,null,null,null,null,null,null,null,null,null,null,null,null,null,null,null,null,null,null,null,null,null,null,null,null,null,null,13,null,"",null,false,null,null,null,"white"," 5. Игра сломанной клюшкой, игра без клюшки","игра сломанной клюшкой","СНЕГ","ЛЮБИТЕЛИ",null,null,null,null,{"$f":"CONCATENATE(TEXT(HOUR(BG2)*60+MINUTE(BG2),\"##0\"),\":\",TEXT(SECOND(BG2),\"00\"))","v":"45:00"},{"$f":"CONCATENATE(TEXT(HOUR(BH5)*60+MINUTE(BH5),\"##0\"),\":\",TEXT(SECOND(BH5),\"00\"))","v":"90:00"},{"$f":"CONCATENATE(TEXT(HOUR(BI5)*60+MINUTE(BI5),\"##0\"),\":\",TEXT(SECOND(BI5),\"00\"))","v":"90:00"},{"$f":"IF(BF2=1,BG6,IF(BF2=2,BH6,BI6))","v":"90:00"},{"$f":"CONCATENATE(TEXT(HOUR(BK5)*60+MINUTE(BK5),\"##0\"),\":\",TEXT(SECOND(BK5),\"00\"))","v":"100:00"},{"$f":"CONCATENATE(TEXT(HOUR(BL5)*60+MINUTE(BL5),\"##0\"),\":\",TEXT(SECOND(BL5),\"00\"))","v":"110:00"},{"$f":"IF(AND(BF2=2,NOT(BJ2)),BH6,IF(AND(BF2=3,NOT(BJ2)),BI6,BL6))","v":"110:00"},null,null,null,null,null,null,null,null,null,4,"Перерыв после второго тайма"]
["Скамья удалённых",null,null,null,null,null,null,null,null,null,null,null,null,null,null,null,null,null,null,null,null,null,null,null,null,null,null,null,null,null,{"$f":"Лицевая!J42","v":"30"},null,{"$f":"Лицевая!AB42","v":"35"},null,null,null,null,null,null,null,null,16,null,"",null,false,null,null,null,"white"," 7. Игра без обязательной защитной экипировки","отсутствие обязательной экипировки","СНЕГОПАД","ЮНИОРЫ",null,null,null,null,{"$f":"LEFT(BG6,FIND(\":\",BG6)-1)","v":"45"},{"$f":"LEFT(BH6,FIND(\":\",BH6)-1)","v":"90"},"90",null,"100","110","110",null,null,null,null,null,null,null,null,null,5,"3 тайм начат"]
[null,null,null,null,null,null,null,"01:28:30",null,{"$f":"CONCATENATE(MINUTE(H8),\":\",SECOND(H8))=CONCATENATE(MINUTE($AM$2),\":\",SECOND($AM$2))","v":false},null,null,null,null,null,null,null,null,null,null,null,null,null,null,null,null,null,null,null,null,null,null,null,null,null,null,null,null,{"$f":"AM3+AM4+AM5+AM6+AM7","v":"00:45:00"},null,null,19,null,"",null,false,null,null,null,"blue"," 8. Нарушение численного состава","нарушение численного состава","МЕТЕЛЬ","ЮНОШИ",null,null,null,null,{"$f":"MINUTE(BG2)","v":45},{"$f":"MINUTE(BG2)+MINUTE(BH2)","v":90},null,null,null,null,null,null,null,null,null,null,null,null,null,null,6,"Завершено основное время матча"]
[{"$f":"H1","v":"\"ФАКЕЛ\""},null,null,null,null,null,null,null,null,null,null,null,null,null,null,null,null,null,null,null,null,null,null,null,null,null,null,null,null,null,null,null,null,null,null,null,null,null,{"$f":"CONCATENATE(TEXT(HOUR(AM8)*60+MINUTE(AM8),\"##0\"),\":\",TEXT(SECOND(AM8),\"00\"))","v":"45:00"},null,null,22,null,"",null,false,null,null,null,"blue"," 9. Подножка","подножка","ДОЖДЬ","СТ.МАЛЬЧ.",null,null,null,null,null,null,null,null,null,null,null,null,null,null,null,null,null,null,null,null,7,"1-й овертайм начат"]
[null,null,{"$f":"IF(ISBLANK(H11),\"\",CONCATENATE(TEXT(MINUTE(H10),\"##0\"),\":\",TEXT(SECOND(H10),\"00\")))","v":""},null,null,null,null,{"$f":"IF($BC$2,H11+H12-$A$2+K10+L10+M10+N10+O10,H11)","v":"00:00:00"},null,{"$f":"CONCATENATE(MINUTE(H10),\":\",SECOND(H10))=CONCATENATE(MINUTE($BT$3),\":\",SECOND($BT$3))","v":false},null,null,null,null,null,false,null,null,null,null,null,null,null,null,null,null,null,null,null,null,null,null,null,null,null,null,null,"Составы переданы?",true,null,null,25,null,"",null,false,null,null,null,"blue","10. Задержка, зацеп (клюшкой, рукой)","задержка соперника","ТУМАН","МАЛЬЧИКИ",null,null,null,null,null,null,null,null,null,null,null,null,null,null,null,null,null,null,null,null,8,"Перерыв после 1-го овертайма"]
[null,null,null,null,null,null,null,null,null,{"$f":"ISERR(J10)","v":false},null,null,null,null,null,null,null,null,null,null,null,null,null,null,null,null,null,null,null,null,"Угловые",null,null,null,null,null,null,"Комп.время",{"$f":"SUM(AN1:AN25)","v":"00:00:00"},null,null,29,null,"",null,false,null,null,null,"blue","11. Неправильная игра туловищем (блокировка, опасное, грубое применение силового приёма)","блокировка","КР.КАТОК","МЛ.МАЛЬЧ",null,null,null,null,null,null,null,null,null,null,null,null,null,null,null,null,null,null,null,null,9,"2-й овертайм начат"]
[null,null,null,null,null,null,null,null,null,null,null,null,null,null,null,null,null,null,null,null,null,null,null,null,null,null,null,null,null,null,null,null,null,null,null,null,null,"Компенсаций",{"$f":"COUNTIF(Регистратор!AN1:AN25,\">0\")","v":0},null,null,32,null,"",null,false,null,null,null,"blue","12. Удар соперника клюшкой","удар соперника клюшкой",null,"ДЕВУШКИ",null,null,null,null,null,null,null,null,null,null,null,null,null,null,null,null,null,null,null,null,10,"Перерыв после 2-го овертайма"]
[null,null,{"$f":"IF(ISBLANK(H14),\"\",CONCATENATE(TEXT(MINUTE(H13),\"##0\"),\":\",TEXT(SECOND(H13),\"00\")))","v":""},null,null,null,null,{"$f":"IF($BC$2,H14+H15-$A$2+K13+L13+M13+N13+O13,H14)","v":"00:00:00"},null,{"$f":"CONCATENATE(MINUTE(H13),\":\",SECOND(H13))=CONCATENATE(MINUTE($BT$3),\":\",SECOND($BT$3))","v":false},null,null,null,null,null,false,null,null,null,null,null,null,null,null,null,null,null,null,null,null,0,null,0,null,null,null,null,null,{"$f":"AM1+AR11","v":{"$error":"#VALUE!"}},null,null,35,null,"",null,false,null,null,null,"blue","13. Толчок соперника","толчок соперника",null,"ДЕВОЧКИ",null,null,null,null,null,null,null,null,null,null,null,null,null,null,null,null,null,null,null,null,11,"Начата серия 12-метровых"]
[null,null,null,null,null,null,null,null,null,{"$f":"ISERR(J13)","v":false},null,null,null,null,null,null,null,null,null,null,null,null,null,null,null,null,null,null,null,null,null,null,null,null,null,null,null,null,null,null,null,38,null,"",null,false,null,null,null,"blue","14. Бросок клюшки, перчатки в мяч","бросок клюшки, перчатки в мяч",null,"ВЕТЕРАНЫ",null,null,null,null,null,null,null,null,null,null,null,null,null,null,null,null,null,null,null,null,12,"Конец матча"]
[null,null,null,null,null,null,null,null,null,null,null,null,null,null,null,null,null,null,null,null,null,null,null,null,null,null,null,null,null,null,null,null,null,null,null,null,null,null,null,null,null,41,null,"",null,false,null,null,null,"blue","15. Умышленная остановка мяча неразрешённым способом (рукой, головой, лёжа, высоко поднятой клюшкой и т.д.)","остановка мяча неразрешённым способом"]
[null,null,{"$f":"IF(ISBLANK(H17),\"\",CONCATENATE(TEXT(MINUTE(H16),\"##0\"),\":\",TEXT(SECOND(H16),\"00\")))","v":""},null,null,null,null,{"$f":"IF($BC$2,H17+H18-$A$2+K16+L16+M16+N16+O16,H17)","v":"00:00:00"},null,{"$f":"CONCATENATE(MINUTE(H16),\":\",SECOND(H16))=CONCATENATE(MINUTE($BT$3),\":\",SECOND($BT$3))","v":false},null,null,null,null,null,false,null,null,null,null,null,null,null,null,null,null,null,null,null,null,null,null,null,null,null,null,null,null,null,null,null,44,null,"",null,false,null,null,null,"blue","16. Неспортивное поведение (апелляция, пререкания и т.д.) ","неспортивное поведение"]
[null,null,null,null,null,null,null,null,null,{"$f":"ISERR(J16)","v":false},null,null,null,null,null,null,null,null,null,null,null,null,null,null,null,null,null,null,null,null,"Свободные",null,null,null,null,null,null,null,null,null,null,null,null,null,null,null,null,null,null,"blue","17. Вмешательство в действия судей представителей команд (КШ-10 мин.) ","вмешательство в действия судей"]
[null,null,null,null,null,null,null,null,null,null,null,null,null,null,null,null,null,null,null,null,null,null,null,null,null,null,null,null,null,null,null,null,null,null,null,null,null,null,null,null,null,null,null,null,null,null,null,null,null,"red","18. Третье удаление в ходе матча","третье удаление в матче"]
[null,null,{"$f":"IF(ISBLANK(H20),\"\",CONCATENATE(TEXT(MINUTE(H19),\"##0\"),\":\",TEXT(SECOND(H19),\"00\")))","v":""},null,null,null,null,{"$f":"IF($BC$2,H20+H21-$A$2+K19+L19+M19+N19+O19,H20)","v":"00:00:00"},null,{"$f":"CONCATENATE(MINUTE(H19),\":\",SECOND(H19))=CONCATENATE(MINUTE($BT$3),\":\",SECOND($BT$3))","v":false},null,null,null,null,null,false,null,null,null,null,null,null,null,null,null,null,null,null,null,null,0,null,0,null,null,null,null,null,null,null,null,"i4XNPUz2",null,null,null,null,null,null,null,"red","19. Несогласие с решением арбитра после удаления на 5, 10 минут","несогласие с решением арбитра"]
[null,null,null,null,null,null,null,null,null,{"$f":"ISERR(J19)","v":false},null,null,null,null,null,null,null,null,null,null,null,null,null,null,null,null,null,null,null,null,null,null,null,null,null,null,null,null,null,null,null,null,null,null,null,null,null,null,null,"red","21. Неспортивное поведение представителей команд или запасных игроков до, во время и по окончании матча. (КШ-10 мин.)","неспортивное поведение представителей"]
[null,null,null,null,null,null,null,null,null,null,null,null,null,null,null,null,null,null,null,null,null,null,null,null,null,null,null,null,null,null,null,null,null,null,null,null,null,null,null,null,null,null,null,null,null,null,null,null,null,"red","22. Умышленное нарушение правил против игрока, находящегося на половине поля соперника, в ситуации связанной с возможностью взятия ворот (с правом замены через 10 мин.)\n","умышл. нарушение, связ. со взятием ворот"]
[null,null,{"$f":"IF(ISBLANK(H23),\"\",CONCATENATE(TEXT(MINUTE(H22),\"##0\"),\":\",TEXT(SECOND(H22),\"00\")))","v":""},null,null,null,null,{"$f":"IF($BC$2,H23+H24-$A$2+K22+L22+M22+N22+O22,H23)","v":"00:00:00"},null,{"$f":"CONCATENATE(MINUTE(H22),\":\",SECOND(H22))=CONCATENATE(MINUTE($BT$3),\":\",SECOND($BT$3))","v":false},null,null,null,null,null,false,null,null,null,null,null,null,null,null,null,null,null,null,null,null,null,null,null,null,null,null,null,null,null,null,null,null,null,null,null,null,null,null,null,"red","23. Умышленный удар клюшкой, рукой, ногой, головой","умышленный удар соперника"]
[null,null,null,null,null,null,null,null,null,{"$f":"ISERR(J22)","v":false},null,null,null,null,null,null,null,null,null,null,null,null,null,null,null,null,null,null,null,null,"12-метровые",null,null,null,null,null,null,null,null,null,null,null,null,null,null,null,null,null,null,"red","24. Бросок клюшки, перчатки в игрока, судью, зрителей","бросок клюшки, перчатки в игрока, судью, зрителей"]
[null,null,null,null,null,null,null,null,null,null,null,null,null,null,null,null,null,null,null,null,null,null,null,null,null,null,null,null,null,null,null,null,null,null,null,null,null,null,null,null,null,null,null,null,null,null,null,null,null,"red","25. Умышленная грубая игра без нанесения травмы","грубая игра без нанесения травмы"]
[null,null,{"$f":"IF(ISBLANK(H26),\"\",CONCATENATE(TEXT(MINUTE(H25),\"##0\"),\":\",TEXT(SECOND(H25),\"00\")))","v":""},null,null,null,null,{"$f":"IF($BC$2,H26+H27-$A$2+K25+L25+M25+N25+O25,H26)","v":"00:00:00"},null,{"$f":"CONCATENATE(MINUTE(H25),\":\",SECOND(H25))=CONCATENATE(MINUTE($BT$3),\":\",SECOND($BT$3))","v":false},null,null,null,null,null,false,null,null,null,null,null,null,null,null,null,null,null,null,null,null,1,null,0,null,null,null,null,null,null,null,null,null,null,null,null,null,null,null,null,"red","26. Умышленная грубая игра с нанесением травмы","грубая игра с нанесением травмы"]
[null,null,null,null,null,null,null,null,null,{"$f":"ISERR(J25)","v":false},null,null,null,null,null,null,null,null,null,null,null,null,null,null,null,null,null,null,null,null,null,null,null,null,null,null,null,null,null,null,null,null,null,null,null,null,null,null,null,"red","27. Выход на поле, игрока отбывающего 5, 10 мин. удаление,  без разрешения  судьи","выход оштрафованного игрока на поле без разрешения судьи"]
[null,null,null,null,null,null,null,null,null,null,null,null,null,null,null,null,null,null,null,null,null,null,null,null,null,null,null,null,null,null,null,null,null,null,null,null,null,null,null,null,null,null,null,null,null,null,null,null,null,"red","28. Оскорбительные жесты, оскорбления, нецензурные выражения в адрес партнёра, соперника, судейской бригады, официальных лиц, зрителей","оскорбления, нецензурные выражения"]
[{"$f":"X1","v":"\"МЕТАЛЛУРГ\""},null,null,null,null,null,null,null,null,null,null,null,null,null,null,null,null,null,null,null,null,null,null,null,null,null,null,null,null,null,null,null,null,null,null,null,null,null,null,null,null,null,null,null,null,null,null,null,null,"red","29. Обоюдная драка","обоюдная драка"]
[null,null,{"$f":"IF(ISBLANK(H30),\"\",CONCATENATE(TEXT(MINUTE(H29),\"##0\"),\":\",TEXT(SECOND(H29),\"00\")))","v":""},null,null,null,null,{"$f":"IF($BC$2,H30+H31-$A$2+K29+L29+M29+N29+O29,H30)","v":"00:00:00"},null,{"$f":"CONCATENATE(MINUTE(H29),\":\",SECOND(H29))=CONCATENATE(MINUTE($BT$3),\":\",SECOND($BT$3))","v":false},null,null,null,null,null,false,null,null,null,null,null,null,null,null,null,null,null,null,null,null,"Вне игры",null,null,null,null,null,null,null,null,null,null,null,null,null,null,null,null,null,null,"red","30. Нападение на судейскую бригаду","нападение на судейскую бригаду"]
[null,null,null,null,null,null,null,null,null,{"$f":"ISERR(J29)","v":false}]
[null,null,null,null,null,null,null,null,null,null,null,null,null,null,null,null,null,null,null,null,null,null,null,null,null,null,null,null,null,null,0,null,0]
[null,null,{"$f":"IF(ISBLANK(H33),\"\",CONCATENATE(TEXT(MINUTE(H32),\"##0\"),\":\",TEXT(SECOND(H32),\"00\")))","v":""},null,null,null,null,{"$f":"IF($BC$2,H33+H34-$A$2+K32+L32+M32+N32+O32,H33)","v":"00:00:00"},null,{"$f":"CONCATENATE(MINUTE(H32),\":\",SECOND(H32))=CONCATENATE(MINUTE($BT$3),\":\",SECOND($BT$3))","v":false},null,null,null,null,null,false]
[null,null,null,null,null,null,null,null,null,{"$f":"ISERR(J32)","v":false}]
[]
[null,null,{"$f":"IF(ISBLANK(H36),\"\",CONCATENATE(TEXT(MINUTE(H35),\"##0\"),\":\",TEXT(SECOND(H35),\"00\")))","v":""},null,null,null,null,{"$f":"IF($BC$2,H36+H37-$A$2+K35+L35+M35+N35+O35,H36)","v":"00:00:00"},null,{"$f":"CONCATENATE(MINUTE(H35),\":\",SECOND(H35))=CONCATENATE(MINUTE($BT$3),\":\",SECOND($BT$3))","v":false},null,null,null,null,null,false,null,null,null,null,null,null,null,null,null,null,null,null,null,null,"Тайм-ауты"]
[null,null,null,null,null,null,null,null,null,{"$f":"ISERR(J35)","v":false}]
[null,null,null,null,null,null,null,null,null,null,null,null,null,null,null,null,null,null,null,null,null,null,null,null,null,null,null,null,null,null,0,null,1]
[null,null,{"$f":"IF(ISBLANK(H39),\"\",CONCATENATE(TEXT(MINUTE(H38),\"##0\"),\":\",TEXT(SECOND(H38),\"00\")))","v":""},null,null,null,null,{"$f":"IF($BC$2,H39+H40-$A$2+K38+L38+M38+N38+O38,H39)","v":"00:00:00"},null,{"$f":"CONCATENATE(MINUTE(H38),\":\",SECOND(H38))=CONCATENATE(MINUTE($BT$3),\":\",SECOND($BT$3))","v":false},null,null,null,null,null,false]
[null,null,null,null,null,null,null,null,null,{"$f":"ISERR(J38)","v":false}]
[]
[null,null,{"$f":"IF(ISBLANK(H42),\"\",CONCATENATE(TEXT(MINUTE(H41),\"##0\"),\":\",TEXT(SECOND(H41),\"00\")))","v":""},null,null,null,null,{"$f":"IF($BC$2,H42+H43-$A$2+K41+L41+M41+N41+O41,H42)","v":"00:00:00"},null,{"$f":"CONCATENATE(MINUTE(H41),\":\",SECOND(H41))=CONCATENATE(MINUTE($BT$3),\":\",SECOND($BT$3))","v":false},null,null,null,null,null,false]
[null,null,null,null,null,null,null,null,null,{"$f":"ISERR(J41)","v":false}]
[]
[null,null,{"$f":"IF(ISBLANK(H45),\"\",CONCATENATE(TEXT(MINUTE(H44),\"##0\"),\":\",TEXT(SECOND(H44),\"00\")))","v":""},null,null,null,null,{"$f":"IF($BC$2,H45+H46-$A$2+K44+L44+M44+N44+O44,H45)","v":"00:00:00"},null,{"$f":"CONCATENATE(MINUTE(H44),\":\",SECOND(H44))=CONCATENATE(MINUTE($BT$3),\":\",SECOND($BT$3))","v":false},null,null,null,null,null,false]
[null,null,null,null,null,null,null,null,null,{"$f":"ISERR(J44)","v":false}]
[]
[null,null,null,"    обоюдно ↑"]

{"sheet":"MatchReport","index":5,"n_rows":39,"n_cols":7,"rows_kept":39,"cut":false,"hidden":false,"merged":[]}
[null,"110:00","Статистика матча. Штрафное время: 30 - 35. Угловые: 0 - 0. Свободные удары: 0 - 0. 12-метровые: 1 - 0. Вне игры: 0 - 0. Тайм-ауты: 0 - 1. ",null,"14:50:57","0:27",50]
[null,"110:00","Матч окончен (0:27) в 14:50:57. Результат матча \"ФАКЕЛ\" (Богданович) - \"МЕТАЛЛУРГ\" (Нижний Тагил) - 10:0 (4:0)",null,"14:50:30","90:00",12]
["14:50:30","90:00","Текущая статистика. Штрафное время: 30 - 35. Угловые: 0 - 0. Свободные удары: 0 - 0. 12-метровые: 1 - 0. Вне игры: 0 - 0. Тайм-ауты: 0 - 1. ",null,"14:49:36","89:06",50]
["14:50:30","90:00","Окончание 2-го тайма (90:00) \"ФАКЕЛ\" (Богданович) - \"МЕТАЛЛУРГ\" (Нижний Тагил) - 10:0",null,"14:43:34","83:04",4]
["14:49:36","89:06","Гол: [10:0]  - \"ФАКЕЛ\", ПОПОВ Максим - с игры",null,"14:34:49","75:19",20]
["14:43:34","83:04","РУКОЛЕЕВ Геннадий, \"ФАКЕЛ\" - закончилось штрафное время",null,"14:34:21","74:51",35]
["14:34:49","75:19","Назначено компенсированное время: 01:00",null,"14:33:14","73:44",13]
["14:34:21","74:51","Тайм-аут взят командой \"МЕТАЛЛУРГ\"",null,"14:32:33","73:03",14]
["14:33:14","73:44","Гол: [9:0]  - \"ФАКЕЛ\", ПОПОВ Максим (МИТРОФАНОВ Александр) - со свободного удара",null,"14:30:53","71:23",20]
["14:32:33","73:03","Удаление на 10 минут - \"ФАКЕЛ\", РУКОЛЕЕВ Геннадий (подножка)",null,"14:29:28","69:58",33]
["14:30:53","71:23","Гол: [8:0]  - \"ФАКЕЛ\", ДЕНИСОВ Сергей (БРУСЕНКОВ Денис) - с игры",null,"14:20:05","60:35",20]
["14:29:28","69:58","МЕДВЕДЕВ Александр, \"ФАКЕЛ\" - закончилось штрафное время",null,"14:19:27","59:57",35]
["14:20:05","60:35","Гол: [7:0]  - \"ФАКЕЛ\", КОЛТЫШЕВ Дмитрий - с игры",null,"14:15:25","55:55",20]
["14:19:27","59:57","Удаление на 10 минут - \"ФАКЕЛ\", МЕДВЕДЕВ Александр (подножка)",null,"14:14:42","55:12",33]
["14:15:25","55:55","Гол: [6:0]  - \"ФАКЕЛ\", ДЕНИСОВ Сергей (БРУСЕНКОВ Денис) - с игры",null,"14:14:02","54:32",20]
["14:58:37","54:07","\"МЕТАЛЛУРГ\",  №  11, ГАЁВ Максим - досрочно окончено штрафное время",null,"14:13:37","54:07",36]
["14:13:37","54:07","Гол: [5:0]  - \"ФАКЕЛ\", ВОРОБЬЁВ Михаил (к) - с 12-метрового штрафного удара",null,"14:13:12","53:42",20]
["14:13:12","53:42","Удаление на 10 минут - \"МЕТАЛЛУРГ\", ГАЁВ Максим (подножка)",null,"14:07:59","48:29",33]
["14:07:59","48:29","ГАЁВ Максим, \"МЕТАЛЛУРГ\" - закончилось штрафное время",null,"14:04:30","16:44",35]
["14:49:30","45:00","Начало 2-го тайма в 14:04:30. Время перерыва - 0:18:11",null,"13:48:30","0:44",3]
["13:47:46","45:00","Количество зрителей на матче: 200",null,"13:47:46","45:00",16]
["13:47:46","45:00","Текущая статистика. Штрафное время: 10 - 25. Угловые: 0 - 0. Свободные удары: 0 - 0. 12-метровые: 0 - 0. Вне игры: 0 - 0. Тайм-ауты: 0 - 0. ",null,"13:46:04","43:18",50]
["13:47:46","45:00","Окончание 1-го тайма (45:00). \"ФАКЕЛ\" (Богданович) - \"МЕТАЛЛУРГ\" (Нижний Тагил) - 4:0",null,"13:43:32","40:46",2]
["13:43:16","40:30","\"МЕТАЛЛУРГ\",  №  17, МЯКИШЕВ Фёдор - досрочно окончено штрафное время",null,"13:43:16","40:30",36]
["13:43:16","40:30","Гол: [4:0]  - \"ФАКЕЛ\", БЕЗБОРОДОВ Сергей - с игры",null,"13:41:15","38:29",20]
["13:41:15","38:29","Удаление на 10 минут - \"МЕТАЛЛУРГ\", ГАЁВ Максим (подножка)",null,"13:39:21","36:35",33]
["13:39:21","36:35","Удаление на 5 минут - \"МЕТАЛЛУРГ\", МЯКИШЕВ Фёдор (несоблюдение игрового расстояния)",null,"13:35:22","32:36",32]
["13:35:07","32:21","\"МЕТАЛЛУРГ\",  №  12, ЗАХАРОВ Владислав - досрочно окончено штрафное время",null,"13:35:07","32:21",36]
["13:35:07","32:21","Гол: [3:0]  - \"ФАКЕЛ\", МЕДВЕДЕВ Александр - с игры",null,"13:28:08","25:22",20]
["13:28:08","25:22","МИТРОФАНОВ Александр, \"ФАКЕЛ\" - закончилось штрафное время",null,"13:27:35","24:49",35]
["13:27:35","24:49","Удаление на 10 минут - \"МЕТАЛЛУРГ\", ЗАХАРОВ Владислав (подножка)",null,"13:18:04","15:18",33]
["13:18:04","15:18","Удаление на 10 минут - \"ФАКЕЛ\", МИТРОФАНОВ Александр (задержка соперника)",null,"13:06:03","3:17",33]
["13:06:03","3:17","Гол: [2:0]  - \"ФАКЕЛ\", ДЕНИСОВ Сергей - с игры",null,"13:03:02","0:16",20]
["13:03:02","0:16","Гол: [1:0]  - \"ФАКЕЛ\", БРУСЕНКОВ Денис (БЕЗБОРОДОВ Сергей) - с игры",null,"13:02:46","0:00",20]
["13:02:46","0:00","\"МЕТАЛЛУРГ\" (Нижний Тагил): 1. ПАБАТ Никита (вр) | 15. КАНДАКОВ Андрей (к) | 11. ГАЁВ Максим | 21. ШАВКУНОВ Антон | 17. МЯКИШЕВ Фёдор | 12. ЗАХАРОВ Владислав | 7. БЕЛЫХ Олег | 13. ПУДОВ Денис | 5. ВАНИЧКИН Вадим | 10. СПИРИДОНОВ Евгений | 19. ШЕСТАКОВ Никита | 30. СОКОЛОВСКИЙ Андрей (вр) | 8. ЧЕРЕПАНОВ вЛАДИСЛАВ | 9. НЕФЁДОВ Максим | 16. КУЗНЕЦОВ Марк | 3. МАРТЫНОВ Алексей | 14. СТРУИН Андрей | 18. СИБГАТУЛИН Дмитрий | 2. КОСТОУСОВ Илья | Тренер - ШАПОВАЛОВ А.П.",null,null,null,50]
["13:02:46","0:00","\"ФАКЕЛ\" (Богданович): 90. ГОЛОВКИН Сергей (вр) | 8. ВОРОБЬЁВ Михаил (к) | 20. РУКОЛЕЕВ Геннадий | 12. МИТРОФАНОВ Александр | 18. ШЕПЕЛЕВ Александр | 17. ПОПОВ Максим | 4. БЕЗБОРОДОВ Сергей | 6. МЕДВЕДЕВ Александр | 10. ЕРМОЛИН Андрей | 13. БРУСЕНКОВ Денис | 5. ДЕНИСОВ Сергей | 21. БЫКОВ Павел (в) | 3. ЧЕРЕПАНОВ Артём | 15. ФЕКЛУШИН Григорий | 19. ВОРОПАЕВ Аркадий | 14. ХАЙБУЛЛИН Алексей | 16. КОЛТЫШЕВ Дмитрий | 7. ТИХОНОВ Вадим  | 11. ДЁМИН Евгений | 2. АКСЕНТЬЕВ Станислав | Тренер - БРЮХАНОВ А.Н.",null,null,null,50]
["13:02:46","0:00","Судьи в поле : ЗЕЛЕЧЕНКО Андрей, 3К, Богданович, БЕЗБОРОДОВ Владимир, 3К, Богданович. ",null,null,null,50]
["13:02:46","0:00","БОГДАНОВИЧ. Cтадион \"ХК ФАКЕЛ\". ЯСНО. Температура -6°C.",null,null,null,50]
["13:02:46","0:00","Начало матча - 13:02:46 (БОГДАНОВИЧ, местное время)",null,null,null,1]

{"sheet":"Команды","index":6,"n_rows":2491,"n_cols":12,"rows_kept":2491,"cut":false,"hidden":false,"merged":[[0,6,0,11]]}
["Не трогать!","Команда","Номер","Игрок","English",null,"Ячейки для конвертации составов с сайта ФХМР в формат ЭП"]
[{"$f":"CONCATENATE(B2,C2)","v":"\"БАЙКАЛ-ЭНЕРГИЯ\"7"},"\"БАЙКАЛ-ЭНЕРГИЯ\"",7,"ТРЕМАСКИН Руслан",null,null,"\"УРАЛЬСКИЙ ТРУБНИК\"",1,null,"Морковкин Александр ","Вратарь","МОРКОВКИН Александр  (в)"]
["\"БАЙКАЛ-ЭНЕРГИЯ\"8","\"БАЙКАЛ-ЭНЕРГИЯ\"",8,"ШАДРИН Евгений",null,null,"\"УРАЛЬСКИЙ ТРУБНИК\"",28,null,"Мокеев Антон ","Вратарь","МОКЕЕВ Антон  (в)"]
["\"БАЙКАЛ-ЭНЕРГИЯ\"9","\"БАЙКАЛ-ЭНЕРГИЯ\"",9,"ИСМАГИЛОВ Станислав",null,null,"\"УРАЛЬСКИЙ ТРУБНИК\"",3,null,"Пепеляев Константин ","Защитник","ПЕПЕЛЯЕВ Константин "]
["\"БАЙКАЛ-ЭНЕРГИЯ\"11","\"БАЙКАЛ-ЭНЕРГИЯ\"",11,"ДЕНИСОВ Виталий",null,null,"\"УРАЛЬСКИЙ ТРУБНИК\"",13,null,"Комаров Максим ","Защитник","КОМАРОВ Максим "]
["\"БАЙКАЛ-ЭНЕРГИЯ\"13","\"БАЙКАЛ-ЭНЕРГИЯ\"",13,"ЮРЛОВ Никита",null,null,"\"УРАЛЬСКИЙ ТРУБНИК\"",23,null,"Разуваев Дмитрий ","Защитник","РАЗУВАЕВ Дмитрий "]
["\"БАЙКАЛ-ЭНЕРГИЯ\"14","\"БАЙКАЛ-ЭНЕРГИЯ\"",14,"СЛУГИН Александр",null,null,"\"УРАЛЬСКИЙ ТРУБНИК\"",4,null,"Кислов Андрей ","Полузащитник","КИСЛОВ Андрей "]
["\"БАЙКАЛ-ЭНЕРГИЯ\"17","\"БАЙКАЛ-ЭНЕРГИЯ\"",17,"ВАССЕРМАН Игорь",null,null,"\"УРАЛЬСКИЙ ТРУБНИК\"",9,null,"Багаев Денис ","Полузащитник","БАГАЕВ Денис "]
["\"БАЙКАЛ-ЭНЕРГИЯ\"21","\"БАЙКАЛ-ЭНЕРГИЯ\"",21,"ДУБОВИК Павел",null,null,"\"УРАЛЬСКИЙ ТРУБНИК\"",11,null,"Сысоев Евгений ","Полузащитник","СЫСОЕВ Евгений "]
["\"БАЙКАЛ-ЭНЕРГИЯ\"23","\"БАЙКАЛ-ЭНЕРГИЯ\"",23,"НЕГРУН Максим (в)",null,null,"\"УРАЛЬСКИЙ ТРУБНИК\"",12,null,"Муравский Ян ","Полузащитник","МУРАВСКИЙ Ян "]
["\"БАЙКАЛ-ЭНЕРГИЯ\"24","\"БАЙКАЛ-ЭНЕРГИЯ\"",24,"БЕЗНОСОВ Тимофей",null,null,"\"УРАЛЬСКИЙ ТРУБНИК\"",24,null,"Липин Григорий ","Полузащитник","ЛИПИН Григорий "]
["\"БАЙКАЛ-ЭНЕРГИЯ\"26","\"БАЙКАЛ-ЭНЕРГИЯ\"",26,"КУТУПОВ Тимур",null,null,"\"УРАЛЬСКИЙ ТРУБНИК\"",27,null,"Сидоров Дмитрий ","Полузащитник","СИДОРОВ Дмитрий "]
["\"БАЙКАЛ-ЭНЕРГИЯ\"44","\"БАЙКАЛ-ЭНЕРГИЯ\"",44,"ИВАНОВ Никита",null,null,"\"УРАЛЬСКИЙ ТРУБНИК\"",44,null,"Орлов Андрей ","Полузащитник","ОРЛОВ Андрей "]
["\"БАЙКАЛ-ЭНЕРГИЯ\"51","\"БАЙКАЛ-ЭНЕРГИЯ\"",51,"ГАВРИЛЕНКО Максим (к)",null,null,"\"УРАЛЬСКИЙ ТРУБНИК\"",57,null,"Сустретов Дмитрий ","Полузащитник","СУСТРЕТОВ Дмитрий "]
["\"БАЙКАЛ-ЭНЕРГИЯ\"66","\"БАЙКАЛ-ЭНЕРГИЯ\"",66,"СОЛОВЬЁВ Иван",null,null,"\"УРАЛЬСКИЙ ТРУБНИК\"",77,null,"Степченков Дмитрий ","Полузащитник","СТЕПЧЕНКОВ Дмитрий "]
["\"БАЙКАЛ-ЭНЕРГИЯ\"78","\"БАЙКАЛ-ЭНЕРГИЯ\"",78,"НИКИТИН Никита",null,null,"\"УРАЛЬСКИЙ ТРУБНИК\"",89,null,"Воронковский Александр ","Полузащитник","ВОРОНКОВСКИЙ Александр "]
["\"БАЙКАЛ-ЭНЕРГИЯ\"81","\"БАЙКАЛ-ЭНЕРГИЯ\"",81,"НЕЧАЕВ Иван",null,null,"\"УРАЛЬСКИЙ ТРУБНИК\"",8,null,"Сафуллин Дмитрий ","Нападающий","САФУЛЛИН Дмитрий "]
["\"БАЙКАЛ-ЭНЕРГИЯ\"87","\"БАЙКАЛ-ЭНЕРГИЯ\"",87,"ЛАПИН Григорий (в)",null,null,"\"УРАЛЬСКИЙ ТРУБНИК\"",21,null,"Игошин Евгений ","Нападающий","ИГОШИН Евгений "]
["\"БАЙКАЛ-ЭНЕРГИЯ\"88","\"БАЙКАЛ-ЭНЕРГИЯ\"",88,"ИВАНУШКИН Евгений",null,null,"\"УРАЛЬСКИЙ ТРУБНИК\"",51,null,"Полынский Дмитрий ","Нападающий","ПОЛЫНСКИЙ Дмитрий "]
["\"БАЙКАЛ-ЭНЕРГИЯ\"90","\"БАЙКАЛ-ЭНЕРГИЯ\"",90,"ШЕВЦОВ Антон",null,null,"\"УРАЛЬСКИЙ ТРУБНИК\"",80,null,"Чучалин Павел ","Нападающий","ЧУЧАЛИН Павел "]
["\"БАЙКАЛ-ЭНЕРГИЯ\"91","\"БАЙКАЛ-ЭНЕРГИЯ\"",91,"ЕГОРЫЧЕВ Александр",null,null,"\"УРАЛЬСКИЙ ТРУБНИК\"",88,null,"Черных Дмитрий ","Нападающий","ЧЕРНЫХ Дмитрий "]
["\"БАЙКАЛ-ЭНЕРГИЯ\"94","\"БАЙКАЛ-ЭНЕРГИЯ\"",94,"ЕГОРЫЧЕВ Егор",null,null,"\"ЗОРКИЙ\"",79,null,"Гурьев Дмитрий ","Вратарь","ГУРЬЕВ Дмитрий  (в)"]
["\"БАЙКАЛ-ЭНЕРГИЯ\"97","\"БАЙКАЛ-ЭНЕРГИЯ\"",97,"ФЕРОЯН Артём",null,null,"\"ЗОРКИЙ\"",81,null,"Ахмеров Антон ","Вратарь","АХМЕРОВ Антон  (в)"]
["\"БАЙКАЛ-ЭНЕРГИЯ\"901","\"БАЙКАЛ-ЭНЕРГИЯ\"",901,"КАДАКИН Н.И.",null,null,"\"ЗОРКИЙ\"",90,null,"Гутаренко Денис ","Вратарь","ГУТАРЕНКО Денис  (в)"]
["\"ВОДНИК\"5","\"ВОДНИК\"",5,"ГЛАДЫШЕВ Алексей",null,null,"\"ЗОРКИЙ\"",5,null,"Логинов Юрий ","Защитник","ЛОГИНОВ Юрий "]
["\"ВОДНИК\"8","\"ВОДНИК\"",8,"ЧЕРМНЫХ Максим",null,null,"\"ЗОРКИЙ\"",13,null,"Васильев Вадим ","Защитник","ВАСИЛЬЕВ Вадим "]
["\"ВОДНИК\"9","\"ВОДНИК\"",9,"ТЮКАВИН Александр",null,null,"\"ЗОРКИЙ\"",15,null,"Петтерссон Линус ","Защитник","ПЕТТЕРССОН Линус "]
["\"ВОДНИК\"10","\"ВОДНИК\"",10,"ПОПУТНИКОВ Дмитрий",null,null,"\"ЗОРКИЙ\"",17,null,"Мельников Николай ","Защитник","МЕЛЬНИКОВ Николай "]
["\"ВОДНИК\"11","\"ВОДНИК\"",11,"АНТОНОВ Александр",null,null,"\"ЗОРКИЙ\"",29,null,"Захаров Петр ","Защитник","ЗАХАРОВ Петр "]
["\"ВОДНИК\"13","\"ВОДНИК\"",13,"КОЗЛОВ Иван",null,null,"\"ЗОРКИЙ\"",33,null,"Романов Тихон ","Защитник","РОМАНОВ Тихон "]
["\"ВОДНИК\"15","\"ВОДНИК\"",15,"КАЛИНИН Сергей",null,null,"\"ЗОРКИЙ\"",93,null,"Волочугин Константин ","Защитник","ВОЛОЧУГИН Константин "]
["\"ВОДНИК\"17","\"ВОДНИК\"",17,"СУХОРУКОВ Роман",null,null,"\"ЗОРКИЙ\"",8,null,"Ишкельдин Максим ","Полузащитник","ИШКЕЛЬДИН Максим "]
["\"ВОДНИК\"18","\"ВОДНИК\"",18,"КОВАЛЁВ Андрей",null,null,"\"ЗОРКИЙ\"",12,null,"Бурлаков Сергей ","Полузащитник","БУРЛАКОВ Сергей "]
["\"ВОДНИК\"19","\"ВОДНИК\"",19,"ДЕРГАЕВ Евгений (к)",null,null,"\"ЗОРКИЙ\"",52,null,"Котков Денис ","Полузащитник","КОТКОВ Денис "]
["\"ВОДНИК\"22","\"ВОДНИК\"",22,"ШЕХОВЦОВ Никита",null,null,"\"ЗОРКИЙ\"",80,null,"Ким Александр ","Полузащитник","КИМ Александр "]
["\"ВОДНИК\"24","\"ВОДНИК\"",24,"ГРОМНИЦКИЙ Евгений",null,null,"\"ЗОРКИЙ\"",91,null,"Эсплунд Йохан ","Полузащитник","ЭСПЛУНД Йохан "]
["\"ВОДНИК\"26","\"ВОДНИК\"",26,"РАДЮШИН Юрий",null,null,"\"ЗОРКИЙ\"",99,null,"Ануфриев Николай ","Полузащитник","АНУФРИЕВ Николай "]
["\"ВОДНИК\"27","\"ВОДНИК\"",27,"ШИЛЯЕВ Михаил (в)",null,null,"\"ЗОРКИЙ\"",7,null,"Шардаков Юрий ","Нападающий","ШАРДАКОВ Юрий "]
["\"ВОДНИК\"29","\"ВОДНИК\"",29,"ПОТАПЕНКО Артемий",null,null,"\"ЗОРКИЙ\"",10,null,"Миргазов Алмаз ","Нападающий","МИРГАЗОВ Алмаз "]
["\"ВОДНИК\"33","\"ВОДНИК\"",33,"ДОРОХИН Данил (в)",null,null,"\"ЗОРКИЙ\"",19,null,"Нильссон Патрик ","Нападающий","НИЛЬССОН Патрик "]
["\"ВОДНИК\"41","\"ВОДНИК\"",41,"ШОРА Николай",null,null,"\"ЗОРКИЙ\"",84,null,"Доровских Алексей ","Нападающий","ДОРОВСКИХ Алексей "]
["\"ВОДНИК\"46","\"ВОДНИК\"",46,"ФОМИЧЁВ Виктор",null,null,"\"ЗОРКИЙ\"",96,null,"Цыганенко Петр ","Нападающий","ЦЫГАНЕНКО Петр "]
["\"ВОДНИК\"50","\"ВОДНИК\"",50,"ЛОГИНОВ Дмитрий",null,null,"\"КУЗБАСС\"",22,null,"Стародид Артём ","Вратарь","СТАРОДИД Артём  (в)"]
["\"ВОДНИК\"52","\"ВОДНИК\"",52,"КУЗЬМИН Данил",null,null,"\"КУЗБАСС\"",30,null,"Морозов Сергей ","Вратарь","МОРОЗОВ Сергей  (в)"]
["\"ВОДНИК\"57","\"ВОДНИК\"",57,"НАСОНОВ Александр",null,null,"\"КУЗБАСС\"",33,null,"Красавин Андрей ","Вратарь","КРАСАВИН Андрей  (в)"]
["\"ВОДНИК\"61","\"ВОДНИК\"",61,"ПОТАПОВ Глеб",null,null,"\"КУЗБАСС\"",44,null,"Воронков Евгений ","Вратарь","ВОРОНКОВ Евгений  (в)"]
["\"ВОДНИК\"71","\"ВОДНИК\"",71,"КОЗУЛИН Роман",null,null,"\"КУЗБАСС\"",55,null,"Дубровский Александр ","Вратарь","ДУБРОВСКИЙ Александр  (в)"]
["\"ВОДНИК\"72","\"ВОДНИК\"",72,"МУШЕНКО Никита",null,null,"\"КУЗБАСС\"",2,null,"Борисенко Денис ","Защитник","БОРИСЕНКО Денис "]
["\"ВОДНИК\"73","\"ВОДНИК\"",73,"СИТНИКОВ Никита",null,null,"\"КУЗБАСС\"",3,null,"Козлов Семён ","Защитник","КОЗЛОВ Семён "]
["\"ВОДНИК\"77","\"ВОДНИК\"",77,"ДОЛГИХ Андрей",null,null,"\"КУЗБАСС\"",5,null,"Горячев Денис ","Защитник","ГОРЯЧЕВ Денис "]
["\"ВОДНИК\"78","\"ВОДНИК\"",78,"ПОГРЕБНОЙ Юрий",null,null,"\"КУЗБАСС\"",13,null,"Бондарчук Роберт ","Защитник","БОНДАРЧУК Роберт "]
["\"ВОДНИК\"80","\"ВОДНИК\"",80,"СЫСОЕВ Артур",null,null,"\"КУЗБАСС\"",15,null,"Семёнов Максим ","Защитник","СЕМЁНОВ Максим "]
["\"ВОДНИК\"88","\"ВОДНИК\"",88,"НАСЕКИН Илья",null,null,"\"КУЗБАСС\"",18,null,"Дубинин Сергей ","Защитник","ДУБИНИН Сергей "]
["\"ВОДНИК\"901","\"ВОДНИК\"",901,"БАТОВ О.В.",null,null,"\"КУЗБАСС\"",48,null,"Ермолов Илья ","Защитник","ЕРМОЛОВ Илья "]
["\"ВОЛГА\"1","\"ВОЛГА\"",1,"СИЛАНТЬЕВ Иван (в)",null,null,"\"КУЗБАСС\"",51,null,"Якушев Павел ","Защитник","ЯКУШЕВ Павел "]
["\"ВОЛГА\"3","\"ВОЛГА\"",3,"ФИЛИМОНОВ Антон",null,null,"\"КУЗБАСС\"",71,null,"Никишов Максим ","Защитник","НИКИШОВ Максим "]
["\"ВОЛГА\"4","\"ВОЛГА\"",4,"КЛАБУКОВ Андрей",null,null,"\"КУЗБАСС\"",94,null,"Суворов Денис ","Защитник","СУВОРОВ Денис "]
["\"ВОЛГА\"5","\"ВОЛГА\"",5,"ЛОМИХИН Александр",null,null,"\"КУЗБАСС\"",95,null,"Касаткин Иван ","Защитник","КАСАТКИН Иван "]
["\"ВОЛГА\"7","\"ВОЛГА\"",7,"ГАЛЯУТДИНОВ Руслан",null,null,"\"КУЗБАСС\"",99,null,"Савельев Артём ","Защитник","САВЕЛЬЕВ Артём "]
["\"ВОЛГА\"12","\"ВОЛГА\"",12,"СТЕПАНОВ Александр",null,null,"\"КУЗБАСС\"",7,null,"Тремаскин Руслан ","Полузащитник","ТРЕМАСКИН Руслан "]
["\"ВОЛГА\"13","\"ВОЛГА\"",13,"МОСКВИЧЁВ Максим (в)",null,null,"\"КУЗБАСС\"",9,null,"Игошин Денис ","Полузащитник","ИГОШИН Денис "]
["\"ВОЛГА\"14","\"ВОЛГА\"",14,"АРТЮШИН Денис",null,null,"\"КУЗБАСС\"",11,null,"Кичеев Алексей ","Полузащитник","КИЧЕЕВ Алексей "]
["\"ВОЛГА\"17","\"ВОЛГА\"",17,"САВЕЛЬЕВ Дмитрий",null,null,"\"КУЗБАСС\"",16,null,"Василенко Максим ","Полузащитник","ВАСИЛЕНКО Максим "]
["\"ВОЛГА\"19","\"ВОЛГА\"",19,"ВОЛОЧУГИН Константин",null,null,"\"КУЗБАСС\"",19,null,"Земцов Олег ","Полузащитник","ЗЕМЦОВ Олег "]
["\"ВОЛГА\"20","\"ВОЛГА\"",20,"ЦЫЦАРОВ Денис",null,null,"\"КУЗБАСС\"",20,null,"Кузьмин Виталий ","Полузащитник","КУЗЬМИН Виталий "]
[{"$f":"CONCATENATE(B66,C66)","v":"\"ВОЛГА\"21"},"\"ВОЛГА\"",21,"ЛАРИОНОВ Игорь",null,null,"\"КУЗБАСС\"",23,null,"Павенский Богдан ","Полузащитник","ПАВЕНСКИЙ Богдан "]
["\"ВОЛГА\"22","\"ВОЛГА\"",22,"РЯЗАНОВ Максим",null,null,"\"КУЗБАСС\"",24,null,"Антипов Александр ","Полузащитник","АНТИПОВ Александр "]
["\"ВОЛГА\"29","\"ВОЛГА\"",29,"ЗАХАРОВ Пётр (к)",null,null,"\"КУЗБАСС\"",25,null,"Криушенков Денис ","Полузащитник","КРИУШЕНКОВ Денис "]
["\"ВОЛГА\"34","\"ВОЛГА\"",34,"АТАМАНЮК Дмитрий (в)",null,null,"\"КУЗБАСС\"",27,null,"Лихачёв Сергей ","Полузащитник","ЛИХАЧЁВ Сергей "]
["\"ВОЛГА\"40","\"ВОЛГА\"",40,"ТУРГУНОВ Рустам",null,null,"\"КУЗБАСС\"",28,null,"Башарымов Алексей ","Полузащитник","БАШАРЫМОВ Алексей "]
["\"ВОЛГА\"71","\"ВОЛГА\"",71,"ТУМАЕВ Дмитрий",null,null,"\"КУЗБАСС\"",42,null,"Добрелин Константин ","Полузащитник","ДОБРЕЛИН Константин "]
["\"ВОЛГА\"72","\"ВОЛГА\"",72,"ЮГАЙ Данил",null,null,"\"КУЗБАСС\"",49,null,"Литвинов Виталий ","Полузащитник","ЛИТВИНОВ Виталий "]
["\"ВОЛГА\"75","\"ВОЛГА\"",75,"ГАРЕЕВ Артём",null,null,"\"КУЗБАСС\"",52,null,"Быков Вячеслав ","Полузащитник","БЫКОВ Вячеслав "]
["\"ВОЛГА\"78","\"ВОЛГА\"",78,"СИМИРГИН Никита",null,null,"\"КУЗБАСС\"",66,null,"Кузьмин Алексей ","Полузащитник","КУЗЬМИН Алексей "]
["\"ВОЛГА\"81","\"ВОЛГА\"",81,"АХМЕРОВ Антон (в)",null,null,"\"КУЗБАСС\"",80,null,"Зубарев Константин ","Полузащитник","ЗУБАРЕВ Константин "]
["\"ВОЛГА\"87","\"ВОЛГА\"",87,"СКВОРЦОВ Дмитрий",null,null,"\"КУЗБАСС\"",4,null,"Ничков Алексей ","Нападающий","НИЧКОВ Алексей "]
["\"ВОЛГА\"88","\"ВОЛГА\"",88,"ПИМЕНОВ Денис",null,null,"\"КУЗБАСС\"",8,null,"Савельев Александр ","Нападающий","САВЕЛЬЕВ Александр "]
["\"ВОЛГА\"95","\"ВОЛГА\"",95,"БИХУЗИН Эмиль",null,null,"\"КУЗБАСС\"",14,null,"Тарасов Владислав ","Нападающий","ТАРАСОВ Владислав "]
["\"ВОЛГА\"99","\"ВОЛГА\"",99,"КУЗНЕЦОВ Владислав",null,null,"\"КУЗБАСС\"",17,null,"Стасенко Вадим ","Нападающий","СТАСЕНКО Вадим "]
["\"ВОЛГА\"901","\"ВОЛГА\"",901,"МАНКОС В.Е.",null,null,"\"КУЗБАСС\"",26,null,"Арестов Василий ","Нападающий","АРЕСТОВ Василий "]
["\"ДИНАМО\"4","\"ДИНАМО\"",4,"ЩЕГЛОВ Иван",null,null,"\"КУЗБАСС\"",29,null,"Шарф Вадим ","Нападающий","ШАРФ Вадим "]
["\"ДИНАМО\"5","\"ДИНАМО\"",5,"ЗОЛОТАРЁВ Андрей",null,null,"\"КУЗБАСС\"",77,null,"Китьков Алексей ","Нападающий","КИТЬКОВ Алексей "]
["\"ДИНАМО\"7","\"ДИНАМО\"",7,"ТАРАСОВ Владислав"]
["\"ДИНАМО\"10","\"ДИНАМО\"",10,"ПОПЕЛЯЕВ Кирилл"]
["\"ДИНАМО\"11","\"ДИНАМО\"",11,"КАТУГИН Сергей"]
["\"ДИНАМО\"16","\"ДИНАМО\"",16,"ТЮКАВИН Даниил"]
["\"ДИНАМО\"17","\"ДИНАМО\"",17,"РОДИН Сергей"]
["\"ДИНАМО\"18","\"ДИНАМО\"",18,"ШАБУРОВ Сергей (к)"]
["\"ДИНАМО\"19","\"ДИНАМО\"",19,"СЕРГЕЕВ Михаил",null,null,"\"ДИНАМО-МОСКВА\"",30,null,"Хвалько Кирилл ","Вратарь","ХВАЛЬКО Кирилл  (в)"]
["\"ДИНАМО\"21","\"ДИНАМО\"",21,"БАРБАКОВ Дмитрий",null,null,"\"ДИНАМО-МОСКВА\"",33,null,"Рейн Андрей ","Вратарь","РЕЙН Андрей  (в)"]
["\"ДИНАМО\"24","\"ДИНАМО\"",24,"ЛЕГОШИН Александр",null,null,"\"ДИНАМО-МОСКВА\"",72,null,"Никонов Дмитрий ","Вратарь","НИКОНОВ Дмитрий  (в)"]
["\"ДИНАМО\"25","\"ДИНАМО\"",25,"ГАРАНИН Юрий",null,null,"\"ДИНАМО-МОСКВА\"",5,null,"Золотарев Андрей ","Защитник","ЗОЛОТАРЕВ Андрей "]
["\"ДИНАМО\"27","\"ДИНАМО\"",27,"СТАРИКОВ Дмитрий",null,null,"\"ДИНАМО-МОСКВА\"",25,null,"Грановский Василий ","Защитник","ГРАНОВСКИЙ Василий "]
["\"ДИНАМО\"30","\"ДИНАМО\"",30,"ХВАЛЬКО Кирилл (в)",null,null,"\"ДИНАМО-МОСКВА\"",32,null,"Булатов Павел ","Защитник","БУЛАТОВ Павел "]
["\"ДИНАМО\"31","\"ДИНАМО\"",31,"ЖДАНОВ Михаил",null,null,"\"ДИНАМО-МОСКВА\"",4,null,"Хельмюрс Пер ","Полузащитник","ХЕЛЬМЮРС Пер "]
["\"ДИНАМО\"33","\"ДИНАМО\"",33,"РЕЙН Андрей (в)",null,null,"\"ДИНАМО-МОСКВА\"",6,null,"Берлин Даниэль ","Полузащитник","БЕРЛИН Даниэль "]
["\"ДИНАМО\"40","\"ДИНАМО\"",40,"ФЕТИСОВ Дмитрий",null,null,"\"ДИНАМО-МОСКВА\"",8,null,"Шамсутов Ринат ","Полузащитник","ШАМСУТОВ Ринат "]
["\"ДИНАМО\"55","\"ДИНАМО\"",55,"ПОЖИЛОВ Павел",null,null,"\"ДИНАМО-МОСКВА\"",9,null,"Тюкавин Александр ","Полузащитник","ТЮКАВИН Александр "]
["\"ДИНАМО\"70","\"ДИНАМО\"",70,"ФИЛИППОВ Евгений",null,null,"\"ДИНАМО-МОСКВА\"",10,null,"Попутников Дмитрий ","Полузащитник","ПОПУТНИКОВ Дмитрий "]
["\"ДИНАМО\"72","\"ДИНАМО\"",72,"ЗИМИН Артём",null,null,"\"ДИНАМО-МОСКВА\"",17,null,"Моссберг Даниэль ","Полузащитник","МОССБЕРГ Даниэль "]
["\"ДИНАМО\"91","\"ДИНАМО\"",91,"БУТЕНКО Артём",null,null,"\"ДИНАМО-МОСКВА\"",19,null,"Савельев Дмитрий ","Полузащитник","САВЕЛЬЕВ Дмитрий "]
["\"ДИНАМО\"96","\"ДИНАМО\"",96,"БАРАБАНЩИКОВ Алексей (в)",null,null,"\"ДИНАМО-МОСКВА\"",20,null,"Максимов Иван ","Полузащитник","МАКСИМОВ Иван "]
["\"ДИНАМО\"901","\"ДИНАМО\"",901,"ТРИФОНОВ Э.Н.",null,null,"\"ДИНАМО-МОСКВА\"",66,null,"Свешников Михаил ","Полузащитник","СВЕШНИКОВ Михаил "]
["\"ДИНАМО-КАЗАНЬ\"3","\"ДИНАМО-КАЗАНЬ\"",3,"ОРЛОВСКИЙ Антон",null,null,"\"ДИНАМО-МОСКВА\"",71,null,"Архипкин Вадим ","Полузащитник","АРХИПКИН Вадим "]
["\"ДИНАМО-КАЗАНЬ\"5","\"ДИНАМО-КАЗАНЬ\"",5,"ПОСКРЁБЫШЕВ Константин",null,null,"\"ДИНАМО-МОСКВА\"",7,null,"Чернышёв Виктор ","Нападающий","ЧЕРНЫШЁВ Виктор "]
["\"ДИНАМО-КАЗАНЬ\"8","\"ДИНАМО-КАЗАНЬ\"",8,"ВОРОБЬЁВ Алексей",null,null,"\"ДИНАМО-МОСКВА\"",11,null,"Рязанцев Павел ","Нападающий","РЯЗАНЦЕВ Павел "]
["\"ДИНАМО-КАЗАНЬ\"9","\"ДИНАМО-КАЗАНЬ\"",9,"ОБУХОВ Сергей",null,null,"\"ДИНАМО-МОСКВА\"",88,null,"Иванушкин Евгений ","Нападающий","ИВАНУШКИН Евгений "]
["\"ДИНАМО-КАЗАНЬ\"12","\"ДИНАМО-КАЗАНЬ\"",12,"СЛАУТИН Денис",null,null,"\"СКА-НЕФТЯНИК\"",20,null,"Саблин Сергей ","Вратарь","САБЛИН Сергей  (в)"]
["\"ДИНАМО-КАЗАНЬ\"21","\"ДИНАМО-КАЗАНЬ\"",21,"СЕМЁНОВ Максим",null,null,"\"СКА-НЕФТЯНИК\"",22,null,"Коржановский Тимур ","Вратарь","КОРЖАНОВСКИЙ Тимур  (в)"]
["\"ДИНАМО-КАЗАНЬ\"23","\"ДИНАМО-КАЗАНЬ\"",23,"ПЛАТОНОВ Артём",null,null,"\"СКА-НЕФТЯНИК\"",27,null,"Яшин Виктор ","Вратарь","ЯШИН Виктор  (в)"]
["\"ДИНАМО-КАЗАНЬ\"26","\"ДИНАМО-КАЗАНЬ\"",26,"РЯЗАНОВ Олег",null,null,"\"СКА-НЕФТЯНИК\"",3,null,"Матвеев  Максим ","Защитник","МАТВЕЕВ  Максим "]
["\"ДИНАМО-КАЗАНЬ\"27","\"ДИНАМО-КАЗАНЬ\"",27,"ЯШИН Виктор (в)",null,null,"\"СКА-НЕФТЯНИК\"",4,null,"Эдберг Стефан ","Защитник","ЭДБЕРГ Стефан "]
["\"ДИНАМО-КАЗАНЬ\"30","\"ДИНАМО-КАЗАНЬ\"",30,"ВАХРУШЕВ Дмитрий",null,null,"\"СКА-НЕФТЯНИК\"",18,null,"Попов Дмитрий ","Защитник","ПОПОВ Дмитрий "]
["\"ДИНАМО-КАЗАНЬ\"37","\"ДИНАМО-КАЗАНЬ\"",37,"СЕРГЕЙЧЕВ Александр",null,null,"\"СКА-НЕФТЯНИК\"",25,null,"Горчаков  Сергей ","Защитник","ГОРЧАКОВ  Сергей "]
["\"ДИНАМО-КАЗАНЬ\"55","\"ДИНАМО-КАЗАНЬ\"",55,"АХАТОВ Азат",null,null,"\"СКА-НЕФТЯНИК\"",89,null,"Рязанов Максим ","Защитник","РЯЗАНОВ Максим "]
["\"ДИНАМО-КАЗАНЬ\"66","\"ДИНАМО-КАЗАНЬ\"",66,"БАТМАНОВ Игорь",null,null,"\"СКА-НЕФТЯНИК\"",6,null,"Оппенлендер Антон ","Полузащитник","ОППЕНЛЕНДЕР Антон "]
["\"ДИНАМО-КАЗАНЬ\"77","\"ДИНАМО-КАЗАНЬ\"",77,"ПЕРЕВОЩИКОВ Евгений",null,null,"\"СКА-НЕФТЯНИК\"",7,null,"Тюко Михаил ","Полузащитник","ТЮКО Михаил "]
["\"ДИНАМО-КАЗАНЬ\"85","\"ДИНАМО-КАЗАНЬ\"",85,"ТЕМНИКОВ Александр (в)",null,null,"\"СКА-НЕФТЯНИК\"",8,null,"Хольмберг Тобиас ","Полузащитник","ХОЛЬМБЕРГ Тобиас "]
["\"ДИНАМО-КАЗАНЬ\"86","\"ДИНАМО-КАЗАНЬ\"",86,"УСОВ Виталий",null,null,"\"СКА-НЕФТЯНИК\"",10,null,"Вдовенко Вячеслав ","Полузащитник","ВДОВЕНКО Вячеслав "]
["\"ДИНАМО-КАЗАНЬ\"88","\"ДИНАМО-КАЗАНЬ\"",88,"ФРОЛОВ Роман",null,null,"\"СКА-НЕФТЯНИК\"",12,null,"Тынтеров Роман ","Полузащитник","ТЫНТЕРОВ Роман "]
["\"ДИНАМО-КАЗАНЬ\"89","\"ДИНАМО-КАЗАНЬ\"",89,"ВЕСЕЛОВ Алексей",null,null,"\"СКА-НЕФТЯНИК\"",14,null,"Корев Евгений ","Полузащитник","КОРЕВ Евгений "]
["\"ДИНАМО-КАЗАНЬ\"91","\"ДИНАМО-КАЗАНЬ\"",91,"ИБРАГИМОВ Рамиль",null,null,"\"СКА-НЕФТЯНИК\"",17,null,"Швырёв Сергей ","Полузащитник","ШВЫРЁВ Сергей "]
["\"ДИНАМО-КАЗАНЬ\"94","\"ДИНАМО-КАЗАНЬ\"",94,"ДЕЦУРА Иван",null,null,"\"СКА-НЕФТЯНИК\"",23,null,"Стариков Дмитрий ","Полузащитник","СТАРИКОВ Дмитрий "]
["\"ДИНАМО-КАЗАНЬ\"95","\"ДИНАМО-КАЗАНЬ\"",95,"ЖАДАНОВ Константин",null,null,"\"СКА-НЕФТЯНИК\"",77,null,"Маркин Вячеслав ","Полузащитник","МАРКИН Вячеслав "]
["\"ДИНАМО-КАЗАНЬ\"97","\"ДИНАМО-КАЗАНЬ\"",97,"АБДУЛИН Тимур (в)",null,null,"\"СКА-НЕФТЯНИК\"",5,null,"Исмагилов Станислав ","Нападающий","ИСМАГИЛОВ Станислав "]
["\"ДИНАМО-КАЗАНЬ\"901","\"ДИНАМО-КАЗАНЬ\"",901,"ФИРСОВ С.И.",null,null,"\"СКА-НЕФТЯНИК\"",9,null,"Стеблецов Евгений ","Нападающий","СТЕБЛЕЦОВ Евгений "]
["\"ДИНАМО-КАЗАНЬ\"-24","\"ДИНАМО-КАЗАНЬ\"-2",4,"САМИГУЛЛИН Данияр",null,null,"\"СКА-НЕФТЯНИК\"",13,null,"Шицко Егор ","Нападающий","ШИЦКО Егор "]
["\"ДИНАМО-КАЗАНЬ\"-27","\"ДИНАМО-КАЗАНЬ\"-2",7,"ЛЫСОВ Александр"]
["\"ДИНАМО-КАЗАНЬ\"-28","\"ДИНАМО-КАЗАНЬ\"-2",8,"ВОРОБЬЁВ Алексей"]
[{"$f":"CONCATENATE(B130,C130)","v":"\"ДИНАМО-КАЗАНЬ\"-214"},"\"ДИНАМО-КАЗАНЬ\"-2",14,"ВЕСЕЛОВ Владислав"]
["\"ДИНАМО-КАЗАНЬ\"-219","\"ДИНАМО-КАЗАНЬ\"-2",19,"БУБНОВ Антон",null,null,"\"СКА-НЕФТЯНИК\"",85,null,"Лопатков Роман ","Нападающий","ЛОПАТКОВ Роман "]
["\"ДИНАМО-КАЗАНЬ\"-220","\"ДИНАМО-КАЗАНЬ\"-2",20,"БАГИН Кирилл",null,null,"\"СИБСЕЛЬМАШ\"",1,null,"Гейзель Роман ","Вратарь","ГЕЙЗЕЛЬ Роман  (в)"]
["\"ДИНАМО-КАЗАНЬ\"-224","\"ДИНАМО-КАЗАНЬ\"-2",24,"ГРИГОРЬЕВ Илья",null,null,"\"СИБСЕЛЬМАШ\"",35,null,"Маслов Андрей ","Вратарь","МАСЛОВ Андрей  (в)"]
["\"ДИНАМО-КАЗАНЬ\"-230","\"ДИНАМО-КАЗАНЬ\"-2",30,"ВАХРУШЕВ Дмитрий",null,null,"\"СИБСЕЛЬМАШ\"",96,null,"Наумов Сергей ","Вратарь","НАУМОВ Сергей  (в)"]
["\"ДИНАМО-КАЗАНЬ\"-237","\"ДИНАМО-КАЗАНЬ\"-2",37,"СЕРГЕЙЧЕВ Александр",null,null,"\"СИБСЕЛЬМАШ\"",99,null,"Громов Сергей ","Вратарь","ГРОМОВ Сергей  (в)"]
["\"ДИНАМО-КАЗАНЬ\"-244","\"ДИНАМО-КАЗАНЬ\"-2",44,"КОРОЛЁВ Михаил",null,null,"\"СИБСЕЛЬМАШ\"",3,null,"Юрлов Никита ","Защитник","ЮРЛОВ Никита "]
["\"ДИНАМО-КАЗАНЬ\"-250","\"ДИНАМО-КАЗАНЬ\"-2",50,"ТУХВАТУЛЛИН Никита (в)",null,null,"\"СИБСЕЛЬМАШ\"",4,null,"Свиридов Евгений ","Защитник","СВИРИДОВ Евгений "]
["\"ДИНАМО-КАЗАНЬ\"-255","\"ДИНАМО-КАЗАНЬ\"-2",55,"АХАТОВ Азат",null,null,"\"СИБСЕЛЬМАШ\"",5,null,"Могильников Андрей ","Защитник","МОГИЛЬНИКОВ Андрей "]
["\"ДИНАМО-КАЗАНЬ\"-270","\"ДИНАМО-КАЗАНЬ\"-2",70,"ХРУСТОВ Денис",null,null,"\"СИБСЕЛЬМАШ\"",23,null,"Макаренко Роман ","Защитник","МАКАРЕНКО Роман "]
["\"ДИНАМО-КАЗАНЬ\"-275","\"ДИНАМО-КАЗАНЬ\"-2",75,"САЛИМОВ Дмитрий",null,null,"\"СИБСЕЛЬМАШ\"",6,null,"Корев Денис ","Полузащитник","КОРЕВ Денис "]
["\"ДИНАМО-КАЗАНЬ\"-280","\"ДИНАМО-КАЗАНЬ\"-2",80,"МУНИЦЫН Дмитрий",null,null,"\"СИБСЕЛЬМАШ\"",9,null,"Войтович Игорь ","Полузащитник","ВОЙТОВИЧ Игорь "]
["\"ДИНАМО-КАЗАНЬ\"-283","\"ДИНАМО-КАЗАНЬ\"-2",83,"СЕМЁНОВ Александр",null,null,"\"СИБСЕЛЬМАШ\"",14,null,"Сычёв Игорь ","Полузащитник","СЫЧЁВ Игорь "]
["\"ДИНАМО-КАЗАНЬ\"-295","\"ДИНАМО-КАЗАНЬ\"-2",95,"ЖАДАНОВ Константин",null,null,"\"СИБСЕЛЬМАШ\"",17,null,"Вшивков Артём ","Полузащитник","ВШИВКОВ Артём "]
["\"ДИНАМО-КАЗАНЬ\"-296","\"ДИНАМО-КАЗАНЬ\"-2",96,"МАТВЕЕВ Игорь",null,null,"\"СИБСЕЛЬМАШ\"",19,null,"Голитаров Алексей ","Полузащитник","ГОЛИТАРОВ Алексей "]
["\"ДИНАМО-КАЗАНЬ\"-297","\"ДИНАМО-КАЗАНЬ\"-2",97,"АБДУЛЛИН Тимур (в)(к)",null,null,"\"СИБСЕЛЬМАШ\"",20,null,"Тетерин Павел ","Полузащитник","ТЕТЕРИН Павел "]
["\"ДИНАМО-КАЗАНЬ\"-299","\"ДИНАМО-КАЗАНЬ\"-2",99,"БЛИНКОВ Антон",null,null,"\"СИБСЕЛЬМАШ\"",21,null,"Миронов Фёдор ","Полузащитник","МИРОНОВ Фёдор "]
["\"ДИНАМО-КАЗАНЬ\"-2901","\"ДИНАМО-КАЗАНЬ\"-2",901,"АФАНАСЬЕВ А.В.",null,null,"\"СИБСЕЛЬМАШ\"",32,null,"Казаков Александр ","Полузащитник","КАЗАКОВ Александр "]
["\"ЕНИСЕЙ\"1","\"ЕНИСЕЙ\"",1,"ЧЕРНЫХ Роман (в)",null,null,"\"СИБСЕЛЬМАШ\"",61,null,"Потёмин Денис ","Полузащитник","ПОТЁМИН Денис "]
["\"ЕНИСЕЙ\"4","\"ЕНИСЕЙ\"",4,"ДЕГТЯРЁВ Вячеслав",null,null,"\"СИБСЕЛЬМАШ\"",90,null,"Шевцов Антон ","Полузащитник","ШЕВЦОВ Антон "]
["\"ЕНИСЕЙ\"5","\"ЕНИСЕЙ\"",5,"ФОМКИН Иван",null,null,"\"СИБСЕЛЬМАШ\"",7,null,"Исалиев Рауан ","Нападающий","ИСАЛИЕВ Рауан "]
["\"ЕНИСЕЙ\"6","\"ЕНИСЕЙ\"",6,"ЩЕТИНИН Егор",null,null,"\"СИБСЕЛЬМАШ\"",8,null,"Маврин Евгений ","Нападающий","МАВРИН Евгений "]
["\"ЕНИСЕЙ\"7","\"ЕНИСЕЙ\"",7,"ЛОМАНОВ Сергей",null,null,"\"СИБСЕЛЬМАШ\"",10,null,"Ган Сергей ","Нападающий","ГАН Сергей "]
["\"ЕНИСЕЙ\"8","\"ЕНИСЕЙ\"",8,"ШЕВЦОВ Иван",null,null,"\"СИБСЕЛЬМАШ\"",11,null,"Старых  Анатолий ","Нападающий","СТАРЫХ  Анатолий "]
["\"ЕНИСЕЙ\"9","\"ЕНИСЕЙ\"",9,"ЧЕРНЫШЁВ Виктор",null,null,"\"СИБСЕЛЬМАШ\"",88,null,"Герасимов Андрей ","Нападающий","ГЕРАСИМОВ Андрей "]
["\"ЕНИСЕЙ\"10","\"ЕНИСЕЙ\"",10,"ЧЕРНОВ Вадим",null,null,"\"СИБСЕЛЬМАШ\"",89,null,"Анисимов Павел ","Нападающий","АНИСИМОВ Павел "]
["\"ЕНИСЕЙ\"11","\"ЕНИСЕЙ\"",11,"ШВЕЦОВ Евгений",null,null,"\"БАЙКАЛ-ЭНЕРГИЯ\"",23,null,"Токарев Олег ","Вратарь","ТОКАРЕВ Олег  (в)"]
["\"ЕНИСЕЙ\"12","\"ЕНИСЕЙ\"",12,"ПЛЕШИВЦЕВ Павел",null,null,"\"БАЙКАЛ-ЭНЕРГИЯ\"",31,null,"Рысев Денис ","Вратарь","РЫСЕВ Денис  (в)"]
["\"ЕНИСЕЙ\"16","\"ЕНИСЕЙ\"",16,"ТАРНАРУЦКИЙ Олег",null,null,"\"БАЙКАЛ-ЭНЕРГИЯ\"",4,null,"Голубков Анатолий ","Защитник","ГОЛУБКОВ Анатолий "]
["\"ЕНИСЕЙ\"18","\"ЕНИСЕЙ\"",18,"ЛОХОВ Вячеслав",null,null,"\"БАЙКАЛ-ЭНЕРГИЯ\"",16,null,"Блем Максим ","Защитник","БЛЕМ Максим "]
["\"ЕНИСЕЙ\"21","\"ЕНИСЕЙ\"",21,"ЮГАСОВ Григорий",null,null,"\"БАЙКАЛ-ЭНЕРГИЯ\"",17,null,"Вассерман Игорь ","Защитник","ВАССЕРМАН Игорь "]
["\"ЕНИСЕЙ\"23","\"ЕНИСЕЙ\"",23,"ОСЬКИН Михаил",null,null,"\"БАЙКАЛ-ЭНЕРГИЯ\"",26,null,"Кутупов Тимур ","Защитник","КУТУПОВ Тимур "]
["\"ЕНИСЕЙ\"24","\"ЕНИСЕЙ\"",24,"ВИКУЛИН Юрий (к)",null,null,"\"БАЙКАЛ-ЭНЕРГИЯ\"",44,null,"Черных Виктор ","Защитник","ЧЕРНЫХ Виктор "]
["\"ЕНИСЕЙ\"25","\"ЕНИСЕЙ\"",25,"ВАЩУК Тимофей",null,null,"\"БАЙКАЛ-ЭНЕРГИЯ\"",77,null,"Эйсбруннер Максим ","Защитник","ЭЙСБРУННЕР Максим "]
["\"ЕНИСЕЙ\"27","\"ЕНИСЕЙ\"",27,"КУЗЬМИН Кирилл",null,null,"\"БАЙКАЛ-ЭНЕРГИЯ\"",8,null,"Шадрин Евгений ","Полузащитник","ШАДРИН Евгений "]
["\"ЕНИСЕЙ\"30","\"ЕНИСЕЙ\"",30,"ЛИСАК Вячеслав (в)",null,null,"\"БАЙКАЛ-ЭНЕРГИЯ\"",9,null,"Ерахтин Никита ","Полузащитник","ЕРАХТИН Никита "]
["\"ЕНИСЕЙ\"31","\"ЕНИСЕЙ\"",31,"ЛЕСКОВ Алексей (в)",null,null,"\"БАЙКАЛ-ЭНЕРГИЯ\"",10,null,"Шафиев Нурмамед ","Полузащитник","ШАФИЕВ Нурмамед "]
["\"ЕНИСЕЙ\"32","\"ЕНИСЕЙ\"",32,"БАШМУР Ростислав",null,null,"\"БАЙКАЛ-ЭНЕРГИЯ\"",19,null,"Ковалёв Андрей ","Полузащитник","КОВАЛЁВ Андрей "]
["\"ЕНИСЕЙ\"33","\"ЕНИСЕЙ\"",33,"ПРОКОПЬЕВ Андрей",null,null,"\"БАЙКАЛ-ЭНЕРГИЯ\"",21,null,"Дубовик Павел ","Полузащитник","ДУБОВИК Павел "]
["\"ЕНИСЕЙ\"34","\"ЕНИСЕЙ\"",34,"БЕЛОКРЕНИЦКИЙ Данил",null,null,"\"БАЙКАЛ-ЭНЕРГИЯ\"",25,null,"Татарников Евгений ","Полузащитник","ТАТАРНИКОВ Евгений "]
["\"ЕНИСЕЙ\"37","\"ЕНИСЕЙ\"",37,"ВДОВЕНКО Вячеслав",null,null,"\"БАЙКАЛ-ЭНЕРГИЯ\"",51,null,"Гавриленко Максим ","Полузащитник","ГАВРИЛЕНКО Максим "]
["\"ЕНИСЕЙ\"38","\"ЕНИСЕЙ\"",38,"ДЕРЕВЦОВ Илья",null,null,"\"БАЙКАЛ-ЭНЕРГИЯ\"",71,null,"Ширяев Максим ","Полузащитник","ШИРЯЕВ Максим "]
["\"ЕНИСЕЙ\"44","\"ЕНИСЕЙ\"",44,"АНДРЕЕВ Евгений",null,null,"\"БАЙКАЛ-ЭНЕРГИЯ\"",79,null,"Бибаев Степан ","Полузащитник","БИБАЕВ Степан "]
["\"ЕНИСЕЙ\"49","\"ЕНИСЕЙ\"",49,"ЛОПАТИН Илья",null,null,"\"БАЙКАЛ-ЭНЕРГИЯ\"",87,null,"Савчук Андрей ","Полузащитник","САВЧУК Андрей "]
["\"ЕНИСЕЙ\"51","\"ЕНИСЕЙ\"",51,"ПЕРЕВАЛУШКОВ Кирилл",null,null,"\"БАЙКАЛ-ЭНЕРГИЯ\"",91,null,"Егорычев Александр ","Полузащитник","ЕГОРЫЧЕВ Александр "]
["\"ЕНИСЕЙ\"55","\"ЕНИСЕЙ\"",55,"ПРОКОПЬЕВ Михаил",null,null,"\"БАЙКАЛ-ЭНЕРГИЯ\"",5,null,"Насонов Александр ","Нападающий","НАСОНОВ Александр "]
["\"ЕНИСЕЙ\"71","\"ЕНИСЕЙ\"",71,"МОСТОВОЙ Никита",null,null,"\"БАЙКАЛ-ЭНЕРГИЯ\"",7,null,"Ушаков Иван ","Нападающий","УШАКОВ Иван "]
["\"ЕНИСЕЙ\"80","\"ЕНИСЕЙ\"",80,"МИРГАЗОВ Алмаз",null,null,"\"БАЙКАЛ-ЭНЕРГИЯ\"",24,null,"Безносов Тимофей ","Нападающий","БЕЗНОСОВ Тимофей "]
["\"ЕНИСЕЙ\"91","\"ЕНИСЕЙ\"",91,"АХМЕТЗЯНОВ Артём",null,null,"\"БАЙКАЛ-ЭНЕРГИЯ\"",82,null,"Чехутин Дмитрий ","Нападающий","ЧЕХУТИН Дмитрий "]
["\"ЕНИСЕЙ\"92","\"ЕНИСЕЙ\"",92,"МАКАРОВ Дмитрий",null,null,"\"ВОДНИК\"",1,null,"Харчев Всеволод ","Вратарь","ХАРЧЕВ Всеволод  (в)"]
["\"ЕНИСЕЙ\"95","\"ЕНИСЕЙ\"",95,"ПЕТТЕРССОН Эрик",null,null,"\"ВОДНИК\"",30,null,"Петухов Артём ","Вратарь","ПЕТУХОВ Артём  (в)"]
["\"ЕНИСЕЙ\"96","\"ЕНИСЕЙ\"",96,"ЯНОВ Максим (в)",null,null,"\"ВОДНИК\"",98,null,"Лапин Григорий ","Вратарь","ЛАПИН Григорий  (в)"]
["\"ЕНИСЕЙ\"97","\"ЕНИСЕЙ\"",97,"ЧУПИН Семён",null,null,"\"ВОДНИК\"",3,null,"Орловский Антон ","Защитник","ОРЛОВСКИЙ Антон "]
["\"ЕНИСЕЙ\"98","\"ЕНИСЕЙ\"",98,"ЛОХОВ Евгений (в)",null,null,"\"ВОДНИК\"",13,null,"Козлов Иван ","Защитник","КОЗЛОВ Иван "]
["\"ЕНИСЕЙ\"901","\"ЕНИСЕЙ\"",901,"ЛОМАНОВ С.И.",null,null,"\"ВОДНИК\"",15,null,"Калинин Сергей ","Защитник","КАЛИНИН Сергей "]
["\"ЗНАМЯ-УДМУРТИЯ\"4","\"ЗНАМЯ-УДМУРТИЯ\"",4,"КАЗАЕВ Евгений",null,null,"\"ВОДНИК\"",17,null,"Сухоруков Роман ","Защитник","СУХОРУКОВ Роман "]
["\"ЗНАМЯ-УДМУРТИЯ\"7","\"ЗНАМЯ-УДМУРТИЯ\"",7,"ГАВРИЛОВ Сергей",null,null,"\"ВОДНИК\"",5,null,"Гладышев Алексей ","Полузащитник","ГЛАДЫШЕВ Алексей "]
["\"ЗНАМЯ-УДМУРТИЯ\"8","\"ЗНАМЯ-УДМУРТИЯ\"",8,"ЮФЕРЕВ Кирилл",null,null,"\"ВОДНИК\"",6,null,"Пономарев Илья ","Полузащитник","ПОНОМАРЕВ Илья "]
["\"ЗНАМЯ-УДМУРТИЯ\"9","\"ЗНАМЯ-УДМУРТИЯ\"",9,"НИКУЛИН Артём",null,null,"\"ВОДНИК\"",8,null,"Варлачёв Денис ","Полузащитник","ВАРЛАЧЁВ Денис "]
["\"ЗНАМЯ-УДМУРТИЯ\"10","\"ЗНАМЯ-УДМУРТИЯ\"",10,"АРЕСТОВ Василий",null,null,"\"ВОДНИК\"",16,null,"Гаврилов Николай ","Полузащитник","ГАВРИЛОВ Николай "]
["\"ЗНАМЯ-УДМУРТИЯ\"11","\"ЗНАМЯ-УДМУРТИЯ\"",11,"ПЕТРОВ Вячеслав",null,null,"\"ВОДНИК\"",19,null,"Дергаев Евгений ","Полузащитник","ДЕРГАЕВ Евгений "]
["\"ЗНАМЯ-УДМУРТИЯ\"12","\"ЗНАМЯ-УДМУРТИЯ\"",12,"МЕТЕЛЁВ Михаил",null,null,"\"ВОДНИК\"",24,null,"Подкин Семён ","Полузащитник","ПОДКИН Семён "]
["\"ЗНАМЯ-УДМУРТИЯ\"13","\"ЗНАМЯ-УДМУРТИЯ\"",13,"БОНДАРЧУК Роберт",null,null,"\"ВОДНИК\"",25,null,"Голдин Алексей ","Полузащитник","ГОЛДИН Алексей "]
["\"ЗНАМЯ-УДМУРТИЯ\"14","\"ЗНАМЯ-УДМУРТИЯ\"",14,"ШАРАПОВ Степан",null,null,"\"ВОДНИК\"",26,null,"Рязанов Олег ","Полузащитник","РЯЗАНОВ Олег "]
[{"$f":"CONCATENATE(B194,C194)","v":"\"ЗНАМЯ-УДМУРТИЯ\"15"},"\"ЗНАМЯ-УДМУРТИЯ\"",15,"УФАНДЕЕВ Игорь",null,null,"\"ВОДНИК\"",27,null,"Воюшин Александр ","Полузащитник","ВОЮШИН Александр "]
["\"ЗНАМЯ-УДМУРТИЯ\"16","\"ЗНАМЯ-УДМУРТИЯ\"",16,"МАКУНЕНКОВ Вячеслав",null,null,"\"ВОДНИК\"",29,null,"Кузнецов Александр ","Полузащитник","КУЗНЕЦОВ Александр "]
["\"ЗНАМЯ-УДМУРТИЯ\"17","\"ЗНАМЯ-УДМУРТИЯ\"",17,"ЗАГАРСКИХ Алексей",null,null,"\"ВОДНИК\"",78,null,"Погребной Юрий ","Полузащитник","ПОГРЕБНОЙ Юрий "]
["\"ЗНАМЯ-УДМУРТИЯ\"18","\"ЗНАМЯ-УДМУРТИЯ\"",18," БЕЛЬТЮКОВ Андрей",null,null,"\"ВОДНИК\"",4,null,"Клюшанов Виталий ","Нападающий","КЛЮШАНОВ Виталий "]
["\"ЗНАМЯ-УДМУРТИЯ\"20","\"ЗНАМЯ-УДМУРТИЯ\"",20,"КРЮКОВ Евгений (в)",null,null,"\"ВОДНИК\"",7,null,"Шеховцов Артем ","Нападающий","ШЕХОВЦОВ Артем "]
["\"ЗНАМЯ-УДМУРТИЯ\"30","\"ЗНАМЯ-УДМУРТИЯ\"",30,"ПАХОМОВ Василий (в)",null,null,"\"ВОДНИК\"",10,null,"Серов Александр ","Нападающий","СЕРОВ Александр "]
["\"ЗНАМЯ-УДМУРТИЯ\"47","\"ЗНАМЯ-УДМУРТИЯ\"",47,"ЧЕРЕПАНОВ Евгений (к)",null,null,"\"ВОДНИК\"",11,null,"Антонов Александр ","Нападающий","АНТОНОВ Александр "]
["\"ЗНАМЯ-УДМУРТИЯ\"76","\"ЗНАМЯ-УДМУРТИЯ\"",76,"РАЗУМОВСКИЙ Михаил",null,null,"\"ВОДНИК\"",18,null,"Катугин Сергей ","Нападающий","КАТУГИН Сергей "]
["\"ЗНАМЯ-УДМУРТИЯ\"86","\"ЗНАМЯ-УДМУРТИЯ\"",86,"КАЗАЕВ Александр",null,null,"\"ВОДНИК\"",86,null,"Петровский Кирилл ","Нападающий","ПЕТРОВСКИЙ Кирилл "]
["\"ЗНАМЯ-УДМУРТИЯ\"88","\"ЗНАМЯ-УДМУРТИЯ\"",88,"ФРОЛОВ Роман",null,null,"\"ВОЛГА\"",34,null,"Атаманюк Дмитрий ","Вратарь","АТАМАНЮК Дмитрий  (в)"]
["\"ЗНАМЯ-УДМУРТИЯ\"89","\"ЗНАМЯ-УДМУРТИЯ\"",89,"МЕНЬШИКОВ Дмитрий",null,null,"\"ВОЛГА\"",76,null,"Сергеев Дмитрий ","Вратарь","СЕРГЕЕВ Дмитрий  (в)"]
["\"ЗНАМЯ-УДМУРТИЯ\"90","\"ЗНАМЯ-УДМУРТИЯ\"",90,"АТАМУРОТОВ Тимур (в)",null,null,"\"ВОЛГА\"",81,null,"Москвичёв Максим ","Вратарь","МОСКВИЧЁВ Максим  (в)"]
["\"ЗНАМЯ-УДМУРТИЯ\"95","\"ЗНАМЯ-УДМУРТИЯ\"",95,"МАЛЬЦЕВ Артём",null,null,"\"ВОЛГА\"",2,null,"Добрынин Михаил ","Защитник","ДОБРЫНИН Михаил "]
["\"ЗНАМЯ-УДМУРТИЯ\"901","\"ЗНАМЯ-УДМУРТИЯ\"",901,"ВЕСЕЛОВ Д.В.",null,null,"\"ВОЛГА\"",13,null,"Галиуллин Румиль ","Защитник","ГАЛИУЛЛИН Румиль "]
["\"ЗОРКИЙ\"1","\"ЗОРКИЙ\"",1,"ДРАНИЧНИКОВ Артём (в)",null,null,"\"ВОЛГА\"",50,null,"Фасхутдинов Максим ","Защитник","ФАСХУТДИНОВ Максим "]
["\"ЗОРКИЙ\"3","\"ЗОРКИЙ\"",3,"ПЕПЕЛЯЕВ Константин",null,null,"\"ВОЛГА\"",55,null,"Сиразетдинов Равиль ","Защитник","СИРАЗЕТДИНОВ Равиль "]
["\"ЗОРКИЙ\"5","\"ЗОРКИЙ\"",5,"ОСОКИН Дмитрий",null,null,"\"ВОЛГА\"",75,null,"Черепанов Дмитрий ","Защитник","ЧЕРЕПАНОВ Дмитрий "]
["\"ЗОРКИЙ\"6","\"ЗОРКИЙ\"",6,"ПАТЯШИН Александр",null,null,"\"ВОЛГА\"",88,null,"Карсаков Юрий ","Защитник","КАРСАКОВ Юрий "]
["\"ЗОРКИЙ\"7","\"ЗОРКИЙ\"",7,"СЕЛИВАНОВ Алексей",null,null,"\"ВОЛГА\"",3,null,"Филимонов Антон ","Полузащитник","ФИЛИМОНОВ Антон "]
["\"ЗОРКИЙ\"8","\"ЗОРКИЙ\"",8,"ВЕЩАГИН Никита",null,null,"\"ВОЛГА\"",9,null,"Кадакин Николай ","Полузащитник","КАДАКИН Николай "]
["\"ЗОРКИЙ\"9","\"ЗОРКИЙ\"",9,"ЧИСТОСЕРДОВ Сергей",null,null,"\"ВОЛГА\"",15,null,"Лыков Дмитрий ","Полузащитник","ЛЫКОВ Дмитрий "]
["\"ЗОРКИЙ\"10","\"ЗОРКИЙ\"",10,"БОЧКАРЁВ Геннадий",null,null,"\"ВОЛГА\"",17,null,"Загарских Алексей ","Полузащитник","ЗАГАРСКИХ Алексей "]
["\"ЗОРКИЙ\"11","\"ЗОРКИЙ\"",11,"КОРЕВ Денис (к)",null,null,"\"ВОЛГА\"",45,null,"Барашков Дмитрий ","Полузащитник","БАРАШКОВ Дмитрий "]
["\"ЗОРКИЙ\"16","\"ЗОРКИЙ\"",16,"ЗАВИДОВСКИЙ Дмитрий",null,null,"\"ВОЛГА\"",77,null,"Шебонкин Сергей ","Полузащитник","ШЕБОНКИН Сергей "]
["\"ЗОРКИЙ\"18","\"ЗОРКИЙ\"",18,"ГОЛУБКОВ Анатолий",null,null,"\"ВОЛГА\"",91,null,"Набиуллин Алмаз ","Полузащитник","НАБИУЛЛИН Алмаз "]
["\"ЗОРКИЙ\"19","\"ЗОРКИЙ\"",19,"ОСЬКИН Дмитрий",null,null,"\"ВОЛГА\"",5,null,"Харитонов Сергей ","Нападающий","ХАРИТОНОВ Сергей "]
["\"ЗОРКИЙ\"20","\"ЗОРКИЙ\"",20,"БЕДАРЕВ Леонид",null,null,"\"ВОЛГА\"",7,null,"Леонов Евгений ","Нападающий","ЛЕОНОВ Евгений "]
["\"ЗОРКИЙ\"21","\"ЗОРКИЙ\"",21,"ГАВРИЛОВ Александр",null,null,"\"ВОЛГА\"",8,null,"Макаров Виталий ","Нападающий","МАКАРОВ Виталий "]
["\"ЗОРКИЙ\"23","\"ЗОРКИЙ\"",23,"БАШАЕВ Сергей",null,null,"\"ВОЛГА\"",10,null,"Волгужев Евгений ","Нападающий","ВОЛГУЖЕВ Евгений "]
["\"ЗОРКИЙ\"29","\"ЗОРКИЙ\"",29,"ГОРЯЧЕВ Денис",null,null,"\"ВОЛГА\"",20,null,"Цыцаров Денис ","Нападающий","ЦЫЦАРОВ Денис "]
["\"ЗОРКИЙ\"30","\"ЗОРКИЙ\"",30,"МАРИНОВ Юрий",null,null,"\"ВОЛГА\"",33,null,"Мастрюков Евгений ","Нападающий","МАСТРЮКОВ Евгений "]
["\"ЗОРКИЙ\"35","\"ЗОРКИЙ\"",35,"ИВАНОВ Дмитрий",null,null,"\"ЕНИСЕЙ\"",1,null,"Черных Роман ","Вратарь","ЧЕРНЫХ Роман  (в)"]
["\"ЗОРКИЙ\"45","\"ЗОРКИЙ\"",45,"НОВЕЦКИЙ Никита",null,null,"\"ЕНИСЕЙ\"",31,null,"Драничников Артем ","Вратарь","ДРАНИЧНИКОВ Артем  (в)"]
["\"ЗОРКИЙ\"50","\"ЗОРКИЙ\"",50,"ТОЛОЛО Евгений (в)",null,null,"\"ЕНИСЕЙ\"",79,null,"Лисак Вячеслав ","Вратарь","ЛИСАК Вячеслав  (в)"]
["\"ЗОРКИЙ\"71","\"ЗОРКИЙ\"",71,"ВАСИЛЕНКО Максим",null,null,"\"ЕНИСЕЙ\"",15,null,"Джусоев Алан ","Защитник","ДЖУСОЕВ Алан "]
["\"ЗОРКИЙ\"80","\"ЗОРКИЙ\"",80,"ВОЛГУЖЕВ Евгений",null,null,"\"ЕНИСЕЙ\"",24,null,"Викулин Юрий ","Защитник","ВИКУЛИН Юрий "]
["\"ЗОРКИЙ\"84","\"ЗОРКИЙ\"",84,"КУЛАГИН Никита",null,null,"\"ЕНИСЕЙ\"",27,null,"Иванов Артем ","Защитник","ИВАНОВ Артем "]
["\"ЗОРКИЙ\"97","\"ЗОРКИЙ\"",97,"СИДОРОВ Алекчандр (в)",null,null,"\"ЕНИСЕЙ\"",55,null,"Прокопьев Михаил ","Защитник","ПРОКОПЬЕВ Михаил "]
["\"ЗОРКИЙ\"79","\"ЗОРКИЙ\"",79,"БАЗДЫРЕВ Александр",null,null,"\"ЕНИСЕЙ\"",91,null,"Ахметзянов Артём ","Защитник","АХМЕТЗЯНОВ Артём "]
["\"ЗОРКИЙ\"901","\"ЗОРКИЙ\"",901,"РУШКИН А.А.",null,null,"\"ЕНИСЕЙ\"",92,null,"Макаров Дмитрий ","Защитник","МАКАРОВ Дмитрий "]
["\"КУЗБАСС\"1","\"КУЗБАСС\"",1,"ТАНГЯН Роман (в)",null,null,"\"ЕНИСЕЙ\"",8,null,"Шевцов Иван ","Полузащитник","ШЕВЦОВ Иван "]
["\"КУЗБАСС\"2","\"КУЗБАСС\"",2,"ИВАНОВ Игорь",null,null,"\"ЕНИСЕЙ\"",9,null,"Завидовский Дмитрий ","Полузащитник","ЗАВИДОВСКИЙ Дмитрий "]
["\"КУЗБАСС\"3","\"КУЗБАСС\"",3,"КОЗЛОВ Семён",null,null,"\"ЕНИСЕЙ\"",11,null,"Швецов Евгений ","Полузащитник","ШВЕЦОВ Евгений "]
["\"КУЗБАСС\"7","\"КУЗБАСС\"",7,"ЖАУКЕНОВ Василий",null,null,"\"ЕНИСЕЙ\"",16,null,"Нагуляк Антон ","Полузащитник","НАГУЛЯК Антон "]
["\"КУЗБАСС\"8","\"КУЗБАСС\"",8,"РЕПЯХ Артём",null,null,"\"ЕНИСЕЙ\"",19,null,"Толстихин Олег ","Полузащитник","ТОЛСТИХИН Олег "]
["\"КУЗБАСС\"9","\"КУЗБАСС\"",9,"ИГОШИН Денис",null,null,"\"ЕНИСЕЙ\"",23,null,"Хвалько Евгений ","Полузащитник","ХВАЛЬКО Евгений "]
["\"КУЗБАСС\"11","\"КУЗБАСС\"",11,"КАЛАНЧИН Владимир",null,null,"\"ЕНИСЕЙ\"",33,null,"Прокопьев Андрей ","Полузащитник","ПРОКОПЬЕВ Андрей "]
["\"КУЗБАСС\"13","\"КУЗБАСС\"",13,"УДОВЕНКО Михаил",null,null,"\"ЕНИСЕЙ\"",5,null,"Бондаренко Артем ","Нападающий","БОНДАРЕНКО Артем "]
["\"КУЗБАСС\"14","\"КУЗБАСС\"",14,"ХРОМЕНКОВ Андрей",null,null,"\"ЕНИСЕЙ\"",7,null,"Ломанов Сергей ","Нападающий","ЛОМАНОВ Сергей "]
["\"КУЗБАСС\"15","\"КУЗБАСС\"",15,"СЕМЁНОВ Максим",null,null,"\"ЕНИСЕЙ\"",20,null,"Швецов Вячеслав ","Нападающий","ШВЕЦОВ Вячеслав "]
["\"КУЗБАСС\"17","\"КУЗБАСС\"",17,"СТАСЕНКО Вадим",null,null,"\"ЕНИСЕЙ\"",21,null,"Лапшин Денис ","Нападающий","ЛАПШИН Денис "]
["\"КУЗБАСС\"19","\"КУЗБАСС\"",19,"ЗЕМЦОВ Олег",null,null,"\"ЕНИСЕЙ\"",99,null,"Храпенков Антон ","Нападающий","ХРАПЕНКОВ Антон "]
["\"КУЗБАСС\"20","\"КУЗБАСС\"",20,"ТАРАСЕНКО Климентий",null,null,"\"СТАРТ\"",1,null,"Лямин Вадим ","Вратарь","ЛЯМИН Вадим  (в)"]
["\"КУЗБАСС\"21","\"КУЗБАСС\"",21,"БОНДИН Илья",null,null,"\"СТАРТ\"",21,null,"Евтин Александр ","Вратарь","ЕВТИН Александр  (в)"]
["\"КУЗБАСС\"23","\"КУЗБАСС\"",23,"ПАВЕНСКИЙ Богдан",null,null,"\"СТАРТ\"",23,null,"Шайтанов Евгений ","Вратарь","ШАЙТАНОВ Евгений  (в)"]
["\"КУЗБАСС\"25","\"КУЗБАСС\"",25,"КРИУШЕНКОВ Денис (к)",null,null,"\"СТАРТ\"",84,null,"Болотов Максим ","Вратарь","БОЛОТОВ Максим  (в)"]
["\"КУЗБАСС\"28","\"КУЗБАСС\"",28,"БОРИСЕНКО Денис",null,null,"\"СТАРТ\"",2,null,"Максименко Денис ","Защитник","МАКСИМЕНКО Денис "]
["\"КУЗБАСС\"29","\"КУЗБАСС\"",29,"КОТОВ Кирилл",null,null,"\"СТАРТ\"",4,null,"Легошин Александр ","Защитник","ЛЕГОШИН Александр "]
["\"КУЗБАСС\"30","\"КУЗБАСС\"",30,"МОРОЗОВ Сергей (в)",null,null,"\"СТАРТ\"",5,null,"Михалин Игнатий ","Защитник","МИХАЛИН Игнатий "]
["\"КУЗБАСС\"33","\"КУЗБАСС\"",33,"ОПАРИН Андрей",null,null,"\"СТАРТ\"",11,null,"Тихонов Александр ","Защитник","ТИХОНОВ Александр "]
["\"КУЗБАСС\"36","\"КУЗБАСС\"",36,"АЗАРОВ Артём",null,null,"\"СТАРТ\"",16,null,"Осипов Олег ","Защитник","ОСИПОВ Олег "]
["\"КУЗБАСС\"39","\"КУЗБАСС\"",39,"ГАХ Яков (в)",null,null,"\"СТАРТ\"",20,null,"Непогодин Денис ","Защитник","НЕПОГОДИН Денис "]
["\"КУЗБАСС\"43","\"КУЗБАСС\"",43,"ПРОКУДИН Владимир",null,null,"\"СТАРТ\"",27,null,"Захваткин Александр ","Защитник","ЗАХВАТКИН Александр "]
[{"$f":"CONCATENATE(B257,C257)","v":"\"КУЗБАСС\"44"},"\"КУЗБАСС\"",44,"ВОРОНКОВ Евгений (в)",null,null,"\"СТАРТ\"",34,null,"Леденцов Игорь ","Защитник","ЛЕДЕНЦОВ Игорь "]
["\"КУЗБАСС\"47","\"КУЗБАСС\"",47,"БЛИНКОВ Максим (в)",null,null,"\"СТАРТ\"",39,null,"Лапшин Артём ","Защитник","ЛАПШИН Артём "]
["\"КУЗБАСС\"50","\"КУЗБАСС\"",50,"КАШТАНОВ Александр",null,null,"\"СТАРТ\"",44,null,"Бажанов Михаил ","Защитник","БАЖАНОВ Михаил "]
["\"КУЗБАСС\"55","\"КУЗБАСС\"",55,"ДУБРОВСКИЙ Александр (в)",null,null,"\"СТАРТ\"",66,null,"Тепляков Алексей ","Защитник","ТЕПЛЯКОВ Алексей "]
["\"КУЗБАСС\"57","\"КУЗБАСС\"",57,"МОСКАЛЕНКО Михаил",null,null,"\"СТАРТ\"",67,null,"Фатехов Ренат ","Защитник","ФАТЕХОВ Ренат "]
["\"КУЗБАСС\"59","\"КУЗБАСС\"",59,"АСТАПЕНКО Егор",null,null,"\"СТАРТ\"",6,null,"Патяшин Александр ","Полузащитник","ПАТЯШИН Александр "]
["\"КУЗБАСС\"60","\"КУЗБАСС\"",60,"КЛЕВЦОВ Александр",null,null,"\"СТАРТ\"",7,null,"Гаврилов Александр ","Полузащитник","ГАВРИЛОВ Александр "]
["\"КУЗБАСС\"63","\"КУЗБАСС\"",63,"ЯКОВЛЕВ Данил",null,null,"\"СТАРТ\"",9,null,"Гаврилов Павел ","Полузащитник","ГАВРИЛОВ Павел "]
["\"КУЗБАСС\"64","\"КУЗБАСС\"",64,"ЦИХОНЯ Никита",null,null,"\"СТАРТ\"",12,null,"Чекулаев Дмитрий ","Полузащитник","ЧЕКУЛАЕВ Дмитрий "]
["\"КУЗБАСС\"67","\"КУЗБАСС\"",67,"ОБОРНЕВ Константин",null,null,"\"СТАРТ\"",19,null,"Сергеев Михаил ","Полузащитник","СЕРГЕЕВ Михаил "]
["\"КУЗБАСС\"70","\"КУЗБАСС\"",70,"ШВЕЦОВ Вячеслав",null,null,"\"СТАРТ\"",22,null,"Данилов Максим ","Полузащитник","ДАНИЛОВ Максим "]
["\"КУЗБАСС\"71","\"КУЗБАСС\"",71,"КОЛЕНКО Яков",null,null,"\"СТАРТ\"",24,null,"Черепанов Евгений ","Полузащитник","ЧЕРЕПАНОВ Евгений "]
["\"КУЗБАСС\"72","\"КУЗБАСС\"",72,"ЧУМАКОВ Кирилл",null,null,"\"СТАРТ\"",25,null,"Бедарев Леонид ","Полузащитник","БЕДАРЕВ Леонид "]
["\"КУЗБАСС\"73","\"КУЗБАСС\"",73,"ПРИМОЧКИН Алексей",null,null,"\"СТАРТ\"",28,null,"Шибанов Денис ","Полузащитник","ШИБАНОВ Денис "]
["\"КУЗБАСС\"74","\"КУЗБАСС\"",74,"ЯКУШЕВ Павел",null,null,"\"СТАРТ\"",77,null,"Чкалов Александр ","Полузащитник","ЧКАЛОВ Александр "]
["\"КУЗБАСС\"77","\"КУЗБАСС\"",77,"ВОРОНИН Алексей",null,null,"\"СТАРТ\"",83,null,"Мосягин Алексей ","Полузащитник","МОСЯГИН Алексей "]
["\"КУЗБАСС\"86","\"КУЗБАСС\"",86,"КОТЛЯРЕНКО Игорь",null,null,"\"СТАРТ\"",96,null,"Ефимов Александр ","Полузащитник","ЕФИМОВ Александр "]
["\"КУЗБАСС\"89","\"КУЗБАСС\"",89,"ФЁДОРОВ Григорий",null,null,"\"СТАРТ\"",99,null,"Галяутдинов Руслан ","Полузащитник","ГАЛЯУТДИНОВ Руслан "]
["\"КУЗБАСС\"91","\"КУЗБАСС\"",91,"СЕВРЮКОВ Алексей",null,null,"\"СТАРТ\"",3,null,"Рычагов Антон ","Нападающий","РЫЧАГОВ Антон "]
["\"КУЗБАСС\"93","\"КУЗБАСС\"",93,"БАЛАШОВ Алексей",null,null,"\"СТАРТ\"",8,null,"Климкин Андрей ","Нападающий","КЛИМКИН Андрей "]
["\"КУЗБАСС\"99","\"КУЗБАСС\"",99,"САВЕЛЬЕВ Артём",null,null,"\"СТАРТ\"",10,null,"Яковлев Евгений ","Нападающий","ЯКОВЛЕВ Евгений "]
["\"КУЗБАСС\"901","\"КУЗБАСС\"",901,"КИТЬКОВ А.В.",null,null,"\"СТАРТ\"",13,null,"Кондратьев Эдуард ","Нападающий","КОНДРАТЬЕВ Эдуард "]
["\"ЛОКОМОТИВ\"1","\"ЛОКОМОТИВ\"",1,"МАЛЫШКИН Денис (в)",null,null,"\"СТАРТ\"",15,null,"Кессарийский Кирилл ","Нападающий","КЕССАРИЙСКИЙ Кирилл "]
["\"ЛОКОМОТИВ\"2","\"ЛОКОМОТИВ\"",2,"УСКОВ Андрей",null,null,"\"СТАРТ\"",17,null,"Нугманов Искандер ","Нападающий","НУГМАНОВ Искандер "]
["\"ЛОКОМОТИВ\"3","\"ЛОКОМОТИВ\"",3,"ДРУЖКОВ Владимир",null,null,"\"СТАРТ\"",18,null,"Киселёв Алексей ","Нападающий","КИСЕЛЁВ Алексей "]
["\"ЛОКОМОТИВ\"6","\"ЛОКОМОТИВ\"",6,"СИРАЗЕТДИНОВ Равиль",null,null,"\"СТАРТ\"",30,null,"Даданов Илья ","Нападающий","ДАДАНОВ Илья "]
["\"ЛОКОМОТИВ\"7","\"ЛОКОМОТИВ\"",7,"БАРАШКОВ Дмитрий",null,null,"\"СТАРТ\"",71,null,"Иванов Владимир ","Нападающий","ИВАНОВ Владимир "]
["\"ЛОКОМОТИВ\"9","\"ЛОКОМОТИВ\"",9,"РОМАШОВ Сергей",null,null,"\"СТАРТ\"",74,null,"Двойников Денис ","Нападающий","ДВОЙНИКОВ Денис "]
["\"ЛОКОМОТИВ\"10","\"ЛОКОМОТИВ\"",10,"ГОЛОВИН Андрей",null,null,"\"СТАРТ\"",89,null,"Пьянов Максим ","Нападающий","ПЬЯНОВ Максим "]
["\"ЛОКОМОТИВ\"11","\"ЛОКОМОТИВ\"",11,"ТРУНЁВ Евгений",null,null,"\"СТАРТ\"",92,null,"Дегтярев Евгений ","Нападающий","ДЕГТЯРЕВ Евгений "]
["\"ЛОКОМОТИВ\"12","\"ЛОКОМОТИВ\"",12,"ФАТКУЛЛИН Марсель",null,null,"\"СТАРТ\"",97,null,"Маслов Михаил ","Нападающий","МАСЛОВ Михаил "]
["\"ЛОКОМОТИВ\"16","\"ЛОКОМОТИВ\"",16,"ТЫНТЕРОВ Роман",null,null,"\"РОДИНА\"",1,null,"Лебедев Михаил ","Вратарь","ЛЕБЕДЕВ Михаил  (в)"]
["\"ЛОКОМОТИВ\"17","\"ЛОКОМОТИВ\"",17,"ЛОБАЕВ Егор",null,null,"\"РОДИНА\"",20,null,"Шакиров Максим ","Вратарь","ШАКИРОВ Максим  (в)"]
["\"ЛОКОМОТИВ\"18","\"ЛОКОМОТИВ\"",18,"СВИЖЕНЕЦ Артём",null,null,"\"РОДИНА\"",27,null,"Шиляев Михаил ","Вратарь","ШИЛЯЕВ Михаил  (в)"]
["\"ЛОКОМОТИВ\"19","\"ЛОКОМОТИВ\"",19,"КУСЬКОВ Никита",null,null,"\"РОДИНА\"",35,null,"Половников Денис ","Вратарь","ПОЛОВНИКОВ Денис  (в)"]
["\"ЛОКОМОТИВ\"20","\"ЛОКОМОТИВ\"",20,"ЛИХАНОВ Иван (в)",null,null,"\"РОДИНА\"",2,null,"Лампинен Петтери ","Защитник","ЛАМПИНЕН Петтери "]
["\"ЛОКОМОТИВ\"22","\"ЛОКОМОТИВ\"",22,"НЕМЫТОВ Никита (в)",null,null,"\"РОДИНА\"",3,null,"Елсуков Кирилл ","Защитник","ЕЛСУКОВ Кирилл "]
["\"ЛОКОМОТИВ\"23","\"ЛОКОМОТИВ\"",23,"МАМЕДОВ Байрам",null,null,"\"РОДИНА\"",4,null,"Клабуков Андрей ","Защитник","КЛАБУКОВ Андрей "]
["\"ЛОКОМОТИВ\"28","\"ЛОКОМОТИВ\"",28,"КЕРИН Сергей",null,null,"\"РОДИНА\"",5,null,"Поскрёбышев Константин ","Защитник","ПОСКРЁБЫШЕВ Константин "]
["\"ЛОКОМОТИВ\"30","\"ЛОКОМОТИВ\"",30,"КОЖЕВНИКОВ Данил (в)",null,null,"\"РОДИНА\"",19,null,"Чарушин Павел ","Защитник","ЧАРУШИН Павел "]
["\"ЛОКОМОТИВ\"44","\"ЛОКОМОТИВ\"",44,"КОЧАРЯН Армен (к)",null,null,"\"РОДИНА\"",93,null,"Садаков Денис ","Защитник","САДАКОВ Денис "]
["\"ЛОКОМОТИВ\"46","\"ЛОКОМОТИВ\"",46,"ВОЛКОВ Вадим",null,null,"\"РОДИНА\"",10,null,"Мороков Андрей ","Полузащитник","МОРОКОВ Андрей "]
["\"ЛОКОМОТИВ\"51","\"ЛОКОМОТИВ\"",51,"БАРЛЯЕВ Дмитрий",null,null,"\"РОДИНА\"",12,null,"Слаутин Денис ","Полузащитник","СЛАУТИН Денис "]
["\"ЛОКОМОТИВ\"77","\"ЛОКОМОТИВ\"",77,"МАМЕДОВ Шамиль",null,null,"\"РОДИНА\"",15,null,"Евтюшин Дмитрий ","Полузащитник","ЕВТЮШИН Дмитрий "]
["\"ЛОКОМОТИВ\"91","\"ЛОКОМОТИВ\"",91,"ГИНИАТУЛЛИН Роберт",null,null,"\"РОДИНА\"",26,null,"Бойко Иван ","Полузащитник","БОЙКО Иван "]
["\"ЛОКОМОТИВ\"93","\"ЛОКОМОТИВ\"",93,"ИВАНОВ Андрей",null,null,"\"РОДИНА\"",31,null,"Ронжин Александр ","Полузащитник","РОНЖИН Александр "]
["\"ЛОКОМОТИВ\"94","\"ЛОКОМОТИВ\"",94,"ГОТМАНОВ Никита",null,null,"\"РОДИНА\"",77,null,"Перевощиков Евгений ","Полузащитник","ПЕРЕВОЩИКОВ Евгений "]
["\"ЛОКОМОТИВ\"901","\"ЛОКОМОТИВ\"",901,"КУКУШКИН О.В.",null,null,"\"РОДИНА\"",7,null,"Бронников Вячеслав ","Нападающий","БРОННИКОВ Вячеслав "]
["\"РОДИНА\"1","\"РОДИНА\"",1,"КАТАЕВ Артём (в)",null,null,"\"РОДИНА\"",8,null,"Розвезев Фёдор ","Нападающий","РОЗВЕЗЕВ Фёдор "]
["\"РОДИНА\"3","\"РОДИНА\"",3,"РЫЧАГОВ Антон",null,null,"\"РОДИНА\"",9,null,"Пивоваров Олег ","Нападающий","ПИВОВАРОВ Олег "]
["\"РОДИНА\"5","\"РОДИНА\"",5,"ЕЛСУКОВ Кирилл",null,null,"\"РОДИНА\"",21,null,"Ларионов Игорь ","Нападающий","ЛАРИОНОВ Игорь "]
["\"РОДИНА\"8","\"РОДИНА\"",8,"МОГИЛЬНИКОВ Андрей",null,null,"\"РОДИНА\"",25,null,"Перминов Сергей ","Нападающий","ПЕРМИНОВ Сергей "]
["\"РОДИНА\"10","\"РОДИНА\"",10,"МЕНЬШИКОВ Никита",null,null,"\"РОДИНА\"",99,null,"Обухов Сергей ","Нападающий","ОБУХОВ Сергей "]
["\"РОДИНА\"11","\"РОДИНА\"",11,"МАСЛОВ Максим",null,null,"\"САЯНЫ-ХАКАСИЯ\"",20,null,"Савельев Алексей ","Вратарь","САВЕЛЬЕВ Алексей  (в)"]
["\"РОДИНА\"13","\"РОДИНА\"",13,"ЛАНСКИХ Алексей",null,null,"\"САЯНЫ-ХАКАСИЯ\"",30,null,"Сиукаев Александр ","Вратарь","СИУКАЕВ Александр  (в)"]
["\"РОДИНА\"15","\"РОДИНА\"",15,"ЕВТЮШИН Дмитрий",null,null,"\"САЯНЫ-ХАКАСИЯ\"",3,null,"Хилтунен Пекка ","Защитник","ХИЛТУНЕН Пекка "]
["\"РОДИНА\"16","\"РОДИНА\"",16,"РОНЖИН Александр",null,null,"\"САЯНЫ-ХАКАСИЯ\"",4,null,"Чижов Алексей ","Защитник","ЧИЖОВ Алексей "]
["\"РОДИНА\"19","\"РОДИНА\"",19,"ЧАРУШИН Павел",null,null,"\"САЯНЫ-ХАКАСИЯ\"",5,null,"Усов Александр ","Защитник","УСОВ Александр "]
["\"РОДИНА\"20","\"РОДИНА\"",20,"ГРИШИН Дмитрий",null,null,"\"САЯНЫ-ХАКАСИЯ\"",13,null,"Щеглов Иван ","Защитник","ЩЕГЛОВ Иван "]
["\"РОДИНА\"26","\"РОДИНА\"",26,"БОЙКО Иван",null,null,"\"ДИНАМО-КАЗАНЬ\"",85,null,"Темников Александр ","Вратарь","ТЕМНИКОВ Александр  (в)"]
["\"РОДИНА\"30","\"РОДИНА\"",30,"МЕХОНОШИН Евгений",null,null,"\"САЯНЫ-ХАКАСИЯ\"",15,null,"Бефус Янис ","Полузащитник","БЕФУС Янис "]
["\"РОДИНА\"34","\"РОДИНА\"",34,"ЛЕДЕНЦОВ Игорь",null,null,"\"САЯНЫ-ХАКАСИЯ\"",18,null,"Ткачук Евгений ","Полузащитник","ТКАЧУК Евгений "]
["\"РОДИНА\"52","\"РОДИНА\"",52,"КУЗЬМИН Илья",null,null,"\"САЯНЫ-ХАКАСИЯ\"",22,null,"Болдыков Илья ","Полузащитник","БОЛДЫКОВ Илья "]
["\"РОДИНА\"66","\"РОДИНА\"",66,"БАРМИН Кирилл",null,null,"\"САЯНЫ-ХАКАСИЯ\"",9,null,"Мартынов Антон ","Нападающий","МАРТЫНОВ Антон "]
[{"$f":"CONCATENATE(B321,C321)","v":"\"РОДИНА\"73"},"\"РОДИНА\"",73,"ХАЛЯВИН Максим (в)",null,null,"\"ДИНАМО-КАЗАНЬ\"",4,null,"Щеглов Алексей ","Защитник","ЩЕГЛОВ Алексей "]
["\"РОДИНА\"80","\"РОДИНА\"",80,"ЗУБАРЕВ Константин (к)",null,null,"\"САЯНЫ-ХАКАСИЯ\"",14,null,"Бутаков Дмитрий ","Защитник","БУТАКОВ Дмитрий "]
["\"РОДИНА\"87","\"РОДИНА\"",87,"ПРОКАШЕВ Алексей",null,null,"\"САЯНЫ-ХАКАСИЯ\"",23,null,"Козулин Роман ","Полузащитник","КОЗУЛИН Роман "]
["\"РОДИНА\"88","\"РОДИНА\"",88,"САМОЙЛОВ Артём",null,null,"\"САЯНЫ-ХАКАСИЯ\"",8,null,"Сыраев Марат ","Полузащитник","СЫРАЕВ Марат "]
["\"РОДИНА\"94","\"РОДИНА\"",94,"МАШКОВЦЕВ Андрей (в)",null,null,"\"ДИНАМО-КАЗАНЬ\"",28,null,"Эрикссон Даниэль ","Защитник","ЭРИКССОН Даниэль "]
["\"РОДИНА\"96","\"РОДИНА\"",96,"ТИХВИНСКИЙ Антон",null,null,"\"САЯНЫ-ХАКАСИЯ\"",19,null,"Ростовцев Дмитрий ","Защитник","РОСТОВЦЕВ Дмитрий "]
["\"РОДИНА\"901","\"РОДИНА\"",901,"ЗАГОСКИН И.В.",null,null,"\"САЯНЫ-ХАКАСИЯ\"",7,null,"Жаукенов Василий ","Полузащитник","ЖАУКЕНОВ Василий "]
["\"СИБСЕЛЬМАШ\"7","\"СИБСЕЛЬМАШ\"",7,"ЛЕОНОВ Евгений",null,null,"\"САЯНЫ-ХАКАСИЯ\"",10,null,"Мансуров Станислав ","Нападающий","МАНСУРОВ Станислав "]
["\"СИБСЕЛЬМАШ\"8","\"СИБСЕЛЬМАШ\"",8,"МАВРИН Евгений",null,null,"\"ДИНАМО-КАЗАНЬ\"",7,null,"Зубарев Максим ","Полузащитник","ЗУБАРЕВ Максим "]
["\"СИБСЕЛЬМАШ\"9","\"СИБСЕЛЬМАШ\"",9,"ВАГАНОВ Даниил",null,null,"\"САЯНЫ-ХАКАСИЯ\"",6,null,"Лабун Виталий ","Полузащитник","ЛАБУН Виталий "]
["\"СИБСЕЛЬМАШ\"10","\"СИБСЕЛЬМАШ\"",10,"ГАН Сергей",null,null,"\"ДИНАМО-КАЗАНЬ\"",29,null,"Жданов Михаил ","Защитник","ЖДАНОВ Михаил "]
["\"СИБСЕЛЬМАШ\"11","\"СИБСЕЛЬМАШ\"",11,"ПЕТРОВСКИЙ Кирилл",null,null,"\"САЯНЫ-ХАКАСИЯ\"",11,null,"Торточаков Артём ","Полузащитник","ТОРТОЧАКОВ Артём "]
["\"СИБСЕЛЬМАШ\"12","\"СИБСЕЛЬМАШ\"",12,"ДАРКОВСКИЙ Егор",null,null,"\"ДИНАМО-КАЗАНЬ\"",1,null,"Косынчук Александр ","Вратарь","КОСЫНЧУК Александр  (в)"]
["\"СИБСЕЛЬМАШ\"13","\"СИБСЕЛЬМАШ\"",13,"ЗУБРИЦКИЙ Никита",null,null,"\"САЯНЫ-ХАКАСИЯ\"",24,null,"Садовский Алексей ","Нападающий","САДОВСКИЙ Алексей "]
["\"СИБСЕЛЬМАШ\"14","\"СИБСЕЛЬМАШ\"",14,"СЫЧЁВ Игорь",null,null,"\"ДИНАМО-КАЗАНЬ\"",69,null,"Тихонов Олег ","Вратарь","ТИХОНОВ Олег  (в)"]
["\"СИБСЕЛЬМАШ\"15","\"СИБСЕЛЬМАШ\"",15,"ЗАЗУЛИН Владислав",null,null,"\"ДИНАМО-КАЗАНЬ\"",5,null,"Франц Павел ","Защитник","ФРАНЦ Павел "]
["\"СИБСЕЛЬМАШ\"17","\"СИБСЕЛЬМАШ\"",17,"ВШИВКОВ Артём",null,null,"\"САЯНЫ-ХАКАСИЯ\"",12,null,"Юсупов Сергей ","Нападающий","ЮСУПОВ Сергей "]
["\"СИБСЕЛЬМАШ\"18","\"СИБСЕЛЬМАШ\"",18,"МЕЛЬНИКОВ Николай"]
["\"СИБСЕЛЬМАШ\"19","\"СИБСЕЛЬМАШ\"",19,"СЫСОЕВ Роман",null,null,"\"САЯНЫ-ХАКАСИЯ\"",16,null,"Мурзин Роман ","Нападающий","МУРЗИН Роман "]
["\"СИБСЕЛЬМАШ\"20","\"СИБСЕЛЬМАШ\"",20,"ЯЗОВСКИЙ Никита"]
["\"СИБСЕЛЬМАШ\"21","\"СИБСЕЛЬМАШ\"",21,"ИВАЧЁВ Леонид",null,null,"\"САЯНЫ-ХАКАСИЯ\"",17,null,"Лихачёв Сергей ","Нападающий","ЛИХАЧЁВ Сергей "]
["\"СИБСЕЛЬМАШ\"23","\"СИБСЕЛЬМАШ\"",23,"ШУБИН Никита",null,null,"\"ДИНАМО-КАЗАНЬ\"",8,null,"Чермных Максим ","Полузащитник","ЧЕРМНЫХ Максим "]
["\"СИБСЕЛЬМАШ\"24","\"СИБСЕЛЬМАШ\"",24,"ПАНТЫКИН Матвей"]
["\"СИБСЕЛЬМАШ\"25","\"СИБСЕЛЬМАШ\"",25,"ШУБИН Никита",null,null,"\"ДИНАМО-КАЗАНЬ\"",9,null,"Клюшанов Станислав","Полузащитник","КЛЮШАНОВ Станислав"]
["\"СИБСЕЛЬМАШ\"27","\"СИБСЕЛЬМАШ\"",27,"МИХЕЕВ Юрий"]
["\"СИБСЕЛЬМАШ\"30","\"СИБСЕЛЬМАШ\"",30,"САЗОНОВ Денис (в)",null,null,"\"ДИНАМО-КАЗАНЬ\"",16,null,"Угаров Михаил ","Полузащитник","УГАРОВ Михаил "]
["\"СИБСЕЛЬМАШ\"32","\"СИБСЕЛЬМАШ\"",32,"ГОЛУБЯТНИКОВ Валентин",null,null,"\"ДИНАМО-КАЗАНЬ\"",17,null,"Платонов Артём ","Полузащитник","ПЛАТОНОВ Артём "]
["\"СИБСЕЛЬМАШ\"33","\"СИБСЕЛЬМАШ\"",33,"ВЕДЕНЕЕВ Андрей",null,null,"\"ДИНАМО-КАЗАНЬ\"",18,null,"Шабуров Сергей ","Полузащитник","ШАБУРОВ Сергей "]
["\"СИБСЕЛЬМАШ\"35","\"СИБСЕЛЬМАШ\"",35,"МАСЛОВ Андрей (в)"]
["\"СИБСЕЛЬМАШ\"38","\"СИБСЕЛЬМАШ\"",38,"ПОПОВ Виталий",null,null,"\"ДИНАМО-КАЗАНЬ\"",23,null,"Бушуев Алексей ","Полузащитник","БУШУЕВ Алексей "]
["\"СИБСЕЛЬМАШ\"44","\"СИБСЕЛЬМАШ\"",44,"БОБРОВ Кирилл",null,null,"\"ДИНАМО-КАЗАНЬ\"",50,null,"Логинов Дмитрий ","Полузащитник","ЛОГИНОВ Дмитрий "]
["\"СИБСЕЛЬМАШ\"50","\"СИБСЕЛЬМАШ\"",50,"ДОЛГОПОЛОВ Игорь (в)",null,null,"\"ДИНАМО-КАЗАНЬ\"",55,null,"Ахатов Азат ","Полузащитник","АХАТОВ Азат "]
["\"СИБСЕЛЬМАШ\"59","\"СИБСЕЛЬМАШ\"",59,"ШЕВЧЕНКО Игорь"]
["\"СИБСЕЛЬМАШ\"66","\"СИБСЕЛЬМАШ\"",66,"ВАСЮКОВИЧ Степан",null,null,"\"ДИНАМО-КАЗАНЬ\"",71,null,"Радюшин Юрий ","Полузащитник","РАДЮШИН Юрий "]
["\"СИБСЕЛЬМАШ\"69","\"СИБСЕЛЬМАШ\"",69,"ТОЛМАЧЁВ Кирилл",null,null,"\"ДИНАМО-КАЗАНЬ\"",10,null,"Пахомов Максим ","Нападающий","ПАХОМОВ Максим "]
["\"СИБСЕЛЬМАШ\"70","\"СИБСЕЛЬМАШ\"",70,"ПЕТРОВ Денис",null,null,"\"ДИНАМО-КАЗАНЬ\"",14,null,"Артюшин Денис ","Нападающий","АРТЮШИН Денис "]
["\"СИБСЕЛЬМАШ\"71","\"СИБСЕЛЬМАШ\"",71,"ДУДКОВ Дмитрий (в)"]
["\"СИБСЕЛЬМАШ\"73","\"СИБСЕЛЬМАШ\"",73,"ТЕРЁХИН Никита",null,null,"\"ДИНАМО-КАЗАНЬ\"",77,null,"Лаакконен Сами ","Нападающий","ЛААККОНЕН Сами "]
["\"СИБСЕЛЬМАШ\"79","\"СИБСЕЛЬМАШ\"",79,"МИТУСОВ Николай"]
["\"СИБСЕЛЬМАШ\"80","\"СИБСЕЛЬМАШ\"",80,"ИСАЛИЕВ Рауан"]
["\"СИБСЕЛЬМАШ\"81","\"СИБСЕЛЬМАШ\"",81,"ВАСИЛЬЕВ Павел"]
["\"СИБСЕЛЬМАШ\"84","\"СИБСЕЛЬМАШ\"",84,"ДОРОВСКИХ Алексей (к)"]
["\"СИБСЕЛЬМАШ\"87","\"СИБСЕЛЬМАШ\"",87,"КУХАРЕВИЧ Егор",null,null,"\"ДИНАМО-КАЗАНЬ\"",78,null,"Красиков Михаил ","Нападающий","КРАСИКОВ Михаил "]
["\"СИБСЕЛЬМАШ\"88","\"СИБСЕЛЬМАШ\"",88,"КОВАЛЁВ Владимир (в)"]
["\"СИБСЕЛЬМАШ\"89","\"СИБСЕЛЬМАШ\"",89,"АНИСИМОВ Павел"]
["\"СИБСЕЛЬМАШ\"91","\"СИБСЕЛЬМАШ\"",91,"ПРОНЬКИН Иван"]
["\"СИБСЕЛЬМАШ\"96","\"СИБСЕЛЬМАШ\"",96,"РИБКА Данил (в)"]
["\"СИБСЕЛЬМАШ\"98","\"СИБСЕЛЬМАШ\"",98,"САКС Савелий"]
["\"СИБСЕЛЬМАШ\"99","\"СИБСЕЛЬМАШ\"",99,"БАРАНОВ Денис"]
["\"СИБСЕЛЬМАШ\"901","\"СИБСЕЛЬМАШ\"",901,"ЧУБИНСКИЙ О.А."]
["\"СКА-НЕФТЯНИК\"1","\"СКА-НЕФТЯНИК\"",1,"КАМЕНЕВ Виктор (в)"]
["\"СКА-НЕФТЯНИК\"4","\"СКА-НЕФТЯНИК\"",4,"НИЧКОВ Алексей"]
["\"СКА-НЕФТЯНИК\"5","\"СКА-НЕФТЯНИК\"",5,"БОНДАРЕНКО Артём"]
["\"СКА-НЕФТЯНИК\"8","\"СКА-НЕФТЯНИК\"",8,"ЧИЖОВ Алексей (к)"]
["\"СКА-НЕФТЯНИК\"10","\"СКА-НЕФТЯНИК\"",10,"РЯЗАНЦЕВ Павел"]
["\"СКА-НЕФТЯНИК\"14","\"СКА-НЕФТЯНИК\"",14,"ИШКЕЛЬДИН Илья"]
["\"СКА-НЕФТЯНИК\"19","\"СКА-НЕФТЯНИК\"",19,"ТОЛСТИХИН Олег"]
["\"СКА-НЕФТЯНИК\"20","\"СКА-НЕФТЯНИК\"",20,"БЕФУС Янис"]
["\"СКА-НЕФТЯНИК\"21","\"СКА-НЕФТЯНИК\"",21,"ШАРДАКОВ Юрий"]
["\"СКА-НЕФТЯНИК\"24","\"СКА-НЕФТЯНИК\"",24,"АНТИПОВ Александр"]
["\"СКА-НЕФТЯНИК\"25","\"СКА-НЕФТЯНИК\"",25,"ГРАНОВСКИЙ Василий"]
["\"СКА-НЕФТЯНИК\"30","\"СКА-НЕФТЯНИК\"",30,"БУРАСОВ Артём (в)"]
["\"СКА-НЕФТЯНИК\"31","\"СКА-НЕФТЯНИК\"",31,"РЫСЕВ Денис (в)"]
["\"СКА-НЕФТЯНИК\"34","\"СКА-НЕФТЯНИК\"",34,"БОНДАРЕНКО Юрий"]
[{"$f":"CONCATENATE(B385,C385)","v":"\"СКА-НЕФТЯНИК\"37"},"\"СКА-НЕФТЯНИК\"",37,"МЕДВЕДЬ Максим"]
["\"СКА-НЕФТЯНИК\"40","\"СКА-НЕФТЯНИК\"",40,"ШИШКИН Лев (в)"]
["\"СКА-НЕФТЯНИК\"49","\"СКА-НЕФТЯНИК\"",49,"ЕПИФАНЦЕВ Максим"]
["\"СКА-НЕФТЯНИК\"61","\"СКА-НЕФТЯНИК\"",61,"ПОТЁМИН Денис"]
["\"СКА-НЕФТЯНИК\"64","\"СКА-НЕФТЯНИК\"",64,"ПЛОТНИКОВ Максим"]
["\"СКА-НЕФТЯНИК\"66","\"СКА-НЕФТЯНИК\"",66,"ИВКИН Валерий"]
["\"СКА-НЕФТЯНИК\"72","\"СКА-НЕФТЯНИК\"",72,"БОНДАРЕВ Александр"]
["\"СКА-НЕФТЯНИК\"77","\"СКА-НЕФТЯНИК\"",77,"АНИКИН Дмитрий"]
["\"СКА-НЕФТЯНИК\"78","\"СКА-НЕФТЯНИК\"",78,"ИШКЕЛЬДИН Максим"]
["\"СКА-НЕФТЯНИК\"80","\"СКА-НЕФТЯНИК\"",80,"КИМ Александр"]
["\"СКА-НЕФТЯНИК\"81","\"СКА-НЕФТЯНИК\"",81,"ДЁМИН Сергей"]
["\"СКА-НЕФТЯНИК\"82","\"СКА-НЕФТЯНИК\"",82,"НОРИК Всеволод"]
["\"СКА-НЕФТЯНИК\"87","\"СКА-НЕФТЯНИК\"",87,"РЯБУХИН Владислав"]
["\"СКА-НЕФТЯНИК\"90","\"СКА-НЕФТЯНИК\"",90,"СКОПИНЦЕВ Сергей"]
["\"СКА-НЕФТЯНИК\"91","\"СКА-НЕФТЯНИК\"",91,"КУЛАЕВ Кирилл"]
["\"СКА-НЕФТЯНИК\"92","\"СКА-НЕФТЯНИК\"",92,"ПАЛКИН Евгений"]
["\"СКА-НЕФТЯНИК\"93","\"СКА-НЕФТЯНИК\"",93,"ЛАПШИН Денис"]
["\"СКА-НЕФТЯНИК\"94","\"СКА-НЕФТЯНИК\"",94,"ТОРГОНСКИЙ Алексей"]
["\"СКА-НЕФТЯНИК\"95","\"СКА-НЕФТЯНИК\"",95,"ТУРУШЕВ Станислав"]
["\"СКА-НЕФТЯНИК\"97","\"СКА-НЕФТЯНИК\"",97,"ШАЛУХИН Борис"]
["\"СКА-НЕФТЯНИК\"98","\"СКА-НЕФТЯНИК\"",98,"ШУМЕНКОВ Кирилл"]
["\"СКА-НЕФТЯНИК\"901","\"СКА-НЕФТЯНИК\"",901,"ЮРЬЕВ М.Ю."]
["\"СТАРТ\"1","\"СТАРТ\"",1,"БОЛОТОВ Максим (в)"]
["\"СТАРТ\"2","\"СТАРТ\"",2,"МАКСИМЕНКО Денис"]
["\"СТАРТ\"7","\"СТАРТ\"",7,"ТЮКО Михаил"]
["\"СТАРТ\"8","\"СТАРТ\"",8,"КЛИМКИН Андрей"]
["\"СТАРТ\"10","\"СТАРТ\"",10,"ПАХОМОВ Максим"]
["\"СТАРТ\"11","\"СТАРТ\"",11,"АЛЁШИН Роман"]
["\"СТАРТ\"12","\"СТАРТ\"",12,"КОТКОВ Денис (к)"]
["\"СТАРТ\"13","\"СТАРТ\"",13,"ВАСИЛЬЕВ Вадим"]
["\"СТАРТ\"14","\"СТАРТ\"",14,"КОРЕВ Евгений"]
["\"СТАРТ\"15","\"СТАРТ\"",15,"ЛЕДЯНКИН Роман"]
["\"СТАРТ\"16","\"СТАРТ\"",16,"БЛЕМ Максим"]
["\"СТАРТ\"17","\"СТАРТ\"",17,"ДАШКОВ Егор"]
["\"СТАРТ\"18","\"СТАРТ\"",18,"КИСЕЛЁВ Алексей"]
["\"СТАРТ\"20","\"СТАРТ\"",20,"ПЕРМИНОВ Сергей"]
["\"СТАРТ\"21","\"СТАРТ\"",21,"ЕВТИН Александр (в)"]
["\"СТАРТ\"23","\"СТАРТ\"",23,"БУШУЕВ Алексей"]
["\"СТАРТ\"25","\"СТАРТ\"",25,"КОЧЕТОВ Никита"]
["\"СТАРТ\"34","\"СТАРТ\"",34,"МАТВЕЕВ Максим"]
["\"СТАРТ\"35","\"СТАРТ\"",35,"АНЦИФЕРОВ Максим"]
["\"СТАРТ\"70","\"СТАРТ\"",70,"НЕРОНОВ Евгений"]
["\"СТАРТ\"71","\"СТАРТ\"",71,"ИВАНОВ Владимир"]
["\"СТАРТ\"74","\"СТАРТ\"",74,"САКСОНОВ Александр"]
["\"СТАРТ\"77","\"СТАРТ\"",77,"ОСИПЕНКОВ Андрей"]
["\"СТАРТ\"87","\"СТАРТ\"",87,"ЖЕЛТЯКОВ Александр"]
["\"СТАРТ\"97","\"СТАРТ\"",97,"ИВАНЧИКОВ Юрий (в)"]
["\"СТАРТ\"98","\"СТАРТ\"",98,"ШКИЛЁВ Дмитрий"]
["\"СТАРТ\"901","\"СТАРТ\"",901,"БЕГУНОВ А.В."]
["\"СТРОИТЕЛЬ\"3","\"СТРОИТЕЛЬ\"",3,"КОРАБЛИН Иван"]
["\"СТРОИТЕЛЬ\"4","\"СТРОИТЕЛЬ\"",4,"КУЛИКОВ Андрей"]
["\"СТРОИТЕЛЬ\"5","\"СТРОИТЕЛЬ\"",5,"БОЯРИНЦЕВ Роман"]
["\"СТРОИТЕЛЬ\"6","\"СТРОИТЕЛЬ\"",6,"МАМОНТОВ Кирилл"]
["\"СТРОИТЕЛЬ\"7","\"СТРОИТЕЛЬ\"",7,"АГАФОНОВ Никита"]
["\"СТРОИТЕЛЬ\"8","\"СТРОИТЕЛЬ\"",8,"ЛИХАЧЁВ Артём"]
["\"СТРОИТЕЛЬ\"9","\"СТРОИТЕЛЬ\"",9,"ВЛАСЮК Владимир"]
["\"СТРОИТЕЛЬ\"10","\"СТРОИТЕЛЬ\"",10,"СЕЛЕДКОВ Михаил"]
["\"СТРОИТЕЛЬ\"11","\"СТРОИТЕЛЬ\"",11,"АРЗУБОВ Павел"]
["\"СТРОИТЕЛЬ\"12","\"СТРОИТЕЛЬ\"",12,"ЗИГАНШИН Ренат"]
["\"СТРОИТЕЛЬ\"20","\"СТРОИТЕЛЬ\"",20,"ШАКИРОВ Максим (в)"]
["\"СТРОИТЕЛЬ\"21","\"СТРОИТЕЛЬ\"",21,"ЕЛФИМОВ Сергей"]
["\"СТРОИТЕЛЬ\"23","\"СТРОИТЕЛЬ\"",23,"ЗУБАРЕВ Максим"]
["\"СТРОИТЕЛЬ\"29","\"СТРОИТЕЛЬ\"",29,"ВОЮШИН Александр"]
["\"СТРОИТЕЛЬ\"33","\"СТРОИТЕЛЬ\"",33,"КОРЯКИН Дмитрий (в)"]
[{"$f":"CONCATENATE(B449,C449)","v":"\"СТРОИТЕЛЬ\"37"},"\"СТРОИТЕЛЬ\"",37,"ЛЕУХИН Евгений"]
["\"СТРОИТЕЛЬ\"44","\"СТРОИТЕЛЬ\"",44,"НЕМЦЕВ Максим"]
["\"СТРОИТЕЛЬ\"70","\"СТРОИТЕЛЬ\"",70,"МЕДВЕДЬ Максим"]
["\"СТРОИТЕЛЬ\"71","\"СТРОИТЕЛЬ\"",71,"ОППЕНЛЕНДЕР Антон"]
["\"СТРОИТЕЛЬ\"77","\"СТРОИТЕЛЬ\"",77,"ШЕБОНКИН Сергей (к)"]
["\"СТРОИТЕЛЬ\"83","\"СТРОИТЕЛЬ\"",83,"ФИЛАТОВ Сергей"]
["\"СТРОИТЕЛЬ\"90","\"СТРОИТЕЛЬ\"",90,"ГУТАРЕНКО Денис (в)"]
["\"СТРОИТЕЛЬ\"91","\"СТРОИТЕЛЬ\"",91,"СВИРИДОВ Никита"]
["\"СТРОИТЕЛЬ\"93","\"СТРОИТЕЛЬ\"",93,"САДАКОВ Денис"]
["\"СТРОИТЕЛЬ\"98","\"СТРОИТЕЛЬ\"",98,"ФЕДОСЕЕВ Владимир"]
["\"СТРОИТЕЛЬ\"901","\"СТРОИТЕЛЬ\"",901,"ФРАНЦ П.Я."]
["\"УРАЛЬСКИЙ ТРУБНИК\"1","\"УРАЛЬСКИЙ ТРУБНИК\"",1,"МОРКОВКИН Александр (в)"]
["\"УРАЛЬСКИЙ ТРУБНИК\"5","\"УРАЛЬСКИЙ ТРУБНИК\"",5,"УСОВ Александр"]
["\"УРАЛЬСКИЙ ТРУБНИК\"8","\"УРАЛЬСКИЙ ТРУБНИК\"",8,"ЧЕРНЫХ Дмитрий"]
["\"УРАЛЬСКИЙ ТРУБНИК\"9","\"УРАЛЬСКИЙ ТРУБНИК\"",9,"БАГАЕВ Денис"]
["\"УРАЛЬСКИЙ ТРУБНИК\"11","\"УРАЛЬСКИЙ ТРУБНИК\"",11,"СЫСОЕВ Евгений"]
["\"УРАЛЬСКИЙ ТРУБНИК\"12","\"УРАЛЬСКИЙ ТРУБНИК\"",12,"ЦЫГАНЕНКО Пётр"]
["\"УРАЛЬСКИЙ ТРУБНИК\"13","\"УРАЛЬСКИЙ ТРУБНИК\"",13,"ЗЕЛЕНИН Андрей"]
["\"УРАЛЬСКИЙ ТРУБНИК\"14","\"УРАЛЬСКИЙ ТРУБНИК\"",14,"МАРКИН Вячеслав"]
["\"УРАЛЬСКИЙ ТРУБНИК\"15","\"УРАЛЬСКИЙ ТРУБНИК\"",15,"ФЕФЕЛОВ Дмитрий"]
["\"УРАЛЬСКИЙ ТРУБНИК\"17","\"УРАЛЬСКИЙ ТРУБНИК\"",17,"ШИРЯЕВ Максим"]
["\"УРАЛЬСКИЙ ТРУБНИК\"18","\"УРАЛЬСКИЙ ТРУБНИК\"",18,"АФАНАСЬЕВ Кирилл"]
["\"УРАЛЬСКИЙ ТРУБНИК\"20","\"УРАЛЬСКИЙ ТРУБНИК\"",20,"ПРОХОРОВ Артём (в)"]
["\"УРАЛЬСКИЙ ТРУБНИК\"23","\"УРАЛЬСКИЙ ТРУБНИК\"",23,"РАЗУВАЕВ Дмитрий (к)"]
["\"УРАЛЬСКИЙ ТРУБНИК\"24","\"УРАЛЬСКИЙ ТРУБНИК\"",24,"ЛИПИН Григорий"]
["\"УРАЛЬСКИЙ ТРУБНИК\"26","\"УРАЛЬСКИЙ ТРУБНИК\"",26,"ШИРЯЕВ Дмитрий"]
["\"УРАЛЬСКИЙ ТРУБНИК\"27","\"УРАЛЬСКИЙ ТРУБНИК\"",27,"СИДОРОВ Дмитрий"]
["\"УРАЛЬСКИЙ ТРУБНИК\"30","\"УРАЛЬСКИЙ ТРУБНИК\"",30,"МЕХОНОШИН Евгений"]
["\"УРАЛЬСКИЙ ТРУБНИК\"31","\"УРАЛЬСКИЙ ТРУБНИК\"",31,"ТОПОРОВ Никита (в)"]
["\"УРАЛЬСКИЙ ТРУБНИК\"44","\"УРАЛЬСКИЙ ТРУБНИК\"",44,"ОРЛОВ Андрей"]
["\"УРАЛЬСКИЙ ТРУБНИК\"54","\"УРАЛЬСКИЙ ТРУБНИК\"",54,"КОНЬКОВ Николай"]
["\"УРАЛЬСКИЙ ТРУБНИК\"71","\"УРАЛЬСКИЙ ТРУБНИК\"",71,"ПОЧКУНОВ Сергей"]
["\"УРАЛЬСКИЙ ТРУБНИК\"78","\"УРАЛЬСКИЙ ТРУБНИК\"",78,"КРАСИКОВ Михаил"]
["\"УРАЛЬСКИЙ ТРУБНИК\"79","\"УРАЛЬСКИЙ ТРУБНИК\"",79,"НЕЛЕП Никита"]
["\"УРАЛЬСКИЙ ТРУБНИК\"88","\"УРАЛЬСКИЙ ТРУБНИК\"",88,"ГЕРАСИМОВ Андрей"]
["\"УРАЛЬСКИЙ ТРУБНИК\"89","\"УРАЛЬСКИЙ ТРУБНИК\"",89,"ВОРОНКОВСКИЙ Александр"]
["\"УРАЛЬСКИЙ ТРУБНИК\"901","\"УРАЛЬСКИЙ ТРУБНИК\"",901,"ЖЕРЕБКОВ А.В."]
["ИНСПЕКТОРЫ1","ИНСПЕКТОРЫ",1,"АНТИПУШИН Сергей, ВК, Красногорск"]
["ИНСПЕКТОРЫ2","ИНСПЕКТОРЫ",2,"ГАЛАНИН Андрей, ВК, Иркутск"]
["ИНСПЕКТОРЫ3","ИНСПЕКТОРЫ",3,"ГРЕХОВ Андрей, ВК, Ульяновск"]
["ИНСПЕКТОРЫ4","ИНСПЕКТОРЫ",4,"ИВАНОВ Игорь, ВК, Нижний Новгород"]
["ИНСПЕКТОРЫ5","ИНСПЕКТОРЫ",5,"КОНОНОВ Виталий, ВК, Оренбург"]
["ИНСПЕКТОРЫ6","ИНСПЕКТОРЫ",6,"КРЕМЗУКОВ Дмитрий, ВК, Абакан"]
["ИНСПЕКТОРЫ7","ИНСПЕКТОРЫ",7,"МАТВЕЕВ Владимир, ВК, Первоуральск"]
["ИНСПЕКТОРЫ8","ИНСПЕКТОРЫ",8,"ПАНКОВ Игорь, 1К, Москва"]
["ИНСПЕКТОРЫ9","ИНСПЕКТОРЫ",9,"ПЕТРОВ Евгений, ВК, Сыктывкар"]
["ИНСПЕКТОРЫ10","ИНСПЕКТОРЫ",10,"ПЕТРОВСКИЙ Виталий, 1К, Архангельск"]
["ИНСПЕКТОРЫ11","ИНСПЕКТОРЫ",11,"ПОПИКОВ Роман, ВК, Балашиха"]
["ИНСПЕКТОРЫ12","ИНСПЕКТОРЫ",12,"ПОРОВАЕВ Александр, ВК, Калуга"]
["ИНСПЕКТОРЫ13","ИНСПЕКТОРЫ",13,"СЕЛИВАНОВ Олег, ВК, Новокуйбышевск"]
["ИНСПЕКТОРЫ14","ИНСПЕКТОРЫ",14,"СТУК Андрей, 1К, Архангельск"]
["ИНСПЕКТОРЫ15","ИНСПЕКТОРЫ",15,"ТАРАКАНОВ Игорь, ВК, Кемерово"]
["ИНСПЕКТОРЫ16","ИНСПЕКТОРЫ",16,"ТАРАТОРКИН Олег, ВК, Димитровград"]
["ИНСПЕКТОРЫ17","ИНСПЕКТОРЫ",17,"ФИЛИППОВ Андрей, ВК, Новосибирск"]
["ИНСПЕКТОРЫ18","ИНСПЕКТОРЫ",18,"ШВАРЦМАН Александр, ЗТР, Екатеринбург"]
["ИНСПЕКТОРЫ19","ИНСПЕКТОРЫ",19,"ЮКЛЯЕВСКИХ Алексей, ВК, Екатеринбург"]
["СЕКРЕТАРИ1","СЕКРЕТАРИ",1,"ЛУНЕГОВ Виталий, 2К, Богданович"]
["СЕКРЕТАРИ2","СЕКРЕТАРИ",2,"ДЁМИН Валерий, 2К, Богданович"]
["СЕКРЕТАРИ3","СЕКРЕТАРИ",3,"ВАНЬКОВ Андрей, 2К, Казань"]
["СЕКРЕТАРИ4","СЕКРЕТАРИ",4,"ДУБЫНИН Андрей, 1К, Иркутск"]
["СЕКРЕТАРИ5","СЕКРЕТАРИ",5,"ЖУКОВ Виталий, 1К, Королёв"]
["СЕКРЕТАРИ6","СЕКРЕТАРИ",6,"ЗИБАРЕВ Игорь, 1К, Сыктывкар"]
["СЕКРЕТАРИ7","СЕКРЕТАРИ",7,"КАРМАНОВ Игорь, 1К, Новосибирск"]
["СЕКРЕТАРИ8","СЕКРЕТАРИ",8,"КАССИХИН Дмитрий, ВК, Московская обл."]
[{"$f":"CONCATENATE(B513,C513)","v":"СЕКРЕТАРИ9"},"СЕКРЕТАРИ",9,"КИЗИЛОВ Артём, ВК, Хабаровск"]
["СЕКРЕТАРИ10","СЕКРЕТАРИ",10,"КОЗЛОВ Александр, 1К, Обухово"]
["СЕКРЕТАРИ11","СЕКРЕТАРИ",11,"КОСТИН Константин, 2К, Хабаровск"]
["СЕКРЕТАРИ12","СЕКРЕТАРИ",12,"КРАНЦЕВ Игорь, 1К, Ульяновск"]
["СЕКРЕТАРИ13","СЕКРЕТАРИ",13,"КУЗНЕЦОВ Евгений, 1К, Ульяновск"]
["СЕКРЕТАРИ14","СЕКРЕТАРИ",14,"ЛЕСНЯК Алексей, 1К, Красноярск"]
["СЕКРЕТАРИ15","СЕКРЕТАРИ",15,"МАЛЫГИН Игорь, 3К, Мурманск"]
["СЕКРЕТАРИ17","СЕКРЕТАРИ",17,"ОЩЕПКОВ Юрий, 1К, Ульяновск"]
["СЕКРЕТАРИ18","СЕКРЕТАРИ",18,"ПАНИН Андрей, 1К, Сыктывкар"]
["СЕКРЕТАРИ19","СЕКРЕТАРИ",19,"ПАРФЁНОВ Вячеслав, 1К, Нижний Новгород"]
["СЕКРЕТАРИ20","СЕКРЕТАРИ",20,"ПЕРМИНОВ Игорь, 1К, Ульяновск"]
["СЕКРЕТАРИ21","СЕКРЕТАРИ",21,"ПЕТРОВСКИЙ Александр, ВК, Архангельск"]
["СЕКРЕТАРИ22","СЕКРЕТАРИ",22,"ПОСКРЁБЫШЕВ Максим, 1К, Первоуральск"]
["СЕКРЕТАРИ23","СЕКРЕТАРИ",23,"СВИРИДЕНКО Александр, 1К, Абакан"]
["СЕКРЕТАРИ24","СЕКРЕТАРИ",24,"СОТНИКОВ Юрий, 1К, Оренбург"]
["СЕКРЕТАРИ25","СЕКРЕТАРИ",25,"ТАРАКАНОВА Юлия, ВК, Кемерово"]
["СЕКРЕТАРИ26","СЕКРЕТАРИ",26,"ТРАПЕЗНИКОВА Яна, 3К, Кемерово"]
["СЕКРЕТАРИ27","СЕКРЕТАРИ",27,"ФОМИНЫХ Борис, ВК, Иркутск"]
["СЕКРЕТАРИ28","СЕКРЕТАРИ",28,"ХРАМОВ Олег, 1К, Ульяновск"]
["СЕКРЕТАРИ29","СЕКРЕТАРИ",29,"ЧЕРКАЩЕНКО Анастасия, 1К, Кемерово"]
["СЕКРЕТАРИ30","СЕКРЕТАРИ",30,"ЧИКУНОВ Марк, 1К, Хабаровск"]
["СЕКРЕТАРИ31","СЕКРЕТАРИ",31,"ШАБАЛДИНА Виолетта, 2К, Хабаровск"]
["СЕКРЕТАРИ32","СЕКРЕТАРИ",32,"ШОЛОХОВ Алексей, БК, Верхний Уфалей"]
["СЕКРЕТАРИ33","СЕКРЕТАРИ",33,"ЮРКАНЦЕВ Сергей, 2К, Краснотурьинск"]
["СУДЬИ1","СУДЬИ",1,"ДЁМИН Валерий, 2К, Богданович"]
["СУДЬИ2","СУДЬИ",2,"ПОЛУЯКТОВ Юрий, РК, Богданович"]
["СУДЬИ3","СУДЬИ",3,"ЦВЕТОВ Евгений, РК, Богданович"]
["СУДЬИ4","СУДЬИ",4,"ЗЕЛЕЧЕНКО Андрей, 3К, Богданович"]
["СУДЬИ5","СУДЬИ",5,"БЕЗБОРОДОВ Владимир, 3К, Богданович"]
["СУДЬИ6","СУДЬИ",6,"БАБАШКИН Григорий, ВК, Ярославль"]
["СУДЬИ7","СУДЬИ",7,"БАРСУКОВ Игорь, 1К, Омск"]
["СУДЬИ8","СУДЬИ",8,"БЕСКОНЧИН Сергей, ВК, Кемерово"]
["СУДЬИ9","СУДЬИ",9,"БЛИНОВ Александр, 1К, Киров"]
["СУДЬИ10","СУДЬИ",10,"ВДОВИН Александр, РК, Москва"]
["СУДЬИ11","СУДЬИ",11,"ГАБОВ Юрий, 1К, Сыктывкар"]
["СУДЬИ12","СУДЬИ",12,"ГАЛАНИН Андрей, ВК, Иркутск"]
["СУДЬИ13","СУДЬИ",13,"ГЛЕБОВ Сергей, РК, Москва"]
["СУДЬИ14","СУДЬИ",14,"ГОНЧАР Владислав, 1К, Хабаровск"]
["СУДЬИ15","СУДЬИ",15,"ГОРБАЧЁВ Сергей, ВК, Балашиха"]
["СУДЬИ16","СУДЬИ",16,"ГРИНЕВЕЦКИЙ Антон, 1К, Карпинск"]
["СУДЬИ17","СУДЬИ",17,"ГУСЕВ Денис, 2К, Красногорск"]
["СУДЬИ18","СУДЬИ",18,"ДЕНИСОВ Сергей, 1К, Екатеринбург"]
["СУДЬИ19","СУДЬИ",19,"ДЕРДЮК Игорь, 1К, Казань"]
["СУДЬИ20","СУДЬИ",20,"ДМИТРИЕВА Оксана, 1К, Иркутск"]
["СУДЬИ21","СУДЬИ",21,"ДОБРЯНСКИЙ Дмитрий, ВК, Кемерово"]
["СУДЬИ22","СУДЬИ",22,"ЁЛКИН Денис, 1К, Димитровград"]
["СУДЬИ23","СУДЬИ",23,"ЖДАНОВ Виктор, 1К, Оренбург"]
["СУДЬИ24","СУДЬИ",24,"ЖДАНОВ Иван, 1К, Оренбург"]
["СУДЬИ25","СУДЬИ",25,"ЖИГАНОВ Алексей, 1К, Мурманск"]
["СУДЬИ26","СУДЬИ",26,"ЖИЖАНОВ Сергей, 1К, Краснотурьинск"]
["СУДЬИ27","СУДЬИ",27,"ЖУЙКОВ Вячеслав, 3К, Воткинск"]
["СУДЬИ28","СУДЬИ",28,"ИВЛЕВ Артём, 2К, Первоуральск"]
["СУДЬИ29","СУДЬИ",29,"КАЗАКОВ Денис, 1К, Абакан"]
["СУДЬИ30","СУДЬИ",30,"КИЗИЛОВ Артём, ВК, Хабаровск"]
["СУДЬИ31","СУДЬИ",31,"КИРЮХИН Борис 1К, Уральск"]
["СУДЬИ32","СУДЬИ",32,"КНЯЗЕВ Олег, 1К, Воткинск"]
["СУДЬИ33","СУДЬИ",33,"КОРЕНКО Виталий, 2К, Красноярск"]
["СУДЬИ34","СУДЬИ",34,"КОРОБКОВ Александр, ВК, Тольятти"]
["СУДЬИ35","СУДЬИ",35,"КОСТИН Константин, 2К, Хабаровск"]
["СУДЬИ36","СУДЬИ",36,"КРАСОВСКИЙ Яков, 1К, Мурманск"]
["СУДЬИ37","СУДЬИ",37,"КРЕМЗУКОВ Дмитрий, ВК, Абакан"]
["СУДЬИ38","СУДЬИ",38,"КУЛЕШОВ Кирилл, РК, Красногорск"]
["СУДЬИ39","СУДЬИ",39,"КУРБАНОВ Вячеслав, 1К, Абакан"]
["СУДЬИ40","СУДЬИ",40,"ЛАКИН Андрей, ВК, Красноярск"]
[{"$f":"CONCATENATE(B577,C577)","v":"СУДЬИ41"},"СУДЬИ",41,"ЛЕБЕДЕВ Евгений, 1К, Красноярск"]
["СУДЬИ42","СУДЬИ",42,"ЛЕЙС Александр, 1К, Краснотурьинск"]
["СУДЬИ43","СУДЬИ",43,"ЛОБАНОВ Андрей, 1К, Архангельск"]
["СУДЬИ44","СУДЬИ",44,"ЛОПАТОЧКИН Роман, 1К, Нижний Новгород"]
["СУДЬИ45","СУДЬИ",45,"ЛУКЬЯНЧЕНКО Егор, 1К, Хабаровск"]
["СУДЬИ46","СУДЬИ",46,"МАЛАНИН Дмитрий, 2К, Абакан"]
["СУДЬИ47","СУДЬИ",47,"МАЛЫГИН Виталий, ВК, Мурманск"]
["СУДЬИ48","СУДЬИ",48,"МАЛЫШЕВ Игорь, 1К, Оренбург"]
["СУДЬИ49","СУДЬИ",49,"МАСЛЯЕВ Дмитрий, ВК, Нижний Новгород"]
["СУДЬИ50","СУДЬИ",50,"МЕДВЕДЕВ Юрий, 1К, Екатеринбург"]
["СУДЬИ51","СУДЬИ",51,"МИНАЕВ Григорий, ВК, Санкт-Петербург"]
["СУДЬИ52","СУДЬИ",52,"МОРОЗОВ Вадим, 1К, Нижний Новгород"]
["СУДЬИ53","СУДЬИ",53,"МОРОЗОВ Евгений, 1К, Кемерово"]
["СУДЬИ54","СУДЬИ",54,"НИКОЛАЕВ Тимур, 1К, Казань"]
["СУДЬИ55","СУДЬИ",55,"ОБЩЕВ Алексей, 1К, Богданович"]
["СУДЬИ56","СУДЬИ",56,"ОСИПОВ Александр, ВК, Архангельск"]
["СУДЬИ57","СУДЬИ",57,"ПЕТРОВ Евгений, ВК, Сыктывкар"]
["СУДЬИ58","СУДЬИ",58,"ПЕТУХОВ Юрий, БК, Красногорск"]
["СУДЬИ59","СУДЬИ",59,"ПИУНОВ Андрей, РК, Уральск"]
["СУДЬИ60","СУДЬИ",60,"ПОПОВ Павел, 2К, Хабаровск"]
["СУДЬИ61","СУДЬИ",61,"ПРОКОФЬЕВА Кристина, 3К, Красногорск"]
["СУДЬИ62","СУДЬИ",62,"ПРОНИН Александр, ВК, Ульяновск"]
["СУДЬИ63","СУДЬИ",63,"ПРОНИН Денис, ВК, Кемерово"]
["СУДЬИ64","СУДЬИ",64,"РАМИХ Дмитрий, БК, Кемерово"]
["СУДЬИ65","СУДЬИ",65,"РЫЖКОВ Сергей, 1К, Среднеуральск"]
["СУДЬИ66","СУДЬИ",66,"САВИН Василий, БК, Красноярск"]
["СУДЬИ67","СУДЬИ",67,"САДАКОВ Александр, ВК, Киров"]
["СУДЬИ68","СУДЬИ",68,"САРК Евгений, 2К, Иркутск"]
["СУДЬИ69","СУДЬИ",69,"СВИРИДОВ Евгений, БК, Новосибирск"]
["СУДЬИ70","СУДЬИ",70,"СЕМЁНОВ Евгений, ВК, Иркутск"]
["СУДЬИ71","СУДЬИ",71,"СЕРГЕЕВ Сергей, ВК, Киров"]
["СУДЬИ72","СУДЬИ",72,"СЕРДЦЕВ Антон, 2К, Первоуральск"]
["СУДЬИ73","СУДЬИ",73,"СИВКОВ Сергей, 1К, Среднеуральск"]
["СУДЬИ74","СУДЬИ",74,"СИНИЦЫН Сергей, 1К, Новосибирск"]
["СУДЬИ75","СУДЬИ",75,"СТАРОДУБЦЕВ Алексей, 1К, Абакан"]
["СУДЬИ76","СУДЬИ",76,"СУРОВ Андрей, 1К, Железнодорожный"]
["СУДЬИ77","СУДЬИ",77,"СУХОНДЯЕВСКИЙ Дмитрий, ВК, Северодвинск"]
["СУДЬИ78","СУДЬИ",78,"ТАРАТОРКИН Олег, ВК, Димитровград"]
["СУДЬИ79","СУДЬИ",79,"ТЕРЕНТЬЕВ Александр, ВК, Оренбург"]
["СУДЬИ80","СУДЬИ",80,"ТЕТЕРИН Максим, 1К, Северодвинск"]
["СУДЬИ81","СУДЬИ",81,"ТОКМАКОВ Андрей, ВК, Москва"]
["СУДЬИ82","СУДЬИ",82,"ТОЛЩИН Евгений, 1К, Красноярск"]
["СУДЬИ83","СУДЬИ",83,"ТЮТЮКОВ Евгений, ВК, Горно-Алтайск"]
["СУДЬИ84","СУДЬИ",84,"ФЕДЮКОВА Мария, 3К, Красногорск"]
["СУДЬИ85","СУДЬИ",85,"ХАЛДИН Евгений, ВК, Первоуральск"]
["СУДЬИ86","СУДЬИ",86,"ХЛЕБНИКОВ Алексей, ВК, Ульяновск"]
["СУДЬИ87","СУДЬИ",87,"ЦЕЛИКОВ Михаил, 2К, Архангельск"]
["СУДЬИ88","СУДЬИ",88,"ЦЫВУНИН Михаил, 2К, Сыктывкар"]
["СУДЬИ89","СУДЬИ",89,"ШАКИРОВ Александр, 1К, Ульяновск"]
["СУДЬИ90","СУДЬИ",90,"ШАТУНОВ Александр, ВК, Екатеринбург"]
["СУДЬИ91","СУДЬИ",91,"ЮКЛЯЕВСКИХ Никита, ВК, Санкт-Петербург"]
["СУДЬИ93","СУДЬИ",93,"ДЁМИН Валерий, 2К, Богданович"]
["СУДЬИ92","СУДЬИ",92,"ЯРОВЕНКО Родион, 1К, Хабаровск"]
["\"ДИНАМО\"32","\"ДИНАМО\"",32,"БУЛАТОВ Павел"]
["\"ФАКЕЛ-07\"1","\"ФАКЕЛ-07\"",1,"КАРПОВ Всеволод (вр)"]
["\"ФАКЕЛ-07\"2","\"ФАКЕЛ-07\"",2,"ЧЕРЕПАНОВ Владислав"]
["\"ФАКЕЛ-07\"3","\"ФАКЕЛ-07\"",3,"ПСТЕЯН Даниил"]
["\"ФАКЕЛ-07\"4","\"ФАКЕЛ-07\"",4,"БОГДАНОВ Виталий"]
["\"ФАКЕЛ-07\"7","\"ФАКЕЛ-07\"",7,"МАЛОЗЁМОВ Иван (к)"]
["\"ФАКЕЛ-07\"8","\"ФАКЕЛ-07\"",8,"ФАРЛЕНКОВ Пётр"]
["\"ФАКЕЛ-07\"5","\"ФАКЕЛ-07\"",5,"БРЮХАНОВ Семён"]
["\"ФАКЕЛ-07\"9","\"ФАКЕЛ-07\"",9,"НИКИТИН Александр"]
["\"ФАКЕЛ-07\"10","\"ФАКЕЛ-07\"",10,"ДОЛГОПОЛОВ Артём"]
["\"ФАКЕЛ-07\"11","\"ФАКЕЛ-07\"",11,"ПОЛУЯКТОВ Андрей"]
["\"ФАКЕЛ-07\"12","\"ФАКЕЛ-07\"",12,"ПЕЧЁРКИН Сергей"]
[{"$f":"CONCATENATE(B642,C642)","v":"\"ФАКЕЛ-07\"20"},"\"ФАКЕЛ-07\"",20,"ЭГЛЕ Илья (вр)"]
["\"ФАКЕЛ-07\"13","\"ФАКЕЛ-07\"",13,"НЕУСТРОЕВ Дмитрий"]
["\"ФАКЕЛ-07\"14","\"ФАКЕЛ-07\"",14,"АЛИМПИЕВ Михаил"]
["\"ФАКЕЛ-07\"15","\"ФАКЕЛ-07\"",15,"КОТЕЛЬНИКОВ Иван"]
["\"ФАКЕЛ-07\"16","\"ФАКЕЛ-07\"",16,"ВАКУЛЬЧИК Тимофей"]
["\"ФАКЕЛ-07\"17","\"ФАКЕЛ-07\"",17,"НОСКОВ Максим"]
["\"ФАКЕЛ-07\"18","\"ФАКЕЛ-07\"",18,"ГОРБУНОВ Семён"]
["\"ФАКЕЛ-07\"901","\"ФАКЕЛ-07\"",901,"ПЕШЕХОНОВ О.П."]
["\"ДЮСШ-ЭНЕРГИЯ-03\"1","\"ДЮСШ-ЭНЕРГИЯ-03\"",1,"АБЗАЛОВ Виталий (в)"]
["\"ДЮСШ-ЭНЕРГИЯ-03\"10","\"ДЮСШ-ЭНЕРГИЯ-03\"",10,"СУДАКОВ Данил"]
["\"ДЮСШ-ЭНЕРГИЯ-03\"9","\"ДЮСШ-ЭНЕРГИЯ-03\"",9,"ЕРОШЕНКО Дмитрий"]
["\"ДЮСШ-ЭНЕРГИЯ-03\"6","\"ДЮСШ-ЭНЕРГИЯ-03\"",6,"МАВЛИЕВ Евгений"]
["\"ДЮСШ-ЭНЕРГИЯ-03\"16","\"ДЮСШ-ЭНЕРГИЯ-03\"",16,"ШИХОВ Дмиптрий"]
["\"ДЮСШ-ЭНЕРГИЯ-03\"17","\"ДЮСШ-ЭНЕРГИЯ-03\"",17,"ШИХОВ Рустам"]
["\"ДЮСШ-ЭНЕРГИЯ-03\"7","\"ДЮСШ-ЭНЕРГИЯ-03\"",7,"НЕХОРОШКОВ Григорий (к)"]
["\"ДЮСШ-ЭНЕРГИЯ-03\"13","\"ДЮСШ-ЭНЕРГИЯ-03\"",13,"ХАРИН Тимофей"]
["\"ДЮСШ-ЭНЕРГИЯ-03\"3","\"ДЮСШ-ЭНЕРГИЯ-03\"",3,"ВАКАРИН Сергей"]
["\"ДЮСШ-ЭНЕРГИЯ-03\"19","\"ДЮСШ-ЭНЕРГИЯ-03\"",19,"ВЕРЕЩАГИН Алексей"]
["\"ДЮСШ-ЭНЕРГИЯ-03\"11","\"ДЮСШ-ЭНЕРГИЯ-03\"",11,"ЗАНИНИ Дмитрий"]
["\"ДЮСШ-ЭНЕРГИЯ-03\"4","\"ДЮСШ-ЭНЕРГИЯ-03\"",4,"ОВЧИННИКОВ Андрей"]
["\"ДЮСШ-ЭНЕРГИЯ-03\"14","\"ДЮСШ-ЭНЕРГИЯ-03\"",14,"РЫЛЁВ Данил"]
["\"ДЮСШ-ЭНЕРГИЯ-03\"8","\"ДЮСШ-ЭНЕРГИЯ-03\"",8,"ЗЫРЯНОВ Василий"]
["\"ДЮСШ-ЭНЕРГИЯ-03\"12","\"ДЮСШ-ЭНЕРГИЯ-03\"",12,"БРОННИКОВ Артём"]
["\"ДЮСШ-ЭНЕРГИЯ-03\"15","\"ДЮСШ-ЭНЕРГИЯ-03\"",15,"ШНАЙДЕР Артур"]
["\"ДЮСШ-ЭНЕРГИЯ-03\"23","\"ДЮСШ-ЭНЕРГИЯ-03\"",23,"БАГЕЕВ Александр"]
["\"ДЮСШ-ЭНЕРГИЯ-03\"18","\"ДЮСШ-ЭНЕРГИЯ-03\"",18,"БЕКЕШЕВ Матвей"]
["\"ДЮСШ-ЭНЕРГИЯ-03\"22","\"ДЮСШ-ЭНЕРГИЯ-03\"",22,"ВЯТКИН Анатолий"]
["\"ДЮСШ-ЭНЕРГИЯ-03\"901","\"ДЮСШ-ЭНЕРГИЯ-03\"",901,"ДВИНЯНИНОВ А.Ю."]
["\"ФАКЕЛ-03\"21","\"ФАКЕЛ-03\"",21,"БЫКОВ Павел (в)"]
["\"ФАКЕЛ-03\"7","\"ФАКЕЛ-03\"",7,"ТАКТАШЁВ Семён"]
["\"ФАКЕЛ-03\"8","\"ФАКЕЛ-03\"",8,"ЗАХАРОВ Данил"]
["\"ФАКЕЛ-03\"19","\"ФАКЕЛ-03\"",19,"ШИРЯЕВ Максим"]
["\"ФАКЕЛ-03\"16","\"ФАКЕЛ-03\"",16,"ТВЕРИТИН Дмитрий"]
["\"ФАКЕЛ-03\"4","\"ФАКЕЛ-03\"",4,"СОБОЛЕВ Александр"]
["\"ФАКЕЛ-03\"17","\"ФАКЕЛ-03\"",17,"ТИХОНОВ Вадим (к)"]
["\"ФАКЕЛ-03\"20","\"ФАКЕЛ-03\"",20,"ПУРГИН Павел"]
["\"ФАКЕЛ-03\"2","\"ФАКЕЛ-03\"",2,"ЮЖАКОВ Никита"]
["\"ФАКЕЛ-03\"13","\"ФАКЕЛ-03\"",13,"БАБАКОВ Константин"]
["\"ФАКЕЛ-03\"10","\"ФАКЕЛ-03\"",10,"ПУРГИН Константин"]
["\"ФАКЕЛ-03\"1","\"ФАКЕЛ-03\"",1,"ВАЛОВ НИКИТА (в)"]
["\"ФАКЕЛ-03\"3","\"ФАКЕЛ-03\"",3,"РУКОЛЕЕВ Вадим"]
["\"ФАКЕЛ-03\"15","\"ФАКЕЛ-03\"",15,"ШЕЛАМОВ Иван"]
["\"ФАКЕЛ-03\"18","\"ФАКЕЛ-03\"",18,"АКСЕНТЬЕВ Станислав"]
["\"ФАКЕЛ-03\"11","\"ФАКЕЛ-03\"",11,"КОНСТАНТИНОВ Артём"]
["\"ФАКЕЛ-03\"901","\"ФАКЕЛ-03\"",901,"ЗЕЛИЧЕНКО А.В."]
["\"МАЯК-03\"30","\"МАЯК-03\"",30,"ШУБИН Владислав (в)"]
["\"МАЯК-03\"2","\"МАЯК-03\"",2,"ДОМРАЧЕВ Павел"]
["\"МАЯК-03\"4","\"МАЯК-03\"",4,"БРЕЗГИН Арсений"]
["\"МАЯК-03\"5","\"МАЯК-03\"",5,"БЕЛАЛОВ Владимир"]
["\"МАЯК-03\"7","\"МАЯК-03\"",7,"МАРЯШИН Дмитрий (к)"]
["\"МАЯК-03\"12","\"МАЯК-03\"",12,"ЛЮБАВИН Евгений"]
["\"МАЯК-03\"8","\"МАЯК-03\"",8,"ПУЗЕЕВ Иван"]
["\"МАЯК-03\"10","\"МАЯК-03\"",10,"ЯКОБИ Роман"]
["\"МАЯК-03\"11","\"МАЯК-03\"",11,"АЛЕЙНИК Даниил"]
["\"МАЯК-03\"17","\"МАЯК-03\"",17,"БИЗЯЕВ Дмитрий"]
["\"МАЯК-03\"28","\"МАЯК-03\"",28,"РАХИМЗЯНОВ Роман"]
["\"МАЯК-03\"13","\"МАЯК-03\"",13,"ОРЛОВ Максим"]
["\"МАЯК-03\"16","\"МАЯК-03\"",16,"ЗЕМНУХОВ Данил"]
["\"МАЯК-03\"19","\"МАЯК-03\"",19,"СИТНИКОВ Марк"]
["\"МАЯК-03\"901","\"МАЯК-03\"",901,"КУВАЙШЕВ И.Е."]
["\"РОВЕСНИК-03\"2","\"РОВЕСНИК-03\"",2,"ОВЧИННИКОВ Кирилл (в)"]
["\"РОВЕСНИК-03\"11","\"РОВЕСНИК-03\"",11,"ДИМОВ Илья"]
["\"РОВЕСНИК-03\"19","\"РОВЕСНИК-03\"",19,"БУРУНДУКОВ Андрей"]
["\"РОВЕСНИК-03\"5","\"РОВЕСНИК-03\"",5,"БУХАНИСТАЯ Анастасия"]
[{"$f":"CONCATENATE(B706,C706)","v":"\"РОВЕСНИК-03\"9"},"\"РОВЕСНИК-03\"",9,"КОПТЯЕВ Георгий"]
["\"РОВЕСНИК-03\"13","\"РОВЕСНИК-03\"",13,"ГОРЯЕВ Максим"]
["\"РОВЕСНИК-03\"17","\"РОВЕСНИК-03\"",17,"НЕНАХОВА Елизавета"]
["\"РОВЕСНИК-03\"4","\"РОВЕСНИК-03\"",4,"ВОРОНИН Артём"]
["\"РОВЕСНИК-03\"77","\"РОВЕСНИК-03\"",77,"ВАГИН Никита"]
["\"РОВЕСНИК-03\"10","\"РОВЕСНИК-03\"",10,"ЧЕСНОКОВ Александр"]
["\"РОВЕСНИК-03\"99","\"РОВЕСНИК-03\"",99,"МАХНЁВ Денис (к)"]
["\"РОВЕСНИК-03\"1","\"РОВЕСНИК-03\"",1,"ЯКОВЛЕВ Дмитрий (вр)"]
["\"РОВЕСНИК-03\"8","\"РОВЕСНИК-03\"",8,"МАЛЮТИН Максим"]
["\"РОВЕСНИК-03\"3","\"РОВЕСНИК-03\"",3,"БАЙМАГОМБЕТОВА Айслу"]
["\"РОВЕСНИК-03\"18","\"РОВЕСНИК-03\"",18,"ЦЕПЕЛЕВ Илья"]
["\"РОВЕСНИК-03\"14","\"РОВЕСНИК-03\"",14,"ПЕСТЕРЕВ Иван"]
["\"РОВЕСНИК-03\"901","\"РОВЕСНИК-03\"",901,"МАХНЁВ А.В."]
["\"УРАЛЬСКИЙ ТРУБНИК-03\"28","\"УРАЛЬСКИЙ ТРУБНИК-03\"",28,"МИРОНОВ Никита (в)"]
["\"УРАЛЬСКИЙ ТРУБНИК-03\"14","\"УРАЛЬСКИЙ ТРУБНИК-03\"",14,"ХУЖИН Данил"]
["\"УРАЛЬСКИЙ ТРУБНИК-03\"34","\"УРАЛЬСКИЙ ТРУБНИК-03\"",34,"ГАЛИЦКИХ Никита"]
["\"УРАЛЬСКИЙ ТРУБНИК-03\"75","\"УРАЛЬСКИЙ ТРУБНИК-03\"",75,"ЕВТЕРЕВ Никита"]
["\"УРАЛЬСКИЙ ТРУБНИК-03\"71","\"УРАЛЬСКИЙ ТРУБНИК-03\"",71,"ПРИДЮК Михаил"]
["\"УРАЛЬСКИЙ ТРУБНИК-03\"9","\"УРАЛЬСКИЙ ТРУБНИК-03\"",9,"КРАСОВСКИЙ Матвей"]
["\"УРАЛЬСКИЙ ТРУБНИК-03\"2","\"УРАЛЬСКИЙ ТРУБНИК-03\"",2,"МИНИН Георгий"]
["\"УРАЛЬСКИЙ ТРУБНИК-03\"77","\"УРАЛЬСКИЙ ТРУБНИК-03\"",77,"ПРОТАСОВ Дмитрий"]
["\"УРАЛЬСКИЙ ТРУБНИК-03\"31","\"УРАЛЬСКИЙ ТРУБНИК-03\"",31,"МОРГЕВИЧ Ян"]
["\"УРАЛЬСКИЙ ТРУБНИК-03\"24","\"УРАЛЬСКИЙ ТРУБНИК-03\"",24,"ЕЛЬКИН Матвей"]
["\"УРАЛЬСКИЙ ТРУБНИК-03\"21","\"УРАЛЬСКИЙ ТРУБНИК-03\"",21,"СВЕШНИКОВ Владимир (к)"]
["\"УРАЛЬСКИЙ ТРУБНИК-03\"3","\"УРАЛЬСКИЙ ТРУБНИК-03\"",3,"УРЕНЦОВ Герман"]
["\"УРАЛЬСКИЙ ТРУБНИК-03\"13","\"УРАЛЬСКИЙ ТРУБНИК-03\"",13,"БОРИСОВ Андрей"]
["\"УРАЛЬСКИЙ ТРУБНИК-03\"23","\"УРАЛЬСКИЙ ТРУБНИК-03\"",23,"ЛАТУШКИН Сергей"]
["\"УРАЛЬСКИЙ ТРУБНИК-03\"88","\"УРАЛЬСКИЙ ТРУБНИК-03\"",88,"БОНДАРЕНКО Максим"]
["\"УРАЛЬСКИЙ ТРУБНИК-03\"64","\"УРАЛЬСКИЙ ТРУБНИК-03\"",64,"ЧАРИНЦЕВ Даниил"]
["\"УРАЛЬСКИЙ ТРУБНИК-03\"901","\"УРАЛЬСКИЙ ТРУБНИК-03\"",901,"ДУБОВ А.Г."]
["\"СДЮШОР-18-03\"44","\"СДЮШОР-18-03\"",44,"КУЗНЕЦОВ Александр (в)"]
["\"СДЮШОР-18-03\"2","\"СДЮШОР-18-03\"",2,"КЛЁНОВ Роман"]
["\"СДЮШОР-18-03\"3","\"СДЮШОР-18-03\"",3,"БОРИЧЁВ Фёдор"]
["\"СДЮШОР-18-03\"4","\"СДЮШОР-18-03\"",4,"РОЖЕНЦОВ Матвей (к)"]
["\"СДЮШОР-18-03\"5","\"СДЮШОР-18-03\"",5,"ЖИРЯКОВА Мария"]
["\"СДЮШОР-18-03\"6","\"СДЮШОР-18-03\"",6,"ОШУРКОВ Сергей"]
["\"СДЮШОР-18-03\"7","\"СДЮШОР-18-03\"",7,"ЗУБОВ Александр"]
["\"СДЮШОР-18-03\"8","\"СДЮШОР-18-03\"",8,"КАЛУГИНА Яна"]
["\"СДЮШОР-18-03\"9","\"СДЮШОР-18-03\"",9,"ВОРОБЬЁВА Злата"]
["\"СДЮШОР-18-03\"11","\"СДЮШОР-18-03\"",11,"КОЖЕМЯКИН Анатолий"]
["\"СДЮШОР-18-03\"12","\"СДЮШОР-18-03\"",12,"ИВОЙЛОВ Андрей"]
["\"СДЮШОР-18-03\"14","\"СДЮШОР-18-03\"",14,"ДЮБИН Данил"]
["\"СДЮШОР-18-03\"15","\"СДЮШОР-18-03\"",15,"ЖИГАЛОВ Иван"]
["\"СДЮШОР-18-03\"17","\"СДЮШОР-18-03\"",17,"БАБУШКИН Алексей"]
["\"СДЮШОР-18-03\"18","\"СДЮШОР-18-03\"",18,"ЖУВАГИН Андрей"]
["\"СДЮШОР-18-03\"19","\"СДЮШОР-18-03\"",19,"СТЮФЕЕВ Иван"]
["\"СДЮШОР-18-03\"901","\"СДЮШОР-18-03\"",901,"ГЛАДЫШЕВ С.А."]
["\"СПУТНИК-07\"1","\"СПУТНИК-07\"",1,"БЕЛОСЛУДЦЕВ Денис (в)"]
["\"СПУТНИК-07\"2","\"СПУТНИК-07\"",2,"ЗАХАРЕНКО Семён"]
["\"СПУТНИК-07\"13","\"СПУТНИК-07\"",13,"ЗАЙЦЕВ Данил"]
["\"СПУТНИК-07\"4","\"СПУТНИК-07\"",4,"БАБИН Владислав"]
["\"СПУТНИК-07\"3","\"СПУТНИК-07\"",3,"ПОТЕРЯХИН Владислав"]
["\"СПУТНИК-07\"15","\"СПУТНИК-07\"",15,"ШНАЙДЕР Матвей"]
["\"СПУТНИК-07\"7","\"СПУТНИК-07\"",7,"АСАТУЛИН Ян"]
["\"СПУТНИК-07\"9","\"СПУТНИК-07\"",9,"ЛАГУН Арсений (к)"]
["\"СПУТНИК-07\"14","\"СПУТНИК-07\"",14,"МЕЛЬМАН Егор"]
["\"СПУТНИК-07\"11","\"СПУТНИК-07\"",11,"ДЕРЯБИН Кирилл"]
["\"СПУТНИК-07\"17","\"СПУТНИК-07\"",17,"ВОЛОСЮК Александр"]
["\"СПУТНИК-07\"20","\"СПУТНИК-07\"",20,"ЗЫКОВ Матвей (в)"]
["\"СПУТНИК-07\"5","\"СПУТНИК-07\"",5,"МАХОВ Владислав"]
["\"СПУТНИК-07\"16","\"СПУТНИК-07\"",16,"БАЗЫЛЕВ Михаил"]
["\"СПУТНИК-07\"18","\"СПУТНИК-07\"",18,"ЧУПРАКОВ Антон"]
["\"СПУТНИК-07\"19","\"СПУТНИК-07\"",19,"ПАЛЕХОВ Максим"]
["\"СПУТНИК-07\"901","\"СПУТНИК-07\"",901,"БАЛАБАНОВ А.В."]
[{"$f":"CONCATENATE(B770,C770)","v":"\"ДЮСШ-ЭНЕРГИЯ-07\"36"},"\"ДЮСШ-ЭНЕРГИЯ-07\"",36,"НАСИБУЛЛИН Тимур (в)"]
["\"ДЮСШ-ЭНЕРГИЯ-07\"17","\"ДЮСШ-ЭНЕРГИЯ-07\"",17,"ЛЕОНТЬЕВ Никита (к)"]
["\"ДЮСШ-ЭНЕРГИЯ-07\"5","\"ДЮСШ-ЭНЕРГИЯ-07\"",5,"ЕЛИСЕЕВ Дмитрий"]
["\"ДЮСШ-ЭНЕРГИЯ-07\"8","\"ДЮСШ-ЭНЕРГИЯ-07\"",8,"МАВЛИЕВ Иван"]
["\"ДЮСШ-ЭНЕРГИЯ-07\"13","\"ДЮСШ-ЭНЕРГИЯ-07\"",13,"ТИТОВ Сергей"]
["\"ДЮСШ-ЭНЕРГИЯ-07\"11","\"ДЮСШ-ЭНЕРГИЯ-07\"",11,"РЫЖКОВ Степан"]
["\"ДЮСШ-ЭНЕРГИЯ-07\"3","\"ДЮСШ-ЭНЕРГИЯ-07\"",3,"ПРЯНИКОВ Богдан"]
["\"ДЮСШ-ЭНЕРГИЯ-07\"16","\"ДЮСШ-ЭНЕРГИЯ-07\"",16,"МАШТАНОВ Виталий"]
["\"ДЮСШ-ЭНЕРГИЯ-07\"15","\"ДЮСШ-ЭНЕРГИЯ-07\"",15,"САДАКОВ Иван"]
["\"ДЮСШ-ЭНЕРГИЯ-07\"14","\"ДЮСШ-ЭНЕРГИЯ-07\"",14,"КОСТЫГИН Захар"]
["\"ДЮСШ-ЭНЕРГИЯ-07\"6","\"ДЮСШ-ЭНЕРГИЯ-07\"",6,"ДУБРОВИН Артём"]
["\"ДЮСШ-ЭНЕРГИЯ-07\"1","\"ДЮСШ-ЭНЕРГИЯ-07\"",1,"СОКОВ Иван (в)"]
["\"ДЮСШ-ЭНЕРГИЯ-07\"2","\"ДЮСШ-ЭНЕРГИЯ-07\"",2,"ЧЕРЕПАНОВ Иван"]
["\"ДЮСШ-ЭНЕРГИЯ-07\"4","\"ДЮСШ-ЭНЕРГИЯ-07\"",4,"ПЕРВОВ Максим"]
["\"ДЮСШ-ЭНЕРГИЯ-07\"7","\"ДЮСШ-ЭНЕРГИЯ-07\"",7,"ЩЕРБАКОВ Артемий"]
["\"ДЮСШ-ЭНЕРГИЯ-07\"9","\"ДЮСШ-ЭНЕРГИЯ-07\"",9,"НЕМКИН Максим"]
["\"ДЮСШ-ЭНЕРГИЯ-07\"10","\"ДЮСШ-ЭНЕРГИЯ-07\"",10,"ПОЛЕЖАЕВ Кирилл"]
["\"ДЮСШ-ЭНЕРГИЯ-07\"12","\"ДЮСШ-ЭНЕРГИЯ-07\"",12,"СМИРНОВ Иван"]
["\"ДЮСШ-ЭНЕРГИЯ-07\"18","\"ДЮСШ-ЭНЕРГИЯ-07\"",18,"СТЕПАНОВ Михаил"]
["\"ДЮСШ-ЭНЕРГИЯ-07\"19","\"ДЮСШ-ЭНЕРГИЯ-07\"",19,"СМИРНОВ Тимур"]
["\"ДЮСШ-ЭНЕРГИЯ-07\"901","\"ДЮСШ-ЭНЕРГИЯ-07\"",901,"ДВИНЯНИНОВ А.Ю."]
[""]
["\"ФАКЕЛ\"90","\"ФАКЕЛ\"",90,"ГОЛОВКИН Сергей (вр)"]
["\"ФАКЕЛ\"8","\"ФАКЕЛ\"",8,"ВОРОБЬЁВ Михаил (к)"]
["\"ФАКЕЛ\"13","\"ФАКЕЛ\"",13,"БРУСЕНКОВ Денис"]
["\"ФАКЕЛ\"4","\"ФАКЕЛ\"",4,"БЕЗБОРОДОВ Сергей"]
["\"ФАКЕЛ\"","\"ФАКЕЛ\"",null,"ЗАМАНА Валерий"]
["\"ФАКЕЛ\"6","\"ФАКЕЛ\"",6,"МЕДВЕДЕВ Александр"]
["\"ФАКЕЛ\"11","\"ФАКЕЛ\"",11,"ДЁМИН Евгений"]
["\"ФАКЕЛ\"18","\"ФАКЕЛ\"",18,"ШЕПЕЛЕВ Александр"]
["\"ФАКЕЛ\"","\"ФАКЕЛ\"",null,"ЛОСКУТОВ Дмитрий"]
["\"ФАКЕЛ\"19","\"ФАКЕЛ\"",19,"ВОРОПАЕВ Аркадий"]
["\"ФАКЕЛ\"5","\"ФАКЕЛ\"",5,"ДЕНИСОВ Сергей"]
["\"ФАКЕЛ\"17","\"ФАКЕЛ\"",17,"ПОПОВ Максим"]
["\"ФАКЕЛ\"3","\"ФАКЕЛ\"",3,"ЧЕРЕПКОВ АРТЁМ"]
["\"ФАКЕЛ\"12","\"ФАКЕЛ\"",12,"МИТРОФАНОВ Александр"]
["\"ФАКЕЛ\"20","\"ФАКЕЛ\"",20,"РУКОЛЕЕВ Геннадий"]
["\"ФАКЕЛ\"","\"ФАКЕЛ\"",null,"КАЛУГИН Роман"]
["\"ФАКЕЛ\"14","\"ФАКЕЛ\"",14,"ХАЙБУЛЛИН Алексей"]
["\"ФАКЕЛ\"16","\"ФАКЕЛ\"",16,"КОЛТЫШЕВ Дмитрий"]
["\"ФАКЕЛ\"10","\"ФАКЕЛ\"",10,"ЕРМОЛИН Андрей"]
["\"ФАКЕЛ\"","\"ФАКЕЛ\"",null,"ШЕПЕЛЕВ Дмитрий"]
["\"ФАКЕЛ\"15","\"ФАКЕЛ\"",15,"ФЕКЛУШИН Григорий"]
["\"ФАКЕЛ\"21","\"ФАКЕЛ\"",21,"БЫКОВ Павел (в)"]
["\"ФАКЕЛ\"7","\"ФАКЕЛ\"",7,"ТИХОНОВ Вадим "]
["\"ФАКЕЛ\"","\"ФАКЕЛ\"",null,"ПУРГИН Константин"]
["\"ФАКЕЛ\"2","\"ФАКЕЛ\"",2,"АКСЕНТЬЕВ Станислав"]
["\"ФАКЕЛ\"11","\"ФАКЕЛ\"",11,"ЮЖАКОВ Никита"]
["\"ФАКЕЛ\"901","\"ФАКЕЛ\"",901,"БРЮХАНОВ А.Н."]
["\"МЕТАЛЛУРГ\"1","\"МЕТАЛЛУРГ\"",1,"ПАБАТ Никита (вр)"]
["\"МЕТАЛЛУРГ\"15","\"МЕТАЛЛУРГ\"",15,"КАНДАКОВ Андрей (к)"]
["\"МЕТАЛЛУРГ\"11","\"МЕТАЛЛУРГ\"",11,"ГАЁВ Максим"]
["\"МЕТАЛЛУРГ\"21","\"МЕТАЛЛУРГ\"",21,"ШАВКУНОВ Антон"]
["\"МЕТАЛЛУРГ\"17","\"МЕТАЛЛУРГ\"",17,"МЯКИШЕВ Фёдор"]
["\"МЕТАЛЛУРГ\"12","\"МЕТАЛЛУРГ\"",12,"ЗАХАРОВ Владислав"]
["\"МЕТАЛЛУРГ\"7","\"МЕТАЛЛУРГ\"",7,"БЕЛЫХ Олег"]
["\"МЕТАЛЛУРГ\"13","\"МЕТАЛЛУРГ\"",13,"ПУДОВ Денис"]
["\"МЕТАЛЛУРГ\"5","\"МЕТАЛЛУРГ\"",5,"ВАНИЧКИН Вадим"]
["\"МЕТАЛЛУРГ\"10","\"МЕТАЛЛУРГ\"",10,"СПИРИДОНОВ Евгений"]
["\"МЕТАЛЛУРГ\"19","\"МЕТАЛЛУРГ\"",19,"ШЕСТАКОВ Никита"]
["\"МЕТАЛЛУРГ\"30","\"МЕТАЛЛУРГ\"",30,"СОКОЛОВСКИЙ Андрей (вр)"]
["\"МЕТАЛЛУРГ\"8","\"МЕТАЛЛУРГ\"",8,"ЧЕРЕПАНОВ вЛАДИСЛАВ"]
["\"МЕТАЛЛУРГ\"9","\"МЕТАЛЛУРГ\"",9,"НЕФЁДОВ Максим"]
["\"МЕТАЛЛУРГ\"16","\"МЕТАЛЛУРГ\"",16,"КУЗНЕЦОВ Марк"]
["\"МЕТАЛЛУРГ\"3","\"МЕТАЛЛУРГ\"",3,"МАРТЫНОВ Алексей"]
[{"$f":"CONCATENATE(B835,C835)","v":"\"МЕТАЛЛУРГ\"14"},"\"МЕТАЛЛУРГ\"",14,"СТРУИН Андрей"]
["\"МЕТАЛЛУРГ\"18","\"МЕТАЛЛУРГ\"",18,"СИБГАТУЛИН Дмитрий"]
["\"МЕТАЛЛУРГ\"2","\"МЕТАЛЛУРГ\"",2,"КОСТОУСОВ Илья"]
["\"МЕТАЛЛУРГ\"","\"МЕТАЛЛУРГ\""]
["\"МЕТАЛЛУРГ\"901","\"МЕТАЛЛУРГ\"",901,"ШАПОВАЛОВ А.П."]
[""]
[""]
[""]
[""]
[""]
[""]
[""]
[""]
[""]
[""]
[""]
[""]
[""]
[""]
[""]
[""]
[""]
[""]
[""]
[""]
[""]
[""]
[""]
[""]
[""]
[""]
[""]
[""]
[""]
[""]
[""]
[""]
[""]
[""]
[""]
[""]
[""]
[""]
[""]
[""]
[""]
[""]
[""]
[""]
[""]
[""]
[""]
[""]
[""]
[""]
[""]
[""]
[""]
[""]
[""]
[""]
[""]
[""]
[""]
[{"$f":"CONCATENATE(B899,C899)","v":""}]
[""]
[""]
[""]
[""]
[""]
[""]
[""]
[""]
[""]
[""]
[""]
[""]
[""]
[""]
[""]
[""]
[""]
[""]
[""]
[""]
[""]
[""]
[""]
[""]
[""]
[""]
[""]
[""]
[""]
[""]
[""]
[""]
[""]
[""]
[""]
[""]
[""]
[""]
[""]
[""]
[""]
[""]
[""]
[""]
[""]
[""]
[""]
[""]
[""]
[""]
[""]
[""]
[""]
[""]
[""]
[""]
[""]
[""]
[""]
[""]
[""]
[""]
[""]
[{"$f":"CONCATENATE(B963,C963)","v":""}]
[""]
[""]
[""]
[""]
[""]
[""]
[""]
[""]
[""]
[""]
[""]
[""]
[""]
[""]
[""]
[""]
[""]
[""]
[""]
[""]
[""]
[""]
[""]
[""]
[""]
[""]
[""]
[""]
[""]
[""]
[""]
[""]
[""]
[""]
[""]
[""]
[""]
[""]
[""]
[""]
[""]
[""]
[""]
[""]
[""]
[""]
[""]
[""]
[""]
[""]
[""]
[""]
[""]
[""]
[""]
[""]
[""]
[""]
[""]
[""]
[""]
[""]
[""]
[""]
[""]
[""]
[""]
[""]
[""]
[""]
[""]
[""]
[""]
[""]
[""]
[""]
[""]
[""]
[""]
[""]
[""]
[""]
[""]
[""]
[""]
[""]
[""]
[""]
[""]
[""]
[""]
[""]
[""]
[""]
[""]
[""]
[""]
[""]
[""]
[""]
[""]
[""]
[""]
[""]
[""]
[""]
[""]
[""]
[""]
[""]
[""]
[""]
[""]
[""]
[""]
[""]
[""]
[""]
[""]
[""]
[""]
[""]
[""]
[""]
[""]
[""]
[""]
[""]
[""]
[""]
[""]
[""]
[""]
[""]
[""]
[""]
[""]
[""]
[""]
[""]
[""]
[""]
[""]
[""]
[""]
[""]
[""]
[""]
[""]
[""]
[""]
[""]
[""]
[""]
[""]
[""]
[""]
[""]
[""]
[""]
[""]
[""]
[""]
[""]
[""]
[""]
[""]
[""]
[""]
[""]
[""]
[""]
[""]
[""]
[""]
[""]
[""]
[""]
[""]
[""]
[""]
[""]
[""]
[""]
[""]
[""]
[""]
[""]
[""]
[""]
[""]
[""]
[""]
[""]
[""]
[""]
[""]
[""]
[""]
[""]
[""]
[""]
[""]
[""]
[""]
[""]
[""]
[""]
[""]
[""]
[""]
[""]
[""]
[""]
[""]
[""]
[""]
[""]
[""]
[""]
[""]
[""]
[""]
[""]
[""]
[""]
[""]
[""]
[""]
[""]
[""]
[""]
[""]
[""]
[""]
[""]
[""]
[""]
[""]
[""]
[""]
[""]
[""]
[""]
[""]
[""]
[""]
[""]
[""]
[""]
[""]
[""]
[""]
[""]
[""]
[""]
[""]
[""]
[""]
[""]
[""]
[""]
[""]
[""]
[""]
[""]
[""]
[""]
[""]
[""]
[""]
[""]
[""]
[""]
[""]
[""]
[""]
[""]
[""]
[""]
[""]
[""]
[""]
[""]
[""]
[""]
[""]
[""]
[""]
[""]
[""]
[""]
[""]
[""]
[""]
[""]
[""]
[""]
[""]
[""]
[""]
[""]
[""]
[""]
[""]
[""]
[""]
[""]
[""]
[""]
[""]
[""]
[""]
[""]
[""]
[""]
[""]
[""]
[""]
[""]
[""]
[""]
[""]
[""]
[""]
[""]
[""]
[""]
[""]
[""]
[""]
[""]
[""]
[""]
[""]
[""]
[""]
[""]
[""]
[""]
[""]
[""]
[""]
[""]
[""]
[""]
[""]
[""]
[""]
[""]
[""]
[""]
[""]
[""]
[""]
[""]
[""]
[""]
[""]
[""]
[""]
[""]
[""]
[""]
[""]
[""]
[""]
[""]
[""]
[""]
[""]
[""]
[""]
[""]
[""]
[""]
[""]
[""]
[""]
[""]
[""]
[""]
[""]
[""]
[""]
[""]
[""]
[""]
[""]
[""]
[""]
[""]
[""]
[""]
[""]
[""]
[""]
[""]
[""]
[""]
[""]
[""]
[""]
[""]
[""]
[""]
[""]
[""]
[""]
[""]
[""]
[""]
[""]
[""]
[""]
[""]
[""]
[""]
[""]
[""]
[""]
[""]
[""]
[""]
[""]
[""]
[""]
[""]
[""]
[""]
[""]
[""]
[""]
[""]
[""]
[""]
[""]
[""]
[""]
[""]
[""]
[""]
[""]
[""]
[""]
[""]
[""]
[""]
[""]
[""]
[""]
[""]
[""]
[""]
[""]
[""]
[""]
[""]
[""]
[""]
[""]
[""]
[""]
[""]
[""]
[""]
[""]
[""]
[""]
[""]
[""]
[""]
[""]
[""]
[""]
[""]
[""]
[""]
[""]
[""]
[""]
[""]
[""]
[""]
[""]
[""]
[""]
[""]
[""]
[""]
[""]
[""]
[""]
[""]
[""]
[""]
[""]
[""]
[""]
[""]
[""]
[""]
[""]
[""]
[""]
[""]
[""]
[""]
[""]
[""]
[""]
[""]
[""]
[""]
[""]
[""]
[""]
[""]
[""]
[""]
[""]
[""]
[""]
[""]
[""]
[""]
[""]
[""]
[""]
[""]
[""]
[""]
[""]
[""]
[""]
[""]
[""]
[""]
[""]
[""]
[""]
[""]
[""]
[""]
[""]
[""]
[""]
[""]
[""]
[""]
[""]
[""]
[""]
[""]
[""]
[""]
[""]
[""]
[""]
[""]
[""]
[""]
[""]
[""]
[""]
[""]
[""]
[""]
[""]
[""]
[""]
[""]
[""]
[""]
[""]
[""]
[""]
[""]
[""]
[""]
[""]
[""]
[""]
[""]
[""]
[""]
[""]
[""]
[""]
[""]
[""]
[""]
[""]
[""]
[""]
[""]
[""]
[""]
[""]
[""]
[""]
[""]
[""]
[""]
[""]
[""]
[""]
[""]
[""]
[""]
[""]
[""]
[""]
[""]
[""]
[""]
[""]
[""]
[""]
[""]
[""]
[""]
[""]
[""]
[""]
[""]
[""]
[""]
[""]
[""]
[""]
[""]
[""]
[""]
[""]
[""]
[""]
[""]
[""]
[""]
[""]
[""]
[""]
[""]
[""]
[""]
[""]
[""]
[""]
[""]
[""]
[""]
[""]
[""]
[""]
[""]
[""]
[""]
[""]
[""]
[""]
[""]
[""]
[""]
[""]
[""]
[""]
[""]
[""]
[""]
[""]
[""]
[""]
[""]
[""]
[""]
[""]
[""]
[""]
[""]
[""]
[""]
[""]
[""]
[""]
[""]
[""]
[""]
[""]
[""]
[""]
[""]
[""]
[""]
[""]
[""]
[""]
[""]
[""]
[""]
[""]
[""]
[""]
[""]
[""]
[""]
[""]
[""]
[""]
[""]
[""]
[""]
[""]
[""]
[""]
[""]
[""]
[""]
[""]
[""]
[""]
[""]
[""]
[""]
[""]
[""]
[""]
[""]
[""]
[""]
[""]
[""]
[""]
[""]
[""]
[""]
[""]
[""]
[""]
[""]
[""]
[""]
[""]
[""]
[""]
[""]
[""]
[""]
[""]
[""]
[""]
[""]
[""]
[""]
[""]
[""]
[""]
[""]
[""]
[""]
[""]
[""]
[""]
[""]
[""]
[""]
[""]
[""]
[""]
[""]
[""]
[""]
[""]
[""]
[""]
[""]
[""]
[""]
[""]
[""]
[""]
[""]
[""]
[""]
[""]
[""]
[""]
[""]
[""]
[""]
[""]
[""]
[""]
[""]
[""]
[""]
[""]
[""]
[""]
[""]
[""]
[""]
[""]
[""]
[""]
[""]
[""]
[""]
[""]
[""]
[""]
[""]
[""]
[""]
[""]
[""]
[""]
[""]
[""]
[""]
[""]
[""]
[""]
[""]
[""]
[""]
[""]
[""]
[""]
[""]
[""]
[""]
[""]
[""]
[""]
[""]
[""]
[""]
[""]
[""]
[""]
[""]
[""]
[""]
[""]
[""]
[""]
[""]
[""]
[""]
[""]
[""]
[""]
[""]
[""]
[""]
[""]
[""]
[""]
[""]
[""]
[""]
[""]
[""]
[""]
[""]
[""]
[""]
[""]
[""]
[""]
[""]
[""]
[""]
[""]
[""]
[""]
[""]
[""]
[""]
[""]
[""]
[""]
[""]
[""]
[""]
[""]
[""]
[""]
[""]
[""]
[""]
[""]
[""]
[""]
[""]
[""]
[""]
[""]
[""]
[""]
[""]
[""]
[""]
[""]
[""]
[""]
[""]
[""]
[""]
[""]
[""]
[""]
[""]
[""]
[""]
[""]
[""]
[""]
[""]
[""]
[""]
[""]
[""]
[""]
[""]
[""]
[""]
[""]
[""]
[""]
[""]
[""]
[""]
[""]
[""]
[""]
[""]
[""]
[""]
[""]
[""]
[""]
[""]
[""]
[""]
[""]
[""]
[""]
[""]
[""]
[""]
[""]
[""]
[""]
[""]
[""]
[""]
[""]
[""]
[""]
[""]
[""]
[""]
[""]
[""]
[""]
[""]
[""]
[""]
[""]
[""]
[""]
[""]
[""]
[""]
[""]
[""]
[""]
[""]
[""]
[""]
[""]
[""]
[""]
[""]
[""]
[""]
[""]
[""]
[""]
[""]
[""]
[""]
[""]
[""]
[""]
[""]
[""]
[""]
[""]
[""]
[""]
[""]
[""]
[""]
[""]
[""]
[""]
[""]
[""]
[""]
[""]
[""]
[""]
[""]
[""]
[""]
[""]
[""]
[""]
[""]
[""]
[""]
[""]
[""]
[""]
[""]
[""]
[""]
[""]
[""]
[""]
[""]
[""]
[""]
[""]
[""]
[""]
[""]
[""]
[""]
[""]
[""]
[""]
[""]
[""]
[""]
[""]
[""]
[""]
[""]
[""]
[""]
[""]
[""]
[""]
[""]
[""]
[""]
[""]
[""]
[""]
[""]
[""]
[""]
[""]
[""]
[""]
[""]
[""]
[""]
[""]
[""]
[""]
[""]
[""]
[""]
[""]
[""]
[""]
[""]
[""]
[""]
[""]
[""]
[""]
[""]
[""]
[""]
[""]
[""]
[""]
[""]
[""]
[""]
[""]
[""]
[""]
[""]
[""]
[""]
[""]
[""]
[""]
[""]
[""]
[""]
[""]
[""]
[""]
[""]
[""]
[""]
[""]
[""]
[""]
[""]
[""]
[""]
[""]
[""]
[""]
[""]
[""]
[""]
[""]
[""]
[""]
[""]
[""]
[""]
[""]
[""]
[""]
[""]
[""]
[""]
[""]
[""]
[""]
[""]
[""]
[""]
[""]
[""]
[""]
[""]
[""]
[""]
[""]
[""]
[""]
[""]
[""]
[""]
[""]
[""]
[""]
[""]
[""]
[""]
[""]
[""]
[""]
[""]
[""]
[""]
[""]
[""]
[""]
[""]
[""]
[""]
[""]
[""]
[""]
[""]
[""]
[""]
[""]
[""]
[""]
[""]
[""]
[""]
[""]
[""]
[""]
[""]
[""]
[""]
[""]
[""]
[""]
[""]
[""]
[""]
[""]
[""]
[""]
[""]
[""]
[""]
[""]
[""]
[""]
[""]
[""]
[""]
[""]
[""]
[""]
[""]
[""]
[""]
[""]
[""]
[""]
[""]
[""]
[""]
[""]
[""]
[""]
[""]
[""]
[""]
[""]
[""]
[""]
[""]
[""]
[""]
[""]
[""]
[""]
[""]
[""]
[""]
[""]
[""]
[""]
[""]
[""]
[""]
[""]
[""]
[""]
[""]
[""]
[""]
[""]
[""]
[""]
[""]
[""]
[""]
[""]
[""]
[""]
[""]
[""]
[""]
[""]
[""]
[""]
[""]
[""]
[""]
[""]
[""]
[""]
[""]
[""]
[""]
[""]
[""]
[""]
[""]
[""]
[""]
[""]
[""]
[""]
[""]
[""]
[""]
[""]
[""]
[""]
[""]
[""]
[""]
[""]
[""]
[""]
[""]
[""]
[""]
[""]
[""]
[""]
[""]
[""]
[""]
[""]
[""]
[""]
[""]
[""]
[""]
[""]
[""]
[""]
[""]
[""]
[""]
[""]
[""]
[""]
[""]
[""]
[""]
[""]
[""]
[""]
[""]
[""]
[""]
[""]
[""]
[""]
[""]
[""]
[""]
[""]
[""]
[""]
[""]
[""]
[""]
[""]
[""]
[""]
[""]
[""]
[""]
[""]
[""]
[""]
[""]
[""]
[""]
[""]
[""]
[""]
[""]
[""]
[""]
[""]
[""]
[""]
[""]
[""]
[""]
[""]
[""]
[""]
[""]
[""]
[""]
[""]
[""]
[""]
[""]
[""]
[""]
[""]
[""]
[""]
[""]
[""]
[""]
[""]
[""]
[""]
[""]
[""]
[""]
[""]
[""]
[""]
[""]
[""]
[""]
[""]
[""]
[""]
[""]
[""]
[""]
[""]
[""]
[""]
[""]
[""]
[""]
[""]
[""]
[""]
[""]
[""]
[""]
[""]
[""]
[""]
[""]
[""]
[""]
[""]
[""]
[""]
[""]
[""]
[""]
[""]
[""]
[""]
[""]
[""]
[""]
[""]
[""]
[""]
[""]
[""]
[""]
[""]
[""]
[""]
[""]
[""]
[""]
[""]
[""]
[""]
[""]
[""]
[""]
[""]
[""]
[""]
[""]
[""]
[""]
[""]
[""]
[""]
[""]
[""]
[""]
[""]
[""]
[""]
[""]
[""]
[""]
[""]
[""]
[""]
[""]
[""]
[""]
[""]
[""]
[""]
[""]
[""]
[""]
[""]
[""]
[""]
[""]
[""]
[""]
[""]
[""]
[""]
[""]
[""]
[""]
[""]
[""]
[""]
[""]
[""]
[""]
[""]
[""]
[""]
[""]
[""]
[""]
[""]
[""]
[""]
[""]
[""]
[""]
[""]
[""]
[""]
[""]
[""]
[""]
[""]
[""]
[""]
[""]
[""]
[""]
[""]
[""]
[""]
[""]
[""]
[""]

{"sheet":"Dictionary","index":7,"n_rows":23,"n_cols":2,"rows_kept":23,"cut":false,"hidden":false,"merged":[]}
["РОССИЯ","RUSSIA"]
["ШВЕЦИЯ","SWEDEN"]
["КАЗАХСТАН","KAZAKHSTAN"]
["ФИНЛЯНДИЯ","FINLAND"]
["США","USA"]
["ЛАТВИЯ","LATVIA"]
["БЕЛАРУСЬ","BELARUS"]
["НОРВЕГИЯ","NORWAY"]
["УЛЬЯНОВСК","ULYANOVSK"]
["ВОЛГА-СПОРТ-АРЕНА","VOLGA SPORT ARENA"]
["ТРУД","TRUD"]
["ЯПОНИЯ","JAPAN"]
["МОНГОЛИЯ","MONGOLIA"]
["ГЕРМАНИЯ","GERMANY"]
["НИДЕРЛАНДЫ","NETHERLANDS"]
["СОМАЛИ","SOMALIA"]
["ЭСТОНИЯ","ESTONIA"]
["ВЕНГРИЯ","HUNGARY"]
["КИТАЙ","CHINA"]
["УКРАИНА","UKRAINE"]
["ЧЕХИЯ","CZECH"]
["ДИМИТРОВГРАД","DIMITROVGRAD"]
["СТРОИТЕЛЬ","STROITEL"]

{"sheet":"Версии","index":8,"n_rows":64,"n_cols":4,"rows_kept":64,"cut":false,"hidden":false,"merged":[[0,0,0,3]]}
["ПРОТОКОЛ ИЗМЕНЕНИЯ ВЕРСИЙ"]
["Версия","Дата","Важность","Изменения"]
["4.18","2017-01-02","+","Учтены изменения в составах команд Суперлиги, добавлены судьи высшей лиги"]
[null,null,"!","Настройка ведения счёта в таблице послематчевых 12-метровых"]
[null,null,"!","Ошибка отображения статистики вратарей команды гостей на оборотной - устранено"]
[null,null,"!","Восстановлено отображение продолжительности удалений на оборотной стороне протокола (было утрачено с версией 4.13)"]
["4.17","2017-10-28","!","Настроен счёт в дополнительном времени. Однако: игра в три тайма и затем с овертаймом невозможна!"]
[null,null,"!","Окончательно устранена ошибка ведения счёта (0:0)"]
["4.16","2017-09-21","!","В онлайн добавлена статистика по завершении таймов. Выдача жёлтой карточки в XML изменена"]
["4.15","2017-09-21","!","Исправление замеченных ошибок в формировании XML"]
["4.14","2017-09-20","!","Видоизменение оборотной стороны протокола. "]
["4.13","2017-02-14","!","Экспериментальная версия, переход на формат файла xlsm"]
["4.12","2017-01-05","!","Исправлен баг ведения счёта при игре в 3 тайма"]
["4.11b","2016-12-06","!","Экспериментальная версия, связанная с опробованием новой системы штрафов"]
["4.11","2016-12-05","!","Экспериментальная версия, связанная с опробованием новой системы штрафов"]
["4.10","2016-11-24","+","Добавлено указание фамилий тренеров при выдаче составов команд в онлайн"]
[null,null,"+","Добавлено указание в онлайне времени начала 2-го и 3-го таймов, а также завершения матча"]
["4.09","2016-11-04","+","Добавлена возможность кнопочной отправки ряда стандартных сообщений по ходу игры (предложено Парфёновым В.)"]
["4.08","2016-10-20","!","Устранена ошибка при формировании XML-протокола в части расшифровки нереализованных 12-метровых для частных случаев"]
["4.07","2016-09-23","!","Изменения в технологии формирования второго листа. Изменение адреса ФХМР"]
["4.06","2016-09-13","!","Устранена ошибка при формировании XML-протокола в части расшифровки нереализованных 12-метровых"]
["4.05","2016-08-29","!","Уточнено условие формирования признака участия в игре при формировании XML-протокола"]
["4.04","2016-08-24","!","Изменены некоторые формулировки удалений в соответствии с изменениями в правилах игры"]
["4.03","2016-02-12","!","Устранена проблема зависания программы"]
["4.02","2016-02-03","!","Устранена фатальная ошибка преобразования времени при обработке событий после 60-й минуты матча"]
["4.01","2015-01-04","+","Реализован двустраничный протокол на случай большого количества голов и/или удалений"]
[null,null,"!","Упразднены неиспользуемые функции, кнопка формирования XML перенесена в Регистратор"]
[null,null,"+","Добавлен международный протокол в русско- и англоязычном вариантах (RUS, ENG)"]
[null,null,"+","Добавлен словарь поддержки англоязычного протокола (Dictionary)"]
["3.014","2015-10-31","+","Добавлена автокоррекция размера шрифта для полного отображения фамилий/имён хоккеистов и судей"]
[null,null,"!","Исправлены ошибки формирования XML"]
["3.013","2015-08-31","!","Исправлены ошибки формирования XML"]
["3.012","2014-12-17","!","Исправлена корявка с отображением жёлтой карточки "]
[null,null,"+","Добавлена возможность формирования XML-файла для экспорта данных"]
["3.011","2014-11-04","!","Уточнены некоторые формулировки удалений - изменение бланка протокола"]
[null,null,"+","Добавлена возможность корректировки игрового времени при синхронизации секундомера после сбоя"]
["3.010","2013-12-29","!","Исправлена ошибка досыла неотправленной информации, в результате которой инфографика по досланным запиям не отображалась на сайте"]
[null,null,"!","Изменён алгоритм выдачи запроса о количестве зрителей (не выдавался в отдельных случаях)"]
[null,null,"+","Добавлено оповещение о суммарном компенсированном времени по тайму при нескольких компенсациях (подсказка для судьи-информатора)"]
[null,null,"!","Учёт 12-метровых в статистике матча теперь ведётся по факту их пробития, а не назначения"]
["3.009","2013-11-13","!","Усовершенствован модуль отправки запросов (переход на POST-запросы)"]
[null,null,"!","Окончание матча теперь доступно в любой момент в ходе игры"]
["3.008","2013-11-04","!","Скорректирован досадный глюк при расчёте стартовой минуты первого овертайма"]
[null,null,"+","В логике учёта времени учтено правило \"золотого\" гола в овертайме - он автоматически завершает матч."]
["3.006","2013-09-06","+","Добавлена возможность отправки в онлайн произвольного сообщения "]
["3.005","2013-09-01","!","Исправлено условие замены вратарей (ограничение замен в перерыве)"]
["3.002","2013-08-30","!","Исправлено условие формирования счёта на последние минуты таймов"]
["3.002","2013-08-30","!","Устранены наведённые ошибки формирования счёта на первой минуте второго тайма, а также скорректирован формат выдачи результата в онлайн"]
["3.001","2013-08-28","*","Форма протокола приведена в соответствие принятой ФХМР (добавлен учёт передач, прочие изменения)"]
[null,null,"+","Введён контроль повторного ввода командного предупреждения"]
[null,null,"-","Исключена возможность разделения состава на стартовый и резервный в тех.онлайне матча. Состав приводится в протокольном порядке."]
[null,null,"+","Добавлена возможность выбора судей из списка (Регистратор - Настройки - \"Шапка\" протокола)"]
[null,null,"+","Заголовки формулировок удалений на оборотной стороне протокола теперь приводятся в соответствии с заданным количеством штрафных минут"]
["2.082","2013-02-10","!","Устранена ошибка заполнения данных статистики игры вратарей если была замена"]
[null,null,"+","На оборотной стороне протокола добавлено указание версии программы"]
[null,null,"!","Модифицирован алгоритм ведения счёта в случае проведения третьего тайма"]
[null,null,"!","Скорректировано отображение счёта по завершении второго тайма при игре в три тайма"]
[null,null,"+","В запрос добавлена передача кода события (не связано с интерфейсом пользователя)"]
[null,null,"+","Введён принудительный запуск времени по нажанию кнопки регистратора"]
["2.081","2013-01-07","!","Устранён непонятный баг, возникший при разработке версии 2.080 и отменивший автоматическое вычисление ячеек в форме протокола. Версию 2.080 считать неработоспособной! Автоматическое вычисление теперь назначается принудительно при открытии файла."]
["2.080","2013-01-06","+","Добавлен лист учёта изменений версий программы"]
[null,null,"+","Настройки - \"Шапка\" протокола: добавлена установка системы судейства матча: тройное или двойное. В зависимости от неё изменяется форма протокола в части обозначения судейской бригады."]
[null,null,"!","Не отображалось в онлайне командное предупреждение - исправлено!"]
[null,null,"!","Блокирована ошибка открытия файла, ранее сохранённого с несколькими выделенными листами"]